Workbook

Sheet __snloffice (hidden)
A1: 允䅁䙁䅉䅁䍁䅁䅁䅁䩁䅁䅁杄䅁䑁䅉䅍硁䑁䅧兕硁䅁䅁兂䅁䅁䄴䅁祁䑁䅁免㑁䙁䅅杍䅁䅁䅣䅁佁䅁䅁杍睁䑁䅅䅏剂䑁䅍䅁䥁䅁䅁杄䅁䑁䅉䅍硁䑁䅧兕ぁ䅁䅁䅁䅁䅁䅯䅁䉂䕁䅅䅕䵂䅁䅁䅑䅁䅁䅧䅁䉂䕁䅉䅖䅁䉁䅑䅁䥁䅁䅁兑䕂䕁䅫䅁噁䅁䅁䅃䅁䕁䅅兓慂䅁䅁睇䅁䅁䅯䅁䉂䕁䄴睕呂䅁䅁杈䅁䅁䅧䅁䉂䕁䄸睕䅁䉁䅷䅁䥁䅁䅁兑啂䕁䄸䅁乁䅁䅁李䅁䕁䅅杤湂䍁䅁睒桂䡁䅍䅉䑂䡁䅕督あ䝁䄸兢求䡁䅉督杁䍁䅧兙橂䡁䅑兤桂䝁䅷克䅁䅁䅑䅁䥁䅁䅁村䉂䕁䅧䅁歁䅁䅁䅃䅁䕁䅉䅒奂䅁䅁杊䅁䅁䅧䅁䍂䕁䅙村䅁䉁䅧䅁䥁䅁䅁村乂䙁䅫䅁䭂䅁䅁杂䅁䕁䅉杕䅁䍁䅣䅁䥁䅁䅁村卂䕁䅍䅁䉂䅁䅁权䅁䕁䅍兑䑂䕁䅫䅁䵂䅁䅁权䅁䕁䅍兑呂䙁䅫䅁乂䅁䅁权䅁䕁䅍䅒佂䙁䅍䅁祁䅁䅁权䅁䕁䅍兒卂䕁䄴䅁煁䅁䅁䅃䅁䕁䅍睔偂䅁䅁先䅁䅁䅯䅁䑂䙁䅍睖䩂䅁䅁杌䅁䅁䅧䅁䕂䕁䅣䅗䅁䍁䅉䅁䥁䅁䅁䅒䵂䕁䅉䅁ㅁ䅁䅁杂䅁䕁䅕䅔䅁䍁䅳䅁䭁䅁䅁兒奂䙁䅁睔䅁䑁䅯䅁䭁䅁䅁杒䉂䙁䅍䅖䅁䕁䅕䅁䭁䅁䅁杒䑂䕁䅙睕䅁䍁䄸䅁䭁䅁䅁杒䙂䕁䅷兒䅁䕁䅍䅁䭁䅁䅁睒䉂䙁䅑䅗䅁䕁䅉䅁䭁䅁䅁睒佂䙁䅑䅗䅁䑁䅁䅁䥁䅁䅁睒卂䕁䅍䅁䕂䅁䅁䅃䅁䕁䅧睕婂䅁䅁免䅁䅁䅧䅁䩂䕁䅙杒䅁䑁䅑䅁䭁䅁䅁兓佂䕁䅣杕䅁䑁䅷䅁䥁䅁䅁兓卂䕁䄰䅁㍁䅁䅁䅊䅁䕁䅫杢穂䡁䅑兡あ䡁䅕䅤灂䝁䄸杢杁䕁䄴兙瑂䝁䅕䅉䅁䅁䅯䅁䭁䅁䅁杓䍂䕁䅧䅖䅁䑁䄰䅁䭁䅁䅁杓䭂䙁䅍杒䅁䉁䅣䅁䭁䅁䅁杓䱂䕁䅧兗䅁䑁䅙䅁䥁䅁䅁杓偂䕁䅕䅁㝁䅁䅁权䅁䕁䄰兑佂䙁䅑䅁潁䅁䅁䅃䅁䕁䄰睓䑂䅁䅁材䅁䅁䅯䅁乂䕁䄴睕啂䅁䅁杒䅁䅁䅙䅁乂䕁䄸䅁慁䅁䅁䅃䅁䕁䄰睕䉂䅁䅁睒䅁䅁䅯䅁乂䙁䅍睑䩂䅁䅁兌䅁䅁䅧䅁乂䙁䅍兓䅁䍁䅅䅁䥁䅁䅁兔啂䕁䄴䅁兂䅁䅁权䅁䕁䄰䅗䩂䕁䄰䅁汁䅁䅁杂䅁䕁䄴兑䅁䉁䅫䅁䥁䅁䅁杔䭂䙁䅉䅁佁䅁䅁䅃䅁䕁䄴睔䑂䅁䅁睍䅁䅁䅧䅁佂䙁䅣杔䅁䉁䅁䅁䭁䅁䅁睔䕂䕁䅙䅔䅁䑁䅫䅁䥁䅁䅁睔䡂䙁䅍䅁剁䅁䅁杪䅁䕁䄸䅣あ䝁䅫睢畂䡁䅍杏䑂䡁䅕杣祂䑁䄰杕求䡁䅁睢祂䡁䅑党歂䍁䅁睙ㅂ䡁䅉杣求䝁䄴睙㕂䍁䅷兔桂䝁䅣児乂䕁䅫督あ䝁䅅杢歂䝁䅅杣歂䍁䅷睑療䝁䄴杤乂䝁䅕䅤潂䝁䄸䅚㥁䕁䄰兓祂䝁䅕睙療䝁䄰兢求䝁䄴䅚求䝁䅑䅁䍁䅁䅁䅋䅁䕁䄸杣灂䝁䅣兡畂䝁䅅䅢獂䡁䅫䅉卂䝁䅕䅣療䡁䅉䅤求䝁䅑䅁䉁䅁䅁䅃䅁䙁䅁睒卂䅁䅁睉䅁䅁䅧䅁兂䕁䅳睒䅁䕁䅧䅁䥁䅁䅁䅕䱂䕁䅫䅁㑁䅁䅁杂䅁䙁䅁兔䅁䕁䄸䅁䭁䅁䅁䅕偂䕁䄸䅔䅁䍁䅫䅁䭁䅁䅁䅕偂䙁䅍䅖䅁䉁䅙䅁䥁䅁䅁杕䵂䕁䅫䅁䱂䅁䅁䅃䅁䙁䅉睔䵂䅁䅁睈䅁䙁䅉䅁卂䝁䅕䅣療䡁䅉䅤求䝁䅑䅉佂䝁䅕䅤杁䕁䄸䅣求䡁䅉兙あ䝁䅫杢湂䍁䅁兓畂䝁䅍睢瑂䝁䅕䅉潁䙁䅉党睂䝁䄸杣あ䝁䅕䅚灁䅁䅁睁䅁䅁䅯䅁呂䕁䅉兖奂䅁䅁䅌䅁䅁䅯䅁呂䕁䅫睒䩂䅁䅁䅉䅁䅁䅯䅁呂䕁䅫杕䩂䅁䅁杔䅁䅁䅧䅁呂䕁䅯兓䅁䉁䅉䅁煁䅁䅁睕佂䕁䅷䅉䩂䝁䄴督あ䝁䅫䅤ㅂ䡁䅑兡療䝁䄴䅉䱂䝁䅕入杁䅁䅁睃䅁䅁䅯䅁呂䕁䄴䅕呂䅁䅁兕䅁䅁䅙䅁呂䙁䅉䅁偁䅁䅁䅃䅁䙁䅍睖奂䅁䅁睅䅁䅁䅯䅁啂䙁䅑兒䱂䅁䅁睐䅁䑁䅉䅁啂䝁䄸䅤桂䝁䅷䅉卂䝁䅕杤求䝁䄴兤求䍁䅁䅋卂䝁䅕䅣療䡁䅉䅤求䝁䅑克䅁䅁䅙䅁䥁䅁䅁睖呂䙁䅑䅁䩂䅁䅁杊䅁䝁䄰兙祂䝁䅳党あ䡁䅍杌睂䡁䅉兡橂䝁䅕睙獂䝁䄸督求䅁䅁䅄䅁䅁䅁䅁㵁

Sheet 1.1 Recommended Cap Structure
A1: =Input!G28 -> Peoples Gas System
A2: Recommended Capital Structure and Cost Rates
A3: for Ratemaking Purposes
B6: Type Of Capital | D6: Ratios (1) | F6: Cost Rate | H6: Weighted Cost Rate
B8: Long-Term Debt | D8: 0.4048 | F8: 0.0554 | G8: (1) | H8: 0.0224
B9: Short-Term Debt | D9: 0.0484 | F9: 0.0485 | G9: (1) | H9: 0.0024
B10: Common Equity | D10: 0.5468 | F10: ='1.2 Summary of CE Models'!E23 -> 0.11 | G10: (2) | H10: =ROUND(F10*D10,4) -> 0.0601
B12: Total | D12: =SUM(D8:D10) -> 1 | H12: =SUM(H8:H10) -> 0.0849
A15: Notes:
A16: (1) | B16: Per data included on Company MFR Schedule G-3, page 2.
A17: (2) | B17: From page 2 of this Document.

Sheet 1.2 Summary of CE Models
A1: =Input!G28 -> Peoples Gas System
A2: Brief Summary of Common Equity Cost Rate
A5: Line No. | C5: Principal Methods | E5: =Input!I30 -> Proxy Group of Six Natural Gas Companies
A7: 1. | C7: Discounted Cash Flow Model (DCF) (1) | E7: ='3.1 DCF Summary'!V20/100 -> 0.1 | F7: =AVERAGE(E7:E13) -> 0.1138 | G7: =F10 -> 0.1 | I7: No PRPM | K7: =E7 -> 0.1
F8: =MEDIAN(E7:E13) -> 0.1158 | G8: =F7 -> 0.1138
A9: 2. | C9: Risk Premium Model (RPM) (2) | E9: ='4.1 RP Summary'!D10/100 -> 0.1154 | F9: =MAX(E7:E13) -> 0.1236 | G9: =G7+SUM(E17:E19) -> 0.1032248833 | K9: ='4.3 Risk Premium Summary'!J23/100 -> 0
F10: =MIN(E7:E13) -> 0.1 | G10: =G8+SUM(E17:E19) -> 0.1170248833
A11: 3. | C11: Capital Asset Pricing Model (CAPM) (3) | E11: ='5.1 CAPM'!V20/100 -> 0.1162 | F11: =AVERAGE(F9:F10) -> 0.1118 | K11: ='5.1 CAPM'!V39/100 -> 0
A13: 4. | C13: Market Models Applied to Comparable Risk, Non-Price Regulated Companies (4) | E13: ='7.1 CEM Summary'!E19/100 -> 0.1236
A15: 5. | C15: Indicated Range of Common Equity Cost Rates before Adjustment for Company-specific Risk | E15: =_xlfn.CONCAT(TEXT(E7,"0.00%")," - ",TEXT(E11,"0.00%")) -> 10.00% - 11.62%
A17: 6. | C17: Flotation Cost Adjustment (5) | E17: ='8.1 Equity Contributions'!M21/100 -> 0.001224883349
A19: 7. | C19: Business Risk Adjustment (6) | E19: 0.002
A21: 8. | C21: Recommended Range of Common Equity Cost Rates after Adjustment for Company-specic Risk | E21: =_xlfn.CONCAT(TEXT(G9,"0.00%")," - ",TEXT(G10,"0.00%")) -> 10.32% - 11.70%
A23: 9. | C23: Recommended Common Equity Cost Rate (7) | E23: 0.11
A25: Notes: | B25: (1) | C25: From page 1 of Document No. 3.
B26: (2) | C26: From page 1 of Document No. 4.
B27: (3) | C27: From page 1 of Document No. 5.
B28: (4) | C28: From page 1 of Document No. 7.
B29: (5) | C29: From Document No. 8.
B30: (6) | C30: Adjustment to reflect the Company's specific business risks, such as smaller size, high customer growth, capital investment plans, and high level of performance, as detailed in Mr. D'Ascendis' Direct Testimony.
B31: (7) | C31: Considers Company-specific factors (i.e., flotation costs and Company-specific business risks) relative to the Utility Proxy Group as detailed in Mr. D'Ascendis' Direct Testimony.

Sheet 2.4 OpCo Proxy Cap Str (hidden)
A1: =Input!G28 -> Peoples Gas System
A2: Operating Subsidiary Company Capital Structures of the
A3: Proxy Group of Thirteen Electric Companies
E5: 2020
A6: Company Name | C6: Parent Company Ticker | E6: Common Equity | G6: Long-Term Debt | I6: Total Capital
A7: Ameren Illinois Company | C7: AEE | E7: =#REF! ->  | G7: =#REF! ->  | I7: =IFERROR(E7+G7,"NA") -> NA | K7: =MAX(E7:E43) ->  | L7: Max
A8: Central Illinois Light Company | C8: AEE | E8: =#REF! ->  | G8: =#REF! ->  | I8: =IFERROR(E8+G8,"NA") -> NA | K8: =MIN(E7:E43) ->  | L8: Min.
A9: Illinois Power Company | C9: AEE | E9: =#REF! ->  | G9: =#REF! ->  | I9: NA
A10: Union Electric Company | C10: AEE | E10: =#REF! ->  | G10: =#REF! ->  | I10: NA
A11: Duke Energy Carolinas, LLC | C11: DUK | E11: =#REF! ->  | G11: =#REF! ->  | I11: NA
A12: Duke Energy Florida, LLC | C12: DUK | E12: =#REF! ->  | G12: =#REF! ->  | I12: NA
A13: Duke Energy Indiana, LLC | C13: DUK | E13: =#REF! ->  | G13: =#REF! ->  | I13: NA
A14: Duke Energy Kentucky, Inc. | C14: DUK | E14: =#REF! ->  | G14: =#REF! ->  | I14: NA
A15: Duke Energy Ohio, Inc. | C15: DUK | E15: =#REF! ->  | G15: =#REF! ->  | I15: NA
A16: Duke Energy Progress, LLC | C16: DUK | E16: =#REF! ->  | G16: =#REF! ->  | I16: NA
A17: Florida Progress Corporation | C17: DUK | E17: =#REF! ->  | G17: =#REF! ->  | I17: NA
A18: Piedmont Natural Gas Company, Inc. | C18: DUK | E18: =#REF! ->  | G18: =#REF! ->  | I18: NA
A19: Progress Energy, Inc. | C19: DUK | E19: =#REF! ->  | G19: =#REF! ->  | I19: NA
A20: Southern California Edison Company | C20: EIX | E20: =#REF! ->  | G20: =#REF! ->  | I20: NA
A21: Entergy Arkansas, LLC | C21: ETR | E21: =#REF! ->  | G21: =#REF! ->  | I21: NA
A22: Entergy Gulf States Louisiana, L.L.C. | C22: ETR | E22: =#REF! ->  | G22: =#REF! ->  | I22: NA
A23: Entergy Louisiana, LLC | C23: ETR | E23: =#REF! ->  | G23: =#REF! ->  | I23: NA
A24: Entergy Mississippi, LLC | C24: ETR | E24: =#REF! ->  | G24: =#REF! ->  | I24: NA
A25: Entergy New Orleans, LLC | C25: ETR | E25: =#REF! ->  | G25: =#REF! ->  | I25: NA
A26: Entergy Texas, Inc. | C26: ETR | E26: =#REF! ->  | G26: =#REF! ->  | I26: NA
A27: Evergy Kansas Central, Inc. | C27: EVRG | E27: =#REF! ->  | G27: =#REF! ->  | I27: NA
A28: Evergy Kansas South, Inc. | C28: EVRG | E28: =#REF! ->  | G28: =#REF! ->  | I28: NA
A29: Evergy Metro, Inc. | C29: EVRG | E29: =#REF! ->  | G29: =#REF! ->  | I29: NA
A30: Evergy Missouri West, Inc. | C30: EVRG | E30: =#REF! ->  | G30: =#REF! ->  | I30: NA
A31: NSTAR Electric Company | C31: ES | E31: =#REF! ->  | G31: =#REF! ->  | I31: NA
A32: Public Service Company of New Hampshire | C32: ES | E32: =#REF! ->  | G32: =#REF! ->  | I32: NA
A33: Idaho Power Company | C33: IDA | E33: =#REF! ->  | G33: =#REF! ->  | I33: NA
A34: Interstate Power and Light Company | C34: LNT | E34: =#REF! ->  | G34: =#REF! ->  | I34: NA
A35: Wisconsin Power and Light Company | C35: LNT | E35: =#REF! ->  | G35: =#REF! ->  | I35: NA
A36: NorthWestern Corporation | C36: NWE | E36: =#REF! ->  | G36: =#REF! ->  | I36: NA
A37: Oklahoma Gas and Electric Company | C37: OGE | E37: =#REF! ->  | G37: =#REF! ->  | I37: NA
A38: Otter Tail Power Company | C38: OTTR | E38: =#REF! ->  | G38: =#REF! ->  | I38: NA
A39: Portland General Electric Company | C39: POR | E39: =#REF! ->  | G39: =#REF! ->  | I39: NA
A40: Northern States Power Company | C40: XEL | E40: =#REF! ->  | G40: =#REF! ->  | I40: NA
A41: Northern States Power Company | C41: XEL | E41: =#REF! ->  | G41: =#REF! ->  | I41: NA
A42: Public Service Company of Colorado | C42: XEL | E42: =#REF! ->  | G42: =#REF! ->  | I42: NA
A43: Southwestern Public Service Company | C43: XEL | E43: =#REF! ->  | G43: =#REF! ->  | I43: NA
C45: Mean | E45: =AVERAGE(E7:E19) ->  | G45: =AVERAGE(G7:G19) ->  | I45: =E45+G45 -> 
A47: Source: S&P Global Market Intelligence.
E49: =MEDIAN(E7:E43) ->  | G49: =MEDIAN(G7:G43) ->  | I49: =SUM(E49:H49) -> 

Sheet 2.1 GasProxy CapStr Summary
C1: =Input!G28 -> Peoples Gas System | Q1: =C1 -> Peoples Gas System
C2: Capitalization and Financial Statistics (1) | Q2: =C2 -> Capitalization and Financial Statistics (1)
C3: 2017 - 2021, Inclusive | Q3: =C3 -> 2017 - 2021, Inclusive
C5: 2021 | E5: =C5-1 -> 2020 | G5: =E5-1 -> 2019 | I5: 2018 | K5: 2017 | M5: 2016
A6: Capital Structure:
A7: Long Term Debt | B7: LTDEBT | S7: =C5 -> 2021 | U7: =E5 -> 2020 | W7: =G5 -> 2019 | Y7: =I5 -> 2018 | AA7: =K5 -> 2017
A8: Preferred Stock | B8: PFD | S8: (millions of dollars)
Q9: Capitalization Statistics
A10: Common Shares Outst. | B10: Input Data
A11: Common Equity | B11: TOTEQ | Q11: Amount of Capital Employed
A12: Sinking Fund Requirements | B12: Input Data | Q12: Total Permanent Capital | S12: =ROUND(AVERAGE('3. ATO:3. SR'!Q17),3) -> 7455.217 | U12: =ROUND(AVERAGE('3. ATO:3. SR'!S17),3) -> 6855.835 | W12: =ROUND(AVERAGE('3. ATO:3. SR'!U17),3) -> 6012.401 | Y12: =ROUND(AVERAGE('3. ATO:3. SR'!W17),3) -> 5411.345 | AA12: =ROUND(AVERAGE('3. ATO:3. SR'!Y17),3) -> 5040.64
Q13: Short-Term Debt | S13: =ROUND(AVERAGE('3. ATO:3. SR'!Q18),3) -> 415.467 | U13: =ROUND(AVERAGE('3. ATO:3. SR'!S18),3) -> 333.183 | W13: =ROUND(AVERAGE('3. ATO:3. SR'!U18),3) -> 612.061 | Y13: =ROUND(AVERAGE('3. ATO:3. SR'!W18),3) -> 629.275 | AA13: =ROUND(AVERAGE('3. ATO:3. SR'!Y18),3) -> 468.027
A14: Short Term Debt | B14: STDEBT | Q14: Total Capital Employed | S14: =SUM(S12:S13) -> 7870.684 | U14: =SUM(U12:U13) -> 7189.018 | W14: =SUM(W12:W13) -> 6624.462 | Y14: =SUM(Y12:Y13) -> 6040.62 | AA14: =SUM(AA12:AA13) -> 5508.667
A16: EPS excluding extra | B16: EPSAPPCOMM | Q16: Indicated Average Capital Cost Rates (2)
A17: Price - High | B17: Yahoo | Q17: Total Debt | S17: =ROUND(AVERAGE('3. ATO:3. SR'!Q22),3) -> 2.95 | T17: % | U17: =ROUND(AVERAGE('3. ATO:3. SR'!S22),3) -> 3.288 | V17: % | W17: =ROUND(AVERAGE('3. ATO:3. SR'!U22),3) -> 3.625 | X17: % | Y17: =ROUND(AVERAGE('3. ATO:3. SR'!W22),3) -> 3.568 | Z17: % | AA17: =ROUND(AVERAGE('3. ATO:3. SR'!Y22),3) -> 3.765 | AB17: %
A18: Price - Low | B18: Yahoo | Q18: Preferred Stock | S18: =ROUND(AVERAGE('3. ATO:3. SR'!Q23),3) -> 5.33 | U18: =ROUND(AVERAGE('3. ATO:3. SR'!S23),3) -> 6.19
AC19: 5 Year
Q20: Capital Structure Ratios | AC20: Average
A21: DPS by payable date | B21: Yahoo | Q21: Based on Total Permanent Capital:
Q22: Long-Term Debt | S22: =ROUND(AVERAGE('3. ATO:3. SR'!Q27),3) -> 50.182 | T22: % | U22: =ROUND(AVERAGE('3. ATO:3. SR'!S27),3) -> 50.033 | V22: % | W22: =ROUND(AVERAGE('3. ATO:3. SR'!U27),3) -> 46.417 | X22: % | Y22: =ROUND(AVERAGE('3. ATO:3. SR'!W27),3) -> 46.028 | Z22: % | AA22: =ROUND(AVERAGE('3. ATO:3. SR'!Y27),3) -> 49.527 | AB22: % | AC22: =ROUND(AVERAGE(S22:AA22),2) -> 48.44 | AD22: %
A23: AFUDC | B23: AFUDC | Q23: Preferred Stock | S23: =ROUND(AVERAGE('3. ATO:3. SR'!Q28),3) -> 2.305 | U23: =ROUND(AVERAGE('3. ATO:3. SR'!S28),3) -> 1.783 | W23: =ROUND(AVERAGE('3. ATO:3. SR'!U28),3) -> 1.923 | Y23: =ROUND(AVERAGE('3. ATO:3. SR'!W28),3) -> 1.137 | AA23: =ROUND(AVERAGE('3. ATO:3. SR'!Y28),3) -> 0 | AC23: =ROUND(AVERAGE(S23:AA23),2)-0 -> 1.43
Q24: Common Equity | S24: =ROUND(AVERAGE('3. ATO:3. SR'!Q29),3) -> 47.513 | U24: =ROUND(AVERAGE('3. ATO:3. SR'!S29),3) -> 48.183 | W24: =ROUND(AVERAGE('3. ATO:3. SR'!U29),3) -> 51.658 | Y24: =ROUND(AVERAGE('3. ATO:3. SR'!W29),3) -> 52.835 | AA24: =ROUND(AVERAGE('3. ATO:3. SR'!Y29),3) -> 50.473 | AC24: =ROUND(AVERAGE(S24:AA24),2) -> 50.13
A25: Total Interest | B25: INTEXP | Q25: Total | S25: =ROUND(SUM(S22:S24),4) -> 100 | T25: % | U25: =ROUND(SUM(U22:U24),2) -> 100 | V25: % | W25: =ROUND(SUM(W22:W24),2) -> 100 | X25: % | Y25: =ROUND(SUM(Y22:Y24),2) -> 100 | Z25: % | AA25: =ROUND(SUM(AA22:AA24),2) -> 100 | AB25: % | AC25: =ROUND(SUM(AC22:AC24),2) -> 100 | AD25: %
A27: Net Income before Extra. | B27: NETINC | Q27: Based on Total Capital:
Q28: Total Debt, Including Short-Term | S28: =ROUND(AVERAGE('3. ATO:3. SR'!Q33),3) -> 54.263 | T28: % | U28: =ROUND(AVERAGE('3. ATO:3. SR'!S33),3) -> 53.513 | V28: % | W28: =ROUND(AVERAGE('3. ATO:3. SR'!U33),3) -> 51.06 | X28: % | Y28: =ROUND(AVERAGE('3. ATO:3. SR'!W33),3) -> 51.143 | Z28: % | AA28: =ROUND(AVERAGE('3. ATO:3. SR'!Y33),3) -> 53.668 | AB28: % | AC28: =ROUND(AVERAGE(S28:AA28),2) -> 52.73 | AD28: %
A29: CE Income before Extra. | B29: INCAVAILCOMM | Q29: Preferred Stock | S29: =ROUND(AVERAGE('3. ATO:3. SR'!Q34),3) -> 2.177 | U29: =ROUND(AVERAGE('3. ATO:3. SR'!S34),3) -> 1.66 | W29: =ROUND(AVERAGE('3. ATO:3. SR'!U34),3) -> 1.683 | Y29: =ROUND(AVERAGE('3. ATO:3. SR'!W34),3) -> 0.985 | AA29: =ROUND(AVERAGE('3. ATO:3. SR'!Y34),3) -> 0 | AC29: =ROUND(AVERAGE(S29:AA29),2) -> 1.3
Q30: Common Equity | S30: =ROUND(AVERAGE('3. ATO:3. SR'!Q35),3) -> 43.56 | U30: =ROUND(AVERAGE('3. ATO:3. SR'!S35),3) -> 44.827 | W30: =ROUND(AVERAGE('3. ATO:3. SR'!U35),3) -> 47.255 | Y30: =ROUND(AVERAGE('3. ATO:3. SR'!W35),3) -> 47.872 | AA30: =ROUND(AVERAGE('3. ATO:3. SR'!Y35),3) -> 46.332 | AC30: =ROUND(AVERAGE(S30:AA30),2) -> 45.97
A31: Preferred Stock Dividends | B31: PFDDIV | Q31: Total | S31: =ROUND(SUM(S28:S30),2) -> 100 | T31: % | U31: =ROUND(SUM(U28:U30),2) -> 100 | V31: % | W31: =ROUND(SUM(W28:W30),2) -> 100 | X31: % | Y31: =ROUND(SUM(Y28:Y30),2) -> 100 | Z31: % | AA31: =ROUND(SUM(AA28:AA30),2) -> 100 | AB31: % | AC31: =ROUND(SUM(AC28:AC30),2) -> 100 | AD31: %
A33: Common Dividends | B33: COMDIVS1
A35: Income Bef Extra Items-S&U | B35: INCBEFEXT | Q35: Financial Statistics
A36: Net Operating Cash Flow | B36: NETOPGFC
A37: Change in Current Assets | B37: CHGCURASSET | Q37: Financial Ratios - Marked Based
A38: Change in Current Liabilities | B38: CHGCURLIAB | Q38: Earnings / Price Ratio | S38: =ROUND(AVERAGE('3. ATO:3. SR'!Q43),3) -> 5.245 | T38: % | U38: =ROUND(AVERAGE('3. ATO:3. SR'!S43),3) -> 3.448 | V38: % | W38: =ROUND(AVERAGE('3. ATO:3. SR'!U43),3) -> 3.84 | X38: % | Y38: =ROUND(AVERAGE('3. ATO:3. SR'!W43),3) -> 4.315 | Z38: % | AA38: =ROUND(AVERAGE('3. ATO:3. SR'!Y43),3) -> 2.742 | AB38: % | AC38: =ROUND(AVERAGE(S38:AA38),2) -> 3.92 | AD38: %
Q39: Market / Average Book Ratio | S39: =ROUND(AVERAGE('3. ATO:3. SR'!Q44),3) -> 176.322 | U39: =ROUND(AVERAGE('3. ATO:3. SR'!S44),3) -> 191.597 | W39: =ROUND(AVERAGE('3. ATO:3. SR'!U44),3) -> 224.792 | Y39: =ROUND(AVERAGE('3. ATO:3. SR'!W44),3) -> 213.848 | AA39: =ROUND(AVERAGE('3. ATO:3. SR'!Y44),3) -> 213.577 | AC39: =ROUND(AVERAGE(S39:AA39),2) -> 204.03
Q40: Dividend Yield | S40: =ROUND(AVERAGE('3. ATO:3. SR'!Q45),3) -> 3.437 | U40: =ROUND(AVERAGE('3. ATO:3. SR'!S45),3) -> 3.102 | W40: =ROUND(AVERAGE('3. ATO:3. SR'!U45),3) -> 2.608 | Y40: =ROUND(AVERAGE('3. ATO:3. SR'!W45),3) -> 2.775 | AA40: =ROUND(AVERAGE('3. ATO:3. SR'!Y45),3) -> 2.713 | AC40: =ROUND(AVERAGE(S40:AA40),2) -> 2.93
A41: Calculations | Q41: Dividend Payout Ratio | S41: =ROUND(AVERAGE('3. ATO:3. SR'!Q46),3) -> 60.268 | U41: =ROUND(AVERAGE('3. ATO:3. SR'!S46),3) -> 83.216 | W41: =ROUND(AVERAGE('3. ATO:3. SR'!U46),3) -> 69.247 | Y41: =ROUND(AVERAGE('3. ATO:3. SR'!W46),3) -> 54 | AA41: =ROUND(AVERAGE('3. ATO:3. SR'!Y46),3) -> 51.637 | AC41: =ROUND(AVERAGE(S41:AA41),2) -> 63.67
A43: Com Eq / Shares Out. | B43: calc | Q43: Rate of Return on Average Book Common Equity | S43: =ROUND(AVERAGE('3. ATO:3. SR'!Q48),3) -> 9.848 | T43: % | U43: =ROUND(AVERAGE('3. ATO:3. SR'!S48),3) -> 6.753 | V43: % | W43: =ROUND(AVERAGE('3. ATO:3. SR'!U48),3) -> 8.68 | X43: % | Y43: =ROUND(AVERAGE('3. ATO:3. SR'!W48),3) -> 9.552 | Z43: % | AA43: =ROUND(AVERAGE('3. ATO:3. SR'!Y48),3) -> 5.818 | AB43: % | AC43: =ROUND(AVERAGE(S43:AA43),2) -> 8.13 | AD43: %
A45: Total Permanent Capital | B45: calc | Q45: Total Debt / EBITDA (3) | S45: =ROUND(AVERAGE('3. ATO:3. SR'!Q50),3) -> 5.095 | T45: x | U45: =ROUND(AVERAGE('3. ATO:3. SR'!S50),3) -> 6.028 | V45: x | W45: =ROUND(AVERAGE('3. ATO:3. SR'!U50),3) -> 4.963 | X45: x | Y45: =ROUND(AVERAGE('3. ATO:3. SR'!W50),3) -> 5.013 | Z45: x | AA45: =ROUND(AVERAGE('3. ATO:3. SR'!Y50),3) -> 7.653 | AB45: x | AC45: =ROUND(AVERAGE(S45:AA45),2) -> 5.75 | AD45: x
A47: Average Price | B47: calc | Q47: Funds From Operations / Total Debt (4) | S47: =ROUND(AVERAGE('3. ATO:3. SR'!Q52),3) -> 11.697 | T47: % | U47: =ROUND(AVERAGE('3. ATO:3. SR'!S52),3) -> 12.46 | V47: % | W47: =ROUND(AVERAGE('3. ATO:3. SR'!U52),3) -> 14.988 | X47: % | Y47: =ROUND(AVERAGE('3. ATO:3. SR'!W52),3) -> 24.21 | Z47: % | AA47: =ROUND(AVERAGE('3. ATO:3. SR'!Y52),3) -> 16.353 | AB47: % | AC47: =ROUND(AVERAGE(S47:AA47),2) -> 15.94 | AD47: %
A49: Total Debt | Q49: Total Debt / Total Capital | S49: =ROUND(AVERAGE('3. ATO:3. SR'!Q54),3) -> 54.263 | T49: % | U49: =ROUND(AVERAGE('3. ATO:3. SR'!S54),3) -> 53.513 | V49: % | W49: =ROUND(AVERAGE('3. ATO:3. SR'!U54),3) -> 51.06 | X49: % | Y49: =ROUND(AVERAGE('3. ATO:3. SR'!W54),3) -> 51.143 | Z49: % | AA49: =ROUND(AVERAGE('3. ATO:3. SR'!Y54),3) -> 53.668 | AB49: % | AC49: =ROUND(AVERAGE(S49:AA49),2) -> 52.73 | AD49: %
A52: Total Capital | B52: calc | Q52: Notes:
Q53: (1) | R53: All capitalization and financial statistics for the group are the arithmetic average of the achieved results for each individual company in the group, and are based upon financial statements as originally reported in each year.
A54: Preferred Stk + Sink Fund Req. | B54: calc | Q54: (2) | R54: Computed by relating actual total debt interest or preferred stock dividends booked to average of beginning and ending total debt or preferred stock reported to be outstanding.
Q55: (3) | R55: Total debt relative to EBITDA (Earnings before Interest, Income Taxes, Depreciation and Amortization).
Q56: (4) | R56: Funds from operations (sum of net income, depreciation, amortization, net deferred income tax and investment tax credits, less total AFUDC) plus interest charges as a percentage of total debt.
Q58: Source of Information: | R58: Company Annual Forms 10-K.
HO70: SEE PAGE 2 FOR NOTES.

Sheet 2.2 GasProxy CapStr
B1: Capital Structure Based upon Total Permanent Capital for the
B2: =Input!I30 -> Proxy Group of Six Natural Gas Companies
B3: ='2.1 GasProxy CapStr Summary'!C3 -> 2017 - 2021, Inclusive
N5: 5 Year
D6: 2021 | F6: =D6-1 -> 2020 | H6: =F6-1 -> 2019 | J6: =H6-1 -> 2018 | L6: =J6-1 -> 2017 | N6: Average
A8: =Input!A2 -> ATO | B8: =VLOOKUP($A8,'Proxy Data Lookup'!$A$2:$B$8,2,FALSE) -> Atmos Energy Corporation
B9: Long-Term Debt (1) | D9: =ROUND(('3. ATO'!C$12/'3. ATO'!C$50)*100,2) -> 39.35 | E9: % | F9: =ROUND(('3. ATO'!E$12/'3. ATO'!E$50)*100,2) -> 40.02 | G9: % | H9: =ROUND(('3. ATO'!G$12/'3. ATO'!G$50)*100,2) -> 38.03 | I9: % | J9: =ROUND(('3. ATO'!I$12/'3. ATO'!I$50)*100,2) -> 39.15 | K9: % | L9: =ROUND(('3. ATO'!K$12/'3. ATO'!K$50)*100,2) -> 44.03 | M9: % | N9: =ROUND(AVERAGE(D9,F9,H9,J9,L9),2) -> 40.12 | O9: % | R9: Min | S9: =MIN(D11,D17,D29,D35,D23,D41) -> 33.36
B10: Preferred Stock | D10: =ROUND(('3. ATO'!C$13/'3. ATO'!C$50)*100,2) -> 0 | F10: =ROUND(('3. ATO'!E$13/'3. ATO'!E$50)*100,2) -> 0 | H10: =ROUND(('3. ATO'!G$13/'3. ATO'!G$50)*100,2) -> 0 | J10: =ROUND(('3. ATO'!I$13/'3. ATO'!I$50)*100,2) -> 0 | L10: =ROUND(('3. ATO'!K$13/'3. ATO'!K$50)*100,2) -> 0 | N10: =ROUND(AVERAGE(D10,F10,H10,J10,L10),2) -> 0 | R10: Max | S10: =MAX(D11,D17,D29,D35,D23,D41) -> 60.65
B11: Common Equity | D11: =ROUND(('3. ATO'!C$16/'3. ATO'!C$50)*100,2) -> 60.65 | F11: =ROUND(('3. ATO'!E$16/'3. ATO'!E$50)*100,2) -> 59.98 | H11: =ROUND(('3. ATO'!G$16/'3. ATO'!G$50)*100,2) -> 61.97 | J11: =ROUND(('3. ATO'!I$16/'3. ATO'!I$50)*100,2) -> 60.85 | L11: =ROUND(('3. ATO'!K$16/'3. ATO'!K$50)*100,2) -> 55.97 | N11: =ROUND(AVERAGE(D11,F11,H11,J11,L11),2) -> 59.88
B12: Total Capital | D12: =SUM(D9:D11) -> 100 | E12: % | F12: =SUM(F9:F11) -> 100 | G12: % | H12: =SUM(H9:H11) -> 100 | I12: % | J12: =SUM(J9:J11) -> 100 | K12: % | L12: =SUM(L9:L11) -> 100 | M12: % | N12: =SUM(N9:N11) -> 100 | O12: %
A14: =Input!A3 -> NJR | B14: =VLOOKUP($A14,'Proxy Data Lookup'!$A$2:$B$8,2,FALSE) -> New Jersey Resources Corporation
B15: Long-Term Debt | D15: =ROUND(('3. NJR'!C$12/'3. NJR'!C$50)*100,2) -> 57.81 | E15: % | F15: =ROUND(('3. NJR'!E$12/'3. NJR'!E$50)*100,2) -> 55.35 | G15: % | H15: =ROUND(('3. NJR'!G$12/'3. NJR'!G$50)*100,2) -> 50.11 | I15: % | J15: =ROUND(('3. NJR'!I$12/'3. NJR'!I$50)*100,2) -> 47.89 | K15: % | L15: =ROUND(('3. NJR'!K$12/'3. NJR'!K$50)*100,2) -> 48.45 | M15: % | N15: =ROUND(AVERAGE(D15,F15,H15,J15,L15),2) -> 51.92 | O15: %
B16: Preferred Stock | D16: =ROUND(('3. NJR'!C$13/'3. NJR'!C$50)*100,2) -> 0 | F16: =ROUND(('3. NJR'!E$13/'3. NJR'!E$50)*100,2) -> 0 | H16: =ROUND(('3. NJR'!G$13/'3. NJR'!G$50)*100,2) -> 0 | J16: =ROUND(('3. NJR'!I$13/'3. NJR'!I$50)*100,2) -> 0 | L16: =ROUND(('3. NJR'!K$13/'3. NJR'!K$50)*100,2) -> 0 | N16: =ROUND(AVERAGE(D16,F16,H16,J16,L16),2) -> 0
B17: Common Equity | D17: =ROUND(('3. NJR'!C$16/'3. NJR'!C$50)*100,2) -> 42.19 | F17: =ROUND(('3. NJR'!E$16/'3. NJR'!E$50)*100,2) -> 44.65 | H17: =ROUND(('3. NJR'!G$16/'3. NJR'!G$50)*100,2) -> 49.89 | J17: =ROUND(('3. NJR'!I$16/'3. NJR'!I$50)*100,2) -> 52.11 | L17: =ROUND(('3. NJR'!K$16/'3. NJR'!K$50)*100,2) -> 51.55 | N17: =ROUND(AVERAGE(D17,F17,H17,J17,L17),2) -> 48.08
B18: Total Capital | D18: =SUM(D15:D17) -> 100 | E18: % | F18: =SUM(F15:F17) -> 100 | G18: % | H18: =SUM(H15:H17) -> 100 | I18: % | J18: =SUM(J15:J17) -> 100 | K18: % | L18: =SUM(L15:L17) -> 100 | M18: % | N18: =SUM(N15:N17) -> 100 | O18: %
A20: NI | B20: =VLOOKUP($A20,'Proxy Data Lookup'!$A$2:$B$8,2,FALSE) -> NiSource Inc.
B21: Long-Term Debt | D21: =ROUND(('3. NI'!C$12/'3. NI'!C$50)*100,2) -> 57.09 | E21: % | F21: =ROUND(('3. NI'!E$12/'3. NI'!E$50)*100,2) -> 61.64 | G21: % | H21: =ROUND(('3. NI'!G$12/'3. NI'!G$50)*100,4) -> 56.7944 | I21: % | J21: =ROUND(('3. NI'!I$12/'3. NI'!I$50)*100,2) -> 55.44 | K21: % | L21: =ROUND(('3. NI'!K$12/'3. NI'!K$50)*100,2) -> 64.35 | M21: % | N21: =ROUND(AVERAGE(D21,F21,H21,J21,L21),2) -> 59.06 | O21: %
B22: Preferred Stock | D22: =ROUND(('3. NI'!C$13/'3. NI'!C$50)*100,2) -> 9.55 | F22: =ROUND(('3. NI'!E$13/'3. NI'!E$50)*100,2) -> 5.87 | H22: =ROUND(('3. NI'!G$13/'3. NI'!G$50)*100,4) -> 6.3509 | J22: =ROUND(('3. NI'!I$13/'3. NI'!I$50)*100,2) -> 6.82 | L22: =ROUND(('3. NI'!K$13/'3. NI'!K$50)*100,2) -> 0 | N22: =ROUND(AVERAGE(D22,F22,H22,J22,L22),2) -> 5.72
B23: Common Equity | D23: =ROUND(('3. NI'!C$16/'3. NI'!C$50)*100,2) -> 33.36 | F23: =ROUND(('3. NI'!E$16/'3. NI'!E$50)*100,2) -> 32.49 | H23: =ROUND(('3. NI'!G$16/'3. NI'!G$50)*100,4) -> 36.8547 | J23: =ROUND(('3. NI'!I$16/'3. NI'!I$50)*100,2) -> 37.74 | L23: =ROUND(('3. NI'!K$16/'3. NI'!K$50)*100,2) -> 35.65 | N23: =ROUND(AVERAGE(D23,F23,H23,J23,L23),2) -> 35.22
B24: Total Capital | D24: =SUM(D21:D23) -> 100 | E24: % | F24: =SUM(F21:F23) -> 100 | G24: % | H24: =SUM(H21:H23) -> 100 | I24: % | J24: =SUM(J21:J23) -> 100 | K24: % | L24: =SUM(L21:L23) -> 100 | M24: % | N24: =SUM(N21:N23) -> 100 | O24: %
A26: NWN | B26: =VLOOKUP($A26,'Proxy Data Lookup'!$A$2:$B$8,2,FALSE) -> Northwest Natural Holding Company
B27: Long-Term Debt (1) | D27: =ROUND(('3. NWN'!C$12/'3. NWN'!C$50)*100,2) -> 52.12 | E27: % | F27: =ROUND(('3. NWN'!E$12/'3. NWN'!E$50)*100,2) -> 51.81 | G27: % | H27: =ROUND(('3. NWN'!G$12/'3. NWN'!G$50)*100,2) -> 50.43 | I27: % | J27: =ROUND(('3. NWN'!I$12/'3. NWN'!I$50)*100,2) -> 49.12 | K27: % | L27: =ROUND(('3. NWN'!K$12/'3. NWN'!K$50)*100,2) -> 51.22 | M27: % | N27: =ROUND(AVERAGE(D27,F27,H27,J27,L27),2) -> 50.94 | O27: %
B28: Preferred Stock | D28: =ROUND(('3. NWN'!C$13/'3. NWN'!C$50)*100,2) -> 0 | F28: =ROUND(('3. NWN'!E$13/'3. NWN'!E$50)*100,2) -> 0 | H28: =ROUND(('3. NWN'!G$13/'3. NWN'!G$50)*100,2) -> 0 | J28: =ROUND(('3. NWN'!I$13/'3. NWN'!I$50)*100,2) -> 0 | L28: =ROUND(('3. NWN'!K$13/'3. NWN'!K$50)*100,2) -> 0 | N28: =ROUND(AVERAGE(D28,F28,H28,J28,L28),2) -> 0
B29: Common Equity | D29: =ROUND(('3. NWN'!C$16/'3. NWN'!C$50)*100,2) -> 47.88 | F29: =ROUND(('3. NWN'!E$16/'3. NWN'!E$50)*100,2) -> 48.19 | H29: =ROUND(('3. NWN'!G$16/'3. NWN'!G$50)*100,2) -> 49.57 | J29: =ROUND(('3. NWN'!I$16/'3. NWN'!I$50)*100,2) -> 50.88 | L29: =ROUND(('3. NWN'!K$16/'3. NWN'!K$50)*100,2) -> 48.78 | N29: =ROUND(AVERAGE(D29,F29,H29,J29,L29),2) -> 49.06
B30: Total Capital | D30: =SUM(D27:D29) -> 100 | E30: % | F30: =SUM(F27:F29) -> 100 | G30: % | H30: =SUM(H27:H29) -> 100 | I30: % | J30: =SUM(J27:J29) -> 100 | K30: % | L30: =SUM(L27:L29) -> 100 | M30: % | N30: =SUM(N27:N29) -> 100 | O30: %
A32: OGS | B32: =VLOOKUP($A32,'Proxy Data Lookup'!$A$2:$B$8,2,FALSE) -> ONE Gas, Inc.
B33: Long-Term Debt (1) | D33: =ROUND(('3. OGS'!C$12/'3. OGS'!C$50)*100,2) -> 41.74 | E33: % | F33: =ROUND(('3. OGS'!E$12/'3. OGS'!E$50)*100,2) -> 41.76 | G33: % | H33: =ROUND(('3. OGS'!G$12/'3. OGS'!G$50)*100,2) -> 37.65 | I33: % | J33: =ROUND(('3. OGS'!I$12/'3. OGS'!I$50)*100,2) -> 38.62 | K33: % | L33: =ROUND(('3. OGS'!K$12/'3. OGS'!K$50)*100,2) -> 37.84 | M33: % | N33: =ROUND(AVERAGE(D33,F33,H33,J33,L33),2) -> 39.52 | O33: %
B34: Preferred Stock | D34: =ROUND(('3. OGS'!C$13/'3. OGS'!C$50)*100,2) -> 0 | F34: =ROUND(('3. OGS'!E$13/'3. OGS'!E$50)*100,2) -> 0 | H34: =ROUND(('3. OGS'!G$13/'3. OGS'!G$50)*100,2) -> 0 | J34: =ROUND(('3. OGS'!I$13/'3. OGS'!I$50)*100,2) -> 0 | L34: =ROUND(('3. OGS'!K$13/'3. OGS'!K$50)*100,2) -> 0 | N34: =ROUND(AVERAGE(D34,F34,H34,J34,L34),2) -> 0
B35: Common Equity | D35: =ROUND(('3. OGS'!C$16/'3. OGS'!C$50)*100,2) -> 58.26 | F35: =ROUND(('3. OGS'!E$16/'3. OGS'!E$50)*100,2) -> 58.24 | H35: =ROUND(('3. OGS'!G$16/'3. OGS'!G$50)*100,2) -> 62.35 | J35: =ROUND(('3. OGS'!I$16/'3. OGS'!I$50)*100,2) -> 61.38 | L35: =ROUND(('3. OGS'!K$16/'3. OGS'!K$50)*100,2) -> 62.16 | N35: =ROUND(AVERAGE(D35,F35,H35,J35,L35),2) -> 60.48
B36: Total Capital | D36: =SUM(D33:D35) -> 100 | E36: % | F36: =SUM(F33:F35) -> 100 | G36: % | H36: =SUM(H33:H35) -> 100 | I36: % | J36: =SUM(J33:J35) -> 100 | K36: % | L36: =SUM(L33:L35) -> 100 | M36: % | N36: =SUM(N33:N35) -> 100 | O36: %
A38: =Input!A7 -> SR | B38: =VLOOKUP($A38,'Proxy Data Lookup'!$A$2:$B$8,2,FALSE) -> Spire Inc.
B39: Long-Term Debt | D39: =ROUND(('3. SR'!C$12/'3. SR'!C$50)*100,2) -> 52.98 | E39: % | F39: =ROUND(('3. SR'!E$12/'3. SR'!E$50)*100,2) -> 49.62 | G39: % | H39: =ROUND(('3. SR'!G$12/'3. SR'!G$50)*100,2) -> 45.49 | I39: % | J39: =ROUND(('3. SR'!I$12/'3. SR'!I$50)*100,2) -> 45.95 | K39: % | L39: =ROUND(('3. SR'!K$12/'3. SR'!K$50)*100,2) -> 51.27 | M39: % | N39: =ROUND(AVERAGE(D39,F39,H39,J39,L39),2) -> 49.06 | O39: %
B40: Preferred Stock | D40: =ROUND(('3. SR'!C$13/'3. SR'!C$50)*100,2) -> 4.28 | F40: =ROUND(('3. SR'!E$13/'3. SR'!E$50)*100,2) -> 4.83 | H40: =ROUND(('3. SR'!G$13/'3. SR'!G$50)*100,2) -> 5.19 | J40: =ROUND(('3. SR'!I$13/'3. SR'!I$50)*100,2) -> 0 | L40: =ROUND(('3. SR'!K$13/'3. SR'!K$50)*100,2) -> 0 | N40: =ROUND(AVERAGE(D40,F40,H40,J40,L40),2) -> 2.86
B41: Common Equity | D41: =ROUND(('3. SR'!C$16/'3. SR'!C$50)*100,2) -> 42.74 | F41: =ROUND(('3. SR'!E$16/'3. SR'!E$50)*100,2) -> 45.55 | H41: =ROUND(('3. SR'!G$16/'3. SR'!G$50)*100,2) -> 49.32 | J41: =ROUND(('3. SR'!I$16/'3. SR'!I$50)*100,2) -> 54.05 | L41: =ROUND(('3. SR'!K$16/'3. SR'!K$50)*100,2) -> 48.73 | N41: =ROUND(AVERAGE(D41,F41,H41,J41,L41),2) -> 48.08
B42: Total Capital | D42: =SUM(D39:D41) -> 100 | E42: % | F42: =SUM(F39:F41) -> 100 | G42: % | H42: =SUM(H39:H41) -> 100 | I42: % | J42: =SUM(J39:J41) -> 100 | K42: % | L42: =SUM(L39:L41) -> 100 | M42: % | N42: =SUM(N39:N41) -> 100 | O42: %
B44: =B2 -> Proxy Group of Six Natural Gas Companies
B45: Long-Term Debt | D45: =AVERAGE(D39,D33,D27,D21,D15,D9) -> 50.18166667 | E45: % | F45: =AVERAGE(F39,F33,F27,F21,F15,F9) -> 50.03333333 | G45: % | H45: =AVERAGE(H39,H33,H27,H21,H15,H9) -> 46.4174 | I45: % | J45: =AVERAGE(J39,J33,J27,J21,J15,J9) -> 46.02833333 | K45: % | L45: =AVERAGE(L39,L33,L27,L21,L15,L9) -> 49.52666667 | M45: % | N45: =AVERAGE(N39,N33,N27,N21,N15,N9) -> 48.43666667 | O45: %
B46: Preferred Stock | D46: =AVERAGE(D40,D34,D28,D22,D16,D10) -> 2.305 | F46: =AVERAGE(F40,F34,F28,F22,F16,F10) -> 1.783333333 | H46: =AVERAGE(H40,H34,H28,H22,H16,H10) -> 1.923483333 | J46: =AVERAGE(J40,J34,J28,J22,J16,J10) -> 1.136666667 | L46: =AVERAGE(L40,L34,L28,L22,L16,L10) -> 0 | N46: =AVERAGE(N40,N34,N28,N22,N16,N10) -> 1.43
B47: Common Equity | D47: =AVERAGE(D41,D35,D29,D23,D17,D11) -> 47.51333333 | F47: =AVERAGE(F41,F35,F29,F23,F17,F11) -> 48.18333333 | H47: =AVERAGE(H41,H35,H29,H23,H17,H11) -> 51.65911667 | J47: =AVERAGE(J41,J35,J29,J23,J17,J11) -> 52.835 | L47: =AVERAGE(L41,L35,L29,L23,L17,L11) -> 50.47333333 | N47: =AVERAGE(N41,N35,N29,N23,N17,N11) -> 50.13333333
B48: Total Capital | D48: =ROUND(SUM(D45:D47),1) -> 100 | E48: % | F48: =ROUND(SUM(F45:F47),1) -> 100 | G48: % | H48: =ROUND(SUM(H45:H47),1) -> 100 | I48: % | J48: =ROUND(SUM(J45:J47),1) -> 100 | K48: % | L48: =ROUND(SUM(L45:L47),1) -> 100 | M48: % | N48: =ROUND(SUM(N45:N47),1) -> 100 | O48: %
B50: Source of Information:
B51: Annual Forms 10-K.
B53: Notes:
B54: (1) Excludes securitized debt associated with winter storms in 2021.

Sheet 11.3-4 WP (hidden)
B1: 1 | C1: =B1+1 -> 2 | D1: =C1+1 -> 3 | E1: 4 | F1: 5 | G1: 6 | I1: =G1+1 -> 7 | K1: =I1+1 -> 8 | M1: 9
A2: Ticker | B2: Institution Name | C2: SNL Institution Key | D2: Common Equity (Reported) | E2: Total Preferred Equity (Reported) | F2: Long-term Debt, Including Current Portion (Reported) | G2: Short-term Debt (Reported)
B3: 130509 | C3: 130992 | D3: 132384 | E3: 132383 | F3: 134229 | G3: 132351 | I3: Common Equity (%) | K3: Long-Term Debt (%) | M3: Short-Term Debt (%) | O3: Check
D4: 2020Y | E4: 2020Y | F4: 2020Y | G4: 2020Y | I4: 2020Y | K4: 2020Y | M4: 2020Y
A6: ATO | B6: Atmos Energy Corporation | C6: 4057157 | D6: 6791203 | E6: 0 | F6: 4768731 | G6: 0 | I6: =(D6-E6)/SUM(D6,-E6,G6,F6) -> 0.5874776621 | K6: =F6/SUM(D6,-E6,F6,G6) -> 0.4125223379 | M6: =G6/SUM(D6,-E6,F6,G6) -> 0 | O6: =SUM(I6:M6) -> 1
A7: NJR | B7: New Jersey Natural Gas Company | C7: 4061755 | D7: 1310923 | E7: 0 | F7: 1158405 | G7: 0 | I7: =(D7-E7)/SUM(D7,-E7,G7,F7) -> 0.5308824911 | K7: =F7/SUM(D7,-E7,F7,G7) -> 0.4691175089 | M7: =G7/SUM(D7,-E7,F7,G7) -> 0 | O7: =SUM(I7:M7) -> 1
A8: NWN | B8: Northwest Natural Gas Company | C8: 10344596 | D8: 835184 | E8: 0 | F8: 998833 | G8: 231525 | I8: =(D8-E8)/SUM(D8,-E8,G8,F8) -> 0.4043413303 | K8: =F8/SUM(D8,-E8,F8,G8) -> 0.4835694457 | M8: 0.112089224 | O8: =SUM(I8:M8) -> 1
A9: OGS | B9: ONE Gas, Inc. | C9: 4427129 | D9: 2233311 | E9: 0 | F9: 1620228 | G9: 418225 | I9: 0.5228076738 | K9: =F9/SUM(D9,-E9,F9,G9) -> 0.3792878071 | M9: 0.09790451907 | O9: =SUM(I9:M9) -> 1
A10: SJI | B10: Elizabethtown Gas Company | C10: 6337719 | D10: NA | E10: NA | F10: NA | G10: NA | I10: NA | K10: NA | M10: NA | O10: NA
A11: SJI | B11: South Jersey Gas Company | C11: 4063023 | D11: 1303726 | E11: 0 | F11: 1069089 | G11: 47500 | I11: =(D11-E11)/SUM(D11,-E11,G11,F11) -> 0.5386596373 | K11: =F11/SUM(D11,-E11,F11,G11) -> 0.4417148181 | M11: 0.01962554461 | O11: =SUM(I11:M11) -> 1
A12: SR | B12: Missouri Gas Energy | C12: 4114790 | D12: NA | E12: NA | F12: NA | G12: NA | I12: NA | K12: NA | M12: NA | O12: NA
A13: SR | B13: Spire Alabama Inc. | C13: 4004296 | D13: 851700 | E13: 0 | F13: 478400 | G13: 121300 | I13: 0.5868127325 | K13: =F13/SUM(D13,-E13,F13,G13) -> 0.3296127877 | M13: 0.08357447981 | O13: =SUM(I13:M13) -> 1
A14: SR | B14: Spire Gulf Inc. | C14: 4076603 | D14: NA | E14: NA | F14: NA | G14: NA | I14: NA | K14: NA | M14: NA | O14: NA
A15: SR | B15: Spire Mississippi Inc. | C15: 4064035 | D15: NA | E15: NA | F15: NA | G15: NA | I15: NA | K15: NA | M15: NA | O15: NA
A16: SR | B16: Spire Missouri Inc. | C16: 4060957 | D16: 1435100 | E16: 0 | F16: 1093700 | G16: 301200 | I16: 0.5071024735 | K16: =F16/SUM(D16,-E16,F16,G16) -> 0.3864664311 | M16: 0.1064310954 | O16: =SUM(I16:M16) -> 1

Sheet 2.3 OpCo Proxy Cap Str
A1: =Input!G28 -> Peoples Gas System
A2: Operating Subsidiary Company Capital Structures of the
A3: =Input!I30 -> Proxy Group of Six Natural Gas Companies
E5: 2021
A6: Company Name | C6: Parent Company Ticker | E6: Common Equity | G6: Long-Term Debt | I6: Total Capital
A7: Atmos Energy Corporation | C7: ATO | E7: =INDEX('GASOpCo Cap Str WP'!I$5:I$21,MATCH('2.3 OpCo Proxy Cap Str'!$A7,'GASOpCo Cap Str WP'!$B$5:$B$21,0)) -> 0.5111118121 | G7: =INDEX('GASOpCo Cap Str WP'!K$5:K$21,MATCH('2.3 OpCo Proxy Cap Str'!$A7,'GASOpCo Cap Str WP'!$B$5:$B$21,0)) -> 0.4888881879 | I7: =IFERROR(E7+G7,"NA") -> 1 | K7: =MAX(E7:E13) -> 0.58482054 | L7: Max
A8: New Jersey Natural Gas Company | C8: NJR | E8: =INDEX('GASOpCo Cap Str WP'!I$5:I$21,MATCH('2.3 OpCo Proxy Cap Str'!$A8,'GASOpCo Cap Str WP'!$B$5:$B$21,0)) -> 0.5622900775 | G8: =INDEX('GASOpCo Cap Str WP'!K$5:K$21,MATCH('2.3 OpCo Proxy Cap Str'!$A8,'GASOpCo Cap Str WP'!$B$5:$B$21,0)) -> 0.4377099225 | I8: 1 | K8: =MIN(E7:E13) -> 0.3874480737 | L8: Min.
A9: Northern Indiana Public Service Company | C9: NI | E9: =INDEX('GASOpCo Cap Str WP'!I$5:I$21,MATCH('2.3 OpCo Proxy Cap Str'!$A9,'GASOpCo Cap Str WP'!$B$5:$B$21,0)) -> 0.500073716 | G9: =INDEX('GASOpCo Cap Str WP'!K$5:K$21,MATCH('2.3 OpCo Proxy Cap Str'!$A9,'GASOpCo Cap Str WP'!$B$5:$B$21,0)) -> 0.499926284 | I9: 1
A10: Northwest Natural Gas Company | C10: NWN | E10: =INDEX('GASOpCo Cap Str WP'!I$5:I$21,MATCH('2.3 OpCo Proxy Cap Str'!$A10,'GASOpCo Cap Str WP'!$B$5:$B$21,0)) -> 0.4781438294 | G10: =INDEX('GASOpCo Cap Str WP'!K$5:K$21,MATCH('2.3 OpCo Proxy Cap Str'!$A10,'GASOpCo Cap Str WP'!$B$5:$B$21,0)) -> 0.5218561706 | I10: 1
A11: ONE Gas, Inc. | C11: OGS | E11: =INDEX('GASOpCo Cap Str WP'!I$5:I$21,MATCH('2.3 OpCo Proxy Cap Str'!$A11,'GASOpCo Cap Str WP'!$B$5:$B$21,0)) -> 0.3874480737 | G11: =INDEX('GASOpCo Cap Str WP'!K$5:K$21,MATCH('2.3 OpCo Proxy Cap Str'!$A11,'GASOpCo Cap Str WP'!$B$5:$B$21,0)) -> 0.6125519263 | I11: 1
A12: Spire Alabama Inc. | C12: SR | E12: =INDEX('GASOpCo Cap Str WP'!I$5:I$21,MATCH('2.3 OpCo Proxy Cap Str'!$A12,'GASOpCo Cap Str WP'!$B$5:$B$21,0)) -> 0.58482054 | G12: =INDEX('GASOpCo Cap Str WP'!K$5:K$21,MATCH('2.3 OpCo Proxy Cap Str'!$A12,'GASOpCo Cap Str WP'!$B$5:$B$21,0)) -> 0.41517946 | I12: 1
A13: Spire Missouri Inc. | C13: SR | E13: =INDEX('GASOpCo Cap Str WP'!I$5:I$21,MATCH('2.3 OpCo Proxy Cap Str'!$A13,'GASOpCo Cap Str WP'!$B$5:$B$21,0)) -> 0.5408212229 | G13: =INDEX('GASOpCo Cap Str WP'!K$5:K$21,MATCH('2.3 OpCo Proxy Cap Str'!$A13,'GASOpCo Cap Str WP'!$B$5:$B$21,0)) -> 0.4591787771 | I13: 1
C15: Maximum | E15: =MAX(E7:E13) -> 0.58482054 | G15: =MAX(G7:G13) -> 0.6125519263
C17: Minimum | E17: =MIN(E7:E13) -> 0.3874480737 | G17: =MIN(G7:G13) -> 0.41517946
A18: Source: S&P Global Market Intelligence.
A19: Company Financial Statements

Sheet 3.1 DCF Summary
B1: =Input!G28 -> Peoples Gas System
B2: Indicated Common Equity Cost Rate Using the Discounted Cash Flow Model for the
B3: =Input!I29 -> Utility Proxy Group
D5: [1] | G5: [2] | J5: [3] | M5: [4] | P5: [5] | S5: [6] | V5: [7]
B7: ='4.2 Ind. PRPM Results'!B8 -> Proxy Group of Six Natural Gas Companies | D7: Average Dividend Yield (1) | G7: Value Line Projected Five Year Growth in EPS (2) | J7: Zack's Five Year Projected Growth Rate in EPS | M7: Yahoo! Finance Projected Five Year Growth in EPS | P7: Average Projected Five Year Growth in EPS (3) | S7: Adjusted Dividend Yield (4) | V7: Indicated Common Equity Cost Rate (5)
A9: ='4.2 Ind. PRPM Results'!A10 -> ATO | B9: ='Proxy Data Lookup'!B3 -> Atmos Energy Corporation | D9: =HLOOKUP(A9,'Proxy Prices'!$B$4:$M$71,68,FALSE)*100 -> 2.69 | E9: % | G9: ='Proxy Data Lookup'!E3*100 -> 7.5 | H9: % | J9: ='Proxy Data Lookup'!C3*100 -> 7.5 | K9: % | M9: ='Proxy Data Lookup'!D3*100 -> 8.16 | N9: % | P9: =IFERROR(ROUND(AVERAGE(G9,J9,M9),2),"NA") -> 7.72 | Q9: % | S9: =IFERROR(D9*(1+(0.5*(P9/100))),"NA") -> 2.793834 | T9: % | V9: =IFERROR(S9 + P9,"NA") -> 10.513834 | W9: % | Z9: =AVERAGE(V9:V14) -> 10.11869608
A10: ='4.2 Ind. PRPM Results'!A11 -> NJR | B10: ='Proxy Data Lookup'!B4 -> New Jersey Resources Corporation | D10: =HLOOKUP(A10,'Proxy Prices'!$B$4:$M$71,68,FALSE)*100 -> 3.4 | G10: ='Proxy Data Lookup'!E4*100 -> 5 | J10: ='Proxy Data Lookup'!C4*100 -> 6 | M10: ='Proxy Data Lookup'!D4*100 -> 6 | P10: =IFERROR(ROUND(AVERAGE(G10,J10,M10),2),"NA") -> 5.67 | S10: =IFERROR(D10*(1+(0.5*(P10/100))),"NA") -> 3.49639 | V10: =IFERROR(S10 + P10,"NA") -> 9.16639 | Z10: =2*(_xlfn.STDEV.P(V9:V14)) -> 2.216137383
A11: ='4.2 Ind. PRPM Results'!A12 -> NI | B11: ='Proxy Data Lookup'!B5 -> NiSource Inc. | D11: =HLOOKUP(A11,'Proxy Prices'!$B$4:$M$71,68,FALSE)*100 -> 3.58 | G11: ='Proxy Data Lookup'!E5*100 -> 9.5 | J11: ='Proxy Data Lookup'!C5*100 -> 6.8 | M11: ='Proxy Data Lookup'!D5*100 -> 6.35 | P11: 7.55 | S11: 3.715145 | V11: =IFERROR(S11 + P11,"NA") -> 11.265145 | Z11: =Z9+Z10 -> 12.33483347
A12: ='4.2 Ind. PRPM Results'!A13 -> NWN | B12: ='Proxy Data Lookup'!B6 -> Northwest Natural Holding Company | D12: =HLOOKUP(A12,'Proxy Prices'!$B$4:$M$71,68,FALSE)*100 -> 4.13 | G12: ='Proxy Data Lookup'!E6*100 -> 6.5 | J12: ='Proxy Data Lookup'!C6*100 -> 4.3 | M12: ='Proxy Data Lookup'!D6*100 -> 4.3 | P12: 5.03 | S12: 4.2338695 | V12: 9.2638695 | Z12: =Z9-Z10 -> 7.9025587
A13: ='4.2 Ind. PRPM Results'!A14 -> OGS | B13: ='Proxy Data Lookup'!B7 -> ONE Gas, Inc. | D13: =HLOOKUP(A13,'Proxy Prices'!$B$4:$M$71,68,FALSE)*100 -> 3.21 | G13: ='Proxy Data Lookup'!E7*100 -> 6.5 | J13: ='Proxy Data Lookup'!C7*100 -> 5 | M13: ='Proxy Data Lookup'!D7*100 -> 5 | P13: 5.5 | S13: 3.298275 | V13: 8.798275
A14: ='4.2 Ind. PRPM Results'!A15 -> SR | B14: ='Proxy Data Lookup'!B8 -> Spire Inc. | D14: =HLOOKUP(A14,'Proxy Prices'!$B$4:$M$71,68,FALSE)*100 -> 4.22 | G14: ='Proxy Data Lookup'!E8*100 -> 9 | J14: ='Proxy Data Lookup'!C8*100 -> 5 | M14: ='Proxy Data Lookup'!D8*100 -> 8 | P14: =IFERROR(ROUND(AVERAGE(G14,J14,M14),2),"NA") -> 7.33 | S14: 4.374663 | V14: 11.704663
S16: Average | V16: =AVERAGE(V9:V14) -> 10.11869608 | W16: %
S18: Median | V18: =MEDIAN(V9:V14) -> 9.88885175 | W18: %
S20: Average of Mean and Median | V20: =ROUND(AVERAGE(V16:V18),2) -> 10 | W20: %
D22: Notes:
E23: (1) | F23: =CONCATENATE("Indicated dividend at ",TEXT(Input!E2,"mm/dd/yyyy")," divided by the average closing price of the last 60 trading days ending ",TEXT(Input!E2,"mm/dd/yyyy")," for each company.") -> Indicated dividend at 12/30/2022 divided by the average closing price of the last 60 trading days ending 12/30/2022 for each company.
E24: (2) | F24: From pages 2 through 7 of this Document.
E25: (3) | F25: Average of columns 2 through 4 excluding negative growth rates.
E26: (4) | F26: =CONCATENATE("This reflects a growth rate component equal to one-half the conclusion of growth rate (from column 5) x column 1 to reflect the periodic payment of dividends (Gordon Model) as opposed to the continuous payment. Thus, for ",B9,", ",TEXT(D9,"#0.00"),"% x (1+( 1/2 x ",TEXT(P9,"#0.00"),"%) ) = ",TEXT(S9,"#0.00"),"%.") -> This reflects a growth rate component equal to one-half the conclusion of growth rate (from column 5) x column 1 to reflect the periodic payment of dividends (Gordon Model) as opposed to the continuous payment. Thus, for Atmos Energy Corporation, 2.69% x (1+( 1/2 x 7.72%) ) = 2.79%.
E27: (5) | F27: Column 5 + Column 6.
D29: Source of Information: | E29: Value Line Investment Survey.
E30: =CONCATENATE("www.zacks.com, Downloaded on ",TEXT(Input!E2,"mm/dd/yyyy"))&"." -> www.zacks.com, Downloaded on 12/30/2022.
E31: =CONCATENATE("www.yahoo.com, Downloaded on ",TEXT(Input!E2,"mm/dd/yyyy"))&"." -> www.yahoo.com, Downloaded on 12/30/2022.

Sheet 4.1 RP Summary
A1: =Input!G28 -> Peoples Gas System
A2: Summary of Risk Premium Models for the
A3: =Input!I29 -> Utility Proxy Group
D5: =Input!I30 -> Proxy Group of Six Natural Gas Companies
A6: Predictive Risk Premium Model (PRPM) (1) | D6: =IFERROR('4.2 Ind. PRPM Results'!P21*100,"NA") -> 12.02 | E6: %
A8: Risk Premium Using an Adjusted Total Market Approach (2) | D8: =IFERROR('4.3 Risk Premium Summary'!G23,"NA") -> 11.06 | E8: %
C10: Average | D10: =IFERROR(ROUND(AVERAGE(D6:D8),2),"NA") -> 11.54 | E10: %
A12: Notes:
A13: (1) | B13: From page 2 of this Document.
A14: (2) | B14: From page 3 of this Document.

Sheet 4.2 Ind. PRPM Results
B1: =Input!G28 -> Peoples Gas System
B2: Indicated ROE
B3: Derived by the Predictive Risk Premium Model (1)
D6: [1] | F6: [2] | H6: [3] | J6: [4] | L6: [5] | N6: [6] | P6: [7]
B8: =Input!I30 -> Proxy Group of Six Natural Gas Companies | D8: LT Average Predicted Variance | F8: Spot Predicted Variance | H8: Recommended Variance (2) | J8: GARCH Coefficient | L8: Predicted Risk Premium (3) | N8: Risk-Free Rate (4) | P8: Indicated ROE (5)
A10: ='4.5 Bond Ratings'!A13 -> ATO | B10: ='Proxy Data Lookup'!B3 -> Atmos Energy Corporation | D10: =HLOOKUP(A10,'PRPM WP1'!$A$1:$M$1176,1171,FALSE) -> 0.003421407967 | F10: =HLOOKUP(A10,'PRPM WP1'!$A$1:$M$1176,1173,FALSE) -> 0.00556746989 | H10: =AVERAGE(D10) -> 0.003421407967 | J10: =HLOOKUP(A10,'PRPM WP1'!$A$1:$M$1176,1175,FALSE) -> 2.255494 | L10: =ROUND((1+(H10*J10))^12-1,4) -> 0.0966 | N10: ='MRP WP1'!F$37/100 -> 0.0391 | P10: =N10 + L10 -> 0.1357
A11: ='4.5 Bond Ratings'!A14 -> NJR | B11: ='Proxy Data Lookup'!B4 -> New Jersey Resources Corporation | D11: =HLOOKUP(A11,'PRPM WP1'!$A$1:$M$1176,1171,FALSE) -> 0.003896933799 | F11: =HLOOKUP(A11,'PRPM WP1'!$A$1:$M$1176,1173,FALSE) -> 0.006620148241 | H11: 0.003896933799 | J11: =HLOOKUP(A11,'PRPM WP1'!$A$1:$M$1176,1175,FALSE) -> 2.138826 | L11: 0.1047 | N11: ='MRP WP1'!F$37/100 -> 0.0391 | P11: =N11 + L11 -> 0.1438
A12: ='4.5 Bond Ratings'!A15 -> NI | B12: ='Proxy Data Lookup'!B5 -> NiSource Inc. | D12: =HLOOKUP(A12,'PRPM WP1'!$A$1:$M$1176,1171,FALSE) -> 0.004854982024 | F12: =HLOOKUP(A12,'PRPM WP1'!$A$1:$M$1176,1173,FALSE) -> 0.006357072505 | H12: 0.004854982024 | J12: =HLOOKUP(A12,'PRPM WP1'!$A$1:$M$1176,1175,FALSE) -> 0.830027 | L12: 0.0494 | N12: ='MRP WP1'!F$37/100 -> 0.0391 | P12: =N12 + L12 -> 0.0885
A13: ='4.5 Bond Ratings'!A16 -> NWN | B13: ='Proxy Data Lookup'!B6 -> Northwest Natural Holding Company | D13: =HLOOKUP(A13,'PRPM WP1'!$A$1:$M$1176,1171,FALSE) -> 0.003319689335 | F13: =HLOOKUP(A13,'PRPM WP1'!$A$1:$M$1176,1173,FALSE) -> 0.005320437831 | H13: 0.003319689335 | J13: =HLOOKUP(A13,'PRPM WP1'!$A$1:$M$1176,1175,FALSE) -> 1.484569 | L13: 0.0608 | N13: ='MRP WP1'!F$37/100 -> 0.0391 | P13: =N13 + L13 -> 0.0999
A14: ='4.5 Bond Ratings'!A17 -> OGS | B14: ='Proxy Data Lookup'!B7 -> ONE Gas, Inc. | D14: =HLOOKUP(A14,'PRPM WP1'!$A$1:$M$1176,1171,FALSE) -> 0.003720155401 | F14: =HLOOKUP(A14,'PRPM WP1'!$A$1:$M$1176,1173,FALSE) -> 0.006313868197 | H14: 0.003720155401 | J14: =HLOOKUP(A14,'PRPM WP1'!$A$1:$M$1176,1175,FALSE) -> 3.291407 | L14: 0.1572 | N14: ='MRP WP1'!F$37/100 -> 0.0391 | P14: NMF
A15: ='4.5 Bond Ratings'!A18 -> SR | B15: ='Proxy Data Lookup'!B8 -> Spire Inc. | D15: =HLOOKUP(A15,'PRPM WP1'!$A$1:$M$1176,1171,FALSE) -> 0.007057593518 | F15: =HLOOKUP(A15,'PRPM WP1'!$A$1:$M$1176,1173,FALSE) -> 0.005011829048 | H15: 0.007057593518 | J15: =HLOOKUP(A15,'PRPM WP1'!$A$1:$M$1176,1175,FALSE) -> 0.946544 | L15: 0.0832 | N15: ='MRP WP1'!F$37/100 -> 0.0391 | P15: =N15 + L15 -> 0.1223
N17: Average | P17: =AVERAGE(P10:P15) -> 0.11804
D18: NMF = Non-Meaningful Figure
N19: Median | P19: =MEDIAN(P10:P15) -> 0.1223
N21: Average of Mean and Median | P21: =ROUND(AVERAGE(P17:P19),4) -> 0.1202
B22: Notes:
B23: (1) | D23: The Predictive Risk Premium Model uses historical data to generate a predicted variance and a GARCH coefficient. The historical data used are the equity risk premiums for the first available trading month as reported by Bloomberg Professional Services.
B24: (2) | D24: In view of current volatility, Mr. D'Ascendis recommends using the long-term predicted variance at this time.
B25: (3) | D25: (1+(Column [3] * Column [4])^12) - 1.
B26: (4) | D26: From note 2 on page 2 of Document No. 5.
B27: (5) | D27: Column [5] + Column [6].

Sheet 4.3 Risk Premium Summary
A1: =Input!G28 -> Peoples Gas System
A2: Indicated Common Equity Cost Rate
A3: Through Use of a Risk Premium Model
A4: Using an Adjusted Total Market Approach
A6: Line No. | G6: ='4.5 Bond Ratings'!B11 -> Proxy Group of Six Natural Gas Companies
A9: 1. | C9: Prospective Yield on Aaa Rated
C10: Corporate Bonds (1) | G10: ='MRP WP1'!$M$37 -> 5.05 | H10: %
A12: 2. | C12: Adjustment to Reflect Yield Spread
C13: Between Aaa Rated Corporate
C14: Bonds and A2 Rated Public
C15: Utility Bonds (2) | G15: ='4.4 Moody''s Bond Yields'!I21 -> 0.83
A17: 3. | C17: Adjusted Prospective Yield on A2 Rated
C18: Public Utility Bonds | G18: =SUM(G10:G15) -> 5.88 | H18: %
A20: 4. | C20: Equity Risk Premium (3) | G20: ='4.7 ERP Determination'!$E$25 -> 5.18
A22: 5. | C22: Risk Premium Derived Common
C23: Equity Cost Rate | G23: =SUM(G18:G20) -> 11.06 | H23: %
A26: Notes: | B26: (1) | C26: Consensus forecast of Moody's Aaa Rated Corporate bonds from Blue Chip Financial Forecasts (see pages 10 and 11 of this Document).
B27: (2) | C27: =CONCATENATE("The average yield spread of A2 rated public utility bonds over Aaa rated corporate bonds of ",TEXT('4.4 Moody''s Bond Yields'!I21,"#0.00"),"% from page 4 of this Document.") -> The average yield spread of A2 rated public utility bonds over Aaa rated corporate bonds of 0.83% from page 4 of this Document.
B28: (3) | C28: From page 7 of this Document.

Sheet 4.4 Moody's Bond Yields
A1: =Input!G28 -> Peoples Gas System
A2: Interest Rates and Bond Spreads for
A3: Moody's Corporate and Public Utility Bonds
A6: Selected Bond Yields
C8: [1] | F8: [2] | I8: [3]
C10: Aaa Rated Corporate Bond | F10: A2 Rated Public Utility Bond | I10: Baa2 Rated Public Utility Bond
A12: ='Market Data'!B1 -> 2022-12-31 | C12: ='Market Data'!B4 -> 4.41 | D12: % | F12: ='Market Data'!B2 -> 5.27 | G12: % | I12: ='Market Data'!B3 -> 5.56 | J12: %
A13: ='Market Data'!C1 -> 2022-11-30 | C13: ='Market Data'!C4 -> 4.9 | F13: ='Market Data'!C2 -> 5.75 | I13: ='Market Data'!C3 -> 6.05
A14: ='Market Data'!D1 -> 2022-10-30 | C14: ='Market Data'!D4 -> 5.1 | F14: ='Market Data'!D2 -> 5.88 | I14: ='Market Data'!D3 -> 6.18
A16: Average | C16: =ROUND(AVERAGE(C12:C14),2) -> 4.8 | D16: % | F16: =ROUND(AVERAGE(F12:F14),2) -> 5.63 | G16: % | I16: =ROUND(AVERAGE(I12:I14),2) -> 5.93 | J16: %
A18: Selected Bond Spreads
A20: A2 Rated Public Utility Bonds Over Aaa Rated Corporate Bonds:
I21: =F16-C16 -> 0.83 | J21: % (1)
A23: Baa2 Rated Public Utility Bonds Over A2 Rated Public Utility Bonds:
I24: =ROUND(I16-F16,2) -> 0.3 | J24: % (2)
A26: Notes:
A27: (1) | B27: Column [2] - Column [1].
A28: (2) | B28: Column [3] - Column [2].
A30: Source of Information:
A31: Bloomberg Professional Services.

Sheet 4.5 Bond Ratings
B1: =Input!G28 -> Peoples Gas System
B2: Comparison of Long-Term Issuer Ratings for the
B3: =Input!I29 -> Utility Proxy Group
E6: Moody's | I6: Standard & Poor's
E7: Long-Term Issuer Rating | I7: Long-Term Issuer Rating
E8: =TEXT(Input!E2,"mmmm yyyy") -> December 2022 | I8: =E8 -> December 2022
B11: ='5.1 CAPM'!B7 -> Proxy Group of Six Natural Gas Companies | E11: Long-Term Issuer Rating (1) | G11: Numerical Weighting (2) | I11: =E11 -> Long-Term Issuer Rating (1) | K11: Numerical Weighting (2)
A13: ='5.1 CAPM'!A9 -> ATO | B13: ='Proxy Data Lookup'!B3 -> Atmos Energy Corporation | E13: ='Proxy Data Lookup'!O3 -> A1 | G13: =IFERROR(INDEX('4.6 Moody''s_S&P numbericl'!D$6:D$26,MATCH('4.5 Bond Ratings'!E13,'4.6 Moody''s_S&P numbericl'!B$6:B$26,0)), " - -") -> 5 | I13: ='Proxy Data Lookup'!N3 -> A- | K13: =IFERROR(INDEX('4.6 Moody''s_S&P numbericl'!H$6:H$26,MATCH('4.5 Bond Ratings'!I13,'4.6 Moody''s_S&P numbericl'!F$6:F$26,0)), " - -") -> 7
A14: ='5.1 CAPM'!A10 -> NJR | B14: ='Proxy Data Lookup'!B4 -> New Jersey Resources Corporation | E14: ='Proxy Data Lookup'!O4 -> A1 | G14: =IFERROR(INDEX('4.6 Moody''s_S&P numbericl'!D$6:D$26,MATCH('4.5 Bond Ratings'!E14,'4.6 Moody''s_S&P numbericl'!B$6:B$26,0)), " - -") -> 5 | I14: ='Proxy Data Lookup'!N4 -> NR | K14: =IFERROR(INDEX('4.6 Moody''s_S&P numbericl'!H$6:H$26,MATCH('4.5 Bond Ratings'!I14,'4.6 Moody''s_S&P numbericl'!F$6:F$26,0)), " - -") -> - -
A15: ='5.1 CAPM'!A11 -> NI | B15: ='Proxy Data Lookup'!B5 -> NiSource Inc. | E15: ='Proxy Data Lookup'!O5 -> Baa1 | G15: =IFERROR(INDEX('4.6 Moody''s_S&P numbericl'!D$6:D$26,MATCH('4.5 Bond Ratings'!E15,'4.6 Moody''s_S&P numbericl'!B$6:B$26,0)), " - -") -> 8 | I15: ='Proxy Data Lookup'!N5 -> BBB+ | K15: =IFERROR(INDEX('4.6 Moody''s_S&P numbericl'!H$6:H$26,MATCH('4.5 Bond Ratings'!I15,'4.6 Moody''s_S&P numbericl'!F$6:F$26,0)), " - -") -> 8
A16: ='5.1 CAPM'!A12 -> NWN | B16: ='Proxy Data Lookup'!B6 -> Northwest Natural Holding Company | E16: ='Proxy Data Lookup'!O6 -> Baa1 | G16: =IFERROR(INDEX('4.6 Moody''s_S&P numbericl'!D$6:D$26,MATCH('4.5 Bond Ratings'!E16,'4.6 Moody''s_S&P numbericl'!B$6:B$26,0)), " - -") -> 8 | I16: ='Proxy Data Lookup'!N6 -> A+ | K16: =IFERROR(INDEX('4.6 Moody''s_S&P numbericl'!H$6:H$26,MATCH('4.5 Bond Ratings'!I16,'4.6 Moody''s_S&P numbericl'!F$6:F$26,0)), " - -") -> 5
A17: ='5.1 CAPM'!A13 -> OGS | B17: ='Proxy Data Lookup'!B7 -> ONE Gas, Inc. | E17: ='Proxy Data Lookup'!O7 -> A3 | G17: =IFERROR(INDEX('4.6 Moody''s_S&P numbericl'!D$6:D$26,MATCH('4.5 Bond Ratings'!E17,'4.6 Moody''s_S&P numbericl'!B$6:B$26,0)), " - -") -> 7 | I17: ='Proxy Data Lookup'!N7 -> A- | K17: =IFERROR(INDEX('4.6 Moody''s_S&P numbericl'!H$6:H$26,MATCH('4.5 Bond Ratings'!I17,'4.6 Moody''s_S&P numbericl'!F$6:F$26,0)), " - -") -> 7
A18: ='5.1 CAPM'!A14 -> SR | B18: ='Proxy Data Lookup'!B8 -> Spire Inc. | E18: ='Proxy Data Lookup'!O8 -> A1/A2 | G18: 5.5 | I18: ='Proxy Data Lookup'!N8 -> A- | K18: =IFERROR(INDEX('4.6 Moody''s_S&P numbericl'!H$6:H$26,MATCH('4.5 Bond Ratings'!I18,'4.6 Moody''s_S&P numbericl'!F$6:F$26,0)), " - -") -> 7
C20: Average | E20: A2 | G20: =ROUND(AVERAGE(G12:G19),1) -> 6.4 | I20: A- | K20: =ROUND(AVERAGE(K12:K19),1) -> 6.8
B22: Notes:
B23: (1) | C23: Ratings are that of the average of each company's utility operating subsidiaries.
B24: (2) | C24: From page 6 of this Document.
B26: Source Information: | C26: Moody's Investors Services.
C27: Standard & Poor's Global Utilities Rating Services.

Sheet 4.6 Moody's_S&P numbericl
B1: Numerical Assignment for
B2: Moody's and Standard & Poor's Bond Ratings
B4: Moody's Bond Rating | D4: Numerical Bond Weighting | F4: Standard & Poor's Bond Rating | H4: =D4 -> Numerical Bond Weighting
B6: Aaa | D6: 1 | F6: AAA | H6: =IF(D6="","",D6) -> 1
H7: =IF(D7="","",D7) -> 
B8: Aa1 | D8: 2 | F8: AA+ | H8: 2
B9: Aa2 | D9: 3 | F9: AA | H9: 3
B10: Aa3 | D10: 4 | F10: AA- | H10: 4
B12: A1 | D12: 5 | F12: A+ | H12: 5
B13: A2 | D13: 6 | F13: A | H13: 6
B14: A3 | D14: 7 | F14: A- | H14: 7
B16: Baa1 | D16: 8 | F16: BBB+ | H16: 8
B17: Baa2 | D17: 9 | F17: BBB | H17: 9
B18: Baa3 | D18: 10 | F18: BBB- | H18: 10
B20: Ba1 | D20: 11 | F20: BB+ | H20: 11
B21: Ba2 | D21: 12 | F21: BB | H21: 12
B22: Ba3 | D22: 13 | F22: BB- | H22: 13
B24: B1 | D24: 14 | F24: B+ | H24: 14
B25: B2 | D25: 15 | F25: B | H25: 15
B26: B3 | D26: 16 | F26: B- | H26: 16

Sheet 4.7 ERP Determination
A1: =Input!G28 -> Peoples Gas System
A2: Judgment of Equity Risk Premium for the
A3: =Input!I29 -> Utility Proxy Group
A6: Line No. | E6: ='4.8-4.9 Beta Adjusted ERP'!E7 -> Proxy Group of Six Natural Gas Companies
A9: 1. | C9: Calculated equity risk
C10: premium based on the
C11: total market using
C12: the beta approach (1) | E12: ='4.8-4.9 Beta Adjusted ERP'!E27 -> 6.5 | F12: %
A14: 2. | C14: Mean equity risk premium
C15: based on a study
C16: using the holding period
C17: returns of public utilities
C18: with A rated bonds (2) | E18: ='4.12 S&P RPM Study Returns'!E19 -> 4.32
A20: 3. | C20: Predicted Equity Risk Premium
C21: Based on Regression Analysis
C22: of 818 Fully-Litigated Natural
C23: Gas Cases (3) | E23: ='4.13 Past Rate Cases Gas'!AF21 -> 4.707552637
A25: 4. | C25: Average equity risk premium | E25: =ROUND(AVERAGE(E12:E23),2) -> 5.18 | F25: %
A28: Notes: | B28: (1) | C28: From page 8 of this Document.
B29: (2) | C29: From page 12 of this Document.
B30: (3) | C30: From page 13 of this Document.

Sheet 4.8-4.9 Beta Adjusted ERP
A1: =Input!G28 -> Peoples Gas System
A2: Derivation of Equity Risk Premium Based on the Total Market Approach
A3: Using the Beta for the
A4: =Input!I29 -> Utility Proxy Group
A7: Line No. | C7: ='7.5 CEM Beta Adjusted RP'!C7 -> Equity Risk Premium Measure | E7: =Input!I30 -> Proxy Group of Six Natural Gas Companies
B9: Kroll-Based Equity Risk Premiums:
A11: 1. | C11: Kroll Equity Risk Premium (1) | E11: =('Market Data'!B10-'Market Data'!B11)*100 -> 6.13 | F11: %
A13: 2. | C13: Regression on Kroll Risk Premium Data (2) | E13: ='MRP ERP WP'!$AK$42*100 -> 7.258229346
A15: 3. | C15: Kroll Equity Risk Premium based on PRPM (3) | E15: ='PRPM WP1'!J1177*100 -> 9.760807336
A17: 4. | C17: Equity Risk Premium Based on Value Line Summary and Index (4) | E17: ='MRP WP1'!$M$22*100-'MRP WP1'!$M$37 -> 11.53
A19: 5. | C19: Equity Risk Premium Based on Value Line S&P 500 Companies (5) | E19: =('MRP WP3'!H504*100)-'MRP WP1'!M37 -> 10.62105075
A21: 6. | C21: Equity Risk Premium Based on Bloomberg S&P 500 Companies (6) | E21: ='MRP WP2'!Q504*100-'MRP WP1'!M37 -> 6.00840124
A23: 7. | C23: Conclusion of Equity Risk Premium | E23: =ROUND(AVERAGE(E11:E21),2) -> 8.55 | F23: %
A25: 8. | C25: Adjusted Beta (7) | E25: ='5.1 CAPM'!H20 -> 0.76
A27: 9. | C27: Forecasted Equity Risk Premium | E27: =ROUND(E23*E25,2) -> 6.5 | F27: %
A29: Notes provided on page 9 of this Document.
B31: Notes:
B32: (1) | C32: =CONCATENATE("Based on the arithmetic mean historical monthly returns on large company common stocks from Kroll 2022 SBBI® Yearbook minus the arithmetic mean monthly yield of Moody's average Aaa and Aa corporate bonds from 1928-2021.") -> Based on the arithmetic mean historical monthly returns on large company common stocks from Kroll 2022 SBBI® Yearbook minus the arithmetic mean monthly yield of Moody's average Aaa and Aa corporate bonds from 1928-2021.
B34: (2) | C34: This equity risk premium is based on a regression of the monthly equity risk premiums of large company common stocks relative to Moody's average Aaa and Aa rated corporate bond yields from 1928-2021 referenced in note 1 above.
B36: (3) | C36: The Predictive Risk Premium Model (PRPM) is discussed in the accompanying direct testimony. The SBBI equity risk premium based on the PRPM is derived by applying the PRPM to the monthly risk premiums between SBBI large company common stock monthly returns and average Aaa and Aa corporate monthly bond yields, from January 1928 through December 2022.
B38: (4) | C38: =CONCATENATE("The equity risk premium based on the Value Line Summary and Index is derived by subtracting the average consensus forecast of Aaa corporate bonds of ",TEXT('MRP WP1'!M37,"#0.00"),"% (from page 3 of this Document) from the projected 3-5 year total annual market return of ",TEXT('MRP WP1'!M22*100,"#0.00"),"% (described fully in note 1 on page 2 of Document No. 5).") -> The equity risk premium based on the Value Line Summary and Index is derived by subtracting the average consensus forecast of Aaa corporate bonds of 5.05% (from page 3 of this Document) from the projected 3-5 year total annual market return of 16.58% (described fully in note 1 on page 2 of Document No. 5).
B40: (5) | C40: =_xlfn.CONCAT("Using data from Value Line for the S&P 500, an expected total return of ",TEXT('MRP WP3'!H504*100,"#0.00"),"% was derived based upon expected dividend yields and long-term earnings growth estimates as a proxy for capital appreciation. Subtracting the average consensus forecast of Aaa corporate bonds of ",TEXT('MRP WP1'!M37,"#0.00"),"% results in an expected equity risk premium of ",TEXT(E19,"#0.00"),"%.") -> Using data from Value Line for the S&P 500, an expected total return of 15.67% was derived based upon expected dividend yields and long-term earnings growth estimates as a proxy for capital appreciation. Subtracting the average consensus forecast of Aaa corporate bonds of 5.05% results in an expected equity risk premium of 10.62%.
B42: (6) | C42: =_xlfn.CONCAT("Using data from Bloomberg for the S&P 500, an expected total return of ",TEXT('MRP WP2'!Q504*100,"#0.00"),"% was derived based upon expected dividend yields and long-term earnings growth estimates as a proxy for capital appreciation. Subtracting the average consensus forecast of Aaa corporate bonds of ",TEXT('MRP WP1'!M37,"#0.00"),"% results in an expected equity risk premium of ",TEXT(E21,"#0.00"),"%.") -> Using data from Bloomberg for the S&P 500, an expected total return of 11.06% was derived based upon expected dividend yields and long-term earnings growth estimates as a proxy for capital appreciation. Subtracting the average consensus forecast of Aaa corporate bonds of 5.05% results in an expected equity risk premium of 6.01%.
B44: (7) | C44: Average of mean and median beta from Document No. 5.
B46: Sources of Information:
C47: Stocks, Bonds, Bills, and Inflation - 2022 SBBI Yearbook, Kroll.
C48: Value Line Summary and Index.
C49: ='MRP WP1'!C68 -> Blue Chip Financial Forecasts December 2, 2022 and January 1, 2022.
C50: Bloomberg Professional Services.

Sheet 4.12 S&P RPM Study Returns
A1: =Input!G28 -> Peoples Gas System
A2: Derivation of Mean Equity Risk Premium Based Studies
A3: Using Holding Period Returns and
A4: Projected Market Appreciation of the S&P Utility Index
A7: Line No. | B7: Equity Risk Premium based on S&P Utility Index Holding Period Returns (1): | E7: Implied Equity Risk Premium
A9: 1. | C9: Historical Equity Risk Premium | E9: =('Market Data'!B12-'Market Data'!B13)*100 -> 4.28 | F9: %
A11: 2. | C11: Regression of Historical Equity Risk Premium (2) | E11: ='MRP ERP WP'!AU42*100 -> 4.801153547
A13: 3. | C13: Forecasted Equity Risk Premium Based on PRPM (3) | E13: =ROUND('PRPM WP1'!I1177*100,2) -> 5.56
A15: 4. | C15: Forecasted Equity Risk Premium based on Projected Total Return on the S&P Utilities Index (Value Line Data) (4) | E15: =ROUND(('ERP WP 2'!H34*100)-'4.3 Risk Premium Summary'!G18,2) -> 3.62
A17: 5. | C17: Forecasted Equity Risk Premium based on Projected Total Return on the S&P Utilities Index (Bloomberg Data) (5) | E17: =ROUND('ERP WP1'!O33*100-'4.3 Risk Premium Summary'!G18,2) -> 3.32
A19: 6. | C19: Average Equity Risk Premium (6) | E19: =ROUND(AVERAGE(E9:E17),2) -> 4.32 | F19: %
A22: Notes: | B22: (1) | C22: Based on S&P Public Utility Index monthly total returns and Moody's Public Utility Bond average monthly yields from 1928-2021. Holding period returns are calculated based upon income received (dividends and interest) plus the relative change in the market value of a security over a one-year holding period.
B24: (2) | C24: This equity risk premium is based on a regression of the monthly equity risk premiums of the S&P Utility Index relative to Moody's A2 rated public utility bond yields from 1928 - 2021 referenced in note 1 above.
B26: (3) | C26: =CONCATENATE("The Predictive Risk Premium Model (PRPM) is applied to the risk premium of the monthly total returns of the S&P Utility Index and the monthly yields on Moody's A2 rated public utility bonds from January 1928 - ",Input!$G$25,".") -> The Predictive Risk Premium Model (PRPM) is applied to the risk premium of the monthly total returns of the S&P Utility Index and the monthly yields on Moody's A2 rated public utility bonds from January 1928 - December 2022.
B28: (4) | C28: ="Using data from Value Line for the S&P Utilities Index, an expected return of "&TEXT(ROUND('ERP WP 2'!H34*100,2),"#0.00")&"% was derived based on expected dividend yields and long-term growth estimates as a proxy for market appreciation. Subtracting the expected A2 rated public utility bond yield of "&'4.3 Risk Premium Summary'!G18&"%, calculated on line 3 of page 3 of this Schedule results in an equity risk premium of "&'4.12 S&P RPM Study Returns'!E15&"%. ("&TEXT(ROUND('ERP WP 2'!H34*100,2),"#0.00")&"% - "&'4.3 Risk Premium Summary'!G18&"% = "&'4.12 S&P RPM Study Returns'!E15&"%)" -> Using data from Value Line for the S&P Utilities Index, an expected return of 9.50% was derived based on expected dividend yields and long-term growth estimates as a proxy for market appreciation. Subtracting the expected A2 rated public utility bond yield of 5.88%, calculated on line 3 of page 3 of this Schedule results in an equity risk premium of 3.62%. (9.50% - 5.88% = 3.62%)
B30: (5) | C30: ="Using data from Bloomberg Services for the S&P Utilities Index, an expected return of "&TEXT(ROUND('ERP WP1'!O33*100,2),"#0.00")&"% was derived based on expected dividend yields and long-term growth estimates as a proxy for market appreciation. Subtracting the expected A2 rated public utility bond yield of "&'4.3 Risk Premium Summary'!G18&"%, calculated on line 3 of page 3 of this Schedule results in an equity risk premium of "&'4.12 S&P RPM Study Returns'!E17&"%. ("&TEXT(ROUND('ERP WP1'!O33*100,2),"#0.00")&"% - "&'4.3 Risk Premium Summary'!G18&"% = "&'4.12 S&P RPM Study Returns'!E17&"%)" -> Using data from Bloomberg Services for the S&P Utilities Index, an expected return of 9.20% was derived based on expected dividend yields and long-term growth estimates as a proxy for market appreciation. Subtracting the expected A2 rated public utility bond yield of 5.88%, calculated on line 3 of page 3 of this Schedule results in an equity risk premium of 3.32%. (9.20% - 5.88% = 3.32%)
B32: (6) | C32: Average of lines 1 through 5.

Sheet 4.13 Past Rate Cases Gas
A1: Rate Case History | O1: SUMMARY OUTPUT | Z1: =Input!G28 -> Peoples Gas System
Z2: Prediction of Equity Risk Premiums Relative to
A3: Past Rate Cases | O3: Regression Statistics | Z3: Moody's A2 Rated Utility Bond Yields - Gas Utilities
F4: Increase Authorized | O4: Multiple R | P4: 0.9349315846
A5: State | B5: Company | C5: Case Identification | D5: Service | E5: Case Type | F5: Date | G5: Decision Type | H5: Return on Equity (%) | I5: Common Equity /Total Cap (%) | J5: A Rated Utility Bond (%) | K5: Equity Risk Premium (%) | O5: R Square | P5: 0.8740970678
A6: Illinois | B6: Northern Illinois Gas Co. | C6: D-79-0133 | D6: Natural Gas | E6: Distribution | F6: 1980-01-03 | G6: Fully Litigated | H6: 12.55 | I6: 51.81 | J6: 11.89 | K6: =H6-J6 -> 0.66 | O6: Adjusted R Square | P6: 0.873942775
A7: Pennsylvania | B7: PECO Energy Co | C7: C-R-79030781 | D7: Natural Gas | E7: Distribution | F7: 1980-01-04 | G7: Fully Litigated | H7: 13.75 | I7: 35.1 | J7: 11.89 | K7: 1.86 | O7: Standard Error | P7: 0.7645489031
A8: Maryland | B8: Washington Gas Light Co. | C8: C-7394 0-64174 | D8: Natural Gas | E8: Distribution | F8: 1980-01-14 | G8: Fully Litigated | H8: 13.2 | I8: 36.6 | J8: 11.89 | K8: 1.31 | O8: Observations | P8: 818
A9: Georgia | B9: Atlanta Gas Light Co. | C9: D-3167-U | D9: Natural Gas | E9: Distribution | F9: 1980-01-18 | G9: Fully Litigated | H9: 14 | I9: 35.09 | J9: 12.15 | K9: 1.85
A10: Massachusetts | B10: NSTAR Gas Co. | C10: DPU-20132-G | D10: Natural Gas | E10: Distribution | F10: 1980-01-31 | G10: Fully Litigated | H10: 12.61 | I10: 52 | J10: 12.15 | K10: 0.46 | O10: ANOVA
A11: Oklahoma | B11: Oklahoma Natural Gas Co | C11: Ca-26652 | D11: Natural Gas | E11: Distribution | F11: 1980-02-08 | G11: Fully Litigated | H11: 14.5 | I11: 49.31 | J11: 12.15 | K11: 2.35 | P11: df | Q11: SS | R11: MS | S11: F | T11: Significance F
A12: Wisconsin | B12: Madison Gas and Electric Co. | C12: D-3270-UR-9-G | D12: Natural Gas | E12: Distribution | F12: 1980-02-14 | G12: Fully Litigated | H12: 13 | I12: 40 | J12: 12.15 | K12: 0.85 | O12: Regression | P12: 1 | Q12: 3311.498149 | R12: 3311.498149 | S12: 5665.183447 | T12: 0
A13: Wisconsin | B13: Wisconsin Gas LLC | C13: D-6650-GR-6 | D13: Natural Gas | E13: Distribution | F13: 1980-02-15 | G13: Fully Litigated | H13: 13 | I13: 41.2 | J13: 12.21 | K13: 0.79 | O13: Residual | P13: 816 | Q13: 476.9805806 | R13: 0.5845350252
A14: New York | B14: Niagara Mohawk Power Corp. | C14: C-27540 | D14: Natural Gas | E14: Distribution | F14: 1980-02-29 | G14: Fully Litigated | H14: 14 | I14: 38.5 | J14: 12.21 | K14: 1.79 | O14: Total | P14: 817 | Q14: 3788.47873
A15: Kansas | B15: Kansas Gas Service Co. | C15: D-119,314-U | D15: Natural Gas | E15: Distribution | F15: 1980-03-05 | G15: Fully Litigated | H15: 14 | I15: 33.65 | J15: 12.21 | K15: 1.79
A16: New York | B16: Consolidated Edison Co. of NY | C16: C-27544 | D16: Natural Gas | E16: Distribution | F16: 1980-03-07 | G16: Fully Litigated | H16: 13.5 | I16: 44.69 | J16: 12.21 | K16: 1.29 | P16: Coefficients | Q16: Standard Error | R16: t Stat | S16: P-value | T16: Lower 95% | U16: Upper 95% | V16: Lower 95.0% | W16: Upper 95.0%
A17: New York | B17: Natl Fuel Gas Distribution Cor | C17: C-27503 | D17: Natural Gas | E17: Distribution | F17: 1980-03-14 | G17: Fully Litigated | H17: 14 | I17: 42.1 | J17: 12.21 | K17: 1.79 | O17: Intercept | P17: 7.566995276 | Q17: 0.06823349318 | R17: 110.8985474 | S17: 0 | T17: 7.433061429 | U17: 7.700929123 | V17: 7.433061429 | W17: 7.700929123
A18: New York | B18: Orange & Rockland Utlts Inc. | C18: C-27554 | D18: Natural Gas | E18: Distribution | F18: 1980-03-27 | G18: Fully Litigated | H18: 12.69 | I18: 39.25 | J18: 13.23 | K18: -0.54 | O18: A Rated Utility Bond (%) | P18: -0.4862997686 | Q18: 0.006460960325 | R18: -75.26741292 | S18: 0 | T18: -0.4989818289 | U18: -0.4736177084 | V18: -0.4989818289 | W18: -0.4736177084
A19: Iowa | B19: MidAmerican Energy Co. | C19: D-RPU-78-11 | D19: Natural Gas | E19: Distribution | F19: 1980-04-29 | G19: Fully Litigated | H19: 12.5 | I19: 36.5 | J19: 14.59 | K19: -2.09
A20: Ohio | B20: The Dayton Power & Light Co. | C20: C-79-372-GA-AIR | D20: Natural Gas | E20: Distribution | F20: 1980-05-07 | G20: Fully Litigated | H20: 14.27 | I20: 34.24 | J20: 14.59 | K20: -0.32 | Z20: Constant | AB20: Slope | AD20: Prospective A2 Rated Utility Bond (1) | AF20: Prospective Equity Risk Premium
A21: New Jersey | B21: Public Service Electric Gas | C21: D-794-310-G | D21: Natural Gas | E21: Distribution | F21: 1980-05-08 | G21: Fully Litigated | H21: 13.75 | I21: 35.91 | J21: 14.59 | K21: -0.84 | Z21: =P17 -> 7.566995276 | AA21: % | AB21: =P18 -> -0.4862997686 | AD21: ='4.3 Risk Premium Summary'!G18 -> 5.88 | AE21: % | AF21: =AB21*AD21+Z21 -> 4.707552637 | AG21: %
A22: Utah | B22: Questar Gas Co. | C22: C-80-057-01 | D22: Natural Gas | E22: Distribution | F22: 1980-05-19 | G22: Fully Litigated | H22: 15.5 | I22: 44.87 | J22: 14.59 | K22: 0.91
A23: Colorado | B23: Public Service Co. of CO | C23: D-1420-De-C80-1039 (Gas) | D23: Natural Gas | E23: Distribution | F23: 1980-05-27 | G23: Fully Litigated | H23: 14.6 | I23: 35.8 | J23: 14.29 | K23: 0.31
A24: Arizona | B24: Arizona Public Service Co. | C24: D-U-1345 De-51009-G | D24: Natural Gas | E24: Distribution | F24: 1980-05-29 | G24: Fully Litigated | H24: 16 | I24: 37.21 | J24: 14.29 | K24: 1.71 | Z24: Notes:
A25: Maryland | B25: Baltimore Gas and Electric Co. | C25: C-7397 0-64331-G | D25: Natural Gas | E25: Distribution | F25: 1980-06-10 | G25: Fully Litigated | H25: 13.78 | I25: 38.5 | J25: 14.29 | K25: -0.51 | Z25: (1) | AA25: From line 3 of page 3 of this Document.
A26: Connecticut | B26: CT Natural Gas Corp. | C26: D-79-12-02 | D26: Natural Gas | E26: Distribution | F26: 1980-06-25 | G26: Fully Litigated | H26: 14.25 | I26: 41.76 | J26: 12.74 | K26: 1.51
A27: Ohio | B27: The East Ohio Gas Co. | C27: C-79-535-GA-AIR | D27: Natural Gas | E27: Distribution | F27: 1980-07-09 | G27: Fully Litigated | H27: 14.51 | I27: 53.69 | J27: 12.74 | K27: 1.77 | Z27: Source of Information: Regulatory Research Associates.
A28: West Virginia | B28: Mountaineer Gas Co. | C28: C-79-088-G-42T | D28: Natural Gas | E28: Distribution | F28: 1980-07-17 | G28: Fully Litigated | H28: 12.9 | I28: 42 | J28: 12.4 | K28: 0.5
A29: New York | B29: Rochester Gas & Electric Co | C29: C-27608 | D29: Natural Gas | E29: Distribution | F29: 1980-07-18 | G29: Fully Litigated | H29: 13.8 | I29: 39.9 | J29: 12.4 | K29: 1.4
A30: New York | B30: NY State Electric & Gas Corp. | C30: C-27610 | D30: Natural Gas | E30: Distribution | F30: 1980-07-22 | G30: Fully Litigated | H30: 14.1 | I30: 39.9 | J30: 12.4 | K30: 1.7
A31: Kansas | B31: Kansas Gas Service Co. | C31: D-120,950-U | D31: Natural Gas | E31: Distribution | F31: 1980-07-23 | G31: Fully Litigated | H31: 14.19 | I31: 32.51 | J31: 12.4 | K31: 1.79
A32: Iowa | B32: MidAmerican Energy Co. | C32: D-RPU-78-25 | D32: Natural Gas | E32: Distribution | F32: 1980-08-01 | G32: Fully Litigated | H32: 12.5 | I32: 36.44 | J32: 12.4 | K32: 0.1
A33: Idaho | B33: Avista Corp. | C33: C-U-1008-145 | D33: Natural Gas | E33: Distribution | F33: 1980-08-11 | G33: Fully Litigated | H33: 14.85 | I33: 36.62 | J33: 12.4 | K33: 2.45
A34: Pennsylvania | B34: Natl Fuel Gas Distribution Cor | C34: C-R-79090956 | D34: Natural Gas | E34: Distribution | F34: 1980-08-28 | G34: Fully Litigated | H34: 14 | I34: 44.5 | J34: 12.15 | K34: 1.85
A35: New York | B35: Brooklyn Union Gas Co. | C35: C-27631 | D35: Natural Gas | E35: Distribution | F35: 1980-09-04 | G35: Fully Litigated | H35: 14 | I35: 41.14 | J35: 12.15 | K35: 1.85
A36: Kentucky | B36: Louisville Gas & Electric Co. | C36: C-7799 (gas) | D36: Natural Gas | E36: Distribution | F36: 1980-09-24 | G36: Fully Litigated | H36: 15 | I36: 36.43 | J36: 12.66 | K36: 2.34
A37: Connecticut | B37: The CT Light & Power Co | C37: D-80-04-03-G | D37: Natural Gas | E37: Distribution | F37: 1980-10-09 | G37: Fully Litigated | H37: 14.5 | I37: 35.12 | J37: 12.66 | K37: 1.84
A38: Connecticut | B38: The CT Light & Power Co | C38: D-80-04-04-G | D38: Natural Gas | E38: Distribution | F38: 1980-10-09 | G38: Fully Litigated | H38: 14.5 | I38: 37.1 | J38: 12.66 | K38: 1.84
A39: Nevada | B39: Southwest Gas Corp. | C39: D-2867 (Northern) | D39: Natural Gas | E39: Distribution | F39: 1980-10-27 | G39: Fully Litigated | H39: 15.2 | I39: 34.68 | J39: 13.29 | K39: 1.91
A40: Nevada | B40: Southwest Gas Corp. | C40: D-2868 (Southern) | D40: Natural Gas | E40: Distribution | F40: 1980-10-27 | G40: Fully Litigated | H40: 15.2 | I40: 34.68 | J40: 13.29 | K40: 1.91
A41: West Virginia | B41: Hope Gas Inc. | C41: C-80-003-G-42T | D41: Natural Gas | E41: Distribution | F41: 1980-10-28 | G41: Fully Litigated | H41: 13 | I41: 52 | J41: 13.29 | K41: -0.29
A42: Louisiana | B42: Atmos Energy Corp. | C42: D-U-14665 (LGS) | D42: Natural Gas | E42: Distribution | F42: 1980-10-28 | G42: Fully Litigated | H42: 12 | I42: 50.96 | J42: 13.29 | K42: -1.29
A43: Idaho | B43: Intermountain Gas Co. | C43: C-U-1034-88 | D43: Natural Gas | E43: Distribution | F43: 1980-10-31 | G43: Fully Litigated | H43: 14.5 | I43: 31.7 | J43: 13.29 | K43: 1.21
A44: Nevada | B44: Sierra Pacific Power Co. | C44: D-2857 | D44: Natural Gas | E44: Distribution | F44: 1980-11-04 | G44: Fully Litigated | H44: 15 | I44: 37.35 | J44: 13.29 | K44: 1.71
A45: Connecticut | B45: The Sthrn CT Gas Co | C45: D-80-04-17 | D45: Natural Gas | E45: Distribution | F45: 1980-11-06 | G45: Fully Litigated | H45: 14.35 | I45: 42.2 | J45: 13.29 | K45: 1.06
A46: District of Columbia | B46: Washington Gas Light Co. | C46: C-722 0-7209 | D46: Natural Gas | E46: Distribution | F46: 1980-11-10 | G46: Fully Litigated | H46: 13.25 | I46: 40.1 | J46: 13.29 | K46: -0.04
A47: Louisiana | B47: Entergy Gulf States LA LLC | C47: D-U-14444 | D47: Natural Gas | E47: Distribution | F47: 1980-11-17 | G47: Fully Litigated | H47: 15.5 | I47: 38.66 | J47: 13.54 | K47: 1.96
A48: Washington | B48: Puget Sound Energy Inc. | C48: Ca-U-80-25 | D48: Natural Gas | E48: Distribution | F48: 1980-11-19 | G48: Fully Litigated | H48: 13.5 | I48: 34.27 | J48: 13.54 | K48: -0.04
A49: California | B49: Southern California Gas Co. | C49: AP-59316 De-92497 | D49: Natural Gas | E49: Distribution | F49: 1980-12-05 | G49: Fully Litigated | H49: 14.6 | I49: 39.65 | J49: 13.54 | K49: 1.06
A50: Indiana | B50: Indiana Gas Co. | C50: Ca-36117 | D50: Natural Gas | E50: Distribution | F50: 1980-12-08 | G50: Fully Litigated | H50: 16.4 | I50: 49.1 | J50: 13.54 | K50: 2.86
A51: Colorado | B51: Public Service Co. of CO | C51: D-1425-De-C80-2346 (Gas) | D51: Natural Gas | E51: Distribution | F51: 1980-12-12 | G51: Fully Litigated | H51: 15.45 | I51: 34.62 | J51: 13.54 | K51: 1.91
A52: Illinois | B52: North Shore Gas Co. | C52: D-80-0089 | D52: Natural Gas | E52: Distribution | F52: 1980-12-17 | G52: Fully Litigated | H52: 14.4 | I52: 39.5 | J52: 14.01 | K52: 0.39
A53: Illinois | B53: The Peoples Gas Light & Coke C | C53: D-80-0090 | D53: Natural Gas | E53: Distribution | F53: 1980-12-17 | G53: Fully Litigated | H53: 14.2 | I53: 40.02 | J53: 14.01 | K53: 0.19
A54: Wisconsin | B54: Wisconsin Gas LLC | C54: D-6650-GR-13 | D54: Natural Gas | E54: Distribution | F54: 1980-12-18 | G54: Fully Litigated | H54: 14 | I54: 42.2 | J54: 14.01 | K54: -0.01
A55: Montana | B55: NorthWestern Corp. | C55: D-80.4.2.4714A (gas) | D55: Natural Gas | E55: Distribution | F55: 1980-12-22 | G55: Fully Litigated | H55: 13.45 | I55: 39.46 | J55: 14.01 | K55: -0.56
A56: New York | B56: Natl Fuel Gas Distribution Cor | C56: C-27776 | D56: Natural Gas | E56: Distribution | F56: 1980-12-26 | G56: Fully Litigated | H56: 14 | I56: 42.6 | J56: 14.01 | K56: -0.01
A57: California | B57: San Diego Gas & Electric Co. | C57: AP-59788 De-92557-G | D57: Natural Gas | E57: Distribution | F57: 1980-12-30 | G57: Fully Litigated | H57: 14.5 | I57: 36.25 | J57: 14.01 | K57: 0.49
A58: Illinois | B58: Ameren Illinois | C58: D-80-0157 (CILCO-G) | D58: Natural Gas | E58: Distribution | F58: 1981-01-07 | G58: Fully Litigated | H58: 14.3 | I58: 35.56 | J58: 14.01 | K58: 0.29
A59: North Carolina | B59: Public Service Co. of NC | C59: D-G-5, SUB 157 | D59: Natural Gas | E59: Distribution | F59: 1981-01-12 | G59: Fully Litigated | H59: 14.95 | I59: 37.59 | J59: 14.01 | K59: 0.94
A60: Washington | B60: Avista Corp. | C60: Ca-U-80-14 | D60: Natural Gas | E60: Distribution | F60: 1981-01-26 | G60: Fully Litigated | H60: 15.25 | I60: 36.02 | J60: 14.66 | K60: 0.59
A61: Michigan | B61: DTE Gas Co. | C61: C-U-6372 | D61: Natural Gas | E61: Distribution | F61: 1981-01-30 | G61: Fully Litigated | H61: 13.25 | I61: 34.4 | J61: 14.66 | K61: -1.41
A62: Oklahoma | B62: Oklahoma Natural Gas Co | C62: Ca-26981 | D62: Natural Gas | E62: Distribution | F62: 1981-02-11 | G62: Fully Litigated | H62: 14.5 | I62: 48.94 | J62: 14.66 | K62: -0.16
A63: Oklahoma | B63: CenterPoint Energy Resources | C63: Ca-26975 | D63: Natural Gas | E63: Distribution | F63: 1981-02-20 | G63: Fully Litigated | H63: 14.5 | I63: 55.03 | J63: 14.27 | K63: 0.23
A64: New York | B64: Niagara Mohawk Power Corp. | C64: C-27743 | D64: Natural Gas | E64: Distribution | F64: 1981-03-12 | G64: Fully Litigated | H64: 15.65 | I64: 39.5 | J64: 14.27 | K64: 1.38
A65: Illinois | B65: Ameren Illinois | C65: D-80-0318 (CIPS-G) | D65: Natural Gas | E65: Distribution | F65: 1981-03-25 | G65: Fully Litigated | H65: 15.3 | I65: 37.6 | J65: 14.68 | K65: 0.62
A66: Louisiana | B66: Entergy New Orleans LLC | C66: C-R-81-73 (gas) | D66: Natural Gas | E66: Distribution | F66: 1981-04-09 | G66: Fully Litigated | H66: 15 | I66: 30.16 | J66: 14.68 | K66: 0.32
A67: Washington | B67: Cascade Natural Gas Corp. | C67: Ca-U-80-101 | D67: Natural Gas | E67: Distribution | F67: 1981-04-29 | G67: Fully Litigated | H67: 14.25 | I67: 37.17 | J67: 15.13 | K67: -0.88
A68: Montana | B68: MDU Resources Group | C68: D-80.7.52 | D68: Natural Gas | E68: Distribution | F68: 1981-04-29 | G68: Fully Litigated | H68: 13.5 | I68: 46.11 | J68: 15.13 | K68: -1.63
A69: Arizona | B69: Southwest Gas Corp. | C69: D-U-1551 De-52099 | D69: Natural Gas | E69: Distribution | F69: 1981-04-30 | G69: Fully Litigated | H69: 15 | I69: NA | J69: 15.13 | K69: -0.13
A70: Iowa | B70: Interstate Power & Light Co. | C70: D-RPU-80-42 | D70: Natural Gas | E70: Distribution | F70: 1981-04-30 | G70: Fully Litigated | H70: 13.6 | I70: 34.56 | J70: 15.13 | K70: =H70-J70 -> -1.53
A71: Wisconsin | B71: Wisconsin Public Service Corp. | C71: D-6690-UR-17-G | D71: Natural Gas | E71: Distribution | F71: 1981-05-21 | G71: Fully Litigated | H71: 14 | I71: 38.2 | J71: 15.25 | K71: -1.25
A72: Illinois | B72: MidAmerican Energy Co. | C72: D-80-0511 (gas) | D72: Natural Gas | E72: Distribution | F72: 1981-06-03 | G72: Fully Litigated | H72: 14.67 | I72: 35.8 | J72: 15.25 | K72: -0.58
A73: Utah | B73: Questar Gas Co. | C73: C-81-057-01 | D73: Natural Gas | E73: Distribution | F73: 1981-06-22 | G73: Fully Litigated | H73: 16 | I73: 35.52 | J73: 16.12 | K73: -0.12
A74: Wisconsin | B74: Wisconsin Power and Light Co | C74: D-6680-UR-11-G | D74: Natural Gas | E74: Distribution | F74: 1981-06-25 | G74: Fully Litigated | H74: 14.75 | I74: 39.4 | J74: 16.12 | K74: -1.37
A75: Alabama | B75: Spire Alabama Inc. | C75: D-18046 | D75: Natural Gas | E75: Distribution | F75: 1981-07-02 | G75: Fully Litigated | H75: 14 | I75: 37.19 | J75: 16.12 | K75: -2.12
A76: New York | B76: Rochester Gas & Electric Co | C76: C-27833 | D76: Natural Gas | E76: Distribution | F76: 1981-07-10 | G76: Fully Litigated | H76: 16 | I76: 40.15 | J76: 16.12 | K76: -0.12
A77: New York | B77: Central Hudson Gas & Electric | C77: C-27827 | D77: Natural Gas | E77: Distribution | F77: 1981-07-14 | G77: Fully Litigated | H77: 16.9 | I77: 38.04 | J77: 16.12 | K77: 0.78
A78: Arkansas | B78: Black Hills Energy Arkansas | C78: D-U-3144 | D78: Natural Gas | E78: Distribution | F78: 1981-07-21 | G78: Fully Litigated | H78: 15.78 | I78: 54 | J78: 15.79 | K78: -0.01
A79: New Mexico | B79: Public Service Co. of NM | C79: C-1568 | D79: Natural Gas | E79: Distribution | F79: 1981-07-27 | G79: Fully Litigated | H79: 15.5 | I79: 47.5 | J79: 15.79 | K79: -0.29
A80: Minnesota | B80: Northern States Power Co. | C80: D-E-002-GR-80-556 | D80: Natural Gas | E80: Distribution | F80: 1981-07-27 | G80: Fully Litigated | H80: 13.77 | I80: 41.46 | J80: 15.79 | K80: -2.02
A81: Iowa | B81: MidAmerican Energy Co. | C81: D-RPU-80-36 (gas) | D81: Natural Gas | E81: Distribution | F81: 1981-07-31 | G81: Fully Litigated | H81: 14.2 | I81: 40.01 | J81: 15.79 | K81: -1.59
A82: Iowa | B82: MidAmerican Energy Co. | C82: D-RPU-78-30 | D82: Natural Gas | E82: Distribution | F82: 1981-07-31 | G82: Fully Litigated | H82: 13.5 | I82: 39.4 | J82: 15.79 | K82: -2.29
A83: Ohio | B83: The East Ohio Gas Co. | C83: C-80-769-GA-AIR | D83: Natural Gas | E83: Distribution | F83: 1981-08-12 | G83: Fully Litigated | H83: 14.41 | I83: 57.6 | J83: 15.79 | K83: -1.38
A84: Ohio | B84: Columbia Gas Ohio Inc. | C84: C-80-777-GA-AIR | D84: Natural Gas | E84: Distribution | F84: 1981-08-12 | G84: Fully Litigated | H84: 13.72 | I84: 48.32 | J84: 15.79 | K84: -2.07
A85: Ohio | B85: Columbia Gas Ohio Inc. | C85: C-80-715-GA-AIR | D85: Natural Gas | E85: Distribution | F85: 1981-08-12 | G85: Fully Litigated | H85: 13.72 | I85: 48.32 | J85: 15.79 | K85: -2.07
A86: Connecticut | B86: The Sthrn CT Gas Co | C86: D-81-04-09 | D86: Natural Gas | E86: Distribution | F86: 1981-08-25 | G86: Fully Litigated | H86: 15.45 | I86: 39.9 | J86: 16.07 | K86: -0.62
A87: Minnesota | B87: CenterPoint Energy Resources | C87: D-G-008-GR-80-630 | D87: Natural Gas | E87: Distribution | F87: 1981-08-27 | G87: Fully Litigated | H87: 14.43 | I87: 52.87 | J87: 16.07 | K87: -1.64
A88: Nevada | B88: Sierra Pacific Power Co. | C88: D-81-106 | D88: Natural Gas | E88: Distribution | F88: 1981-08-28 | G88: Fully Litigated | H88: 15 | I88: 35.1 | J88: 16.07 | K88: -1.07
A89: Washington | B89: Puget Sound Energy Inc. | C89: Ca-U-80-111 | D89: Natural Gas | E89: Distribution | F89: 1981-09-24 | G89: Fully Litigated | H89: 16.25 | I89: 35 | J89: 16.45 | K89: -0.2
A90: Wisconsin | B90: Wisconsin Natural Gas Company | C90: D-6670-GR-7 | D90: Natural Gas | E90: Distribution | F90: 1981-09-29 | G90: Fully Litigated | H90: 14.5 | I90: 38 | J90: 16.45 | K90: -1.95
A91: Ohio | B91: The Dayton Power & Light Co. | C91: C-80-1087-GA-AIR | D91: Natural Gas | E91: Distribution | F91: 1981-09-30 | G91: Fully Litigated | H91: 15.94 | I91: 36.74 | J91: 16.45 | K91: -0.51
A92: Missouri | B92: Missouri Gas Energy | C92: C-GR-81-155 | D92: Natural Gas | E92: Distribution | F92: 1981-10-02 | G92: Fully Litigated | H92: 14.8 | I92: 38.58 | J92: 16.45 | K92: -1.65
A93: South Carolina | B93: Piedmont Natural Gas Co. | C93: D-81-252-G | D93: Natural Gas | E93: Distribution | F93: 1981-10-12 | G93: Fully Litigated | H93: 16.25 | I93: 50.14 | J93: 16.45 | K93: -0.2
A94: New York | B94: NY State Electric & Gas Corp. | C94: C-27884 | D94: Natural Gas | E94: Distribution | F94: 1981-10-20 | G94: Fully Litigated | H94: 17 | I94: 39.66 | J94: 17.03 | K94: -0.03
A95: New York | B95: Brooklyn Union Gas Co. | C95: C-27885 | D95: Natural Gas | E95: Distribution | F95: 1981-10-20 | G95: Fully Litigated | H95: 16.5 | I95: 39.22 | J95: 17.03 | K95: -0.53
A96: Idaho | B96: Avista Corp. | C96: C-U-1008-155 | D96: Natural Gas | E96: Distribution | F96: 1981-10-20 | G96: Fully Litigated | H96: 15.25 | I96: 40 | J96: 17.03 | K96: -1.78
A97: Louisiana | B97: CenterPoint Energy Resources | C97: D-U-15097 (ARKLA) | D97: Natural Gas | E97: Distribution | F97: 1981-10-26 | G97: Fully Litigated | H97: 13.5 | I97: 55.33 | J97: 17.03 | K97: -3.53
A98: Arizona | B98: Arizona Public Service Co. | C98: D-U-1345 De-52558-G | D98: Natural Gas | E98: Distribution | F98: 1981-10-29 | G98: Fully Litigated | H98: 16.5 | I98: 40.35 | J98: 17.03 | K98: -0.53
A99: Kansas | B99: Kansas Gas Service Co. | C99: D-126,922-U | D99: Natural Gas | E99: Distribution | F99: 1981-11-04 | G99: Fully Litigated | H99: 15.33 | I99: 32.63 | J99: 17.03 | K99: -1.7
A100: Iowa | B100: MidAmerican Energy Co. | C100: D-RPU-80-19 | D100: Natural Gas | E100: Distribution | F100: 1981-11-06 | G100: Fully Litigated | H100: 15.17 | I100: 37.1 | J100: 17.03 | K100: -1.86
A101: Connecticut | B101: The CT Light & Power Co | C101: D-81-06-02-G | D101: Natural Gas | E101: Distribution | F101: 1981-11-25 | G101: Fully Litigated | H101: 16.1 | I101: 33.52 | J101: 17.26 | K101: -1.16
A102: Connecticut | B102: The CT Light & Power Co | C102: D-81-06-04-G | D102: Natural Gas | E102: Distribution | F102: 1981-11-25 | G102: Fully Litigated | H102: 16.1 | I102: 36.74 | J102: 17.26 | K102: -1.16
A103: Washington | B103: Avista Corp. | C103: Ca-U-81-16 | D103: Natural Gas | E103: Distribution | F103: 1981-11-25 | G103: Fully Litigated | H103: 15.25 | I103: 38 | J103: 17.26 | K103: -2.01
A104: Arizona | B104: Southwest Gas Corp. | C104: D-U-1551 De-52631 | D104: Natural Gas | E104: Distribution | F104: 1981-11-30 | G104: Fully Litigated | H104: 16.75 | I104: 35.6 | J104: 17.26 | K104: -0.51
A105: New York | B105: Orange & Rockland Utlts Inc. | C105: C-27910 | D105: Natural Gas | E105: Distribution | F105: 1981-12-01 | G105: Fully Litigated | H105: 16 | I105: 43.11 | J105: 17.26 | K105: -1.26
A106: Colorado | B106: Public Service Co. of CO | C106: D-1525-De-C81-1999 (Gas) | D106: Natural Gas | E106: Distribution | F106: 1981-12-01 | G106: Fully Litigated | H106: 15.7 | I106: 39.09 | J106: 17.26 | K106: -1.56
A107: Delaware | B107: Delmarva Power & Light Co. | C107: D-81-13 | D107: Natural Gas | E107: Distribution | F107: 1981-12-15 | G107: Fully Litigated | H107: 15.81 | I107: 36.06 | J107: 16.42 | K107: -0.61
A108: Georgia | B108: Atlanta Gas Light Co. | C108: D-3288-U | D108: Natural Gas | E108: Distribution | F108: 1981-12-22 | G108: Fully Litigated | H108: 16 | I108: 38.37 | J108: 16.42 | K108: -0.42
A109: New York | B109: Natl Fuel Gas Distribution Cor | C109: C-27934 | D109: Natural Gas | E109: Distribution | F109: 1981-12-22 | G109: Fully Litigated | H109: 15.7 | I109: 43 | J109: 16.42 | K109: -0.72
A110: California | B110: San Diego Gas & Electric Co. | C110: AP-59788 De-93892-G | D110: Natural Gas | E110: Distribution | F110: 1981-12-30 | G110: Fully Litigated | H110: 16.25 | I110: 37.25 | J110: 16.42 | K110: -0.17
A111: California | B111: Pacific Gas and Electric Co. | C111: AP-60153 De-93887-G | D111: Natural Gas | E111: Distribution | F111: 1981-12-30 | G111: Fully Litigated | H111: 16 | I111: 41 | J111: 16.42 | K111: -0.42
A112: Kentucky | B112: Louisville Gas & Electric Co. | C112: C-8284 (gas) | D112: Natural Gas | E112: Distribution | F112: 1982-01-04 | G112: Fully Litigated | H112: 15.5 | I112: 38.6 | J112: 16.42 | K112: -0.92
A113: Kansas | B113: Kansas Gas Service Co. | C113: D-128,361-U | D113: Natural Gas | E113: Distribution | F113: 1982-01-25 | G113: Fully Litigated | H113: 16.25 | I113: 33.8 | J113: 16.16 | K113: 0.09
A114: Ohio | B114: Duke Energy Ohio Inc. | C114: C-81-67-GA-AIR | D114: Natural Gas | E114: Distribution | F114: 1982-01-27 | G114: Fully Litigated | H114: 16.84 | I114: 34.5 | J114: 16.16 | K114: 0.68
A115: Massachusetts | B115: Eversource Gas Company of MA | C115: DPU-777 | D115: Natural Gas | E115: Distribution | F115: 1982-01-31 | G115: Fully Litigated | H115: 14 | I115: 38.29 | J115: 16.16 | K115: -2.16
A116: North Carolina | B116: Piedmont Natural Gas Co. | C116: D-G-9, SUB 212 | D116: Natural Gas | E116: Distribution | F116: 1982-02-02 | G116: Fully Litigated | H116: 16.24 | I116: 50.81 | J116: 16.16 | K116: 0.08
A117: Maryland | B117: Baltimore Gas and Electric Co. | C117: C-7574 0-65648-G | D117: Natural Gas | E117: Distribution | F117: 1982-02-08 | G117: Fully Litigated | H117: 15.5 | I117: 38.61 | J117: 16.16 | K117: -0.66
A118: Idaho | B118: Intermountain Gas Co. | C118: C-U-1034-95 | D118: Natural Gas | E118: Distribution | F118: 1982-02-09 | G118: Fully Litigated | H118: 15.75 | I118: 33.34 | J118: 16.16 | K118: -0.41
A119: District of Columbia | B119: Washington Gas Light Co. | C119: C-768 0-7469 | D119: Natural Gas | E119: Distribution | F119: 1982-02-09 | G119: Fully Litigated | H119: 14.95 | I119: 44 | J119: 16.16 | K119: -1.21
A120: New Jersey | B120: Public Service Electric Gas | C120: D-812-76-G | D120: Natural Gas | E120: Distribution | F120: 1982-02-11 | G120: Fully Litigated | H120: 16 | I120: NA | J120: 16.16 | K120: -0.16
A121: Maryland | B121: Washington Gas Light Co. | C121: C-7585 0-65676 | D121: Natural Gas | E121: Distribution | F121: 1982-03-01 | G121: Fully Litigated | H121: 15.96 | I121: 38.4 | J121: 16.8 | K121: -0.84
A122: Iowa | B122: MidAmerican Energy Co. | C122: D-RPU-80-65 | D122: Natural Gas | E122: Distribution | F122: 1982-03-03 | G122: Fully Litigated | H122: 15 | I122: 36.75 | J122: 16.8 | K122: -1.8
A123: New York | B123: Niagara Mohawk Power Corp. | C123: C-27986 | D123: Natural Gas | E123: Distribution | F123: 1982-03-08 | G123: Fully Litigated | H123: 17.1 | I123: 41.48 | J123: 16.8 | K123: 0.3
A124: Pennsylvania | B124: Natl Fuel Gas Distribution Cor | C124: C-R-811600 | D124: Natural Gas | E124: Distribution | F124: 1982-03-26 | G124: Fully Litigated | H124: 16 | I124: 48 | J124: 16.92 | K124: -0.92
A125: Oklahoma | B125: Oklahoma Natural Gas Co | C125: Ca-27347 | D125: Natural Gas | E125: Distribution | F125: 1982-03-31 | G125: Fully Litigated | H125: 16.25 | I125: 48.67 | J125: 16.92 | K125: -0.67
A126: Wisconsin | B126: Wisconsin Gas LLC | C126: D-6650-GR-15 | D126: Natural Gas | E126: Distribution | F126: 1982-04-06 | G126: Fully Litigated | H126: 15 | I126: 41.11 | J126: 16.92 | K126: -1.92
A127: Washington | B127: Cascade Natural Gas Corp. | C127: Ca-U-81-64 | D127: Natural Gas | E127: Distribution | F127: 1982-04-09 | G127: Fully Litigated | H127: 16.5 | I127: 38.98 | J127: 16.92 | K127: -0.42
A128: Nevada | B128: Southwest Gas Corp. | C128: D-81-614 (Southern) | D128: Natural Gas | E128: Distribution | F128: 1982-04-12 | G128: Fully Litigated | H128: 16.7 | I128: 31.84 | J128: 16.92 | K128: -0.22
A129: North Dakota | B129: MDU Resources Group | C129: C-10, 280 | D129: Natural Gas | E129: Distribution | F129: 1982-04-12 | G129: Fully Litigated | H129: 15.1 | I129: 38.48 | J129: 16.92 | K129: -1.82
A130: Montana | B130: MDU Resources Group | C130: D-81.7.62 | D130: Natural Gas | E130: Distribution | F130: 1982-04-18 | G130: Fully Litigated | H130: 14.7 | I130: 38.79 | J130: 16.49 | K130: -1.79
A131: Wisconsin | B131: Wisconsin Public Service Corp. | C131: D-6690-UR-18-G | D131: Natural Gas | E131: Distribution | F131: 1982-04-27 | G131: Fully Litigated | H131: 15 | I131: 39.09 | J131: 16.49 | K131: -1.49
A132: Montana | B132: NorthWestern Corp. | C132: D-81.6.57 | D132: Natural Gas | E132: Distribution | F132: 1982-05-10 | G132: Fully Litigated | H132: 14.57 | I132: 38.09 | J132: 16.49 | K132: -1.92
A133: North Carolina | B133: Public Service Co. of NC | C133: D-G-5, SUB 168 | D133: Natural Gas | E133: Distribution | F133: 1982-05-14 | G133: Fully Litigated | H133: 15.8 | I133: 44.26 | J133: 16.49 | K133: -0.69
A134: Louisiana | B134: Atmos Energy Corp. | C134: D-U-15276 (LGS) | D134: Natural Gas | E134: Distribution | F134: 1982-05-20 | G134: Fully Litigated | H134: 15.82 | I134: 47.15 | J134: 16.4 | K134: =H134-J134 -> -0.58
A135: Connecticut | B135: CT Natural Gas Corp. | C135: D-81-12-12 | D135: Natural Gas | E135: Distribution | F135: 1982-05-25 | G135: Fully Litigated | H135: 16.25 | I135: 39.63 | J135: 16.4 | K135: -0.15
A136: West Virginia | B136: Mountaineer Gas Co. | C136: C-81-340-G-42T | D136: Natural Gas | E136: Distribution | F136: 1982-06-02 | G136: Fully Litigated | H136: 14.5 | I136: NA | J136: 16.4 | K136: -1.9
A137: New York | B137: Consolidated Edison Co. of NY | C137: C-28036 | D137: Natural Gas | E137: Distribution | F137: 1982-06-07 | G137: Fully Litigated | H137: 16 | I137: 48.03 | J137: 16.4 | K137: -0.4
A138: Rhode Island | B138: Narragansett Electric Co. | C138: D-1612 | D138: Natural Gas | E138: Distribution | F138: 1982-06-23 | G138: Fully Litigated | H138: 15.5 | I138: 42.2 | J138: 16.08 | K138: -0.58
A139: Pennsylvania | B139: PECO Energy Co | C139: C-R-811719 | D139: Natural Gas | E139: Distribution | F139: 1982-06-25 | G139: Fully Litigated | H139: 16.5 | I139: 37.4 | J139: 16.08 | K139: 0.42
A140: Illinois | B140: Ameren Illinois | C140: D-81-0600 (CILCO-G) | D140: Natural Gas | E140: Distribution | F140: 1982-07-01 | G140: Fully Litigated | H140: 16 | I140: 41.29 | J140: 16.08 | K140: -0.08
A141: Illinois | B141: Northern Illinois Gas Co. | C141: D-81-0609 | D141: Natural Gas | E141: Distribution | F141: 1982-07-01 | G141: Fully Litigated | H141: 15.55 | I141: 55.59 | J141: 16.08 | K141: -0.53
A142: Iowa | B142: Interstate Power & Light Co. | C142: D-RPU-81-44 | D142: Natural Gas | E142: Distribution | F142: 1982-07-02 | G142: Fully Litigated | H142: 15.1 | I142: 36.08 | J142: 16.08 | K142: -0.98
A143: New York | B143: Rochester Gas & Electric Co | C143: C-28055 | D143: Natural Gas | E143: Distribution | F143: 1982-07-13 | G143: Fully Litigated | H143: 16.8 | I143: 41.7 | J143: 16.08 | K143: 0.72
A144: Wisconsin | B144: Madison Gas and Electric Co. | C144: D-3270-UR-10-G | D144: Natural Gas | E144: Distribution | F144: 1982-07-22 | G144: Fully Litigated | H144: 14.5 | I144: 41.2 | J144: 16.34 | K144: -1.84
A145: Michigan | B145: DTE Gas Co. | C145: C-U-6839 | D145: Natural Gas | E145: Distribution | F145: 1982-07-30 | G145: Fully Litigated | H145: 14.82 | I145: 30.27 | J145: 16.34 | K145: -1.52
A146: Ohio | B146: The East Ohio Gas Co. | C146: C-81-970-GA-AIR | D146: Natural Gas | E146: Distribution | F146: 1982-08-04 | G146: Fully Litigated | H146: 15.58 | I146: 59.46 | J146: 16.34 | K146: -0.76
A147: Washington | B147: Cascade Natural Gas Corp. | C147: Ca-U-82-20,33 | D147: Natural Gas | E147: Distribution | F147: 1982-08-06 | G147: Fully Litigated | H147: 16.5 | I147: 38.98 | J147: 16.34 | K147: 0.16
A148: Indiana | B148: Northern IN Public Svc Co. | C148: Ca-36690 | D148: Natural Gas | E148: Distribution | F148: 1982-08-11 | G148: Fully Litigated | H148: 17.11 | I148: 32.74 | J148: 16.34 | K148: 0.77
A149: Illinois | B149: MidAmerican Energy Co. | C149: D-81-0747 (gas) | D149: Natural Gas | E149: Distribution | F149: 1982-08-25 | G149: Fully Litigated | H149: 16 | I149: 37.08 | J149: 16.46 | K149: -0.46
A150: New Mexico | B150: Public Service Co. of NM | C150: C-1710 | D150: Natural Gas | E150: Distribution | F150: 1982-08-30 | G150: Fully Litigated | H150: 16.25 | I150: 44 | J150: 16.46 | K150: -0.21
A151: Hawaii | B151: The Gas Co. LLC | C151: D-4286 | D151: Natural Gas | E151: Distribution | F151: 1982-09-03 | G151: Fully Litigated | H151: 15.5 | I151: 37.9 | J151: 16.46 | K151: -0.96
A152: Ohio | B152: Columbia Gas Ohio Inc. | C152: C-81-1024-GA-AIR | D152: Natural Gas | E152: Distribution | F152: 1982-09-09 | G152: Fully Litigated | H152: 16.04 | I152: 49.07 | J152: 16.46 | K152: -0.42
A153: Ohio | B153: Columbia Gas Ohio Inc. | C153: C-81-1025-GA-AIR | D153: Natural Gas | E153: Distribution | F153: 1982-09-15 | G153: Fully Litigated | H153: 16.04 | I153: 49.07 | J153: 15.92 | K153: 0.12
A154: Idaho | B154: Avista Corp. | C154: C-U-1008-171 | D154: Natural Gas | E154: Distribution | F154: 1982-09-17 | G154: Fully Litigated | H154: 15.25 | I154: 40 | J154: 15.92 | K154: -0.67
A155: South Carolina | B155: Dominion Energy South Carolina | C155: D-82-239-G O-82-676 | D155: Natural Gas | E155: Distribution | F155: 1982-09-29 | G155: Fully Litigated | H155: 14.5 | I155: 38.25 | J155: 15.92 | K155: -1.42
A156: Georgia | B156: Atlanta Gas Light Co. | C156: D-3333-U | D156: Natural Gas | E156: Distribution | F156: 1982-09-30 | G156: Fully Litigated | H156: 16.7 | I156: 33.8 | J156: 15.92 | K156: 0.78
A157: Arizona | B157: Southwest Gas Corp. | C157: D-U-1551 De-53237 | D157: Natural Gas | E157: Distribution | F157: 1982-09-30 | G157: Fully Litigated | H157: 16.5 | I157: 33.14 | J157: 15.92 | K157: 0.58
A158: Massachusetts | B158: Boston Gas Co. | C158: DPU-1100 | D158: Natural Gas | E158: Distribution | F158: 1982-09-30 | G158: Fully Litigated | H158: 15.5 | I158: 52 | J158: 15.92 | K158: -0.42
A159: Minnesota | B159: Northern States Power Co. | C159: D-E-002-GR-81-508 | D159: Natural Gas | E159: Distribution | F159: 1982-09-30 | G159: Fully Litigated | H159: 14.74 | I159: 41.75 | J159: 15.92 | K159: -1.18
A160: New Jersey | B160: South Jersey Gas Co. | C160: D-818-754 | D160: Natural Gas | E160: Distribution | F160: 1982-10-08 | G160: Fully Litigated | H160: 15 | I160: 38 | J160: 15.92 | K160: -0.92
A161: New York | B161: Central Hudson Gas & Electric | C161: C-28106 | D161: Natural Gas | E161: Distribution | F161: 1982-10-15 | G161: Fully Litigated | H161: 15.9 | I161: 40.46 | J161: 15.45 | K161: 0.45
A162: New York | B162: Brooklyn Union Gas Co. | C162: C-28107 | D162: Natural Gas | E162: Distribution | F162: 1982-10-19 | G162: Fully Litigated | H162: 15.9 | I162: 40.3 | J162: 15.45 | K162: 0.45
A163: Indiana | B163: Indiana Gas Co. | C163: Ca-36817 | D163: Natural Gas | E163: Distribution | F163: 1982-10-27 | G163: Fully Litigated | H163: 17 | I163: 36.6 | J163: 15.45 | K163: 1.55
A164: Wisconsin | B164: Wisconsin Natural Gas Company | C164: D-6670-GR-9 | D164: Natural Gas | E164: Distribution | F164: 1982-10-28 | G164: Fully Litigated | H164: 14.75 | I164: 44.73 | J164: 15.45 | K164: -0.7
A165: Connecticut | B165: The Sthrn CT Gas Co | C165: D-82-06-12 | D165: Natural Gas | E165: Distribution | F165: 1982-11-02 | G165: Fully Litigated | H165: 16.25 | I165: 36.64 | J165: 15.45 | K165: 0.8
A166: Idaho | B166: Intermountain Gas Co. | C166: C-U-1034-99 | D166: Natural Gas | E166: Distribution | F166: 1982-11-04 | G166: Fully Litigated | H166: 15.75 | I166: 41.09 | J166: 15.45 | K166: 0.3
A167: California | B167: Southwest Gas Corp. | C167: AP-82-0705 De-8211061 | D167: Natural Gas | E167: Distribution | F167: 1982-11-17 | G167: Fully Litigated | H167: 16 | I167: 40.5 | J167: 14.98 | K167: 1.02
A168: Illinois | B168: Ameren Illinois | C168: D-82-0039 (CIPS-G) | D168: Natural Gas | E168: Distribution | F168: 1982-11-23 | G168: Fully Litigated | H168: 15.5 | I168: 40.68 | J168: 14.98 | K168: 0.52
A169: Maryland | B169: Washington Gas Light Co. | C169: C-7639 0-66016 | D169: Natural Gas | E169: Distribution | F169: 1982-11-24 | G169: Fully Litigated | H169: 16.02 | I169: 39.5 | J169: 14.98 | K169: 1.04
A170: Virginia | B170: Washington Gas Light Co. | C170: C-PUE-820029 | D170: Natural Gas | E170: Distribution | F170: 1982-11-24 | G170: Fully Litigated | H170: 14.5 | I170: 36.82 | J170: 14.98 | K170: -0.48
A171: Massachusetts | B171: Colonial Gas Co. | C171: DPU-1125 | D171: Natural Gas | E171: Distribution | F171: 1982-11-30 | G171: Fully Litigated | H171: 16.1 | I171: 32.92 | J171: 14.98 | K171: 1.12
A172: Nevada | B172: Southwest Gas Corp. | C172: D-82-399 (Northern) | D172: Natural Gas | E172: Distribution | F172: 1982-11-30 | G172: Fully Litigated | H172: 16 | I172: NA | J172: 14.98 | K172: 1.02
A173: North Carolina | B173: Piedmont Natural Gas Co. | C173: D-G-9, SUB 219 | D173: Natural Gas | E173: Distribution | F173: 1982-11-30 | G173: Fully Litigated | H173: 15.65 | I173: 53.17 | J173: 14.98 | K173: 0.67
A174: Massachusetts | B174: NSTAR Gas Co. | C174: DPU-1120 | D174: Natural Gas | E174: Distribution | F174: 1982-11-30 | G174: Fully Litigated | H174: 15.5 | I174: 51.72 | J174: 14.98 | K174: 0.52
A175: Massachusetts | B175: Eversource Gas Company of MA | C175: DPU-1122 | D175: Natural Gas | E175: Distribution | F175: 1982-11-30 | G175: Fully Litigated | H175: 15.5 | I175: 33.2 | J175: 14.98 | K175: 0.52
A176: Mississippi | B176: Atmos Energy Corp. | C176: C-U-4242 | D176: Natural Gas | E176: Distribution | F176: 1982-11-30 | G176: Fully Litigated | H176: 12.98 | I176: NA | J176: 14.98 | K176: -2
A177: Kansas | B177: Kansas Gas Service Co. | C177: D-132,996-U | D177: Natural Gas | E177: Distribution | F177: 1982-12-03 | G177: Fully Litigated | H177: 15.33 | I177: 32.78 | J177: 14.98 | K177: 0.35
A178: California | B178: Southern California Gas Co. | C178: AP-61081 De-82-12054 | D178: Natural Gas | E178: Distribution | F178: 1982-12-08 | G178: Fully Litigated | H178: 15.75 | I178: 42 | J178: 14.98 | K178: 0.77
A179: Tennessee | B179: Chattanooga Gas Co. | C179: D-U-82-7175 | D179: Natural Gas | E179: Distribution | F179: 1982-12-13 | G179: Fully Litigated | H179: 16 | I179: 49.72 | J179: 14.98 | K179: 1.02
A180: Connecticut | B180: The CT Light & Power Co | C180: D-82-07-01-G | D180: Natural Gas | E180: Distribution | F180: 1982-12-14 | G180: Fully Litigated | H180: 16.4 | I180: 37.37 | J180: 14.98 | K180: 1.42
A181: Pennsylvania | B181: UGI Utilities Inc. | C181: C-R-821899 | D181: Natural Gas | E181: Distribution | F181: 1982-12-17 | G181: Fully Litigated | H181: 16.25 | I181: 43.7 | J181: 14.46 | K181: 1.79
A182: Virginia | B182: Virginia Natural Gas Inc. | C182: C-PUE-820047 | D182: Natural Gas | E182: Distribution | F182: 1982-12-20 | G182: Fully Litigated | H182: 15 | I182: 35.6 | J182: 14.46 | K182: 0.54
A183: New York | B183: Natl Fuel Gas Distribution Cor | C183: C-28158 | D183: Natural Gas | E183: Distribution | F183: 1982-12-21 | G183: Fully Litigated | H183: 15.7 | I183: 46 | J183: 14.46 | K183: 1.24
A184: Illinois | B184: North Shore Gas Co. | C184: D-82-0189 | D184: Natural Gas | E184: Distribution | F184: 1982-12-28 | G184: Fully Litigated | H184: 15.25 | I184: 42.41 | J184: 14.46 | K184: 0.79
A185: Illinois | B185: The Peoples Gas Light & Coke C | C185: D-82-0082 | D185: Natural Gas | E185: Distribution | F185: 1982-12-28 | G185: Fully Litigated | H185: 15.25 | I185: 42.75 | J185: 14.46 | K185: 0.79
A186: Washington | B186: Avista Corp. | C186: Ca-U-82-11 | D186: Natural Gas | E186: Distribution | F186: 1982-12-29 | G186: Fully Litigated | H186: 16.25 | I186: 38 | J186: 14.46 | K186: 1.79
A187: Washington | B187: Puget Sound Energy Inc. | C187: Ca-U-82-22, 37 | D187: Natural Gas | E187: Distribution | F187: 1982-12-29 | G187: Fully Litigated | H187: 16.25 | I187: 35 | J187: 14.46 | K187: 1.79
A188: New York | B188: NY State Electric & Gas Corp. | C188: C-28169 | D188: Natural Gas | E188: Distribution | F188: 1983-01-11 | G188: Fully Litigated | H188: 15.9 | I188: 40.69 | J188: 14.46 | K188: 1.44
A189: Illinois | B189: Ameren Illinois | C189: D-82-0152 (IP-G) | D189: Natural Gas | E189: Distribution | F189: 1983-01-12 | G189: Fully Litigated | H189: 15.5 | I189: 42.82 | J189: 14.46 | K189: 1.04
A190: Wisconsin | B190: Wisconsin Gas LLC | C190: D-6650-GR-17 | D190: Natural Gas | E190: Distribution | F190: 1983-01-18 | G190: Fully Litigated | H190: 15 | I190: 43.07 | J190: 14.43 | K190: 0.57
A191: Nevada | B191: Southwest Gas Corp. | C191: D-82-399 (Southern) | D191: Natural Gas | E191: Distribution | F191: 1983-01-24 | G191: Fully Litigated | H191: 16 | I191: 34.23 | J191: 14.43 | K191: 1.57
A192: New York | B192: Long Island Lighting Co | C192: C-28177 | D192: Natural Gas | E192: Distribution | F192: 1983-01-24 | G192: Fully Litigated | H192: 15.5 | I192: 44.59 | J192: 14.43 | K192: 1.07
A193: Minnesota | B193: Minnesota Energy Resources | C193: D-G-011-GR-82-65 | D193: Natural Gas | E193: Distribution | F193: 1983-01-28 | G193: Fully Litigated | H193: 14.9 | I193: 49.9 | J193: 14.43 | K193: 0.47
A194: Iowa | B194: MidAmerican Energy Co. | C194: D-RPU-82-40 | D194: Natural Gas | E194: Distribution | F194: 1983-02-10 | G194: Fully Litigated | H194: 15 | I194: 40.29 | J194: 14.43 | K194: 0.57
A195: District of Columbia | B195: Washington Gas Light Co. | C195: C-787 0-7749 | D195: Natural Gas | E195: Distribution | F195: 1983-02-25 | G195: Fully Litigated | H195: 15.7 | I195: 41.9 | J195: 14.24 | K195: 1.46
A196: Kentucky | B196: Louisville Gas & Electric Co. | C196: C-8616 (gas) | D196: Natural Gas | E196: Distribution | F196: 1983-03-02 | G196: Fully Litigated | H196: 15.25 | I196: 39.46 | J196: 14.24 | K196: 1.01
A197: Tennessee | B197: Piedmont Natural Gas Co. | C197: D-U-82-7190 | D197: Natural Gas | E197: Distribution | F197: 1983-03-16 | G197: Fully Litigated | H197: 16 | I197: 57.44 | J197: 14.28 | K197: 1.72
A198: Minnesota | B198: CenterPoint Energy Resources | C198: D-G-008-GR-82-249 | D198: Natural Gas | E198: Distribution | F198: 1983-03-21 | G198: Fully Litigated | H198: 14.96 | I198: 55.07 | J198: 14.28 | K198: =H198-J198 -> 0.68
A199: New York | B199: Niagara Mohawk Power Corp. | C199: C-28227 | D199: Natural Gas | E199: Distribution | F199: 1983-03-23 | G199: Fully Litigated | H199: 15.4 | I199: 41.97 | J199: 14.28 | K199: 1.12
A200: Wisconsin | B200: Wisconsin Public Service Corp. | C200: D-6690-UR-19-G | D200: Natural Gas | E200: Distribution | F200: 1983-03-24 | G200: Fully Litigated | H200: 15 | I200: 42.5 | J200: 14.28 | K200: 0.72
... 625 more rows

Sheet 5.1 CAPM
B1: =Input!G28 -> Peoples Gas System
B2: Indicated Common Equity Cost Rate Through Use
B3: of the Traditional Capital Asset Pricing Model (CAPM) and Empirical Capital Asset Pricing Model (ECAPM)
D5: [1] | F5: [2] | H5: [3] | J5: [4] | M5: [5] | P5: [6] | S5: [7] | V5: [8]
B7: ='6.1 Comp Earnings Criteria'!C7 -> Proxy Group of Six Natural Gas Companies | D7: Value Line Adjusted Beta | F7: Bloomberg Adjusted Beta | H7: Average Beta | J7: Market Risk Premium (1) | M7: Risk-Free Rate (2) | P7: Traditional CAPM Cost Rate | S7: ECAPM Cost Rate | V7: Indicated Common Equity Cost Rate (3)
A9: ='6.1 Comp Earnings Criteria'!A9 -> ATO | B9: ='Proxy Data Lookup'!B3 -> Atmos Energy Corporation | D9: ='MRP WP1'!C74 -> 0.8 | F9: ='Proxy Data Lookup'!G3 -> 0.7347556353 | H9: =IFERROR(ROUND(AVERAGE(D9:F9),2),"NA") -> 0.77 | J9: ='MRP WP1'!$H$65 -> 9.749807177 | K9: % | M9: ='MRP WP1'!$F$37 -> 3.91 | N9: % | P9: =IFERROR((H9*J9) + M9,"NA") -> 11.41735153 | Q9: % | S9: =IFERROR((0.75*(H9*J9))+(0.25*J9)+M9,"NA") -> 11.97796544 | T9: % | V9: =IFERROR(ROUND(AVERAGE(P9:S9),2),"NA") -> 11.7 | W9: %
A10: ='6.1 Comp Earnings Criteria'!A10 -> NJR | B10: ='Proxy Data Lookup'!B4 -> New Jersey Resources Corporation | D10: ='MRP WP1'!C75 -> 0.95 | F10: ='Proxy Data Lookup'!G4 -> 0.7065019608 | H10: =IFERROR(ROUND(AVERAGE(D10:F10),2),"NA") -> 0.83 | J10: ='MRP WP1'!$H$65 -> 9.749807177 | M10: ='MRP WP1'!$F$37 -> 3.91 | P10: =IFERROR((H10*J10) + M10,"NA") -> 12.00233996 | S10: =IFERROR((0.75*(H10*J10))+(0.25*J10)+M10,"NA") -> 12.41670676 | V10: =IFERROR(ROUND(AVERAGE(P10:S10),2),"NA") -> 12.21
A11: ='6.1 Comp Earnings Criteria'!A11 -> NI | B11: ='Proxy Data Lookup'!B5 -> NiSource Inc. | D11: ='MRP WP1'!C76 -> 0.85 | F11: ='Proxy Data Lookup'!G5 -> 0.7371585965 | H11: 0.79 | J11: ='MRP WP1'!$H$65 -> 9.749807177 | M11: ='MRP WP1'!$F$37 -> 3.91 | P11: 11.61234767 | S11: 12.12421255 | V11: 11.87
A12: ='6.1 Comp Earnings Criteria'!A12 -> NWN | B12: ='Proxy Data Lookup'!B6 -> Northwest Natural Holding Company | D12: ='MRP WP1'!C77 -> 0.8 | F12: ='Proxy Data Lookup'!G6 -> 0.5268401504 | H12: 0.66 | J12: ='MRP WP1'!$H$65 -> 9.749807177 | M12: ='MRP WP1'!$F$37 -> 3.91 | P12: 10.34487274 | S12: 11.17360635 | V12: 10.76
A13: ='6.1 Comp Earnings Criteria'!A13 -> OGS | B13: ='Proxy Data Lookup'!B7 -> ONE Gas, Inc. | D13: ='MRP WP1'!C78 -> 0.8 | F13: ='Proxy Data Lookup'!G7 -> 0.5826290846 | H13: 0.69 | J13: ='MRP WP1'!$H$65 -> 9.749807177 | M13: ='MRP WP1'!$F$37 -> 3.91 | P13: 10.63736695 | S13: 11.39297701 | V13: 11.02
A14: ='6.1 Comp Earnings Criteria'!A14 -> SR | B14: ='Proxy Data Lookup'!B8 -> Spire Inc. | D14: ='MRP WP1'!C79 -> 0.85 | F14: ='Proxy Data Lookup'!G8 -> 0.6924548745 | H14: 0.77 | J14: ='MRP WP1'!$H$65 -> 9.749807177 | M14: ='MRP WP1'!$F$37 -> 3.91 | P14: 11.41735153 | S14: 11.97796544 | V14: 11.7
B16: Mean | H16: =IFERROR(ROUND(AVERAGE(H9:H14),2),"NA") -> 0.75 | P16: =IFERROR(ROUND(AVERAGE(P9:P14),2),"NA") -> 11.24 | Q16: % | S16: =IFERROR(ROUND(AVERAGE(S9:S14),2),"NA") -> 11.84 | T16: % | V16: =IFERROR(ROUND(AVERAGE(V9:V14),2),"NA") -> 11.54 | W16: %
B18: Median | H18: =IFERROR(ROUND(MEDIAN(H9:H14),2),"NA") -> 0.77 | P18: =IFERROR(ROUND(MEDIAN(P9:P14),2),"NA") -> 11.42 | Q18: % | S18: =IFERROR(ROUND(MEDIAN(S9:S14),2),"NA") -> 11.98 | T18: % | V18: =IFERROR(ROUND(MEDIAN(V9:V14),2),"NA") -> 11.7 | W18: %
B20: Average of Mean and Median | H20: =IFERROR(ROUND(AVERAGE(H16:H18),2),"NA") -> 0.76 | P20: =IFERROR(ROUND(AVERAGE(P16:P18),2),"NA") -> 11.33 | Q20: % | S20: =IFERROR(ROUND(AVERAGE(S16:S18),2),"NA") -> 11.91 | T20: % | V20: =IFERROR(ROUND(AVERAGE(V16:V18),2),"NA") -> 11.62 | W20: %
B24: Notes on page 2 of this Document.

Sheet 5.2 CAPM Notes
A1: =Input!G28 -> Peoples Gas System
A2: Notes to Accompany the Application of the CAPM and ECAPM
A4: Notes:
A5: (1) | B5: The market risk premium (MRP) is derived by using six different measures from three sources: Kroll, Value Line, and Bloomberg as illustrated below:
B7: Historical Data MRP Estimates:
B9: =CONCATENATE("Measure 1: Kroll Arithmetic Mean MRP ",MID(Input!E20,FIND("(",Input!E20),11)) -> Measure 1: Kroll Arithmetic Mean MRP (1926-2021)
B11: =CONCATENATE("Arithmetic Mean Monthly Returns for Large Stocks ",MID(Input!E20,FIND("1",Input!E20),9),":") -> Arithmetic Mean Monthly Returns for Large Stocks 1926-2021: | N11: ='MRP WP1'!H50 -> 12.37 | O11: %
B12: Arithmetic Mean Income Returns on Long-Term Government Bonds: | N12: ='MRP WP1'!H52 -> 5.02
B13: MRP based on Kroll Historical Data: | N13: =N11-N12 -> 7.35 | O13: %
B15: Measure 2: Application of a Regression Analysis to Kroll Historical Data
B16: (1926-2021) | N16: ='MRP ERP WP'!AA42*100 -> 8.706891653 | O16: %
B18: Measure 3: Application of the PRPM to Kroll Historical Data:
B19: =CONCATENATE("(January 1926 - ",Input!G25,")") -> (January 1926 - December 2022) | N19: ='MRP WP1'!H47 -> 10.86249942 | O19: %
B21: Value Line MRP Estimates:
B23: =CONCATENATE("Measure 4: Value Line Projected MRP (Thirteen weeks ending ",TEXT('MRP WP1'!B7,"mmmm dd, yyyy)")) -> Measure 4: Value Line Projected MRP (Thirteen weeks ending December 30, 2022)
B25: Total projected return on the market 3-5 years hence*: | N25: ='MRP WP1'!M22*100 -> 16.58 | O25: %
B26: Projected Risk-Free Rate (see note 2): | N26: ='MRP WP1'!F37 -> 3.91
B27: MRP based on Value Line Summary & Index: | N27: =N25-N26 -> 12.67 | O27: %
C28: *Forcasted 3-5 year capital appreciation plus expected dividend yield
B30: Measure 5: Value Line Projected Return on the Market based on the S&P 500
B32: Total return on the Market based on the S&P 500: | N32: ='MRP WP3'!H504*100 -> 15.67105075 | O32: %
B33: Projected Risk-Free Rate (see note 2): | N33: =N54 -> 3.91
B34: MRP based on Value Line data | N34: =IFERROR(N32-N33,"NA") -> 11.76105075 | O34: %
B36: Measure 6: Bloomberg Projected MRP
B38: Total return on the Market based on the S&P 500: | N38: ='MRP WP2'!Q504*100 -> 11.05840124 | O38: %
B39: Projected Risk-Free Rate (see note 2): | N39: ='MRP WP1'!F37 -> 3.91
L40: MRP based on Bloomberg data | N40: =IFERROR(N38-N39,"NA") -> 7.14840124 | O40: %
L42: Average of Value Line, Kroll, and Bloomberg MRP: | N42: =AVERAGE(N13,N16,N19,N27,N34,N40) -> 9.749807177 | O42: %
A44: (2) | B44: For reasons explained in the direct testimony, the appropriate risk-free rate for cost of capital purposes is the average forecast of 30 year Treasury Bonds per the consensus of nearly 50 economists reported in Blue Chip Financial Forecasts. (See pages 10 and 11 of Document No. 4) The projection of the risk-free rate is illustrated below:
J46: ='MRP WP1'!B28 -> First Quarter 2023 | N46: ='MRP WP1'!F28 -> 4 | O46: %
J47: ='MRP WP1'!B29 -> Second Quarter 2023 | N47: ='MRP WP1'!F29 -> 4
J48: ='MRP WP1'!B30 -> Third Quarter 2023 | N48: ='MRP WP1'!F30 -> 3.9
J49: ='MRP WP1'!B31 -> Fourth Quarter 2023 | N49: ='MRP WP1'!F31 -> 3.9
J50: ='MRP WP1'!B32 -> First Quarter 2024 | N50: ='MRP WP1'!F32 -> 3.8
J51: ='MRP WP1'!B33 -> Second Quarter 2024 | N51: ='MRP WP1'!F33 -> 3.8
J52: ='MRP WP1'!B34 -> 2024-2028 | N52: ='MRP WP1'!F34 -> 3.9
J53: ='MRP WP1'!B35 -> 2029-2033 | N53: ='MRP WP1'!F35 -> 4
N54: =ROUND(AVERAGE(N46:N53),2) -> 3.91 | O54: %
A56: (3) | B56: Average of Column 6 and Column 7.
A58: Sources of Information:
B59: Value Line Summary and Index.
B60: ='4.8-4.9 Beta Adjusted ERP'!C49 -> Blue Chip Financial Forecasts December 2, 2022 and January 1, 2022.
B61: ='4.8-4.9 Beta Adjusted ERP'!C47 -> Stocks, Bonds, Bills, and Inflation - 2022 SBBI Yearbook, Kroll.
B62: Bloomberg Professional Services.

Sheet 6.1 Comp Earnings Criteria
C1: =Input!G28 -> Peoples Gas System
C2: Basis of Selection of Comparable Risk
C3: Domestic Non-Price Regulated Companies
A4: TICKER
E5: [1] | G5: [2] | I5: [3] | K5: [4]
A6: SYMBOL
C7: =Input!I30 -> Proxy Group of Six Natural Gas Companies | E7: Value Line Adjusted Beta | G7: Unadjusted Beta | I7: Residual Standard Error of the Regression | K7: Standard Deviation of Beta
A9: =Input!A2 -> ATO | C9: ='Proxy Data Lookup'!B3 -> Atmos Energy Corporation | E9: ='Proxy Data Lookup'!F3 -> 0.8 | G9: ='Proxy Data Lookup'!H3 -> 0.68 | I9: ='Proxy Data Lookup'!K3 -> 2.7458 | K9: ='Proxy Data Lookup'!M3 -> 0.0684
A10: =Input!A3 -> NJR | C10: ='Proxy Data Lookup'!B4 -> New Jersey Resources Corporation | E10: ='Proxy Data Lookup'!F4 -> 1 | G10: ='Proxy Data Lookup'!H4 -> 0.94 | I10: ='Proxy Data Lookup'!K4 -> 2.9752 | K10: ='Proxy Data Lookup'!M4 -> 0.0741
A11: =Input!A4 -> NI | C11: ='Proxy Data Lookup'!B5 -> NiSource Inc. | E11: ='Proxy Data Lookup'!F5 -> 0.85 | G11: ='Proxy Data Lookup'!H5 -> 0.71 | I11: ='Proxy Data Lookup'!K5 -> 2.4801 | K11: ='Proxy Data Lookup'!M5 -> 0.0617
A12: =Input!A5 -> NWN | C12: ='Proxy Data Lookup'!B6 -> Northwest Natural Holding Company | E12: ='Proxy Data Lookup'!F6 -> 0.85 | G12: ='Proxy Data Lookup'!H6 -> 0.7 | I12: ='Proxy Data Lookup'!K6 -> 3.1228 | K12: ='Proxy Data Lookup'!M6 -> 0.0777
A13: =Input!A6 -> OGS | C13: ='Proxy Data Lookup'!B7 -> ONE Gas, Inc. | E13: ='Proxy Data Lookup'!F7 -> 0.8 | G13: ='Proxy Data Lookup'!H7 -> 0.66 | I13: ='Proxy Data Lookup'!K7 -> 2.7001 | K13: ='Proxy Data Lookup'!M7 -> 0.0672
A14: =Input!A7 -> SR | C14: ='Proxy Data Lookup'!B8 -> Spire Inc. | E14: ='Proxy Data Lookup'!F8 -> 0.85 | G14: ='Proxy Data Lookup'!H8 -> 0.72 | I14: ='Proxy Data Lookup'!K8 -> 2.8255 | K14: ='Proxy Data Lookup'!M8 -> 0.0703
C16: Average | E16: =ROUND(AVERAGE(E9:E14),2) -> 0.86 | G16: =ROUND(AVERAGE(G9:G14),2) -> 0.74 | I16: =ROUND(AVERAGE(I9:I14),4) -> 2.8083 | K16: =ROUND(AVERAGE(K9:K14),4) -> 0.0699
C18: Beta Range (+/- 2 std. Devs. of Beta) | E18: =G16-E19 -> 0.6 | G18: =G16+E19 -> 0.88
C19: 2 std. Devs. of Beta | E19: =ROUND((K16*2),2) -> 0.14
C21: Residual Std. Err. Range (+/- 2 std.
C22: Devs. of the Residual Std. Err.) | E22: =I16-E26 -> 2.5615 | G22: =I16+E26 -> 3.0551
C24: Std. dev. of the Res. Std. Err. | E24: =ROUND((I16/22.7596),4) -> 0.1234
C26: 2 std. devs. of the Res. Std. Err. | E26: =ROUND((2*E24),4) -> 0.2468
C28: Source of Information: | E28: ='6.2 Proxy Group Equivalent'!E54 -> Value Line Proprietary Database, December 2022.

Sheet 6.2 Proxy Group Equivalent
C1: =Input!G28 -> Peoples Gas System
C2: Proxy Group of Non-Price Regulated Companies
C3: Comparable in Total Risk to the
C4: =Input!I29 -> Utility Proxy Group
E6: [1] | G6: [2] | I6: [3] | K6: [4]
A8: Ticker | C8: ='7.1 CEM Summary'!E7 -> Proxy Group of Thirty Nine Non-Price Regulated Companies | E8: Value Line Adjusted Beta | G8: Unadjusted Beta | I8: Residual Standard Error of the Regression | K8: Standard Deviation of Beta
A10: ='7.2 CEM DCF'!A9 -> A | C10: ='7.2 CEM DCF'!B9 -> Agilent Technologies | E10: =VLOOKUP($A10,'CEM Data Lookup'!$A:$P,6,FALSE) -> 0.85 | G10: =VLOOKUP($A10,'CEM Data Lookup'!$A:$P,8,FALSE) -> 0.77 | I10: =VLOOKUP($A10,'CEM Data Lookup'!$A:$P,13,FALSE) -> 2.6442 | K10: =VLOOKUP($A10,'CEM Data Lookup'!$A:$P,15,FALSE) -> 0.0658
A11: ='7.2 CEM DCF'!A10 -> ABT | C11: ='7.2 CEM DCF'!B10 -> Abbott Labs. | E11: =VLOOKUP($A11,'CEM Data Lookup'!$A:$P,6,FALSE) -> 0.9 | G11: =VLOOKUP($A11,'CEM Data Lookup'!$A:$P,8,FALSE) -> 0.81 | I11: =VLOOKUP($A11,'CEM Data Lookup'!$A:$P,13,FALSE) -> 2.7622 | K11: =VLOOKUP($A11,'CEM Data Lookup'!$A:$P,15,FALSE) -> 0.0688
A12: ='7.2 CEM DCF'!A11 -> ADI | C12: ='7.2 CEM DCF'!B11 -> Analog Devices | E12: =VLOOKUP($A12,'CEM Data Lookup'!$A:$P,6,FALSE) -> 0.95 | G12: =VLOOKUP($A12,'CEM Data Lookup'!$A:$P,8,FALSE) -> 0.87 | I12: =VLOOKUP($A12,'CEM Data Lookup'!$A:$P,13,FALSE) -> 2.8417 | K12: =VLOOKUP($A12,'CEM Data Lookup'!$A:$P,15,FALSE) -> 0.0707
A13: ='7.2 CEM DCF'!A12 -> AIZ | C13: ='7.2 CEM DCF'!B12 -> Assurant Inc. | E13: =VLOOKUP($A13,'CEM Data Lookup'!$A:$P,6,FALSE) -> 0.95 | G13: =VLOOKUP($A13,'CEM Data Lookup'!$A:$P,8,FALSE) -> 0.85 | I13: =VLOOKUP($A13,'CEM Data Lookup'!$A:$P,13,FALSE) -> 2.7366 | K13: =VLOOKUP($A13,'CEM Data Lookup'!$A:$P,15,FALSE) -> 0.0681
A14: ='7.2 CEM DCF'!A13 -> AOS | C14: ='7.2 CEM DCF'!B13 -> Smith (A.O.) | E14: =VLOOKUP($A14,'CEM Data Lookup'!$A:$P,6,FALSE) -> 0.85 | G14: =VLOOKUP($A14,'CEM Data Lookup'!$A:$P,8,FALSE) -> 0.76 | I14: =VLOOKUP($A14,'CEM Data Lookup'!$A:$P,13,FALSE) -> 2.7272 | K14: =VLOOKUP($A14,'CEM Data Lookup'!$A:$P,15,FALSE) -> 0.0679
A15: ='7.2 CEM DCF'!A14 -> APD | C15: ='7.2 CEM DCF'!B14 -> Air Products & Chem. | E15: =VLOOKUP($A15,'CEM Data Lookup'!$A:$P,6,FALSE) -> 0.9 | G15: =VLOOKUP($A15,'CEM Data Lookup'!$A:$P,8,FALSE) -> 0.79 | I15: =VLOOKUP($A15,'CEM Data Lookup'!$A:$P,13,FALSE) -> 2.6237 | K15: =VLOOKUP($A15,'CEM Data Lookup'!$A:$P,15,FALSE) -> 0.0653
A16: ='7.2 CEM DCF'!A15 -> BFB | C16: ='7.2 CEM DCF'!B15 -> Brown-Forman 'B' | E16: =VLOOKUP($A16,'CEM Data Lookup'!$A:$P,6,FALSE) -> 0.9 | G16: =VLOOKUP($A16,'CEM Data Lookup'!$A:$P,8,FALSE) -> 0.8 | I16: =VLOOKUP($A16,'CEM Data Lookup'!$A:$P,13,FALSE) -> 2.6915 | K16: =VLOOKUP($A16,'CEM Data Lookup'!$A:$P,15,FALSE) -> 0.067
A17: ='7.2 CEM DCF'!A16 -> BMY | C17: ='7.2 CEM DCF'!B16 -> Bristol-Myers Squibb | E17: =VLOOKUP($A17,'CEM Data Lookup'!$A:$P,6,FALSE) -> 0.85 | G17: =VLOOKUP($A17,'CEM Data Lookup'!$A:$P,8,FALSE) -> 0.76 | I17: =VLOOKUP($A17,'CEM Data Lookup'!$A:$P,13,FALSE) -> 3.033 | K17: =VLOOKUP($A17,'CEM Data Lookup'!$A:$P,15,FALSE) -> 0.0755
A18: ='7.2 CEM DCF'!A17 -> BR | C18: ='7.2 CEM DCF'!B17 -> Broadridge Fin'l | E18: =VLOOKUP($A18,'CEM Data Lookup'!$A:$P,6,FALSE) -> 0.85 | G18: =VLOOKUP($A18,'CEM Data Lookup'!$A:$P,8,FALSE) -> 0.7 | I18: =VLOOKUP($A18,'CEM Data Lookup'!$A:$P,13,FALSE) -> 2.761 | K18: =VLOOKUP($A18,'CEM Data Lookup'!$A:$P,15,FALSE) -> 0.0687
A19: ='7.2 CEM DCF'!A18 -> CACI | C19: ='7.2 CEM DCF'!B18 -> CACI Int'l | E19: =VLOOKUP($A19,'CEM Data Lookup'!$A:$P,6,FALSE) -> 0.9 | G19: =VLOOKUP($A19,'CEM Data Lookup'!$A:$P,8,FALSE) -> 0.84 | I19: =VLOOKUP($A19,'CEM Data Lookup'!$A:$P,13,FALSE) -> 2.9846 | K19: =VLOOKUP($A19,'CEM Data Lookup'!$A:$P,15,FALSE) -> 0.0743
A20: ='7.2 CEM DCF'!A19 -> CHE | C20: ='7.2 CEM DCF'!B19 -> Chemed Corp. | E20: =VLOOKUP($A20,'CEM Data Lookup'!$A:$P,6,FALSE) -> 0.85 | G20: =VLOOKUP($A20,'CEM Data Lookup'!$A:$P,8,FALSE) -> 0.7 | I20: =VLOOKUP($A20,'CEM Data Lookup'!$A:$P,13,FALSE) -> 2.7215 | K20: =VLOOKUP($A20,'CEM Data Lookup'!$A:$P,15,FALSE) -> 0.0677
A21: ='7.2 CEM DCF'!A20 -> CSWI | C21: ='7.2 CEM DCF'!B20 -> CSW Industrials | E21: =VLOOKUP($A21,'CEM Data Lookup'!$A:$P,6,FALSE) -> 0.9 | G21: =VLOOKUP($A21,'CEM Data Lookup'!$A:$P,8,FALSE) -> 0.8 | I21: =VLOOKUP($A21,'CEM Data Lookup'!$A:$P,13,FALSE) -> 2.9127 | K21: =VLOOKUP($A21,'CEM Data Lookup'!$A:$P,15,FALSE) -> 0.0725
A22: ='7.2 CEM DCF'!A21 -> DGX | C22: ='7.2 CEM DCF'!B21 -> Quest Diagnostics | E22: =VLOOKUP($A22,'CEM Data Lookup'!$A:$P,6,FALSE) -> 0.8 | G22: =VLOOKUP($A22,'CEM Data Lookup'!$A:$P,8,FALSE) -> 0.69 | I22: =VLOOKUP($A22,'CEM Data Lookup'!$A:$P,13,FALSE) -> 3.0218 | K22: =VLOOKUP($A22,'CEM Data Lookup'!$A:$P,15,FALSE) -> 0.0752
A23: ='7.2 CEM DCF'!A22 -> EXPO | C23: ='7.2 CEM DCF'!B22 -> Exponent, Inc. | E23: =VLOOKUP($A23,'CEM Data Lookup'!$A:$P,6,FALSE) -> 0.9 | G23: =VLOOKUP($A23,'CEM Data Lookup'!$A:$P,8,FALSE) -> 0.8 | I23: =VLOOKUP($A23,'CEM Data Lookup'!$A:$P,13,FALSE) -> 2.8742 | K23: =VLOOKUP($A23,'CEM Data Lookup'!$A:$P,15,FALSE) -> 0.0715
A24: ='7.2 CEM DCF'!A23 -> INGR | C24: ='7.2 CEM DCF'!B23 -> Ingredion Inc. | E24: =VLOOKUP($A24,'CEM Data Lookup'!$A:$P,6,FALSE) -> 0.9 | G24: =VLOOKUP($A24,'CEM Data Lookup'!$A:$P,8,FALSE) -> 0.85 | I24: =VLOOKUP($A24,'CEM Data Lookup'!$A:$P,13,FALSE) -> 2.8617 | K24: =VLOOKUP($A24,'CEM Data Lookup'!$A:$P,15,FALSE) -> 0.0712
A25: ='7.2 CEM DCF'!A24 -> JJSF | C25: ='7.2 CEM DCF'!B24 -> J&J Snack Foods | E25: =VLOOKUP($A25,'CEM Data Lookup'!$A:$P,6,FALSE) -> 0.95 | G25: =VLOOKUP($A25,'CEM Data Lookup'!$A:$P,8,FALSE) -> 0.87 | I25: =VLOOKUP($A25,'CEM Data Lookup'!$A:$P,13,FALSE) -> 2.9766 | K25: =VLOOKUP($A25,'CEM Data Lookup'!$A:$P,15,FALSE) -> 0.0741
A26: ='7.2 CEM DCF'!A25 -> JKHY | C26: ='7.2 CEM DCF'!B25 -> Henry (Jack) & Assoc | E26: =VLOOKUP($A26,'CEM Data Lookup'!$A:$P,6,FALSE) -> 0.85 | G26: =VLOOKUP($A26,'CEM Data Lookup'!$A:$P,8,FALSE) -> 0.7 | I26: =VLOOKUP($A26,'CEM Data Lookup'!$A:$P,13,FALSE) -> 2.8821 | K26: =VLOOKUP($A26,'CEM Data Lookup'!$A:$P,15,FALSE) -> 0.0717
A27: ='7.2 CEM DCF'!A26 -> MKC | C27: ='7.2 CEM DCF'!B26 -> McCormick & Co. | E27: =VLOOKUP($A27,'CEM Data Lookup'!$A:$P,6,FALSE) -> 0.8 | G27: =VLOOKUP($A27,'CEM Data Lookup'!$A:$P,8,FALSE) -> 0.66 | I27: =VLOOKUP($A27,'CEM Data Lookup'!$A:$P,13,FALSE) -> 2.8331 | K27: =VLOOKUP($A27,'CEM Data Lookup'!$A:$P,15,FALSE) -> 0.0705
A28: ='7.2 CEM DCF'!A27 -> MRK | C28: ='7.2 CEM DCF'!B27 -> Merck & Co. | E28: =VLOOKUP($A28,'CEM Data Lookup'!$A:$P,6,FALSE) -> 0.8 | G28: =VLOOKUP($A28,'CEM Data Lookup'!$A:$P,8,FALSE) -> 0.64 | I28: =VLOOKUP($A28,'CEM Data Lookup'!$A:$P,13,FALSE) -> 2.654 | K28: =VLOOKUP($A28,'CEM Data Lookup'!$A:$P,15,FALSE) -> 0.0661
A29: ='7.2 CEM DCF'!A28 -> MSCI | C29: ='7.2 CEM DCF'!B28 -> MSCI Inc. | E29: =VLOOKUP($A29,'CEM Data Lookup'!$A:$P,6,FALSE) -> 0.95 | G29: =VLOOKUP($A29,'CEM Data Lookup'!$A:$P,8,FALSE) -> 0.85 | I29: =VLOOKUP($A29,'CEM Data Lookup'!$A:$P,13,FALSE) -> 3.0171 | K29: =VLOOKUP($A29,'CEM Data Lookup'!$A:$P,15,FALSE) -> 0.0751
A30: ='7.2 CEM DCF'!A29 -> MSI | C30: ='7.2 CEM DCF'!B29 -> Motorola Solutions | E30: =VLOOKUP($A30,'CEM Data Lookup'!$A:$P,6,FALSE) -> 0.9 | G30: =VLOOKUP($A30,'CEM Data Lookup'!$A:$P,8,FALSE) -> 0.79 | I30: =VLOOKUP($A30,'CEM Data Lookup'!$A:$P,13,FALSE) -> 2.6757 | K30: =VLOOKUP($A30,'CEM Data Lookup'!$A:$P,15,FALSE) -> 0.0666
A31: ='7.2 CEM DCF'!A30 -> NEU | C31: ='7.2 CEM DCF'!B30 -> NewMarket Corp. | E31: =VLOOKUP($A31,'CEM Data Lookup'!$A:$P,6,FALSE) -> 0.75 | G31: =VLOOKUP($A31,'CEM Data Lookup'!$A:$P,8,FALSE) -> 0.61 | I31: =VLOOKUP($A31,'CEM Data Lookup'!$A:$P,13,FALSE) -> 2.6489 | K31: =VLOOKUP($A31,'CEM Data Lookup'!$A:$P,15,FALSE) -> 0.0659
A32: ='7.2 CEM DCF'!A31 -> NOC | C32: ='7.2 CEM DCF'!B31 -> Northrop Grumman | E32: =VLOOKUP($A32,'CEM Data Lookup'!$A:$P,6,FALSE) -> 0.85 | G32: =VLOOKUP($A32,'CEM Data Lookup'!$A:$P,8,FALSE) -> 0.74 | I32: =VLOOKUP($A32,'CEM Data Lookup'!$A:$P,13,FALSE) -> 2.9186 | K32: =VLOOKUP($A32,'CEM Data Lookup'!$A:$P,15,FALSE) -> 0.0727
A33: ='7.2 CEM DCF'!A32 -> ODFL | C33: ='7.2 CEM DCF'!B32 -> Old Dominion Freight | E33: =VLOOKUP($A33,'CEM Data Lookup'!$A:$P,6,FALSE) -> 0.95 | G33: =VLOOKUP($A33,'CEM Data Lookup'!$A:$P,8,FALSE) -> 0.85 | I33: =VLOOKUP($A33,'CEM Data Lookup'!$A:$P,13,FALSE) -> 2.9677 | K33: =VLOOKUP($A33,'CEM Data Lookup'!$A:$P,15,FALSE) -> 0.0739
A34: ='7.2 CEM DCF'!A33 -> ORCL | C34: ='7.2 CEM DCF'!B33 -> Oracle Corp. | E34: =VLOOKUP($A34,'CEM Data Lookup'!$A:$P,6,FALSE) -> 0.75 | G34: =VLOOKUP($A34,'CEM Data Lookup'!$A:$P,8,FALSE) -> 0.61 | I34: =VLOOKUP($A34,'CEM Data Lookup'!$A:$P,13,FALSE) -> 2.6634 | K34: =VLOOKUP($A34,'CEM Data Lookup'!$A:$P,15,FALSE) -> 0.0663
A35: ='7.2 CEM DCF'!A34 -> PGR | C35: ='7.2 CEM DCF'!B34 -> Progressive Corp. | E35: =VLOOKUP($A35,'CEM Data Lookup'!$A:$P,6,FALSE) -> 0.75 | G35: =VLOOKUP($A35,'CEM Data Lookup'!$A:$P,8,FALSE) -> 0.6 | I35: =VLOOKUP($A35,'CEM Data Lookup'!$A:$P,13,FALSE) -> 2.8617 | K35: =VLOOKUP($A35,'CEM Data Lookup'!$A:$P,15,FALSE) -> 0.0712
A36: ='7.2 CEM DCF'!A35 -> POST | C36: ='7.2 CEM DCF'!B35 -> Post Holdings | E36: =VLOOKUP($A36,'CEM Data Lookup'!$A:$P,6,FALSE) -> 0.95 | G36: =VLOOKUP($A36,'CEM Data Lookup'!$A:$P,8,FALSE) -> 0.86 | I36: =VLOOKUP($A36,'CEM Data Lookup'!$A:$P,13,FALSE) -> 2.9244 | K36: =VLOOKUP($A36,'CEM Data Lookup'!$A:$P,15,FALSE) -> 0.0728
A37: ='7.2 CEM DCF'!A36 -> RLI | C37: ='7.2 CEM DCF'!B36 -> RLI Corp. | E37: =VLOOKUP($A37,'CEM Data Lookup'!$A:$P,6,FALSE) -> 0.8 | G37: =VLOOKUP($A37,'CEM Data Lookup'!$A:$P,8,FALSE) -> 0.66 | I37: =VLOOKUP($A37,'CEM Data Lookup'!$A:$P,13,FALSE) -> 2.8575 | K37: =VLOOKUP($A37,'CEM Data Lookup'!$A:$P,15,FALSE) -> 0.0711
A38: ='7.2 CEM DCF'!A37 -> ROL | C38: ='7.2 CEM DCF'!B37 -> Rollins, Inc. | E38: =VLOOKUP($A38,'CEM Data Lookup'!$A:$P,6,FALSE) -> 0.85 | G38: =VLOOKUP($A38,'CEM Data Lookup'!$A:$P,8,FALSE) -> 0.72 | I38: =VLOOKUP($A38,'CEM Data Lookup'!$A:$P,13,FALSE) -> 2.9831 | K38: =VLOOKUP($A38,'CEM Data Lookup'!$A:$P,15,FALSE) -> 0.0743
A39: ='7.2 CEM DCF'!A38 -> SHW | C39: ='7.2 CEM DCF'!B38 -> Sherwin-Williams | E39: =VLOOKUP($A39,'CEM Data Lookup'!$A:$P,6,FALSE) -> 0.9 | G39: =VLOOKUP($A39,'CEM Data Lookup'!$A:$P,8,FALSE) -> 0.84 | I39: =VLOOKUP($A39,'CEM Data Lookup'!$A:$P,13,FALSE) -> 2.5643 | K39: =VLOOKUP($A39,'CEM Data Lookup'!$A:$P,15,FALSE) -> 0.0638
A40: ='7.2 CEM DCF'!A39 -> SIGI | C40: ='7.2 CEM DCF'!B39 -> Selective Ins. Group | E40: =VLOOKUP($A40,'CEM Data Lookup'!$A:$P,6,FALSE) -> 0.9 | G40: =VLOOKUP($A40,'CEM Data Lookup'!$A:$P,8,FALSE) -> 0.81 | I40: =VLOOKUP($A40,'CEM Data Lookup'!$A:$P,13,FALSE) -> 2.9464 | K40: =VLOOKUP($A40,'CEM Data Lookup'!$A:$P,15,FALSE) -> 0.0733
A41: ='7.2 CEM DCF'!A40 -> SIRI | C41: ='7.2 CEM DCF'!B40 -> Sirius XM Holdings | E41: =VLOOKUP($A41,'CEM Data Lookup'!$A:$P,6,FALSE) -> 0.95 | G41: =VLOOKUP($A41,'CEM Data Lookup'!$A:$P,8,FALSE) -> 0.86 | I41: =VLOOKUP($A41,'CEM Data Lookup'!$A:$P,13,FALSE) -> 2.9589 | K41: =VLOOKUP($A41,'CEM Data Lookup'!$A:$P,15,FALSE) -> 0.0737
A42: ='7.2 CEM DCF'!A41 -> SXT | C42: ='7.2 CEM DCF'!B41 -> Sensient Techn. | E42: =VLOOKUP($A42,'CEM Data Lookup'!$A:$P,6,FALSE) -> 0.9 | G42: =VLOOKUP($A42,'CEM Data Lookup'!$A:$P,8,FALSE) -> 0.82 | I42: =VLOOKUP($A42,'CEM Data Lookup'!$A:$P,13,FALSE) -> 2.6393 | K42: =VLOOKUP($A42,'CEM Data Lookup'!$A:$P,15,FALSE) -> 0.0657
A43: ='7.2 CEM DCF'!A42 -> TMO | C43: ='7.2 CEM DCF'!B42 -> Thermo Fisher Sci. | E43: =VLOOKUP($A43,'CEM Data Lookup'!$A:$P,6,FALSE) -> 0.85 | G43: =VLOOKUP($A43,'CEM Data Lookup'!$A:$P,8,FALSE) -> 0.7 | I43: =VLOOKUP($A43,'CEM Data Lookup'!$A:$P,13,FALSE) -> 2.6279 | K43: =VLOOKUP($A43,'CEM Data Lookup'!$A:$P,15,FALSE) -> 0.0654
A44: ='7.2 CEM DCF'!A43 -> TXN | C44: ='7.2 CEM DCF'!B43 -> Texas Instruments | E44: =VLOOKUP($A44,'CEM Data Lookup'!$A:$P,6,FALSE) -> 0.85 | G44: =VLOOKUP($A44,'CEM Data Lookup'!$A:$P,8,FALSE) -> 0.75 | I44: =VLOOKUP($A44,'CEM Data Lookup'!$A:$P,13,FALSE) -> 2.659 | K44: =VLOOKUP($A44,'CEM Data Lookup'!$A:$P,15,FALSE) -> 0.0662
A45: ='7.2 CEM DCF'!A44 -> VRSN | C45: ='7.2 CEM DCF'!B44 -> VeriSign Inc. | E45: =VLOOKUP($A45,'CEM Data Lookup'!$A:$P,6,FALSE) -> 0.9 | G45: =VLOOKUP($A45,'CEM Data Lookup'!$A:$P,8,FALSE) -> 0.78 | I45: =VLOOKUP($A45,'CEM Data Lookup'!$A:$P,13,FALSE) -> 2.5863 | K45: =VLOOKUP($A45,'CEM Data Lookup'!$A:$P,15,FALSE) -> 0.0644
A46: ='7.2 CEM DCF'!A45 -> WAT | C46: ='7.2 CEM DCF'!B45 -> Waters Corp. | E46: =VLOOKUP($A46,'CEM Data Lookup'!$A:$P,6,FALSE) -> 0.95 | G46: =VLOOKUP($A46,'CEM Data Lookup'!$A:$P,8,FALSE) -> 0.87 | I46: =VLOOKUP($A46,'CEM Data Lookup'!$A:$P,13,FALSE) -> 2.8032 | K46: =VLOOKUP($A46,'CEM Data Lookup'!$A:$P,15,FALSE) -> 0.0698
A47: ='7.2 CEM DCF'!A46 -> WSO | C47: ='7.2 CEM DCF'!B46 -> Watsco, Inc. | E47: =VLOOKUP($A47,'CEM Data Lookup'!$A:$P,6,FALSE) -> 0.85 | G47: =VLOOKUP($A47,'CEM Data Lookup'!$A:$P,8,FALSE) -> 0.75 | I47: =VLOOKUP($A47,'CEM Data Lookup'!$A:$P,13,FALSE) -> 2.6936 | K47: =VLOOKUP($A47,'CEM Data Lookup'!$A:$P,15,FALSE) -> 0.0671
A48: ='7.2 CEM DCF'!A47 -> WU | C48: ='7.2 CEM DCF'!B47 -> Western Union | E48: =VLOOKUP($A48,'CEM Data Lookup'!$A:$P,6,FALSE) -> 0.8 | G48: =VLOOKUP($A48,'CEM Data Lookup'!$A:$P,8,FALSE) -> 0.65 | I48: =VLOOKUP($A48,'CEM Data Lookup'!$A:$P,13,FALSE) -> 2.7094 | K48: =VLOOKUP($A48,'CEM Data Lookup'!$A:$P,15,FALSE) -> 0.0674
A50: =COUNTA(A9:A48) -> 39 | C50: Average | E50: =ROUND(AVERAGE(E9:E48),2) -> 0.87 | G50: =ROUND(AVERAGE(G9:G48),2) -> 0.76 | I50: =ROUND(AVERAGE(I9:I48),4) -> 2.8013 | K50: =ROUND(AVERAGE(K9:K48),4) -> 0.0697
C52: =Input!I30 -> Proxy Group of Six Natural Gas Companies | E52: ='6.1 Comp Earnings Criteria'!E16 -> 0.86 | G52: ='6.1 Comp Earnings Criteria'!G16 -> 0.74 | I52: ='6.1 Comp Earnings Criteria'!I16 -> 2.8083 | K52: ='6.1 Comp Earnings Criteria'!K16 -> 0.0699
C54: Source of Information: | E54: Value Line Proprietary Database, December 2022.

Sheet 7.1 CEM Summary
A1: =Input!G28 -> Peoples Gas System
A2: Summary of Cost of Equity Models Applied to
A3: Proxy Group of Non-Price Regulated Companies
A4: Comparable in Total Risk to the
A5: =Input!I29 -> Utility Proxy Group
B7: Principal Methods | E7: =Input!I31 -> Proxy Group of Thirty Nine Non-Price Regulated Companies
B9: Discounted Cash Flow Model (DCF) (1) | E9: ='7.2 CEM DCF'!V53 -> 11.57 | F9: %
B11: Risk Premium Model (RPM) (2) | E11: ='7.3 CEM RPM Summary'!H20 -> 13.30444444
B13: Capital Asset Pricing Model (CAPM) (3) | E13: ='7.6 CEM CAPM Backup'!V53 -> 12.32
D15: Mean | E15: =ROUND(AVERAGE(E9:E13),2) -> 12.4 | F15: %
D17: Median | E17: =ROUND(MEDIAN(E9:E13),2) -> 12.32 | F17: %
D19: Average of Mean and Median | E19: =ROUND(AVERAGE(E15:E17),2) -> 12.36 | F19: %
A22: Notes:
A23: (1) | B23: From pages 2-3 of this Document.
A24: (2) | B24: From page 4 of this Document.
A25: (3) | B25: From pages 8-9 of this Document.

Sheet 7.2 CEM DCF
B1: =Input!G28 -> Peoples Gas System
B2: DCF Results for the Proxy Group of Non-Price-Regulated Companies Comparable in Total Risk to the
B3: =Input!I29 -> Utility Proxy Group
D5: [1] | G5: [2] | J5: [3] | M5: [4] | P5: [5] | S5: [6] | V5: [7]
B7: =Input!I31 -> Proxy Group of Thirty Nine Non-Price Regulated Companies | D7: Average Dividend Yield | G7: Value Line Projected Five Year Growth in EPS | J7: Zack's Five Year Projected Growth Rate in EPS | M7: Yahoo! Finance Projected Five Year Growth in EPS | P7: Average Projected Five Year Growth Rate in EPS | S7: Adjusted Dividend Yield | V7: Indicated Common Equity Cost Rate (1)
A9: =Input!C2 -> A | B9: =VLOOKUP($A9,'CEM Data Lookup'!$A$4:$P$60,2,FALSE) -> Agilent Technologies | D9: =HLOOKUP(A9&" US Equity",'CEM PricesDivs'!$B$3:$WS$69,67,FALSE) -> 0.63 | E9: % | G9: =IFERROR('CEM Data Lookup'!E4*100,"NA") -> 12 | H9: % | J9: =IFERROR('CEM Data Lookup'!C4*100,"NA") -> 10 | K9: % | M9: =IFERROR('CEM Data Lookup'!D4*100,"NA") -> 11.97 | N9: % | P9: =IFERROR(ROUND(AVERAGE(G9,J9,M9),2),"NA") -> 11.32 | Q9: % | S9: =IFERROR(ROUND((D9*(1+(0.5*(P9/100)))),2),"NA") -> 0.67 | T9: % | V9: =IFERROR(IF(OR(VALUE(S9)=0,VALUE(P9)=0),"NA",S9+P9),"NA") -> 11.99 | W9: %
A10: =Input!C3 -> ABT | B10: =VLOOKUP($A10,'CEM Data Lookup'!$A$4:$P$60,2,FALSE) -> Abbott Labs. | D10: =HLOOKUP(A10&" US Equity",'CEM PricesDivs'!$B$3:$WS$69,67,FALSE) -> 1.97 | G10: =IFERROR('CEM Data Lookup'!E5*100,"NA") -> 7 | J10: =IFERROR('CEM Data Lookup'!C5*100,"NA") -> 5.1 | M10: =IFERROR('CEM Data Lookup'!D5*100,"NA") -> 8.3 | P10: =IFERROR(ROUND(AVERAGE(G10,J10,M10),2),"NA") -> 6.8 | S10: =IFERROR(ROUND((D10*(1+(0.5*(P10/100)))),2),"NA") -> 2.04 | V10: =IFERROR(IF(OR(VALUE(S10)=0,VALUE(P10)=0),"NA",S10+P10),"NA") -> 8.84
A11: =Input!C4 -> ADI | B11: =VLOOKUP($A11,'CEM Data Lookup'!$A$4:$P$60,2,FALSE) -> Analog Devices | D11: =HLOOKUP(A11&" US Equity",'CEM PricesDivs'!$B$3:$WS$69,67,FALSE) -> 1.94 | G11: =IFERROR('CEM Data Lookup'!E6*100,"NA") -> 11.5 | J11: =IFERROR('CEM Data Lookup'!C6*100,"NA") -> 12.3 | M11: =IFERROR('CEM Data Lookup'!D6*100,"NA") -> 14.87 | P11: 12.89 | S11: 2.07 | V11: 14.96
A12: =Input!C5 -> AIZ | B12: =VLOOKUP($A12,'CEM Data Lookup'!$A$4:$P$60,2,FALSE) -> Assurant Inc. | D12: =HLOOKUP(A12&" US Equity",'CEM PricesDivs'!$B$3:$WS$69,67,FALSE) -> 2.12 | G12: =IFERROR('CEM Data Lookup'!E7*100,"NA") -> 15.5 | J12: =IFERROR('CEM Data Lookup'!C7*100,"NA") -> 12.7 | M12: =IFERROR('CEM Data Lookup'!D7*100,"NA") -> 17.4 | P12: 15.2 | S12: 2.28 | V12: 17.48
A13: =Input!C6 -> AOS | B13: =VLOOKUP($A13,'CEM Data Lookup'!$A$4:$P$60,2,FALSE) -> Smith (A.O.) | D13: =HLOOKUP(A13&" US Equity",'CEM PricesDivs'!$B$3:$WS$69,67,FALSE) -> 2.14 | G13: =IFERROR('CEM Data Lookup'!E8*100,"NA") -> 11.5 | J13: =IFERROR('CEM Data Lookup'!C8*100,"NA") -> 9 | M13: =IFERROR('CEM Data Lookup'!D8*100,"NA") -> 8 | P13: 9.5 | S13: 2.24 | V13: 11.74
A14: =Input!C7 -> APD | B14: =VLOOKUP($A14,'CEM Data Lookup'!$A$4:$P$60,2,FALSE) -> Air Products & Chem. | D14: =HLOOKUP(A14&" US Equity",'CEM PricesDivs'!$B$3:$WS$69,67,FALSE) -> 2.28 | G14: =IFERROR('CEM Data Lookup'!E9*100,"NA") -> 11 | J14: =IFERROR('CEM Data Lookup'!C9*100,"NA") -> 12.2 | M14: =IFERROR('CEM Data Lookup'!D9*100,"NA") -> 10.65 | P14: 11.28 | S14: 2.41 | V14: 13.69
A15: =Input!C8 -> BFB | B15: =VLOOKUP($A15,'CEM Data Lookup'!$A$4:$P$60,2,FALSE) -> Brown-Forman 'B' | D15: =HLOOKUP(A15&" US Equity",'CEM PricesDivs'!$B$3:$WS$69,67,FALSE) -> 1.21 | G15: =IFERROR('CEM Data Lookup'!E10*100,"NA") -> 14.5 | J15: =IFERROR('CEM Data Lookup'!C10*100,"NA") -> NA | M15: =IFERROR('CEM Data Lookup'!D10*100,"NA") -> 8.62 | P15: 11.56 | S15: 1.28 | V15: 12.84
A16: =Input!C9 -> BMY | B16: =VLOOKUP($A16,'CEM Data Lookup'!$A$4:$P$60,2,FALSE) -> Bristol-Myers Squibb | D16: =HLOOKUP(A16&" US Equity",'CEM PricesDivs'!$B$3:$WS$69,67,FALSE) -> 3.02 | G16: =IFERROR('CEM Data Lookup'!E11*100,"NA") -> NA | J16: =IFERROR('CEM Data Lookup'!C11*100,"NA") -> 5.6 | M16: =IFERROR('CEM Data Lookup'!D11*100,"NA") -> 4.14 | P16: 4.87 | S16: 3.09 | V16: 7.96
A17: =Input!C10 -> BR | B17: =VLOOKUP($A17,'CEM Data Lookup'!$A$4:$P$60,2,FALSE) -> Broadridge Fin'l | D17: =HLOOKUP(A17&" US Equity",'CEM PricesDivs'!$B$3:$WS$69,67,FALSE) -> 2.05 | G17: =IFERROR('CEM Data Lookup'!E12*100,"NA") -> 9.5 | J17: =IFERROR('CEM Data Lookup'!C12*100,"NA") -> NA | M17: =IFERROR('CEM Data Lookup'!D12*100,"NA") -> 11.8 | P17: 10.65 | S17: 2.16 | V17: 12.81
A18: =Input!C11 -> CACI | B18: =VLOOKUP($A18,'CEM Data Lookup'!$A$4:$P$60,2,FALSE) -> CACI Int'l | D18: =HLOOKUP(A18&" US Equity",'CEM PricesDivs'!$B$3:$WS$69,67,FALSE) -> 0 | G18: =IFERROR('CEM Data Lookup'!E13*100,"NA") -> 7 | J18: =IFERROR('CEM Data Lookup'!C13*100,"NA") -> 6.7 | M18: =IFERROR('CEM Data Lookup'!D13*100,"NA") -> 2.4 | P18: 5.37 | S18: 0 | V18: NA
A19: =Input!C12 -> CHE | B19: =VLOOKUP($A19,'CEM Data Lookup'!$A$4:$P$60,2,FALSE) -> Chemed Corp. | D19: =HLOOKUP(A19&" US Equity",'CEM PricesDivs'!$B$3:$WS$69,67,FALSE) -> 0.31 | G19: =IFERROR('CEM Data Lookup'!E14*100,"NA") -> 7 | J19: =IFERROR('CEM Data Lookup'!C14*100,"NA") -> 6.9 | M19: =IFERROR('CEM Data Lookup'!D14*100,"NA") -> 6.95 | P19: 6.95 | S19: 0.32 | V19: 7.27
A20: =Input!C13 -> CSWI | B20: =VLOOKUP($A20,'CEM Data Lookup'!$A$4:$P$60,2,FALSE) -> CSW Industrials | D20: =HLOOKUP(A20&" US Equity",'CEM PricesDivs'!$B$3:$WS$69,67,FALSE) -> 0.57 | G20: =IFERROR('CEM Data Lookup'!E15*100,"NA") -> 11.5 | J20: =IFERROR('CEM Data Lookup'!C15*100,"NA") -> NA | M20: =IFERROR('CEM Data Lookup'!D15*100,"NA") -> 12 | P20: 11.75 | S20: 0.6 | V20: 12.35
A21: =Input!C14 -> DGX | B21: =VLOOKUP($A21,'CEM Data Lookup'!$A$4:$P$60,2,FALSE) -> Quest Diagnostics | D21: =HLOOKUP(A21&" US Equity",'CEM PricesDivs'!$B$3:$WS$69,67,FALSE) -> 1.83 | G21: =IFERROR('CEM Data Lookup'!E16*100,"NA") -> 4 | J21: =IFERROR('CEM Data Lookup'!C16*100,"NA") -> NA | M21: =IFERROR('CEM Data Lookup'!D16*100,"NA") -> -15.6 | P21: =IFERROR(ROUND(AVERAGE(G21,J21),2),"NA") -> 4 | S21: 1.87 | V21: 5.87
A22: =Input!C15 -> EXPO | B22: =VLOOKUP($A22,'CEM Data Lookup'!$A$4:$P$60,2,FALSE) -> Exponent, Inc. | D22: =HLOOKUP(A22&" US Equity",'CEM PricesDivs'!$B$3:$WS$69,67,FALSE) -> 0.98 | G22: =IFERROR('CEM Data Lookup'!E17*100,"NA") -> 10.5 | J22: =IFERROR('CEM Data Lookup'!C17*100,"NA") -> NA | M22: =IFERROR('CEM Data Lookup'!D17*100,"NA") -> 15 | P22: 12.75 | S22: 1.04 | V22: 13.79
A23: =Input!C16 -> INGR | B23: =VLOOKUP($A23,'CEM Data Lookup'!$A$4:$P$60,2,FALSE) -> Ingredion Inc. | D23: =HLOOKUP(A23&" US Equity",'CEM PricesDivs'!$B$3:$WS$69,67,FALSE) -> 3.06 | G23: =IFERROR('CEM Data Lookup'!E18*100,"NA") -> 8 | J23: =IFERROR('CEM Data Lookup'!C18*100,"NA") -> NA | M23: =IFERROR('CEM Data Lookup'!D18*100,"NA") -> 9.9 | P23: 8.95 | S23: 3.2 | V23: 12.15
A24: =Input!C17 -> JJSF | B24: =VLOOKUP($A24,'CEM Data Lookup'!$A$4:$P$60,2,FALSE) -> J&J Snack Foods | D24: =HLOOKUP(A24&" US Equity",'CEM PricesDivs'!$B$3:$WS$69,67,FALSE) -> 1.88 | G24: =IFERROR('CEM Data Lookup'!E19*100,"NA") -> 9 | J24: =IFERROR('CEM Data Lookup'!C19*100,"NA") -> NA | M24: =IFERROR('CEM Data Lookup'!D19*100,"NA") -> 73.1 | P24: =IFERROR(ROUND(AVERAGE(G24,J24),2),"NA") -> 9 | S24: 1.96 | V24: 10.96
A25: =Input!C18 -> JKHY | B25: =VLOOKUP($A25,'CEM Data Lookup'!$A$4:$P$60,2,FALSE) -> Henry (Jack) & Assoc | D25: =HLOOKUP(A25&" US Equity",'CEM PricesDivs'!$B$3:$WS$69,67,FALSE) -> 1.06 | G25: =IFERROR('CEM Data Lookup'!E20*100,"NA") -> 8 | J25: =IFERROR('CEM Data Lookup'!C20*100,"NA") -> 9 | M25: =IFERROR('CEM Data Lookup'!D20*100,"NA") -> 9 | P25: 8.67 | S25: 1.11 | V25: 9.78
A26: =Input!C19 -> MKC | B26: =VLOOKUP($A26,'CEM Data Lookup'!$A$4:$P$60,2,FALSE) -> McCormick & Co. | D26: =HLOOKUP(A26&" US Equity",'CEM PricesDivs'!$B$3:$WS$69,67,FALSE) -> 1.93 | G26: =IFERROR('CEM Data Lookup'!E21*100,"NA") -> 5 | J26: =IFERROR('CEM Data Lookup'!C21*100,"NA") -> 5.3 | M26: =IFERROR('CEM Data Lookup'!D21*100,"NA") -> 5.1 | P26: 5.13 | S26: 1.98 | V26: 7.11
A27: =Input!C20 -> MRK | B27: =VLOOKUP($A27,'CEM Data Lookup'!$A$4:$P$60,2,FALSE) -> Merck & Co. | D27: =HLOOKUP(A27&" US Equity",'CEM PricesDivs'!$B$3:$WS$69,67,FALSE) -> 2.84 | G27: =IFERROR('CEM Data Lookup'!E22*100,"NA") -> 8 | J27: =IFERROR('CEM Data Lookup'!C22*100,"NA") -> 10.4 | M27: =IFERROR('CEM Data Lookup'!D22*100,"NA") -> 11.89 | P27: 10.1 | S27: 2.98 | V27: 13.08
A28: =Input!C21 -> MSCI | B28: =VLOOKUP($A28,'CEM Data Lookup'!$A$4:$P$60,2,FALSE) -> MSCI Inc. | D28: =HLOOKUP(A28&" US Equity",'CEM PricesDivs'!$B$3:$WS$69,67,FALSE) -> 1.07 | G28: =IFERROR('CEM Data Lookup'!E23*100,"NA") -> 14.5 | J28: =IFERROR('CEM Data Lookup'!C23*100,"NA") -> NA | M28: =IFERROR('CEM Data Lookup'!D23*100,"NA") -> 12.53 | P28: 13.52 | S28: 1.14 | V28: 14.66
A29: =Input!C22 -> MSI | B29: =VLOOKUP($A29,'CEM Data Lookup'!$A$4:$P$60,2,FALSE) -> Motorola Solutions | D29: =HLOOKUP(A29&" US Equity",'CEM PricesDivs'!$B$3:$WS$69,67,FALSE) -> 1.4 | G29: =IFERROR('CEM Data Lookup'!E24*100,"NA") -> 10.5 | J29: =IFERROR('CEM Data Lookup'!C24*100,"NA") -> 9 | M29: =IFERROR('CEM Data Lookup'!D24*100,"NA") -> 11.18 | P29: 10.23 | S29: 1.47 | V29: 11.7
A30: =Input!C23 -> NEU | B30: =VLOOKUP($A30,'CEM Data Lookup'!$A$4:$P$60,2,FALSE) -> NewMarket Corp. | D30: =HLOOKUP(A30&" US Equity",'CEM PricesDivs'!$B$3:$WS$69,67,FALSE) -> 2.73 | G30: =IFERROR('CEM Data Lookup'!E25*100,"NA") -> -1.5 | J30: =IFERROR('CEM Data Lookup'!C25*100,"NA") -> NA | M30: =IFERROR('CEM Data Lookup'!D25*100,"NA") -> 7.7 | P30: =IFERROR(ROUND(AVERAGE(J30,M30),2),"NA") -> 7.7 | S30: 2.84 | V30: 10.54
A31: =Input!C24 -> NOC | B31: =VLOOKUP($A31,'CEM Data Lookup'!$A$4:$P$60,2,FALSE) -> Northrop Grumman | D31: =HLOOKUP(A31&" US Equity",'CEM PricesDivs'!$B$3:$WS$69,67,FALSE) -> 1.32 | G31: =IFERROR('CEM Data Lookup'!E26*100,"NA") -> 6.5 | J31: =IFERROR('CEM Data Lookup'!C26*100,"NA") -> 3.3 | M31: =IFERROR('CEM Data Lookup'!D26*100,"NA") -> 3 | P31: 4.27 | S31: 1.35 | V31: 5.62
A32: =Input!C25 -> ODFL | B32: =VLOOKUP($A32,'CEM Data Lookup'!$A$4:$P$60,2,FALSE) -> Old Dominion Freight | D32: =HLOOKUP(A32&" US Equity",'CEM PricesDivs'!$B$3:$WS$69,67,FALSE) -> 0.42 | G32: =IFERROR('CEM Data Lookup'!E27*100,"NA") -> 10.5 | J32: =IFERROR('CEM Data Lookup'!C27*100,"NA") -> 14.1 | M32: =IFERROR('CEM Data Lookup'!D27*100,"NA") -> 14.54 | P32: 13.05 | S32: 0.45 | V32: 13.5
A33: =Input!C26 -> ORCL | B33: =VLOOKUP($A33,'CEM Data Lookup'!$A$4:$P$60,2,FALSE) -> Oracle Corp. | D33: =HLOOKUP(A33&" US Equity",'CEM PricesDivs'!$B$3:$WS$69,67,FALSE) -> 1.67 | G33: =IFERROR('CEM Data Lookup'!E28*100,"NA") -> 10 | J33: =IFERROR('CEM Data Lookup'!C28*100,"NA") -> 8 | M33: =IFERROR('CEM Data Lookup'!D28*100,"NA") -> 10.25 | P33: 9.42 | S33: 1.75 | V33: 11.17
A34: =Input!C27 -> PGR | B34: =VLOOKUP($A34,'CEM Data Lookup'!$A$4:$P$60,2,FALSE) -> Progressive Corp. | D34: =HLOOKUP(A34&" US Equity",'CEM PricesDivs'!$B$3:$WS$69,67,FALSE) -> 0.32 | G34: =IFERROR('CEM Data Lookup'!E29*100,"NA") -> 6.5 | J34: =IFERROR('CEM Data Lookup'!C29*100,"NA") -> 19.9 | M34: =IFERROR('CEM Data Lookup'!D29*100,"NA") -> 27.12 | P34: =IFERROR(ROUND(AVERAGE(G34,J34),2),"NA") -> 13.2 | S34: 0.34 | V34: 13.54
A35: =Input!C28 -> POST | B35: =VLOOKUP($A35,'CEM Data Lookup'!$A$4:$P$60,2,FALSE) -> Post Holdings | D35: =HLOOKUP(A35&" US Equity",'CEM PricesDivs'!$B$3:$WS$69,67,FALSE) -> 0 | G35: =IFERROR('CEM Data Lookup'!E30*100,"NA") -> 5 | J35: =IFERROR('CEM Data Lookup'!C30*100,"NA") -> NA | M35: =IFERROR('CEM Data Lookup'!D30*100,"NA") -> 32.4 | P35: 18.7 | S35: 0 | V35: NA
A36: =Input!C29 -> RLI | B36: =VLOOKUP($A36,'CEM Data Lookup'!$A$4:$P$60,2,FALSE) -> RLI Corp. | D36: =HLOOKUP(A36&" US Equity",'CEM PricesDivs'!$B$3:$WS$69,67,FALSE) -> 0.83 | G36: =IFERROR('CEM Data Lookup'!E31*100,"NA") -> 12 | J36: =IFERROR('CEM Data Lookup'!C31*100,"NA") -> NA | M36: =IFERROR('CEM Data Lookup'!D31*100,"NA") -> 9.8 | P36: 10.9 | S36: 0.88 | V36: 11.78
A37: =Input!C30 -> ROL | B37: =VLOOKUP($A37,'CEM Data Lookup'!$A$4:$P$60,2,FALSE) -> Rollins, Inc. | D37: =HLOOKUP(A37&" US Equity",'CEM PricesDivs'!$B$3:$WS$69,67,FALSE) -> 1.33 | G37: =IFERROR('CEM Data Lookup'!E32*100,"NA") -> 10.5 | J37: =IFERROR('CEM Data Lookup'!C32*100,"NA") -> NA | M37: =IFERROR('CEM Data Lookup'!D32*100,"NA") -> 8.2 | P37: 9.35 | S37: 1.39 | V37: 10.74
A38: =Input!C31 -> SHW | B38: =VLOOKUP($A38,'CEM Data Lookup'!$A$4:$P$60,2,FALSE) -> Sherwin-Williams | D38: =HLOOKUP(A38&" US Equity",'CEM PricesDivs'!$B$3:$WS$69,67,FALSE) -> 1.03 | G38: =IFERROR('CEM Data Lookup'!E33*100,"NA") -> 11.5 | J38: =IFERROR('CEM Data Lookup'!C33*100,"NA") -> 12.8 | M38: =IFERROR('CEM Data Lookup'!D33*100,"NA") -> 11.464 | P38: 11.92 | S38: 1.09 | V38: 13.01
A39: =Input!C32 -> SIGI | B39: =VLOOKUP($A39,'CEM Data Lookup'!$A$4:$P$60,2,FALSE) -> Selective Ins. Group | D39: =HLOOKUP(A39&" US Equity",'CEM PricesDivs'!$B$3:$WS$69,67,FALSE) -> 1.31 | G39: =IFERROR('CEM Data Lookup'!E34*100,"NA") -> 9.5 | J39: =IFERROR('CEM Data Lookup'!C34*100,"NA") -> 6.6 | M39: =IFERROR('CEM Data Lookup'!D34*100,"NA") -> 13.4 | P39: 9.83 | S39: 1.37 | V39: 11.2
A40: =Input!C33 -> SIRI | B40: =VLOOKUP($A40,'CEM Data Lookup'!$A$4:$P$60,2,FALSE) -> Sirius XM Holdings | D40: =HLOOKUP(A40&" US Equity",'CEM PricesDivs'!$B$3:$WS$69,67,FALSE) -> 1.57 | G40: =IFERROR('CEM Data Lookup'!E35*100,"NA") -> 32.5 | J40: =IFERROR('CEM Data Lookup'!C35*100,"NA") -> 7 | M40: =IFERROR('CEM Data Lookup'!D35*100,"NA") -> 3.54 | P40: =IFERROR(ROUND(AVERAGE(J40,M40),2),"NA") -> 5.27 | S40: 1.61 | V40: 6.88
A41: =Input!C34 -> SXT | B41: =VLOOKUP($A41,'CEM Data Lookup'!$A$4:$P$60,2,FALSE) -> Sensient Techn. | D41: =HLOOKUP(A41&" US Equity",'CEM PricesDivs'!$B$3:$WS$69,67,FALSE) -> 2.29 | G41: =IFERROR('CEM Data Lookup'!E36*100,"NA") -> 2.5 | J41: =IFERROR('CEM Data Lookup'!C36*100,"NA") -> NA | M41: =IFERROR('CEM Data Lookup'!D36*100,"NA") -> 3.8 | P41: 3.15 | S41: 2.33 | V41: 5.48
A42: =Input!C35 -> TMO | B42: =VLOOKUP($A42,'CEM Data Lookup'!$A$4:$P$60,2,FALSE) -> Thermo Fisher Sci. | D42: =HLOOKUP(A42&" US Equity",'CEM PricesDivs'!$B$3:$WS$69,67,FALSE) -> 0.23 | G42: =IFERROR('CEM Data Lookup'!E37*100,"NA") -> 10.5 | J42: =IFERROR('CEM Data Lookup'!C37*100,"NA") -> 12.5 | M42: =IFERROR('CEM Data Lookup'!D37*100,"NA") -> 3.51 | P42: 8.84 | S42: 0.24 | V42: 9.08
A43: =Input!C36 -> TXN | B43: =VLOOKUP($A43,'CEM Data Lookup'!$A$4:$P$60,2,FALSE) -> Texas Instruments | D43: =HLOOKUP(A43&" US Equity",'CEM PricesDivs'!$B$3:$WS$69,67,FALSE) -> 2.97 | G43: =IFERROR('CEM Data Lookup'!E38*100,"NA") -> 7.5 | J43: =IFERROR('CEM Data Lookup'!C38*100,"NA") -> 9.3 | M43: =IFERROR('CEM Data Lookup'!D38*100,"NA") -> 10 | P43: 8.93 | S43: 3.1 | V43: 12.03
A44: =Input!C37 -> VRSN | B44: =VLOOKUP($A44,'CEM Data Lookup'!$A$4:$P$60,2,FALSE) -> VeriSign Inc. | D44: =HLOOKUP(A44&" US Equity",'CEM PricesDivs'!$B$3:$WS$69,67,FALSE) -> 0 | G44: =IFERROR('CEM Data Lookup'!E39*100,"NA") -> 11 | J44: =IFERROR('CEM Data Lookup'!C39*100,"NA") -> NA | M44: =IFERROR('CEM Data Lookup'!D39*100,"NA") -> 8 | P44: 9.5 | S44: 0 | V44: NA
A45: =Input!C38 -> WAT | B45: =VLOOKUP($A45,'CEM Data Lookup'!$A$4:$P$60,2,FALSE) -> Waters Corp. | D45: =HLOOKUP(A45&" US Equity",'CEM PricesDivs'!$B$3:$WS$69,67,FALSE) -> 0 | G45: =IFERROR('CEM Data Lookup'!E40*100,"NA") -> 6 | J45: =IFERROR('CEM Data Lookup'!C40*100,"NA") -> 7.2 | M45: =IFERROR('CEM Data Lookup'!D40*100,"NA") -> 8.34 | P45: 7.18 | S45: 0 | V45: NA
A46: =Input!C39 -> WSO | B46: =VLOOKUP($A46,'CEM Data Lookup'!$A$4:$P$60,2,FALSE) -> Watsco, Inc. | D46: =HLOOKUP(A46&" US Equity",'CEM PricesDivs'!$B$3:$WS$69,67,FALSE) -> 3.35 | G46: =IFERROR('CEM Data Lookup'!E41*100,"NA") -> 11.5 | J46: =IFERROR('CEM Data Lookup'!C41*100,"NA") -> NA | M46: =IFERROR('CEM Data Lookup'!D41*100,"NA") -> 15 | P46: 13.25 | S46: 3.57 | V46: 16.82
A47: =Input!C40 -> WU | B47: =VLOOKUP($A47,'CEM Data Lookup'!$A$4:$P$60,2,FALSE) -> Western Union | D47: =HLOOKUP(A47&" US Equity",'CEM PricesDivs'!$B$3:$WS$69,67,FALSE) -> 6.82 | G47: =IFERROR('CEM Data Lookup'!E42*100,"NA") -> 8 | J47: =IFERROR('CEM Data Lookup'!C42*100,"NA") -> NA | M47: =IFERROR('CEM Data Lookup'!D42*100,"NA") -> -11.05 | P47: =IFERROR(ROUND(AVERAGE(G47,J47),2),"NA") -> 8 | S47: 7.09 | V47: 15.09
D49: NA= Not Available | S49: Mean | V49: =AVERAGE(V9:V47) -> 11.35742857 | W49: %
S51: Median | V51: =MEDIAN(V9:V47) -> 11.78 | W51: %
S53: Average of Mean and Median | V53: =ROUND(AVERAGE(V49:V51),2) -> 11.57 | W53: %
B55: Notes:
C56: (1) | D56: The application of the DCF model to the domestic, non-price regulated comparable risk companies is identical to the application of the DCF to the Utility Proxy Groups. The dividend yield is derived by using the 60 day average price and the spot indicated dividend as of December 30, 2022. The dividend yield is then adjusted by 1/2 the average projected growth rate in EPS, which is calculated by averaging the 5 year projected growth in EPS provided by Value Line, www.zacks.com, and www.yahoo.com (excluding any negative growth rates) and then adding that growth rate to the adjusted dividend yield.
B58: Source of Information: | C58: Value Line Investment Survey.
C59: =CONCATENATE("www.zacks.com, Downloaded on ",TEXT(Input!E2,"mm/dd/yyyy"))&"." -> www.zacks.com, Downloaded on 12/30/2022.
C60: =CONCATENATE("www.yahoo.com, Downloaded on ",TEXT(Input!E2,"mm/dd/yyyy"))&"." -> www.yahoo.com, Downloaded on 12/30/2022.

Sheet 7.3 CEM RPM Summary
A1: =Input!G28 -> Peoples Gas System
A2: Indicated Common Equity Cost Rate
A3: Through Use of a Risk Premium Model
A4: Using an Adjusted Total Market Approach
A6: Line No. | H6: ='7.4 CEM RPM Bond Ratings'!B8 -> Proxy Group of Thirty Nine Non-Price Regulated Companies
A8: 1. | C8: Prospective Yield on Baa2 Rated
C9: Corporate Bonds (1) | H9: =$H$32 -> 6.05 | I9: %
A11: 2 | C11: Adjustment to Reflect Bond rating
C12: Difference of Non-Price Regulated | H12: =-H42 -> -0.1655555556
C13: Companies (2)
A15: 3 | C15: Adjusted Prospective Bond Yield | H15: =SUM(H9:H12) -> 5.884444444
A17: 4. | C17: Equity Risk Premium (3) | H17: ='7.5 CEM Beta Adjusted RP'!F25 -> 7.42
A19: 5. | C19: Risk Premium Derived Common
C20: Equity Cost Rate | H20: =SUM(H15:H17) -> 13.30444444 | I20: %
A22: Notes: | B22: (1) | C22: Average forecast of Baa corporate bonds based upon the consensus of nearly 50 economists reported in Blue Chip Financial Forecasts dated December 2, 2022 and January 1, 2023 (see pages 10 and 11 of Document No. 5). The estimates are detailed below.
G23: ='MRP WP1'!B28 -> First Quarter 2023 | H23: ='MRP WP1'!O28 -> 6.1 | I23: %
G24: ='MRP WP1'!B29 -> Second Quarter 2023 | H24: ='MRP WP1'!O29 -> 6.3
G25: ='MRP WP1'!B30 -> Third Quarter 2023 | H25: ='MRP WP1'!O30 -> 6.2
G26: ='MRP WP1'!B31 -> Fourth Quarter 2023 | H26: ='MRP WP1'!O31 -> 6.1
G27: ='MRP WP1'!B32 -> First Quarter 2024 | H27: ='MRP WP1'!O32 -> 5.9
G28: ='MRP WP1'!B33 -> Second Quarter 2024 | H28: ='MRP WP1'!O33 -> 5.8
G29: ='MRP WP1'!B34 -> 2024-2028 | H29: ='MRP WP1'!O34 -> 6
G30: ='MRP WP1'!B35 -> 2029-2033 | H30: ='MRP WP1'!O35 -> 6
G32: Average | H32: =ROUND(AVERAGE(H23:H30),2) -> 6.05 | I32: %
B34: (2) | C34: =CONCATENATE("The average yield spread of Baa rated corporate bonds over A corporate bonds for the three months ending ",TEXT(C38,"mmmm yyyy")," . To reflect the ", IFERROR('7.4 CEM RPM Bond Ratings'!D50,"NA"), " average rating of the Gas Non-Utility proxy groups, the prosepctive yield on Baa1 corporate bonds must be adjusted by 1/3 of the spread between A and Baa corporate bond yields as shown below:") -> The average yield spread of Baa rated corporate bonds over A corporate bonds for the three months ending December 2022 . To reflect the Baa1 average rating of the Gas Non-Utility proxy groups, the prosepctive yield on Baa1 corporate bonds must be adjusted by 1/3 of the spread between A and Baa corporate bond yields as shown below:
D37: A Corp. Bond Yield | F37: Baa Corp. Bond Yield | H37: Spread
C38: ='Market Data'!B1 -> 2022-12-31 | D38: ='Market Data'!B6 -> 5.1 | E38: % | F38: ='Market Data'!B7 -> 5.58 | G38: % | H38: =F38-D38 -> 0.48 | I38: %
C39: ='Market Data'!C1 -> 2022-11-30 | D39: ='Market Data'!C6 -> 5.58 | F39: ='Market Data'!C7 -> 6.07 | H39: =F39-D39 -> 0.49
C40: ='Market Data'!D1 -> 2022-10-30 | D40: ='Market Data'!D6 -> 5.74 | F40: ='Market Data'!D7 -> 6.26 | H40: 0.52
G41: Average yield spread | H41: =AVERAGE(H38:H40) -> 0.4966666667
G42: 1/3 of spread | H42: =H41*(1/3) -> 0.1655555556
B44: (3) | C44: From page 7 of this Document.

Sheet 7.4 CEM RPM Bond Ratings
B1: =Input!G28 -> Peoples Gas System
B2: Comparison of Long-Term Issuer Ratings for the
B3: =Input!I29 -> Utility Proxy Group
D5: Moody's | H5: Standard & Poor's
D6: Long-Term Issuer Rating | H6: =D6 -> Long-Term Issuer Rating
D7: =TEXT(Input!$E$2, "mmmm yyyy") -> December 2022 | H7: =D7 -> December 2022
B8: ='7.6 CEM CAPM Backup'!B7 -> Proxy Group of Thirty Nine Non-Price Regulated Companies | D8: Long-Term Issuer Rating | F8: Numerical Weighting (1) | H8: =D8 -> Long-Term Issuer Rating | J8: Numerical Weighting (1)
A10: =Input!C2 -> A | B10: =VLOOKUP($A10,'CEM Data Lookup'!$A:$P,2,FALSE) -> Agilent Technologies | D10: ='CEM Data Lookup'!J4 -> Baa2 | F10: =IFERROR(VLOOKUP('7.4 CEM RPM Bond Ratings'!D10,'4.6 Moody''s_S&P numbericl'!B:D,3,FALSE),"--") -> 9 | H10: ='CEM Data Lookup'!K4 -> BBB+ | J10: =IFERROR(VLOOKUP(H10, '4.6 Moody''s_S&P numbericl'!$F$6:$H$26, 3, FALSE),"--") -> 8
A11: =Input!C3 -> ABT | B11: =VLOOKUP($A11,'CEM Data Lookup'!$A:$P,2,FALSE) -> Abbott Labs. | D11: ='CEM Data Lookup'!J5 -> A1 | F11: =IFERROR(VLOOKUP('7.4 CEM RPM Bond Ratings'!D11,'4.6 Moody''s_S&P numbericl'!B:D,3,FALSE),"--") -> 5 | H11: ='CEM Data Lookup'!K5 -> AA- | J11: =IFERROR(VLOOKUP(H11, '4.6 Moody''s_S&P numbericl'!$F$6:$H$26, 3, FALSE),"--") -> 4
A12: =Input!C4 -> ADI | B12: =VLOOKUP($A12,'CEM Data Lookup'!$A:$P,2,FALSE) -> Analog Devices | D12: ='CEM Data Lookup'!J6 -> A3 | F12: =IFERROR(VLOOKUP('7.4 CEM RPM Bond Ratings'!D12,'4.6 Moody''s_S&P numbericl'!B:D,3,FALSE),"--") -> 7 | H12: ='CEM Data Lookup'!K6 -> A- | J12: =IFERROR(VLOOKUP(H12, '4.6 Moody''s_S&P numbericl'!$F$6:$H$26, 3, FALSE),"--") -> 7
A13: =Input!C5 -> AIZ | B13: =VLOOKUP($A13,'CEM Data Lookup'!$A:$P,2,FALSE) -> Assurant Inc. | D13: ='CEM Data Lookup'!J7 -> Baa2 | F13: =IFERROR(VLOOKUP('7.4 CEM RPM Bond Ratings'!D13,'4.6 Moody''s_S&P numbericl'!B:D,3,FALSE),"--") -> 9 | H13: ='CEM Data Lookup'!K7 -> BBB | J13: =IFERROR(VLOOKUP(H13, '4.6 Moody''s_S&P numbericl'!$F$6:$H$26, 3, FALSE),"--") -> 9
A14: =Input!C6 -> AOS | B14: =VLOOKUP($A14,'CEM Data Lookup'!$A:$P,2,FALSE) -> Smith (A.O.) | D14: ='CEM Data Lookup'!J8 -> NA | F14: =IFERROR(VLOOKUP('7.4 CEM RPM Bond Ratings'!D14,'4.6 Moody''s_S&P numbericl'!B:D,3,FALSE),"--") -> -- | H14: ='CEM Data Lookup'!K8 -> NA | J14: =IFERROR(VLOOKUP(H14, '4.6 Moody''s_S&P numbericl'!$F$6:$H$26, 3, FALSE),"--") -> --
A15: =Input!C7 -> APD | B15: =VLOOKUP($A15,'CEM Data Lookup'!$A:$P,2,FALSE) -> Air Products & Chem. | D15: ='CEM Data Lookup'!J9 -> A2 | F15: =IFERROR(VLOOKUP('7.4 CEM RPM Bond Ratings'!D15,'4.6 Moody''s_S&P numbericl'!B:D,3,FALSE),"--") -> 6 | H15: ='CEM Data Lookup'!K9 -> A | J15: =IFERROR(VLOOKUP(H15, '4.6 Moody''s_S&P numbericl'!$F$6:$H$26, 3, FALSE),"--") -> 6
A16: =Input!C8 -> BFB | B16: =VLOOKUP($A16,'CEM Data Lookup'!$A:$P,2,FALSE) -> Brown-Forman 'B' | D16: ='CEM Data Lookup'!J10 -> A1 | F16: =IFERROR(VLOOKUP('7.4 CEM RPM Bond Ratings'!D16,'4.6 Moody''s_S&P numbericl'!B:D,3,FALSE),"--") -> 5 | H16: ='CEM Data Lookup'!K10 -> A- | J16: =IFERROR(VLOOKUP(H16, '4.6 Moody''s_S&P numbericl'!$F$6:$H$26, 3, FALSE),"--") -> 7
A17: =Input!C9 -> BMY | B17: =VLOOKUP($A17,'CEM Data Lookup'!$A:$P,2,FALSE) -> Bristol-Myers Squibb | D17: ='CEM Data Lookup'!J11 -> A2 | F17: =IFERROR(VLOOKUP('7.4 CEM RPM Bond Ratings'!D17,'4.6 Moody''s_S&P numbericl'!B:D,3,FALSE),"--") -> 6 | H17: ='CEM Data Lookup'!K11 -> A+ | J17: =IFERROR(VLOOKUP(H17, '4.6 Moody''s_S&P numbericl'!$F$6:$H$26, 3, FALSE),"--") -> 5
A18: =Input!C10 -> BR | B18: =VLOOKUP($A18,'CEM Data Lookup'!$A:$P,2,FALSE) -> Broadridge Fin'l | D18: ='CEM Data Lookup'!J12 -> Baa1 | F18: =IFERROR(VLOOKUP('7.4 CEM RPM Bond Ratings'!D18,'4.6 Moody''s_S&P numbericl'!B:D,3,FALSE),"--") -> 8 | H18: ='CEM Data Lookup'!K12 -> BBB+ | J18: =IFERROR(VLOOKUP(H18, '4.6 Moody''s_S&P numbericl'!$F$6:$H$26, 3, FALSE),"--") -> 8
A19: =Input!C11 -> CACI | B19: =VLOOKUP($A19,'CEM Data Lookup'!$A:$P,2,FALSE) -> CACI Int'l | D19: ='CEM Data Lookup'!J13 -> NA | F19: =IFERROR(VLOOKUP('7.4 CEM RPM Bond Ratings'!D19,'4.6 Moody''s_S&P numbericl'!B:D,3,FALSE),"--") -> -- | H19: ='CEM Data Lookup'!K13 -> BB+ | J19: =IFERROR(VLOOKUP(H19, '4.6 Moody''s_S&P numbericl'!$F$6:$H$26, 3, FALSE),"--") -> 11
A20: =Input!C12 -> CHE | B20: =VLOOKUP($A20,'CEM Data Lookup'!$A:$P,2,FALSE) -> Chemed Corp. | D20: ='CEM Data Lookup'!J14 -> WR | F20: =IFERROR(VLOOKUP('7.4 CEM RPM Bond Ratings'!D20,'4.6 Moody''s_S&P numbericl'!B:D,3,FALSE),"--") -> -- | H20: ='CEM Data Lookup'!K14 -> NR | J20: =IFERROR(VLOOKUP(H20, '4.6 Moody''s_S&P numbericl'!$F$6:$H$26, 3, FALSE),"--") -> --
A21: =Input!C13 -> CSWI | B21: =VLOOKUP($A21,'CEM Data Lookup'!$A:$P,2,FALSE) -> CSW Industrials | D21: ='CEM Data Lookup'!J15 -> NA | F21: =IFERROR(VLOOKUP('7.4 CEM RPM Bond Ratings'!D21,'4.6 Moody''s_S&P numbericl'!B:D,3,FALSE),"--") -> -- | H21: ='CEM Data Lookup'!K15 -> NA | J21: =IFERROR(VLOOKUP(H21, '4.6 Moody''s_S&P numbericl'!$F$6:$H$26, 3, FALSE),"--") -> --
A22: =Input!C14 -> DGX | B22: =VLOOKUP($A22,'CEM Data Lookup'!$A:$P,2,FALSE) -> Quest Diagnostics | D22: ='CEM Data Lookup'!J16 -> Baa2 | F22: =IFERROR(VLOOKUP('7.4 CEM RPM Bond Ratings'!D22,'4.6 Moody''s_S&P numbericl'!B:D,3,FALSE),"--") -> 9 | H22: ='CEM Data Lookup'!K16 -> BBB+ | J22: =IFERROR(VLOOKUP(H22, '4.6 Moody''s_S&P numbericl'!$F$6:$H$26, 3, FALSE),"--") -> 8
A23: =Input!C15 -> EXPO | B23: =VLOOKUP($A23,'CEM Data Lookup'!$A:$P,2,FALSE) -> Exponent, Inc. | D23: ='CEM Data Lookup'!J17 -> NA | F23: =IFERROR(VLOOKUP('7.4 CEM RPM Bond Ratings'!D23,'4.6 Moody''s_S&P numbericl'!B:D,3,FALSE),"--") -> -- | H23: ='CEM Data Lookup'!K17 -> NA | J23: =IFERROR(VLOOKUP(H23, '4.6 Moody''s_S&P numbericl'!$F$6:$H$26, 3, FALSE),"--") -> --
A24: =Input!C16 -> INGR | B24: =VLOOKUP($A24,'CEM Data Lookup'!$A:$P,2,FALSE) -> Ingredion Inc. | D24: ='CEM Data Lookup'!J18 -> Baa1 | F24: =IFERROR(VLOOKUP('7.4 CEM RPM Bond Ratings'!D24,'4.6 Moody''s_S&P numbericl'!B:D,3,FALSE),"--") -> 8 | H24: ='CEM Data Lookup'!K18 -> BBB | J24: =IFERROR(VLOOKUP(H24, '4.6 Moody''s_S&P numbericl'!$F$6:$H$26, 3, FALSE),"--") -> 9
A25: =Input!C17 -> JJSF | B25: =VLOOKUP($A25,'CEM Data Lookup'!$A:$P,2,FALSE) -> J&J Snack Foods | D25: ='CEM Data Lookup'!J19 -> NA | F25: =IFERROR(VLOOKUP('7.4 CEM RPM Bond Ratings'!D25,'4.6 Moody''s_S&P numbericl'!B:D,3,FALSE),"--") -> -- | H25: ='CEM Data Lookup'!K19 -> NA | J25: =IFERROR(VLOOKUP(H25, '4.6 Moody''s_S&P numbericl'!$F$6:$H$26, 3, FALSE),"--") -> --
A26: =Input!C18 -> JKHY | B26: =VLOOKUP($A26,'CEM Data Lookup'!$A:$P,2,FALSE) -> Henry (Jack) & Assoc | D26: ='CEM Data Lookup'!J20 -> NA | F26: =IFERROR(VLOOKUP('7.4 CEM RPM Bond Ratings'!D26,'4.6 Moody''s_S&P numbericl'!B:D,3,FALSE),"--") -> -- | H26: ='CEM Data Lookup'!K20 -> NA | J26: =IFERROR(VLOOKUP(H26, '4.6 Moody''s_S&P numbericl'!$F$6:$H$26, 3, FALSE),"--") -> --
A27: =Input!C19 -> MKC | B27: =VLOOKUP($A27,'CEM Data Lookup'!$A:$P,2,FALSE) -> McCormick & Co. | D27: ='CEM Data Lookup'!J21 -> Baa2 | F27: =IFERROR(VLOOKUP('7.4 CEM RPM Bond Ratings'!D27,'4.6 Moody''s_S&P numbericl'!B:D,3,FALSE),"--") -> 9 | H27: ='CEM Data Lookup'!K21 -> BBB | J27: =IFERROR(VLOOKUP(H27, '4.6 Moody''s_S&P numbericl'!$F$6:$H$26, 3, FALSE),"--") -> 9
A28: =Input!C20 -> MRK | B28: =VLOOKUP($A28,'CEM Data Lookup'!$A:$P,2,FALSE) -> Merck & Co. | D28: ='CEM Data Lookup'!J22 -> A1 | F28: =IFERROR(VLOOKUP('7.4 CEM RPM Bond Ratings'!D28,'4.6 Moody''s_S&P numbericl'!B:D,3,FALSE),"--") -> 5 | H28: ='CEM Data Lookup'!K22 -> A+ | J28: =IFERROR(VLOOKUP(H28, '4.6 Moody''s_S&P numbericl'!$F$6:$H$26, 3, FALSE),"--") -> 5
A29: =Input!C21 -> MSCI | B29: =VLOOKUP($A29,'CEM Data Lookup'!$A:$P,2,FALSE) -> MSCI Inc. | D29: ='CEM Data Lookup'!J23 -> Ba1 | F29: =IFERROR(VLOOKUP('7.4 CEM RPM Bond Ratings'!D29,'4.6 Moody''s_S&P numbericl'!B:D,3,FALSE),"--") -> 11 | H29: ='CEM Data Lookup'!K23 -> BB+ | J29: =IFERROR(VLOOKUP(H29, '4.6 Moody''s_S&P numbericl'!$F$6:$H$26, 3, FALSE),"--") -> 11
A30: =Input!C22 -> MSI | B30: =VLOOKUP($A30,'CEM Data Lookup'!$A:$P,2,FALSE) -> Motorola Solutions | D30: ='CEM Data Lookup'!J24 -> Baa3 | F30: =IFERROR(VLOOKUP('7.4 CEM RPM Bond Ratings'!D30,'4.6 Moody''s_S&P numbericl'!B:D,3,FALSE),"--") -> 10 | H30: ='CEM Data Lookup'!K24 -> BBB- | J30: =IFERROR(VLOOKUP(H30, '4.6 Moody''s_S&P numbericl'!$F$6:$H$26, 3, FALSE),"--") -> 10
A31: =Input!C23 -> NEU | B31: =VLOOKUP($A31,'CEM Data Lookup'!$A:$P,2,FALSE) -> NewMarket Corp. | D31: ='CEM Data Lookup'!J25 -> Baa2 | F31: =IFERROR(VLOOKUP('7.4 CEM RPM Bond Ratings'!D31,'4.6 Moody''s_S&P numbericl'!B:D,3,FALSE),"--") -> 9 | H31: ='CEM Data Lookup'!K25 -> BBB+ | J31: =IFERROR(VLOOKUP(H31, '4.6 Moody''s_S&P numbericl'!$F$6:$H$26, 3, FALSE),"--") -> 8
A32: =Input!C24 -> NOC | B32: =VLOOKUP($A32,'CEM Data Lookup'!$A:$P,2,FALSE) -> Northrop Grumman | D32: ='CEM Data Lookup'!J26 -> Baa1 | F32: =IFERROR(VLOOKUP('7.4 CEM RPM Bond Ratings'!D32,'4.6 Moody''s_S&P numbericl'!B:D,3,FALSE),"--") -> 8 | H32: ='CEM Data Lookup'!K26 -> BBB+ | J32: =IFERROR(VLOOKUP(H32, '4.6 Moody''s_S&P numbericl'!$F$6:$H$26, 3, FALSE),"--") -> 8
A33: =Input!C25 -> ODFL | B33: =VLOOKUP($A33,'CEM Data Lookup'!$A:$P,2,FALSE) -> Old Dominion Freight | D33: ='CEM Data Lookup'!J27 -> NA | F33: =IFERROR(VLOOKUP('7.4 CEM RPM Bond Ratings'!D33,'4.6 Moody''s_S&P numbericl'!B:D,3,FALSE),"--") -> -- | H33: ='CEM Data Lookup'!K27 -> NA | J33: =IFERROR(VLOOKUP(H33, '4.6 Moody''s_S&P numbericl'!$F$6:$H$26, 3, FALSE),"--") -> --
A34: =Input!C26 -> ORCL | B34: =VLOOKUP($A34,'CEM Data Lookup'!$A:$P,2,FALSE) -> Oracle Corp. | D34: ='CEM Data Lookup'!J28 -> Baa2 | F34: =IFERROR(VLOOKUP('7.4 CEM RPM Bond Ratings'!D34,'4.6 Moody''s_S&P numbericl'!B:D,3,FALSE),"--") -> 9 | H34: ='CEM Data Lookup'!K28 -> BBB | J34: =IFERROR(VLOOKUP(H34, '4.6 Moody''s_S&P numbericl'!$F$6:$H$26, 3, FALSE),"--") -> 9
A35: =Input!C27 -> PGR | B35: =VLOOKUP($A35,'CEM Data Lookup'!$A:$P,2,FALSE) -> Progressive Corp. | D35: ='CEM Data Lookup'!J29 -> A2 | F35: =IFERROR(VLOOKUP('7.4 CEM RPM Bond Ratings'!D35,'4.6 Moody''s_S&P numbericl'!B:D,3,FALSE),"--") -> 6 | H35: ='CEM Data Lookup'!K29 -> A | J35: =IFERROR(VLOOKUP(H35, '4.6 Moody''s_S&P numbericl'!$F$6:$H$26, 3, FALSE),"--") -> 6
A36: =Input!C28 -> POST | B36: =VLOOKUP($A36,'CEM Data Lookup'!$A:$P,2,FALSE) -> Post Holdings | D36: ='CEM Data Lookup'!J30 -> B2 | F36: =IFERROR(VLOOKUP('7.4 CEM RPM Bond Ratings'!D36,'4.6 Moody''s_S&P numbericl'!B:D,3,FALSE),"--") -> 15 | H36: ='CEM Data Lookup'!K30 -> B+ | J36: =IFERROR(VLOOKUP(H36, '4.6 Moody''s_S&P numbericl'!$F$6:$H$26, 3, FALSE),"--") -> 14
A37: =Input!C29 -> RLI | B37: =VLOOKUP($A37,'CEM Data Lookup'!$A:$P,2,FALSE) -> RLI Corp. | D37: ='CEM Data Lookup'!J31 -> Baa2 | F37: =IFERROR(VLOOKUP('7.4 CEM RPM Bond Ratings'!D37,'4.6 Moody''s_S&P numbericl'!B:D,3,FALSE),"--") -> 9 | H37: ='CEM Data Lookup'!K31 -> BBB | J37: =IFERROR(VLOOKUP(H37, '4.6 Moody''s_S&P numbericl'!$F$6:$H$26, 3, FALSE),"--") -> 9
A38: =Input!C30 -> ROL | B38: =VLOOKUP($A38,'CEM Data Lookup'!$A:$P,2,FALSE) -> Rollins, Inc. | D38: ='CEM Data Lookup'!J32 -> NA | F38: =IFERROR(VLOOKUP('7.4 CEM RPM Bond Ratings'!D38,'4.6 Moody''s_S&P numbericl'!B:D,3,FALSE),"--") -> -- | H38: ='CEM Data Lookup'!K32 -> NA | J38: =IFERROR(VLOOKUP(H38, '4.6 Moody''s_S&P numbericl'!$F$6:$H$26, 3, FALSE),"--") -> --
A39: =Input!C31 -> SHW | B39: =VLOOKUP($A39,'CEM Data Lookup'!$A:$P,2,FALSE) -> Sherwin-Williams | D39: ='CEM Data Lookup'!J33 -> Baa2 | F39: =IFERROR(VLOOKUP('7.4 CEM RPM Bond Ratings'!D39,'4.6 Moody''s_S&P numbericl'!B:D,3,FALSE),"--") -> 9 | H39: ='CEM Data Lookup'!K33 -> BBB | J39: =IFERROR(VLOOKUP(H39, '4.6 Moody''s_S&P numbericl'!$F$6:$H$26, 3, FALSE),"--") -> 9
A40: =Input!C32 -> SIGI | B40: =VLOOKUP($A40,'CEM Data Lookup'!$A:$P,2,FALSE) -> Selective Ins. Group | D40: ='CEM Data Lookup'!J34 -> Baa2 | F40: =IFERROR(VLOOKUP('7.4 CEM RPM Bond Ratings'!D40,'4.6 Moody''s_S&P numbericl'!B:D,3,FALSE),"--") -> 9 | H40: ='CEM Data Lookup'!K34 -> BBB | J40: =IFERROR(VLOOKUP(H40, '4.6 Moody''s_S&P numbericl'!$F$6:$H$26, 3, FALSE),"--") -> 9
A41: =Input!C33 -> SIRI | B41: =VLOOKUP($A41,'CEM Data Lookup'!$A:$P,2,FALSE) -> Sirius XM Holdings | D41: ='CEM Data Lookup'!J35 -> NA | F41: =IFERROR(VLOOKUP('7.4 CEM RPM Bond Ratings'!D41,'4.6 Moody''s_S&P numbericl'!B:D,3,FALSE),"--") -> -- | H41: ='CEM Data Lookup'!K35 -> NA | J41: =IFERROR(VLOOKUP(H41, '4.6 Moody''s_S&P numbericl'!$F$6:$H$26, 3, FALSE),"--") -> --
A42: =Input!C34 -> SXT | B42: =VLOOKUP($A42,'CEM Data Lookup'!$A:$P,2,FALSE) -> Sensient Techn. | D42: ='CEM Data Lookup'!J36 -> WR | F42: =IFERROR(VLOOKUP('7.4 CEM RPM Bond Ratings'!D42,'4.6 Moody''s_S&P numbericl'!B:D,3,FALSE),"--") -> -- | H42: ='CEM Data Lookup'!K36 -> NR | J42: =IFERROR(VLOOKUP(H42, '4.6 Moody''s_S&P numbericl'!$F$6:$H$26, 3, FALSE),"--") -> --
A43: =Input!C35 -> TMO | B43: =VLOOKUP($A43,'CEM Data Lookup'!$A:$P,2,FALSE) -> Thermo Fisher Sci. | D43: ='CEM Data Lookup'!J37 -> A3 | F43: =IFERROR(VLOOKUP('7.4 CEM RPM Bond Ratings'!D43,'4.6 Moody''s_S&P numbericl'!B:D,3,FALSE),"--") -> 7 | H43: ='CEM Data Lookup'!K37 -> A- | J43: =IFERROR(VLOOKUP(H43, '4.6 Moody''s_S&P numbericl'!$F$6:$H$26, 3, FALSE),"--") -> 7
A44: =Input!C36 -> TXN | B44: =VLOOKUP($A44,'CEM Data Lookup'!$A:$P,2,FALSE) -> Texas Instruments | D44: ='CEM Data Lookup'!J38 -> Aa3 | F44: =IFERROR(VLOOKUP('7.4 CEM RPM Bond Ratings'!D44,'4.6 Moody''s_S&P numbericl'!B:D,3,FALSE),"--") -> 4 | H44: ='CEM Data Lookup'!K38 -> A+ | J44: =IFERROR(VLOOKUP(H44, '4.6 Moody''s_S&P numbericl'!$F$6:$H$26, 3, FALSE),"--") -> 5
A45: =Input!C37 -> VRSN | B45: =VLOOKUP($A45,'CEM Data Lookup'!$A:$P,2,FALSE) -> VeriSign Inc. | D45: ='CEM Data Lookup'!J39 -> Baa3 | F45: =IFERROR(VLOOKUP('7.4 CEM RPM Bond Ratings'!D45,'4.6 Moody''s_S&P numbericl'!B:D,3,FALSE),"--") -> 10 | H45: ='CEM Data Lookup'!K39 -> BBB | J45: =IFERROR(VLOOKUP(H45, '4.6 Moody''s_S&P numbericl'!$F$6:$H$26, 3, FALSE),"--") -> 9
A46: =Input!C38 -> WAT | B46: =VLOOKUP($A46,'CEM Data Lookup'!$A:$P,2,FALSE) -> Waters Corp. | D46: ='CEM Data Lookup'!J40 -> NA | F46: =IFERROR(VLOOKUP('7.4 CEM RPM Bond Ratings'!D46,'4.6 Moody''s_S&P numbericl'!B:D,3,FALSE),"--") -> -- | H46: ='CEM Data Lookup'!K40 -> NA | J46: =IFERROR(VLOOKUP(H46, '4.6 Moody''s_S&P numbericl'!$F$6:$H$26, 3, FALSE),"--") -> --
A47: =Input!C39 -> WSO | B47: =VLOOKUP($A47,'CEM Data Lookup'!$A:$P,2,FALSE) -> Watsco, Inc. | D47: ='CEM Data Lookup'!J41 -> NA | F47: =IFERROR(VLOOKUP('7.4 CEM RPM Bond Ratings'!D47,'4.6 Moody''s_S&P numbericl'!B:D,3,FALSE),"--") -> -- | H47: ='CEM Data Lookup'!K41 -> NA | J47: =IFERROR(VLOOKUP(H47, '4.6 Moody''s_S&P numbericl'!$F$6:$H$26, 3, FALSE),"--") -> --
A48: =Input!C40 -> WU | B48: =VLOOKUP($A48,'CEM Data Lookup'!$A:$P,2,FALSE) -> Western Union | D48: ='CEM Data Lookup'!J42 -> Baa2 | F48: =IFERROR(VLOOKUP('7.4 CEM RPM Bond Ratings'!D48,'4.6 Moody''s_S&P numbericl'!B:D,3,FALSE),"--") -> 9 | H48: ='CEM Data Lookup'!K42 -> BBB | J48: =IFERROR(VLOOKUP(H48, '4.6 Moody''s_S&P numbericl'!$F$6:$H$26, 3, FALSE),"--") -> 9
B50: Average | D50: Baa1 | F50: =ROUND(AVERAGE(F9:F49),1) -> 8.1 | H50: BBB+ | J50: =ROUND(AVERAGE(J9:J49),1) -> 8.1
B52: Notes:
B53: (1) | C53: From page 6 of Document No. 4.
B55: Source of Information:
B56: Bloomberg Professional Services.

Sheet 7.5 CEM Beta Adjusted RP
A1: =Input!G28 -> Peoples Gas System
A2: Derivation of Equity Risk Premium Based on the Total Market Approach
A3: Using the Beta for
A4: Non-Price Regulated Companies of Comparable risk to the
A5: =Input!I29 -> Utility Proxy Group
A7: Line No. | C7: Equity Risk Premium Measure | F7: ='7.6 CEM CAPM Backup'!B7 -> Proxy Group of Thirty Nine Non-Price Regulated Companies
A9: 1. | C9: Kroll Equity Risk Premium (1) | F9: ='4.8-4.9 Beta Adjusted ERP'!E11 -> 6.13 | G9: %
A11: 2. | C11: Regression on Kroll Risk Premium Data (2) | F11: ='MRP ERP WP'!$AK$42*100 -> 7.258229346
A13: 3. | C13: Kroll Equity Risk Premium based on PRPM (3) | F13: ='PRPM WP1'!$J$1181*100 -> 11.45938571
A15: 4. | C15: Equity Risk Premium Based on Value Line Summary and Index (4) | F15: ='MRP WP1'!$M$22*100-'MRP WP1'!$M$37 -> 11.53
A17: 5 | C17: Equity Risk Premium Based on Value Line S&P 500 Companies (5) | F17: ='4.8-4.9 Beta Adjusted ERP'!E19 -> 10.62105075
A19: 6. | C19: Equity Risk Premium Based on Bloomberg S&P 500 Companies (6) | F19: ='4.8-4.9 Beta Adjusted ERP'!E21 -> 6.00840124
A21: 7. | C21: Conclusion of Equity Risk Premium | F21: =ROUND(AVERAGE(F9,F11,F13,F15,F17,F19),2) -> 8.83 | G21: %
A23: 8. | C23: Adjusted Beta (7) | F23: ='7.6 CEM CAPM Backup'!H53 -> 0.84
A25: 9. | C25: Forecasted Equity Risk Premium | F25: =ROUND(F21*F23,2) -> 7.42 | G25: %
A27: Notes:
B28: (1) | C28: From note 1 of page 9 of Document No. 4.
B29: (2) | C29: From note 2 of page 9 of Document No. 4.
B30: (3) | C30: From note 3 of page 9 of Document No. 4.
B31: (4) | C31: From note 4 of page 9 of Document No. 4.
B32: (5) | C32: From note 5 of page 9 of Document No. 4.
B33: (6) | C33: From note 6 of page 9 of Document No. 4.
B34: (7) | C34: Average of mean and median beta from page 6 of this Document.
B36: Sources of Information:
C37: ='5.2 CAPM Notes'!B61 -> Stocks, Bonds, Bills, and Inflation - 2022 SBBI Yearbook, Kroll.
C38: Value Line Summary and Index.
C39: ='5.2 CAPM Notes'!B60 -> Blue Chip Financial Forecasts December 2, 2022 and January 1, 2022.
C40: Bloomberg Professional Services.

Sheet 7.6 CEM CAPM Backup
B1: =Input!G28 -> Peoples Gas System
B2: Traditional CAPM and ECAPM Results for the Proxy Group of Non-Price-Regulated Companies Comparable in Total Risk to the
B3: ='7.5 CEM Beta Adjusted RP'!A5 -> Utility Proxy Group
D5: [1] | F5: [2] | H5: [3] | J5: [4] | M5: [5] | P5: [6] | S5: [7] | V5: [8]
B7: =Input!I31 -> Proxy Group of Thirty Nine Non-Price Regulated Companies | D7: Value Line Adjusted Beta | F7: Bloomberg Beta | H7: Average Beta | J7: Market Risk Premium (1) | M7: Risk-Free Rate (2) | P7: Traditional CAPM Cost Rate | S7: ECAPM Cost Rate | V7: Indicated Common Equity Cost Rate (3)
A9: =Input!C2 -> A | B9: =VLOOKUP($A9,'CEM Data Lookup'!$A:$P,2,FALSE) -> Agilent Technologies | D9: ='MRP WP1'!E74 -> 0.85 | F9: =VLOOKUP($A9,'CEM Data Lookup'!$A:$P,7,FALSE) -> 1.069121361 | H9: =ROUND(AVERAGE(D9:F9),2) -> 0.96 | J9: ='MRP WP1'!H$65 -> 9.749807177 | K9: % | M9: ='MRP WP1'!F$37 -> 3.91 | N9: % | P9: =(H9*(J9))+M9 -> 13.26981489 | Q9: % | S9: =ROUND((0.75*(H9*J9))+(0.25*J9)+M9,4) -> 13.3673 | T9: % | V9: =ROUND(AVERAGE(P9,S9),2) -> 13.32 | W9: %
A10: =Input!C3 -> ABT | B10: =VLOOKUP($A10,'CEM Data Lookup'!$A:$P,2,FALSE) -> Abbott Labs. | D10: ='MRP WP1'!E75 -> 0.9 | F10: =VLOOKUP($A10,'CEM Data Lookup'!$A:$P,7,FALSE) -> 0.76022017 | H10: =ROUND(AVERAGE(D10:F10),2) -> 0.83 | J10: ='MRP WP1'!H$65 -> 9.749807177 | M10: ='MRP WP1'!F$37 -> 3.91 | P10: =(H10*(J10))+M10 -> 12.00233996 | S10: =ROUND((0.75*(H10*J10))+(0.25*J10)+M10,4) -> 12.4167 | V10: =ROUND(AVERAGE(P10,S10),2) -> 12.21
A11: =Input!C4 -> ADI | B11: =VLOOKUP($A11,'CEM Data Lookup'!$A:$P,2,FALSE) -> Analog Devices | D11: ='MRP WP1'!E76 -> 1 | F11: =VLOOKUP($A11,'CEM Data Lookup'!$A:$P,7,FALSE) -> 1.023907661 | H11: 1.01 | J11: ='MRP WP1'!H$65 -> 9.749807177 | M11: ='MRP WP1'!F$37 -> 3.91 | P11: 13.75730525 | S11: 13.7329 | V11: 13.75
A12: =Input!C5 -> AIZ | B12: =VLOOKUP($A12,'CEM Data Lookup'!$A:$P,2,FALSE) -> Assurant Inc. | D12: ='MRP WP1'!E77 -> 0.9 | F12: =VLOOKUP($A12,'CEM Data Lookup'!$A:$P,7,FALSE) -> 0.7213525772 | H12: 0.81 | J12: ='MRP WP1'!H$65 -> 9.749807177 | M12: ='MRP WP1'!F$37 -> 3.91 | P12: 11.80734381 | S12: 12.2705 | V12: 12.04
A13: =Input!C6 -> AOS | B13: =VLOOKUP($A13,'CEM Data Lookup'!$A:$P,2,FALSE) -> Smith (A.O.) | D13: ='MRP WP1'!E78 -> 0.9 | F13: =VLOOKUP($A13,'CEM Data Lookup'!$A:$P,7,FALSE) -> 1.035016418 | H13: 0.97 | J13: ='MRP WP1'!H$65 -> 9.749807177 | M13: ='MRP WP1'!F$37 -> 3.91 | P13: 13.36731296 | S13: 13.4404 | V13: 13.4
A14: =Input!C7 -> APD | B14: =VLOOKUP($A14,'CEM Data Lookup'!$A:$P,2,FALSE) -> Air Products & Chem. | D14: ='MRP WP1'!E79 -> 0.9 | F14: =VLOOKUP($A14,'CEM Data Lookup'!$A:$P,7,FALSE) -> 0.8073137999 | H14: 0.85 | J14: ='MRP WP1'!H$65 -> 9.749807177 | M14: ='MRP WP1'!F$37 -> 3.91 | P14: 12.1973361 | S14: 12.563 | V14: 12.38
A15: =Input!C8 -> BFB | B15: =VLOOKUP($A15,'CEM Data Lookup'!$A:$P,2,FALSE) -> Brown-Forman 'B' | D15: ='MRP WP1'!E80 -> 0.85 | F15: =VLOOKUP($A15,'CEM Data Lookup'!$A:$P,7,FALSE) -> 0.7947944999 | H15: 0.82 | J15: ='MRP WP1'!H$65 -> 9.749807177 | M15: ='MRP WP1'!F$37 -> 3.91 | P15: 11.90484189 | S15: 12.3436 | V15: 12.12
A16: =Input!C9 -> BMY | B16: =VLOOKUP($A16,'CEM Data Lookup'!$A:$P,2,FALSE) -> Bristol-Myers Squibb | D16: ='MRP WP1'!E81 -> 0.8 | F16: =VLOOKUP($A16,'CEM Data Lookup'!$A:$P,7,FALSE) -> 0.4983299077 | H16: 0.65 | J16: ='MRP WP1'!H$65 -> 9.749807177 | M16: ='MRP WP1'!F$37 -> 3.91 | P16: 10.24737467 | S16: 11.1005 | V16: 10.67
A17: =Input!C10 -> BR | B17: =VLOOKUP($A17,'CEM Data Lookup'!$A:$P,2,FALSE) -> Broadridge Fin'l | D17: ='MRP WP1'!E82 -> 0.9 | F17: =VLOOKUP($A17,'CEM Data Lookup'!$A:$P,7,FALSE) -> 0.9840219617 | H17: 0.94 | J17: ='MRP WP1'!H$65 -> 9.749807177 | M17: ='MRP WP1'!F$37 -> 3.91 | P17: 13.07481875 | S17: 13.2211 | V17: 13.15
A18: =Input!C11 -> CACI | B18: =VLOOKUP($A18,'CEM Data Lookup'!$A:$P,2,FALSE) -> CACI Int'l | D18: ='MRP WP1'!E83 -> 0.9 | F18: =VLOOKUP($A18,'CEM Data Lookup'!$A:$P,7,FALSE) -> 0.7447590828 | H18: 0.82 | J18: ='MRP WP1'!H$65 -> 9.749807177 | M18: ='MRP WP1'!F$37 -> 3.91 | P18: 11.90484189 | S18: 12.3436 | V18: 12.12
A19: =Input!C12 -> CHE | B19: =VLOOKUP($A19,'CEM Data Lookup'!$A:$P,2,FALSE) -> Chemed Corp. | D19: ='MRP WP1'!E84 -> 0.8 | F19: =VLOOKUP($A19,'CEM Data Lookup'!$A:$P,7,FALSE) -> 0.7212504148 | H19: 0.76 | J19: ='MRP WP1'!H$65 -> 9.749807177 | M19: ='MRP WP1'!F$37 -> 3.91 | P19: 11.31985345 | S19: 11.9048 | V19: 11.61
A20: =Input!C13 -> CSWI | B20: =VLOOKUP($A20,'CEM Data Lookup'!$A:$P,2,FALSE) -> CSW Industrials | D20: ='MRP WP1'!E85 -> 0.85 | F20: =VLOOKUP($A20,'CEM Data Lookup'!$A:$P,7,FALSE) -> 0.7707059979 | H20: 0.81 | J20: ='MRP WP1'!H$65 -> 9.749807177 | M20: ='MRP WP1'!F$37 -> 3.91 | P20: 11.80734381 | S20: 12.2705 | V20: 12.04
A21: =Input!C14 -> DGX | B21: =VLOOKUP($A21,'CEM Data Lookup'!$A:$P,2,FALSE) -> Quest Diagnostics | D21: ='MRP WP1'!E86 -> 0.8 | F21: =VLOOKUP($A21,'CEM Data Lookup'!$A:$P,7,FALSE) -> 0.6965161562 | H21: 0.75 | J21: ='MRP WP1'!H$65 -> 9.749807177 | M21: ='MRP WP1'!F$37 -> 3.91 | P21: 11.22235538 | S21: 11.8317 | V21: 11.53
A22: =Input!C15 -> EXPO | B22: =VLOOKUP($A22,'CEM Data Lookup'!$A:$P,2,FALSE) -> Exponent, Inc. | D22: ='MRP WP1'!E87 -> 0.9 | F22: =VLOOKUP($A22,'CEM Data Lookup'!$A:$P,7,FALSE) -> 0.9975692034 | H22: 0.95 | J22: ='MRP WP1'!H$65 -> 9.749807177 | M22: ='MRP WP1'!F$37 -> 3.91 | P22: 13.17231682 | S22: 13.2942 | V22: 13.23
A23: =Input!C16 -> INGR | B23: =VLOOKUP($A23,'CEM Data Lookup'!$A:$P,2,FALSE) -> Ingredion Inc. | D23: ='MRP WP1'!E88 -> 0.9 | F23: =VLOOKUP($A23,'CEM Data Lookup'!$A:$P,7,FALSE) -> 0.6877423525 | H23: 0.79 | J23: ='MRP WP1'!H$65 -> 9.749807177 | M23: ='MRP WP1'!F$37 -> 3.91 | P23: 11.61234767 | S23: 12.1242 | V23: 11.87
A24: =Input!C17 -> JJSF | B24: =VLOOKUP($A24,'CEM Data Lookup'!$A:$P,2,FALSE) -> J&J Snack Foods | D24: ='MRP WP1'!E89 -> 0.9 | F24: =VLOOKUP($A24,'CEM Data Lookup'!$A:$P,7,FALSE) -> 0.5781377554 | H24: 0.74 | J24: ='MRP WP1'!H$65 -> 9.749807177 | M24: ='MRP WP1'!F$37 -> 3.91 | P24: 11.12485731 | S24: 11.7586 | V24: 11.44
A25: =Input!C18 -> JKHY | B25: =VLOOKUP($A25,'CEM Data Lookup'!$A:$P,2,FALSE) -> Henry (Jack) & Assoc | D25: ='MRP WP1'!E90 -> 0.85 | F25: =VLOOKUP($A25,'CEM Data Lookup'!$A:$P,7,FALSE) -> 0.7571338415 | H25: 0.8 | J25: ='MRP WP1'!H$65 -> 9.749807177 | M25: ='MRP WP1'!F$37 -> 3.91 | P25: 11.70984574 | S25: 12.1973 | V25: 11.95
A26: =Input!C19 -> MKC | B26: =VLOOKUP($A26,'CEM Data Lookup'!$A:$P,2,FALSE) -> McCormick & Co. | D26: ='MRP WP1'!E91 -> 0.75 | F26: =VLOOKUP($A26,'CEM Data Lookup'!$A:$P,7,FALSE) -> 0.7205399275 | H26: 0.74 | J26: ='MRP WP1'!H$65 -> 9.749807177 | M26: ='MRP WP1'!F$37 -> 3.91 | P26: 11.12485731 | S26: 11.7586 | V26: 11.44
A27: =Input!C20 -> MRK | B27: =VLOOKUP($A27,'CEM Data Lookup'!$A:$P,2,FALSE) -> Merck & Co. | D27: ='MRP WP1'!E92 -> 0.75 | F27: =VLOOKUP($A27,'CEM Data Lookup'!$A:$P,7,FALSE) -> 0.4687764049 | H27: 0.61 | J27: ='MRP WP1'!H$65 -> 9.749807177 | M27: ='MRP WP1'!F$37 -> 3.91 | P27: 9.857382378 | S27: 10.808 | V27: 10.33
A28: =Input!C21 -> MSCI | B28: =VLOOKUP($A28,'CEM Data Lookup'!$A:$P,2,FALSE) -> MSCI Inc. | D28: ='MRP WP1'!E93 -> 1.05 | F28: =VLOOKUP($A28,'CEM Data Lookup'!$A:$P,7,FALSE) -> 1.36562252 | H28: 1.21 | J28: ='MRP WP1'!H$65 -> 9.749807177 | M28: ='MRP WP1'!F$37 -> 3.91 | P28: 15.70726668 | S28: 15.1954 | V28: 15.45
A29: =Input!C22 -> MSI | B29: =VLOOKUP($A29,'CEM Data Lookup'!$A:$P,2,FALSE) -> Motorola Solutions | D29: ='MRP WP1'!E94 -> 0.9 | F29: =VLOOKUP($A29,'CEM Data Lookup'!$A:$P,7,FALSE) -> 0.966797471 | H29: 0.93 | J29: ='MRP WP1'!H$65 -> 9.749807177 | M29: ='MRP WP1'!F$37 -> 3.91 | P29: 12.97732067 | S29: 13.1479 | V29: 13.06
A30: =Input!C23 -> NEU | B30: =VLOOKUP($A30,'CEM Data Lookup'!$A:$P,2,FALSE) -> NewMarket Corp. | D30: ='MRP WP1'!E94 -> 0.9 | F30: =VLOOKUP($A30,'CEM Data Lookup'!$A:$P,7,FALSE) -> 0.6171191335 | H30: 0.76 | J30: ='MRP WP1'!H$65 -> 9.749807177 | M30: ='MRP WP1'!F$37 -> 3.91 | P30: 11.31985345 | S30: 11.9048 | V30: 11.61
A31: =Input!C24 -> NOC | B31: =VLOOKUP($A31,'CEM Data Lookup'!$A:$P,2,FALSE) -> Northrop Grumman | D31: ='MRP WP1'!E95 -> 0.75 | F31: =VLOOKUP($A31,'CEM Data Lookup'!$A:$P,7,FALSE) -> 0.6592274904 | H31: 0.7 | J31: ='MRP WP1'!H$65 -> 9.749807177 | M31: ='MRP WP1'!F$37 -> 3.91 | P31: 10.73486502 | S31: 11.4661 | V31: 11.1
A32: =Input!C25 -> ODFL | B32: =VLOOKUP($A32,'CEM Data Lookup'!$A:$P,2,FALSE) -> Old Dominion Freight | D32: ='MRP WP1'!E96 -> 0.8 | F32: =VLOOKUP($A32,'CEM Data Lookup'!$A:$P,7,FALSE) -> 1.133546114 | H32: 0.97 | J32: ='MRP WP1'!H$65 -> 9.749807177 | M32: ='MRP WP1'!F$37 -> 3.91 | P32: 13.36731296 | S32: 13.4404 | V32: 13.4
A33: =Input!C26 -> ORCL | B33: =VLOOKUP($A33,'CEM Data Lookup'!$A:$P,2,FALSE) -> Oracle Corp. | D33: ='MRP WP1'!E97 -> 0.95 | F33: =VLOOKUP($A33,'CEM Data Lookup'!$A:$P,7,FALSE) -> 0.9925073981 | H33: 0.97 | J33: ='MRP WP1'!H$65 -> 9.749807177 | M33: ='MRP WP1'!F$37 -> 3.91 | P33: 13.36731296 | S33: 13.4404 | V33: 13.4
A34: =Input!C27 -> PGR | B34: =VLOOKUP($A34,'CEM Data Lookup'!$A:$P,2,FALSE) -> Progressive Corp. | D34: ='MRP WP1'!E98 -> 0.8 | F34: =VLOOKUP($A34,'CEM Data Lookup'!$A:$P,7,FALSE) -> 0.7506294847 | H34: 0.78 | J34: ='MRP WP1'!H$65 -> 9.749807177 | M34: ='MRP WP1'!F$37 -> 3.91 | P34: 11.5148496 | S34: 12.0511 | V34: 11.78
A35: =Input!C28 -> POST | B35: =VLOOKUP($A35,'CEM Data Lookup'!$A:$P,2,FALSE) -> Post Holdings | D35: ='MRP WP1'!E99 -> 0.75 | F35: =VLOOKUP($A35,'CEM Data Lookup'!$A:$P,7,FALSE) -> 0.6559040546 | H35: 0.7 | J35: ='MRP WP1'!H$65 -> 9.749807177 | M35: ='MRP WP1'!F$37 -> 3.91 | P35: 10.73486502 | S35: 11.4661 | V35: 11.1
A36: =Input!C29 -> RLI | B36: =VLOOKUP($A36,'CEM Data Lookup'!$A:$P,2,FALSE) -> RLI Corp. | D36: ='MRP WP1'!E100 -> NMF | F36: =VLOOKUP($A36,'CEM Data Lookup'!$A:$P,7,FALSE) -> 0.7783473134 | H36: 0.78 | J36: ='MRP WP1'!H$65 -> 9.749807177 | M36: ='MRP WP1'!F$37 -> 3.91 | P36: 11.5148496 | S36: 12.0511 | V36: 11.78
A37: =Input!C30 -> ROL | B37: =VLOOKUP($A37,'CEM Data Lookup'!$A:$P,2,FALSE) -> Rollins, Inc. | D37: ='MRP WP1'!E101 -> 0.8 | F37: =VLOOKUP($A37,'CEM Data Lookup'!$A:$P,7,FALSE) -> 0.8755085468 | H37: 0.84 | J37: ='MRP WP1'!H$65 -> 9.749807177 | M37: ='MRP WP1'!F$37 -> 3.91 | P37: 12.09983803 | S37: 12.4898 | V37: 12.29
A38: =Input!C31 -> SHW | B38: =VLOOKUP($A38,'CEM Data Lookup'!$A:$P,2,FALSE) -> Sherwin-Williams | D38: ='MRP WP1'!E102 -> 0.85 | F38: =VLOOKUP($A38,'CEM Data Lookup'!$A:$P,7,FALSE) -> 1.001509666 | H38: 0.93 | J38: ='MRP WP1'!H$65 -> 9.749807177 | M38: ='MRP WP1'!F$37 -> 3.91 | P38: 12.97732067 | S38: 13.1479 | V38: 13.06
A39: =Input!C32 -> SIGI | B39: =VLOOKUP($A39,'CEM Data Lookup'!$A:$P,2,FALSE) -> Selective Ins. Group | D39: ='MRP WP1'!E103 -> 0.95 | F39: =VLOOKUP($A39,'CEM Data Lookup'!$A:$P,7,FALSE) -> 0.6941086054 | H39: 0.82 | J39: ='MRP WP1'!H$65 -> 9.749807177 | M39: ='MRP WP1'!F$37 -> 3.91 | P39: 11.90484189 | S39: 12.3436 | V39: 12.12
A40: =Input!C33 -> SIRI | B40: =VLOOKUP($A40,'CEM Data Lookup'!$A:$P,2,FALSE) -> Sirius XM Holdings | D40: ='MRP WP1'!E104 -> 0.85 | F40: =VLOOKUP($A40,'CEM Data Lookup'!$A:$P,7,FALSE) -> 0.7167794108 | H40: 0.78 | J40: ='MRP WP1'!H$65 -> 9.749807177 | M40: ='MRP WP1'!F$37 -> 3.91 | P40: 11.5148496 | S40: 12.0511 | V40: 11.78
A41: =Input!C34 -> SXT | B41: =VLOOKUP($A41,'CEM Data Lookup'!$A:$P,2,FALSE) -> Sensient Techn. | D41: ='MRP WP1'!E105 -> 0.9 | F41: =VLOOKUP($A41,'CEM Data Lookup'!$A:$P,7,FALSE) -> 0.9637203217 | H41: 0.93 | J41: ='MRP WP1'!H$65 -> 9.749807177 | M41: ='MRP WP1'!F$37 -> 3.91 | P41: 12.97732067 | S41: 13.1479 | V41: 13.06
A42: =Input!C35 -> TMO | B42: =VLOOKUP($A42,'CEM Data Lookup'!$A:$P,2,FALSE) -> Thermo Fisher Sci. | D42: ='MRP WP1'!E106 -> 0.95 | F42: =VLOOKUP($A42,'CEM Data Lookup'!$A:$P,7,FALSE) -> 0.9245231748 | H42: 0.94 | J42: ='MRP WP1'!H$65 -> 9.749807177 | M42: ='MRP WP1'!F$37 -> 3.91 | P42: 13.07481875 | S42: 13.2211 | V42: 13.15
A43: =Input!C36 -> TXN | B43: =VLOOKUP($A43,'CEM Data Lookup'!$A:$P,2,FALSE) -> Texas Instruments | D43: ='MRP WP1'!E107 -> 0.85 | F43: =VLOOKUP($A43,'CEM Data Lookup'!$A:$P,7,FALSE) -> 0.9703033566 | H43: 0.91 | J43: ='MRP WP1'!H$65 -> 9.749807177 | M43: ='MRP WP1'!F$37 -> 3.91 | P43: 12.78232453 | S43: 13.0017 | V43: 12.89
A44: =Input!C37 -> VRSN | B44: =VLOOKUP($A44,'CEM Data Lookup'!$A:$P,2,FALSE) -> VeriSign Inc. | D44: ='MRP WP1'!E108 -> 0.9 | F44: =VLOOKUP($A44,'CEM Data Lookup'!$A:$P,7,FALSE) -> 1.053896666 | H44: 0.98 | J44: ='MRP WP1'!H$65 -> 9.749807177 | M44: ='MRP WP1'!F$37 -> 3.91 | P44: 13.46481103 | S44: 13.5136 | V44: 13.49
A45: =Input!C38 -> WAT | B45: =VLOOKUP($A45,'CEM Data Lookup'!$A:$P,2,FALSE) -> Waters Corp. | D45: ='MRP WP1'!E109 -> 0.95 | F45: =VLOOKUP($A45,'CEM Data Lookup'!$A:$P,7,FALSE) -> 0.9791158438 | H45: 0.96 | J45: ='MRP WP1'!H$65 -> 9.749807177 | M45: ='MRP WP1'!F$37 -> 3.91 | P45: 13.26981489 | S45: 13.3673 | V45: 13.32
A46: =Input!C39 -> WSO | B46: =VLOOKUP($A46,'CEM Data Lookup'!$A:$P,2,FALSE) -> Watsco, Inc. | D46: ='MRP WP1'!E110 -> 0.95 | F46: =VLOOKUP($A46,'CEM Data Lookup'!$A:$P,7,FALSE) -> 1.021119833 | H46: 0.99 | J46: ='MRP WP1'!H$65 -> 9.749807177 | M46: ='MRP WP1'!F$37 -> 3.91 | P46: 13.56230911 | S46: 13.5867 | V46: 13.57
A47: =Input!C40 -> WU | B47: =VLOOKUP($A47,'CEM Data Lookup'!$A:$P,2,FALSE) -> Western Union | D47: ='MRP WP1'!E111 -> 0.85 | F47: =VLOOKUP($A47,'CEM Data Lookup'!$A:$P,7,FALSE) -> 0.8139988184 | H47: 0.83 | J47: ='MRP WP1'!H$65 -> 9.749807177 | M47: ='MRP WP1'!F$37 -> 3.91 | P47: 12.00233996 | S47: 12.4167 | V47: 12.21
F49: Mean | H49: =ROUND(AVERAGE(H8:H47),2) -> 0.85 | P49: =ROUND(AVERAGE(P8:P47),2) -> 12.24 | Q49: % | S49: =ROUND(AVERAGE(S8:S47),2) -> 12.59 | T49: % | V49: =ROUND(AVERAGE(V8:V47),2) -> 12.42 | W49: %
F51: Median | H51: =ROUND(MEDIAN(H8:H48),2) -> 0.83 | P51: =ROUND(MEDIAN(P8:P47),2) -> 12 | Q51: % | S51: =ROUND(MEDIAN(S8:S47),2) -> 12.42 | T51: % | V51: =ROUND(MEDIAN(V8:V47),2) -> 12.21 | W51: %
F53: Average of Mean and Median | H53: =ROUND(AVERAGE(H49:H51),2) -> 0.84 | P53: =ROUND(AVERAGE(P49:P51),2) -> 12.12 | Q53: % | S53: =ROUND(AVERAGE(S49:S51),2) -> 12.51 | T53: % | V53: =ROUND(AVERAGE(V49:V51),2) -> 12.32 | W53: %
C55: Notes:
C56: (1) | D56: From note 1 of page 2 of Document No. 5.
C57: (2) | D57: From note 2 of page 2 of Document No. 5.
C58: (3) | D58: Average of CAPM and ECAPM cost rates.

Sheet 8.1 Equity Contributions
A1: =Input!G28 -> Peoples Gas System
A2: Derivation of the Flotation Cost Adjustment to the Cost of Common Equity
A5: Equity Issuances (Company Provided)
E8: [Column 1] | G8: [Column 2] | I8: [Column 3] | K8: [Column 4] | M8: [Column 5] | O8: [Column 6] | Q8: [Column 7] | S8: [Column 8] | U8: [Column 9] | W8: [Column 10]
A10: Date | C10: Issuing Company | E10: Shares Issued (1) | G10: Market Price per Share (1) | I10: Average Offering Price per Share (1) | K10: Underwriting Discount (1) | M10: Total Offering Expense per Share (1) | O10: Net Proceeds per Share (2) | Q10: Total Flotation Costs (3) | S10: Gross Equity Issue before Costs (4) | U10: Net Proceeds (5) | W10: Flotation Cost Percentage (6)
A12: At-The-Market 7/11/2019 | C12: Emera Incorporated | E12: =1800000+982982 -> 2782982 | G12: NA | I12: NA | K12: NA | M12: =Q12/E12 -> 0.7545862675 | O12: =U12/E12 -> 56.30650863 | Q12: =S12-U12 -> 2100000 | S12: =100000000+58800000 -> 158800000 | U12: =98700000+58000000 -> 156700000 | W12: =Q12/S12 -> 0.01322418136
A13: 2017-12-18 | C13: Emera Incorporated | E13: =14614000+1045000 -> 15659000 | G13: 47.98 | I13: 47.9 | K13: 1.916 | M13: =450000/E13 -> 0.02873746727 | O13: =I13-K13-M13 -> 45.95526253 | Q13: =(G13-O13)*E13 -> 31705364 | S13: =E13*G13 -> 751318820 | U13: =E13*O13 -> 719613456 | W13: 0.04219961374
A14: 2016-12-08 | C14: Emera Incorporated | E14: =6630000+994500 -> 7624500 | G14: 44.26 | I14: 45.25 | K14: 1.81 | M14: =450000/E14 -> 0.05902026362 | O14: =I14-K14-M14 -> 43.38097974 | Q14: =(G14-O14)*E14 -> 6702090 | S14: =E14*G14 -> 337460370 | U14: 330758280 | W14: 0.01986037649
C15: Total Public Issuances | Q15: =SUM(Q12:Q14) -> 40507454 | S15: =SUM(S12:S14) -> 1247579190 | U15: =SUM(U12:U14) -> 1207071736 | W15: =Q15/S15 -> 0.03246884392
A16: Flotation Cost Adjustment
C18: [Column 11] | E18: [Column 12] | G18: [Column 13] | I18: [Column 14] | K18: [Column 15] | M18: [Column 16]
C20: Average Dividend Yield (7) | E20: Average Projected EPS Growth Rate (7) | G20: Adjusted Dividend Yield (8) | I20: Average DCF Cost Rate Unadjusted for Flotation (9) | K20: DCF Cost Rate Adjusted for Flotation (10) | M20: Flotation Cost Adjustment (11)
A21: =Input!I30 -> Proxy Group of Six Natural Gas Companies | C21: =AVERAGE('3.1 DCF Summary'!D9:D14) -> 3.538333333 | D21: % | E21: =AVERAGE('3.1 DCF Summary'!P9:P14) -> 6.466666667 | F21: % | G21: =ROUND(C21*(1+(0.5*(E21/100))),2) -> 3.65 | H21: % | I21: =G21+E21 -> 10.11666667 | J21: % | K21: =(G21/(1-$W$15))+E21 -> 10.239155 | L21: % | M21: =K21-I21 -> 0.1224883349 | N21: %
A24: Notes: | B24: 1 | C24: From Company prospectuses or annual filings.
B25: =B24+1 -> 2 | C25: Col. 3 - Col. 4 - Col. 5.
B26: =B25+1 -> 3 | C26: (Col. 2 - Col. 6) x Col. 1.
B27: 4 | C27: Col. 1 x Col. 2.
B28: 5 | C28: Col. 1 x Col. 6.
B29: 6 | C29: Col. 7 / Col. 8.
B30: 7 | C30: From Document No. 4.
B31: 8 | C31: Col. 11 x (1 + 0.5 x Col. 12).
B32: 9 | C32: Col. 12 + Col. 13.
B33: 10 | C33: (Col. 13 / (1 - Col. 10)) + Col. 12.
B34: 11 | C34: Col. 15 - Col. 14.

Sheet 9.1 Risk Adjustment
A1: =Input!G28 -> Peoples Gas System
A2: Derivation of Investment Risk Adjustment Based upon
A3: Kroll Associates' Size Premia for the Decile Portfolios of the NYSE/AMEX/NASDAQ
E6: [1] | I6: [2] | K6: [3] | M6: [4]
M7: Spread from Applicable Size Premium (4)
E8: Market Capitalization on December 30, 2022 (1) | I8: Applicable Decile of the NYSE/AMEX/ NASDAQ (2)
K9: Applicable Size Premium (3)
A11: Line No.
E12: ( millions ) | G12: (times larger)
B14: a. | C14: Peoples Gas System - based on the Gas Proxy Group | E14: ='9.2 Market Cap'!P13 -> 2179.663127 | I14: 6 | K14: =VLOOKUP(I14,$G$22:$M$31,7,FALSE) -> 0.0137
B16: a. | C16: Proxy Group of Six Natural Gas Companies | E16: ='9.2 Market Cap'!P24 -> 6634.06 | G16: =ROUND(E16/E14,1) -> 3 | H16: x | I16: 4 | K16: =VLOOKUP(I16,$G$22:$M$31,7,FALSE) -> 0.0075 | M16: =K14-K16 -> 0.0062
G18: [A] | I18: [B] | K18: [C] | M18: [D]
G19: Decile | I19: Market Capitalization of Smallest Company | K19: Market Capitalization of Largest Company | M19: Size Premium (Return in Excess of CAPM)*
I20: ( millions ) | K20: ( millions )
E22: Largest | G22: 1 | I22: 36160.584 | K22: 2324390.219 | M22: -0.0022
G23: 2 | I23: 16759.39 | K23: 36099.221 | M23: 0.0049
G24: 3 | I24: 8216.356 | K24: 16738.364 | M24: 0.0071
G25: 4 | I25: 5019.883 | K25: 8212.638 | M25: 0.0075
G26: 5 | I26: 3281.009 | K26: 5003.747 | M26: 0.0109
G27: 6 | I27: 2170.315 | K27: 3276.553 | M27: 0.0137
G28: 7 | I28: 1306.402 | K28: 2164.524 | M28: 0.0154
G29: 8 | I29: 629.118 | K29: 1306.038 | M29: 0.0146
G30: 9 | I30: 290.002 | K30: 627.803 | M30: 0.0229
E31: Smallest | G31: 10 | I31: 10.588 | K31: 289.007 | M31: 0.0501
H32: *From 2022 Kroll Cost of Capital Navigator
C33: Notes:
D34: (1) | E34: From page 2 of this Document.
D35: (2) | E35: Gleaned from Columns [B] and [C] on the bottom of this page. The appropriate decile (Column [A]) corresponds to the market capitalization of the proxy group, which is found in Column [1].
D36: (3) | E36: Corresponding risk premium to the decile is provided in Column [D] on the bottom of this page.
D37: (4) | E37: =CONCATENATE("Line No. 1 Column [3] – Line No. 2 Column [3]. For example, the ",TEXT((M16*100),"#0.00"),"% in Column [4], Line No. 2 is derived as follows ",TEXT((M16*100),"#0.00"),"% = ",K14*100,"% - ",TEXT((K16*100),"#0.00"),"%.") -> Line No. 1 Column [3] – Line No. 2 Column [3]. For example, the 0.62% in Column [4], Line No. 2 is derived as follows 0.62% = 1.37% - 0.75%.

Sheet 9.2 Market Cap
A1: =Input!G28 -> Peoples Gas System
A2: =CONCATENATE("Market Capitalization of ",A1," and the") -> Market Capitalization of Peoples Gas System and the
A3: =Input!I29 -> Utility Proxy Group
F6: [1] | H6: [2] | J6: [3] | L6: [4] | N6: [5] | P6: [6]
B8: Company | D8: Exchange | F8: =CONCATENATE("Common Stock Shares Outstanding at Fiscal Year End ",YEAR(Input!G49)) -> Common Stock Shares Outstanding at Fiscal Year End 2021 | H8: Book Value per Share at Fiscal Year End 2021 (1) | J8: =CONCATENATE("Total Common Equity at Fiscal Year End ",YEAR(Input!G49)) -> Total Common Equity at Fiscal Year End 2021 | L8: =CONCATENATE("Closing Stock Market Price on ",TEXT(Input!E2,"mmmm dd, yyyy")) -> Closing Stock Market Price on December 30, 2022 | N8: =CONCATENATE("Market-to-Book Ratio on ",TEXT(Input!E2,"mmmm dd, yyyy")," (2)") -> Market-to-Book Ratio on December 30, 2022 (2) | P8: =CONCATENATE("Market Capitalization on ",TEXT(Input!E2,"mmmm dd, yyyy")," (3)") -> Market Capitalization on December 30, 2022 (3)
F9: ( millions ) | J9: ( millions ) | P9: ( millions )
B11: =Input!G28 -> Peoples Gas System | F11: NA | H11: NA | J11: =(Input!G43)/1000000*Input!F14 -> 1124.117136 | K11: (4) | L11: NA
B13: =CONCATENATE("Based upon ",B16) -> Based upon Proxy Group of Six Natural Gas Companies | N13: =N24 -> 193.9 | O13: (5) | P13: =IFERROR(N13*J11/100,"NA") -> 2179.663127 | Q13: (6)
B16: =Input!I30 -> Proxy Group of Six Natural Gas Companies
A17: =Input!A2 -> ATO | B17: ='Proxy Data Lookup'!B3 -> Atmos Energy Corporation | D17: =Input!B2 -> NYSE | F17: =INDIRECT("'3. "&$A17&"'!C15")/1000000 -> 132.419754 | H17: =IFERROR(ROUND(J17/F17,3),"NA") -> 59.711 | J17: =INDIRECT("'3. "&$A17&"'!C16")/1000000 -> 7906.889 | L17: =HLOOKUP(A17,'Proxy Price Data'!$D$1:$I$3,3,FALSE) -> 112.07 | N17: =IFERROR(ROUND(L17/H17*100,1),"NA") -> 187.7 | O17: % | P17: =IFERROR(ROUND(F17*L17,3),"NA") -> 14840.282
A18: =Input!A3 -> NJR | B18: ='Proxy Data Lookup'!B4 -> New Jersey Resources Corporation | D18: =Input!B3 -> NYSE | F18: =INDIRECT("'3. "&$A18&"'!C15")/1000000 -> 95.709662 | H18: 17.04 | J18: =INDIRECT("'3. "&$A18&"'!C16")/1000000 -> 1630.862 | L18: =HLOOKUP(A18,'Proxy Price Data'!$D$1:$I$3,3,FALSE) -> 49.62 | N18: 291.2 | P18: 4749.113
A19: =Input!A4 -> NI | B19: ='Proxy Data Lookup'!B5 -> NiSource Inc. | D19: =Input!B4 -> NYSE | F19: =INDIRECT("'3. "&$A19&"'!C15")/1000000 -> 405.303023 | H19: 13.325 | J19: =INDIRECT("'3. "&$A19&"'!C16")/1000000 -> 5400.8 | L19: =HLOOKUP(A19,'Proxy Price Data'!$D$1:$I$3,3,FALSE) -> 27.42 | N19: 205.8 | P19: 11113.409
A20: =Input!A5 -> NWN | B20: ='Proxy Data Lookup'!B6 -> Northwest Natural Holding Company | D20: =Input!B5 -> NYSE | F20: =INDIRECT("'3. "&$A20&"'!C15")/1000000 -> 31.129 | H20: 30.041 | J20: =INDIRECT("'3. "&$A20&"'!C16")/1000000 -> 935.146 | L20: =HLOOKUP(A20,'Proxy Price Data'!$D$1:$I$3,3,FALSE) -> 47.59 | N20: 158.4 | P20: 1481.429
A21: =Input!A6 -> OGS | B21: ='Proxy Data Lookup'!B7 -> ONE Gas, Inc. | D21: =Input!B6 -> NYSE | F21: =INDIRECT("'3. "&$A21&"'!C15")/1000000 -> 53.63321 | H21: 43.807 | J21: =INDIRECT("'3. "&$A21&"'!C16")/1000000 -> 2349.532 | L21: =HLOOKUP(A21,'Proxy Price Data'!$D$1:$I$3,3,FALSE) -> 75.72 | N21: 172.8 | P21: 4061.107
A22: =Input!A7 -> SR | B22: ='Proxy Data Lookup'!B8 -> Spire Inc. | D22: =Input!B7 -> NYSE | F22: =INDIRECT("'3. "&$A22&"'!C15")/1000000 -> 51.684883 | H22: 46.749 | J22: =INDIRECT("'3. "&$A22&"'!C16")/1000000 -> 2416.2 | L22: =HLOOKUP(A22,'Proxy Price Data'!$D$1:$I$3,3,FALSE) -> 68.86 | N22: 147.3 | P22: 3559.021
B24: Average | F24: =ROUND(AVERAGE(F16:F23),3) -> 128.313 | H24: =ROUND(AVERAGE(H16:H23),3) -> 35.112 | J24: =ROUND(AVERAGE(J16:J23),3) -> 3439.905 | L24: =ROUND(AVERAGE(L16:L23),3) -> 63.547 | N24: =ROUND(AVERAGE(N16:N23),1) -> 193.9 | O24: % | P24: =ROUND(AVERAGE(P16:P23),3) -> 6634.06
C28: NA= Not Available
D30: Notes: | E30: (1) | F30: Column 3 / Column 1.
E31: (2) | F31: Column 4 / Column 2.
E32: (3) | F32: Column 1 * Column 4.
E33: (4) | F33: Requested rate base multiplied by the requested common equity ratio.
E34: (5) | F34: =CONCATENATE("The market-to-book ratio of ",Input!G28," on ",TEXT(Input!E2,"mmmm dd, yyyy")," is assumed to be equal to the market-to-book ratio of ",'9.2 Market Cap'!B3," on ",TEXT(Input!E2,"mmmm dd, yyyy")," as appropriate.") -> The market-to-book ratio of Peoples Gas System on December 30, 2022 is assumed to be equal to the market-to-book ratio of on December 30, 2022 as appropriate.
E35: (6) | F35: Column [3] multiplied by Column [5].
B38: Source of Information: | C38: =CONCATENATE(YEAR(Input!G49)," Annual Forms 10K.") -> 2021 Annual Forms 10K.
C39: yahoo.finance.com.
C40: Bloomberg Professional Services.

Sheet 10.1 CAPEX to Net Plant
C2: Value Line Date | D2: 2022-11-30 | E2: =D2 -> 2022-11-30 | F2: =E2 -> 2022-11-30 | G2: 2022-11-30 | H2: 2022-11-30 | I2: 2022-11-30 | R2: =Input!G28 -> Peoples Gas System
A3: 1 | D3: ATO | E3: NJR | F3: NI | G3: NWN | H3: OGS | I3: SR | K3: Peoples Gas | N3: Ticker | O3: % Net Plant | R3: Comparison of Projected Capital Expenditures Relative to Net Plant
A4: 2 | B4: CAPEX/Shr | C4: 2022 | D4: 17.2 | E4: 6.05 | F4: 6.15 | G4: 9.5 | H4: 9.55 | I4: 10.5 | K4: 399.1167587 | L4: Company provided data | N4: OGS | O4: =HLOOKUP(N4,D$3:K$26,A$23,FALSE) -> 0.3064526556
A5: 3 | C5: 2023 | D5: 18.5 | E5: 5.15 | F5: 7.35 | G5: 7.75 | H5: 9.75 | I5: 13.35 | K5: 362.4047038 | L5: Company provided data | N5: NWN | O5: 0.3163333024
A6: 4 | C6: 2024 | D6: =D5+((D$8-D$5)/3) -> 18.33333333 | E6: =E5+((E$8-E$5)/3) -> 6.266666667 | F6: 7.316666667 | G6: 8.333333333 | H6: 9.866666667 | I6: 12.9 | K6: 310.629852 | L6: Company provided data | N6: SR | O6: 0.3804755029
A7: 5 | C7: 2025 | D7: =D6+((D$8-D$5)/3) -> 18.16666667 | E7: 7.383333333 | F7: 7.283333333 | G7: 8.916666667 | H7: 9.983333333 | I7: 12.45 | K7: 312.654106 | L7: Company provided data | N7: NJR | O7: 0.4106200968
A8: 6 | C8: 2025-2027 | D8: 18 | E8: 8.5 | F8: 7.25 | G8: 9.5 | H8: 10.1 | I8: 12 | K8: 274.730436 | L8: Company provided data | N8: NI | O8: 0.4742565771
A9: 7 | C9: 2027 | D9: =D8+(D$8-D$7) -> 17.83333333 | E9: =E8+(E$8-E$7) -> 9.616666667 | F9: 7.216666667 | G9: 10.08333333 | H9: 10.21666667 | I9: 11.55 | N9: ATO | O9: 0.5189200153
A10: 8 | N10: Peoples Gas | O10: 0.6028321749
A11: 9 | B11: Common Shrs Outst'g | C11: 2022 | D11: 142 | E11: 98 | F11: 406 | G11: 35 | H11: 54.5 | I11: 52.5
A12: 10 | C12: 2023 | D12: 146 | E12: 99 | F12: 408 | G12: 35.5 | H12: 54.5 | I12: 52.5 | N12: Proxy Group Median | O12: =MEDIAN(O4:O9) -> 0.3955477998
A13: 11 | C13: 2024 | D13: =D12+((D$8-D$5)/3) -> 145.8333333 | E13: =E12+((E$8-E$5)/3) -> 100.1166667 | F13: 407.9666667 | G13: 36.08333333 | H13: 54.61666667 | I13: 52.05
A14: 12 | C14: 2025 | D14: =D13+((D$8-D$5)/3) -> 145.6666667 | E14: 101.2333333 | F14: 407.9333333 | G14: 36.66666667 | H14: 54.73333333 | I14: 51.6 | N14: Diff. from Median | O14: =O10-O12 -> 0.2072843751
A15: 13 | C15: 2025-2027 | D15: 155 | E15: 100 | F15: 415 | G15: 38 | H15: 57 | I15: 55
A16: 14 | C16: 2027 | D16: =D15+(D$8-D$7) -> 154.8333333 | E16: =E15+(E$8-E$7) -> 101.1166667 | F16: 414.9666667 | G16: 38.58333333 | H16: 57.11666667 | I16: 54.55 | O16: =O14/O12 -> 0.5240438075
A17: 15
A18: 16
A19: 17 | B19: Net Plant ($ mill) | C19: 2021 | D19: 15064 | E19: 4213.5 | F19: 17882 | G19: 2871.4 | H19: 5190.8 | I19: 5055.7 | K19: =1778523707/1000000 -> 1778.523707 | L19: Peoples Gas, 2021 Annual Report (Net Utility Plant), p. 6
A20: 18
A21: 19
A22: 20 | B22: 2022-2024 CAPEX ($ mil) | D22: =(D4*D11)+(D5*D12)+(D6*D13) -> 7817.011111 | E22: 1730.147778 | F22: 8480.656111 | G22: 908.3194444 | H22: 1590.734444 | I22: 1923.57 | K22: =SUM(K4:K6) -> 1072.151314
A23: 21 | B23: % 2021 Net Plant | D23: =D22/D19 -> 0.5189200153 | E23: 0.4106200968 | F23: 0.4742565771 | G23: 0.3163333024 | H23: 0.3064526556 | I23: 0.3804755029 | K23: =K22/K19 -> 0.6028321749
S24: Sources of Information:
T25: Value Line
B26: Source: Value Line | D26: =D3 -> ATO | E26: =E3 -> NJR | F26: NI | G26: NWN | H26: OGS | I26: SR | T26: Peoples Gas, 2021 Annual Report
T27: Company provided data

Sheet Input
A1: Utility Proxy Group | B1: Proxy Company - Exchange | C1: CEM Proxy Group | E1: Growth Rate Input Date
A2: ATO | B2: NYSE | C2: A | E2: 2022-12-30
A3: NJR | B3: NYSE | C3: ABT
A4: NI | B4: NYSE | C4: ADI | E4: User Computer Title
A5: NWN | B5: NYSE | C5: AIZ
A6: OGS | B6: NYSE | C6: AOS
A7: SR | B7: NYSE | C7: APD | E7: Recommended Common Equity Cost Rate
C8: BFB
C9: BMY
C10: BR | E10: DATA INPUTS
C11: CACI
C12: CHE | E12: Capital Structure | G12: Source:
C13: CSWI | E13: Long-Term Debt % | F13: 0.4047656535 | G13: Company
C14: DGX | E14: Equity % | F14: 0.5467553271 | G14: Company
C15: EXPO | E15: Short-Term Debt % | F15: 0.04847901943 | G15: Company
C16: INGR | E16: Long-Term Debt Cost (%) | F16: 0.0554 | G16: Company
C17: JJSF | E17: Short-Term Debt Cost (%) | F17: 0.0485 | G17: Company
C18: JKHY
C19: MKC
C20: MRK | E20: SBBI (1926-2021) | G20: Notes:
C21: MSCI | E21: SBBI Common Stocks Total Return (%) | F21: 12.37 | G21: Update annually from Stocks, Bonds, Bills, and Inflation - Kroll® SBBI® Market Report
C22: MSI | E22: SBBI Long-Term Gov't Bonds Income (%) | F22: 5.02 | G22: Update annually from Stocks, Bonds, Bills, and Inflation - Kroll® SBBI® Market Report
C23: NEU
C24: NOC | E24: VL Appr Potential Week Ending: | G24: PRPM Date ("Month Year") | I24: Blue Chip Update Date ("Month Day, Year")
C25: ODFL | E25: 2022-12-30 | G25: December 2022 | I25: January 1, 2023 and December 2, 2022
C26: ORCL
C27: PGR | E27: S&P Utilities Index Companies | G27: Company Name | I27: Abbreviated
C28: POST | E28: AEE | G28: Peoples Gas System | I28: PGS
C29: RLI | E29: AEP | I29: Utility Proxy Group
C30: ROL | E30: AES | G30: Regulatory Jurisdiction | I30: Proxy Group of Six Natural Gas Companies
C31: SHW | E31: ATO | G31: Florida Public Service Commission | I31: Proxy Group of Thirty Nine Non-Price Regulated Companies
C32: SIGI | E32: AWK
C33: SIRI | E33: CEG | G33: Industry ("Natural Gas", "Water", "Electric")
C34: SXT | E34: CMS | G34: Natural Gas
C35: TMO | E35: CNP | H35: - If Data not available, input NA
C36: TXN | E36: D | G36: Common Stock Shares Outstanding at Fiscal Year End
C37: VRSN | E37: DTE | G37: NA
C38: WAT | E38: DUK
C39: WSO | E39: ED | G39: Book Value per Share at Fiscal Year End
C40: WU | E40: EIX | G40: NA
A41: =COUNTA(A2:A40) -> 6 | C41: =COUNTA(C2:C40) -> 39 | E41: ES
E42: ETR | G42: Rate Base
E43: EVRG | G43: 2055978389 | H43: Company Provided
E44: EXC
E45: FE | G45: Closing Stock Market Price
E46: LNT | G46: NA
E47: NEE
E48: NI | G48: Date of Annual Report Filing ("'Month Day, Year")
E49: NRG | G49: December 31, 2021
E50: PCG
E51: PEG | G51: Business Risk Adjustment
E52: PNW | G52: NA
E53: PPL
E54: SO
E55: SRE
E56: WEC
E57: XEL

Sheet Market Data
A1: Bond Index - Date | B1: 2022-12-31 | C1: =EDATE(B1,-1) -> 2022-11-30 | D1: =EDATE(C1,-1) -> 2022-10-30
A2: MOODUA Index | B2: 5.27 | C2: 5.75 | D2: 5.88
A3: MOODUBAA Index | B3: 5.56 | C3: 6.05 | D3: 6.18
A4: MOODCAAA Index | B4: 4.41 | C4: 4.9 | D4: 5.1
A5: MOODCAA Index | B5: 4.75 | C5: 5.23 | D5: 5.4
A6: MOODCA Index | B6: 5.1 | C6: 5.58 | D6: 5.74
A7: MOODCBAA Index | B7: 5.58 | C7: 6.07 | D7: 6.26
A9: Historical Risk Premium Data
A10: Arithmetic Mean of Monthly Returns on Large Company Common Stocks (1928 - 2021) | B10: 0.1211
A11: Arithmetic Mean of Moody's Aaa and Aa Corporate Bond Yields (1928 - 2021) | B11: 0.0598
A12: Arithmetic Mean Holding Period Returns on the S&P Utility Index (1928 - 2021) | B12: 0.1074
A13: Arithmetic Mean on Moody's A Rated Public Utility Bond Yields (1928 - 2021) | B13: 0.0646

Sheet Proxy Data Lookup
C1: EPS Growth Rates | F1: Beta | I1: Annual Div. | J1: Value Line Beta Calculation | N1: Bond Ratings
A2: Ticker | B2: Company Name | C2: Zacks | D2: Yahoo | E2: Value Line | F2: Value Line | G2: Bloomberg | H2: Unadjusted | J2: R Factor | K2: Std. Error | L2: Std. Dev Y | M2: Std. Dev Beta | N2: S&P | O2: Moody's | Q2: S&P | R2: Moody's | U2: S&P | V2: Moody's
A3: =Input!A2 -> ATO | B3: Atmos Energy Corporation | C3: 0.075 | D3: 0.0816 | E3: 0.075 | F3: 0.8 | G3: 0.7347556353 | H3: 0.68 | I3: 2.96 | J3: 0.5257 | K3: 2.7458 | L3: 3.2216 | M3: 0.0684 | N3: A- | O3: A1 | Q3: BBB+ | R3: Baa1 | S3: Northern Indiana Public Service Company | T3: NI | U3: =IFERROR(VLOOKUP(Q3,'4.6 Moody''s_S&P numbericl'!$F$6:$H$26,3,FALSE),"NR") -> 8 | V3: =IFERROR(VLOOKUP(R3,'4.6 Moody''s_S&P numbericl'!$B$6:$D$26,3,FALSE),"NR") -> 8
A4: =Input!A3 -> NJR | B4: New Jersey Resources Corporation | C4: 0.06 | D4: 0.06 | E4: 0.05 | F4: 1 | G4: 0.7065019608 | H4: 0.94 | I4: 1.56 | J4: 0.6195 | K4: 2.9752 | L4: 3.7826 | M4: 0.0741 | N4: NR | O4: A1
A5: =Input!A4 -> NI | B5: NiSource Inc. | C5: 0.068 | D5: 0.0635 | E5: 0.095 | F5: 0.85 | G5: 0.7371585965 | H5: 0.71 | I5: 0.94 | J5: 0.5855 | K5: 2.4801 | L5: 3.0535 | M5: 0.0617 | N5: BBB+ | O5: Baa1 | Q5: NR | R5: A1 | S5: New Jersey Natural Gas Co | T5: NJR | U5: =IFERROR(VLOOKUP(Q5,'4.6 Moody''s_S&P numbericl'!$F$6:$H$26,3,FALSE),"NR") -> NR | V5: =IFERROR(VLOOKUP(R5,'4.6 Moody''s_S&P numbericl'!$B$6:$D$26,3,FALSE),"NR") -> 5
A6: =Input!A5 -> NWN | B6: Northwest Natural Holding Company | C6: 0.043 | D6: 0.043 | E6: 0.065 | F6: 0.85 | G6: 0.5268401504 | H6: 0.7 | I6: 1.94 | J6: 0.4888 | K6: 3.1228 | L6: 3.5725 | M6: 0.0777 | N6: A+ | O6: Baa1
A7: =Input!A6 -> OGS | B7: ONE Gas, Inc. | C7: 0.05 | D7: 0.05 | E7: 0.065 | F7: 0.8 | G7: 0.5826290846 | H7: 0.66 | I7: 2.48 | J7: 0.5242 | K7: 2.7001 | L7: 3.1644 | M7: 0.0672 | N7: A- | O7: A3 | Q7: A+ | R7: Baa1 | S7: Northwest Natural Gas Company | T7: NWN | U7: =IFERROR(VLOOKUP(Q7,'4.6 Moody''s_S&P numbericl'!$F$6:$H$26,3,FALSE),"NR") -> 5 | V7: =IFERROR(VLOOKUP(R7,'4.6 Moody''s_S&P numbericl'!$B$6:$D$26,3,FALSE),"NR") -> 8
A8: =Input!A7 -> SR | B8: Spire Inc. | C8: 0.05 | D8: 0.08 | E8: 0.09 | F8: 0.85 | G8: 0.6924548745 | H8: 0.72 | I8: 2.88 | J8: 0.5401 | K8: 2.8255 | L8: 3.3509 | M8: 0.0703 | N8: A- | O8: A1/A2
Q9: A- | R9: A2 | S9: Spire Alabama Inc. | T9: SR | U9: =IFERROR(VLOOKUP(Q9,'4.6 Moody''s_S&P numbericl'!$F$6:$H$26,3,FALSE),"NR") -> 7 | V9: =IFERROR(VLOOKUP(R9,'4.6 Moody''s_S&P numbericl'!$B$6:$D$26,3,FALSE),"NR") -> 6
Q10: A- | R10: A1 | S10: Spire Missouri Inc. | T10: SR | U10: =IFERROR(VLOOKUP(Q10,'4.6 Moody''s_S&P numbericl'!$F$6:$H$26,3,FALSE),"NR") -> 7 | V10: =IFERROR(VLOOKUP(R10,'4.6 Moody''s_S&P numbericl'!$B$6:$D$26,3,FALSE),"NR") -> 5
U11: =AVERAGE(U9:U10) -> 7 | V11: =AVERAGE(V9:V10) -> 5.5
C16: `

Sheet Proxy Price Data
A1: Lookup Reference | C1: Tickers | D1: ATO | E1: NJR | F1: NI | G1: NWN | H1: OGS | I1: SR
C2: PX_LAST | D2: =D1&" US Equity" -> ATO US Equity | E2: =E1&" US Equity" -> NJR US Equity | F2: =F1&" US Equity" -> NI US Equity | G2: =G1&" US Equity" -> NWN US Equity | H2: =H1&" US Equity" -> OGS US Equity | I2: =I1&" US Equity" -> SR US Equity
A3: 2 | B3: 1 | C3: 2022-12-30 | D3: 112.07 | E3: 49.62 | F3: 27.42 | G3: 47.59 | H3: 75.72 | I3: 68.86
A4: =A3+1 -> 3 | B4: 2 | C4: 2022-12-29 | D4: 114.49 | E4: 50.01 | F4: 27.84 | G4: 48.27 | H4: 76.74 | I4: 70.19
A5: =A4+1 -> 4 | B5: 3 | C5: 2022-12-28 | D5: 115.07 | E5: 49.19 | F5: 27.55 | G5: 47.31 | H5: 75.53 | I5: 69.28
A6: 5 | B6: 4 | C6: 2022-12-27 | D6: 115.58 | E6: 49.53 | F6: 27.8 | G6: 47.88 | H6: 75.92 | I6: 69.93
A7: 6 | B7: 5 | C7: 2022-12-23 | D7: 115.1 | E7: 49.64 | F7: 27.71 | G7: 47.72 | H7: 75.54 | I7: 69.7
A8: 7 | B8: 6 | C8: 2022-12-22 | D8: 114.03 | E8: 48.8 | F8: 27.42 | G8: 46.75 | H8: 74.92 | I8: 68.47
A9: 8 | B9: 7 | C9: 2022-12-21 | D9: 114.58 | E9: 49.25 | F9: 27.55 | G9: 47.34 | H9: 75.48 | I9: 68.34
A10: 9 | B10: 8 | C10: 2022-12-20 | D10: 113.07 | E10: 48.65 | F10: 27.07 | G10: 47.21 | H10: 75.04 | I10: 66.56
A11: 10 | B11: 9 | C11: 2022-12-19 | D11: 113.48 | E11: 48.52 | F11: 27.05 | G11: 46.83 | H11: 74.69 | I11: 66.4
A12: 11 | B12: 10 | C12: 2022-12-16 | D12: 114.77 | E12: 48.57 | F12: 27.19 | G12: 46.34 | H12: 74.32 | I12: 65.8
A13: 12 | B13: 11 | C13: 2022-12-15 | D13: 116.86 | E13: 49.11 | F13: 27.44 | G13: 46.91 | H13: 76.24 | I13: 66.87
A14: 13 | B14: 12 | C14: 2022-12-14 | D14: 118.34 | E14: 49.88 | F14: 27.82 | G14: 47.33 | H14: 78.88 | I14: 67.85
A15: 14 | B15: 13 | C15: 2022-12-13 | D15: 118.53 | E15: 49.72 | F15: 27.93 | G15: 47.88 | H15: 78.33 | I15: 68
A16: 15 | B16: 14 | C16: 2022-12-12 | D16: 119 | E16: 50.71 | F16: 28.08 | G16: 48.36 | H16: 78.79 | I16: 68.42
A17: 16 | B17: 15 | C17: 2022-12-09 | D17: 117.67 | E17: 49.91 | F17: 27.39 | G17: 47.97 | H17: 77.18 | I17: 67.7
A18: 17 | B18: 16 | C18: 2022-12-08 | D18: 117.5 | E18: 49.85 | F18: 27.77 | G18: 47.82 | H18: 77.07 | I18: 68.81
A19: 18 | B19: 17 | C19: 2022-12-07 | D19: 117.41 | E19: 49.86 | F19: 27.67 | G19: 48.21 | H19: 76.2 | I19: 68.79
A20: 19 | B20: 18 | C20: 2022-12-06 | D20: 117.44 | E20: 49.6 | F20: 27.84 | G20: 47.54 | H20: 76.31 | I20: 67.52
A21: 20 | B21: 19 | C21: 2022-12-05 | D21: 115.86 | E21: 48.72 | F21: 27.51 | G21: 47.33 | H21: 73.31 | I21: 65.13
A22: 21 | B22: 20 | C22: 2022-12-02 | D22: 116.54 | E22: 48.77 | F22: 27.57 | G22: 46.68 | H22: 72.84 | I22: 68.74
A23: 22 | B23: 21 | C23: 2022-12-01 | D23: 117.49 | E23: 48.56 | F23: 27.75 | G23: 47.65 | H23: 71.61 | I23: 71.19
A24: 23 | B24: 22 | C24: 2022-11-30 | D24: 120.2 | E24: 49.75 | F24: 27.94 | G24: 50.11 | H24: 86.95 | I24: 74.1
A25: 24 | B25: 23 | C25: 2022-11-29 | D25: 118.64 | E25: 48.81 | F25: 27.23 | G25: 49.41 | H25: 85.15 | I25: 73.12
A26: 25 | B26: 24 | C26: 2022-11-28 | D26: 118.07 | E26: 48.82 | F26: 27.22 | G26: 49.32 | H26: 86.55 | I26: 73.67
A27: 26 | B27: 25 | C27: 2022-11-25 | D27: 119.16 | E27: 49.64 | F27: 27.29 | G27: 49.59 | H27: 88.33 | I27: 74.67
A28: 27 | B28: 26 | C28: 2022-11-23 | D28: 118.58 | E28: 49.25 | F28: 27.18 | G28: 49.61 | H28: 87.54 | I28: 73.66
A29: 28 | B29: 27 | C29: 2022-11-22 | D29: 117.51 | E29: 49.89 | F29: 26.8 | G29: 49.74 | H29: 87.15 | I29: 73.29
A30: 29 | B30: 28 | C30: 2022-11-21 | D30: 115.79 | E30: 48.93 | F30: 26.55 | G30: 49.32 | H30: 85.83 | I30: 72.45
A31: 30 | B31: 29 | C31: 2022-11-18 | D31: 115.05 | E31: 47.95 | F31: 26.32 | G31: 48.69 | H31: 84.87 | I31: 70.86
A32: 31 | B32: 30 | C32: 2022-11-17 | D32: 111.16 | E32: 45.58 | F32: 25.56 | G32: 47.4 | H32: 82.07 | I32: 68.6
A33: 32 | B33: 31 | C33: 2022-11-16 | D33: 112.3 | E33: 44.82 | F33: 26 | G33: 47.87 | H33: 81.53 | I33: 67.76
A34: 33 | B34: 32 | C34: 2022-11-15 | D34: 111.58 | E34: 45.11 | F34: 25.68 | G34: 47.91 | H34: 81.91 | I34: 70.01
A35: 34 | B35: 33 | C35: 2022-11-14 | D35: 110.53 | E35: 44.45 | F35: 25.76 | G35: 47.49 | H35: 81.47 | I35: 69.55
A36: 35 | B36: 34 | C36: 2022-11-11 | D36: 110.69 | E36: 45.13 | F36: 25.81 | G36: 47.19 | H36: 81.36 | I36: 70.54
A37: 36 | B37: 35 | C37: 2022-11-10 | D37: 111.8 | E37: 46 | F37: 26.09 | G37: 47.08 | H37: 82.31 | I37: 71.11
A38: 37 | B38: 36 | C38: 2022-11-09 | D38: 103.15 | E38: 43.92 | F38: 24.89 | G38: 45.4 | H38: 78.29 | I38: 68.41
A39: 38 | B39: 37 | C39: 2022-11-08 | D39: 104.64 | E39: 44.17 | F39: 24.93 | G39: 44.52 | H39: 78.22 | I39: 67.98
A40: 39 | B40: 38 | C40: 2022-11-07 | D40: 103.97 | E40: 43.39 | F40: 24.37 | G40: 44.94 | H40: 77.77 | I40: 67.43
A41: 40 | B41: 39 | C41: 2022-11-04 | D41: 106.03 | E41: 44.28 | F41: 25.89 | G41: 46.64 | H41: 80.9 | I41: 68.48
A42: 41 | B42: 40 | C42: 2022-11-03 | D42: 104.74 | E42: 44.26 | F42: 25.66 | G42: 46.1 | H42: 79.93 | I42: 67.93
A43: 42 | B43: 41 | C43: 2022-11-02 | D43: 105.55 | E43: 44.52 | F43: 25.62 | G43: 46.8 | H43: 79.37 | I43: 69.18
A44: 43 | B44: 42 | C44: 2022-11-01 | D44: 106.27 | E44: 45.11 | F44: 25.83 | G44: 47.75 | H44: 80.03 | I44: 70.35
A45: 44 | B45: 43 | C45: 2022-10-31 | D45: 106.55 | E45: 44.64 | F45: 25.69 | G45: 48.09 | H45: 77.48 | I45: 69.81
A46: 45 | B46: 44 | C46: 2022-10-28 | D46: 107.11 | E46: 45.28 | F46: 25.89 | G46: 48.12 | H46: 77.2 | I46: 69.7
A47: 46 | B47: 45 | C47: 2022-10-27 | D47: 104.69 | E47: 44.44 | F47: 25.37 | G47: 47.45 | H47: 75.59 | I47: 69.1
A48: 47 | B48: 46 | C48: 2022-10-26 | D48: 103.42 | E48: 43.65 | F48: 25.17 | G48: 46.67 | H48: 74.45 | I48: 67.93
A49: 48 | B49: 47 | C49: 2022-10-25 | D49: 103.32 | E49: 42.98 | F49: 25.13 | G49: 46.43 | H49: 73.71 | I49: 66.9
A50: 49 | B50: 48 | C50: 2022-10-24 | D50: 101.35 | E50: 42.19 | F50: 24.67 | G50: 45.45 | H50: 72.98 | I50: 65.6
A51: 50 | B51: 49 | C51: 2022-10-21 | D51: 101.74 | E51: 42.08 | F51: 24.49 | G51: 45.81 | H51: 73.08 | I51: 65.36
A52: 51 | B52: 50 | C52: 2022-10-20 | D52: 100.11 | E52: 40.77 | F52: 24.15 | G52: 45.15 | H52: 72.39 | I52: 64.8
A53: 52 | B53: 51 | C53: 2022-10-19 | D53: 102.04 | E53: 41.19 | F53: 24.88 | G53: 46.19 | H53: 73.8 | I53: 65.49
A54: 53 | B54: 52 | C54: 2022-10-18 | D54: 101.75 | E54: 41.13 | F54: 25.27 | G54: 46.87 | H54: 73.75 | I54: 65.86
A55: 54 | B55: 53 | C55: 2022-10-17 | D55: 99.63 | E55: 40.43 | F55: 24.89 | G55: 45.96 | H55: 72.38 | I55: 64.7
A56: 55 | B56: 54 | C56: 2022-10-14 | D56: 98.11 | E56: 39.48 | F56: 24.49 | G56: 45.31 | H56: 70.54 | I56: 63.2
A57: 56 | B57: 55 | C57: 2022-10-13 | D57: 101.46 | E57: 40.14 | F57: 25.24 | G57: 45.61 | H57: 71.96 | I57: 65.36
A58: 57 | B58: 56 | C58: 2022-10-12 | D58: 99.26 | E58: 38.77 | F58: 24.19 | G58: 43.95 | H58: 70.03 | I58: 62.94
A59: 58 | B59: 57 | C59: 2022-10-11 | D59: 102.2 | E59: 39.91 | F59: 24.87 | G59: 44.56 | H59: 72 | I59: 63.62
A60: 59 | B60: 58 | C60: 2022-10-10 | D60: 99.88 | E60: 39.28 | F60: 24.52 | G60: 42.79 | H60: 70.53 | I60: 62.04
A61: 60 | B61: 59 | C61: 2022-10-07 | D61: 99.39 | E61: 38.97 | F61: 24.51 | G61: 42.73 | H61: 70.29 | I61: 62
A62: 61 | B62: 60 | C62: 2022-10-06 | D62: 100.81 | E62: 39.76 | F62: 25.1 | G62: 43.31 | H62: 71.16 | I62: 62.97
A63: =#REF!+1 -> 
A68: =A67+1 -> 
A91: =A90+1 -> 

Sheet Proxy Prices
B4: ='Proxy Price Data'!D1 -> ATO | C4: ='Proxy Price Data'!E1 -> NJR | D4: ='Proxy Price Data'!F1 -> NI | E4: ='Proxy Price Data'!G1 -> NWN | F4: ='Proxy Price Data'!H1 -> OGS | G4: ='Proxy Price Data'!I1 -> SR
A5: =IF('Proxy Price Data'!C2="","",'Proxy Price Data'!C2) -> PX_LAST | B5: ='Proxy Price Data'!D2 -> ATO US Equity | C5: ='Proxy Price Data'!E2 -> NJR US Equity | D5: ='Proxy Price Data'!F2 -> NI US Equity | E5: ='Proxy Price Data'!G2 -> NWN US Equity | F5: ='Proxy Price Data'!H2 -> OGS US Equity | G5: ='Proxy Price Data'!I2 -> SR US Equity
A6: =IF('Proxy Price Data'!C3="","",'Proxy Price Data'!C3) -> 2022-12-30 | B6: =IF('Proxy Price Data'!D3="","",'Proxy Price Data'!D3) -> 112.07 | C6: =IF('Proxy Price Data'!E3="","",'Proxy Price Data'!E3) -> 49.62 | D6: =IF('Proxy Price Data'!F3="","",'Proxy Price Data'!F3) -> 27.42 | E6: =IF('Proxy Price Data'!G3="","",'Proxy Price Data'!G3) -> 47.59 | F6: =IF('Proxy Price Data'!H3="","",'Proxy Price Data'!H3) -> 75.72 | G6: =IF('Proxy Price Data'!I3="","",'Proxy Price Data'!I3) -> 68.86
A7: =IF('Proxy Price Data'!C4="","",'Proxy Price Data'!C4) -> 2022-12-29 | B7: =IF('Proxy Price Data'!D4="","",'Proxy Price Data'!D4) -> 114.49 | C7: =IF('Proxy Price Data'!E4="","",'Proxy Price Data'!E4) -> 50.01 | D7: =IF('Proxy Price Data'!F4="","",'Proxy Price Data'!F4) -> 27.84 | E7: =IF('Proxy Price Data'!G4="","",'Proxy Price Data'!G4) -> 48.27 | F7: =IF('Proxy Price Data'!H4="","",'Proxy Price Data'!H4) -> 76.74 | G7: =IF('Proxy Price Data'!I4="","",'Proxy Price Data'!I4) -> 70.19
A8: =IF('Proxy Price Data'!C5="","",'Proxy Price Data'!C5) -> 2022-12-28 | B8: =IF('Proxy Price Data'!D5="","",'Proxy Price Data'!D5) -> 115.07 | C8: =IF('Proxy Price Data'!E5="","",'Proxy Price Data'!E5) -> 49.19 | D8: =IF('Proxy Price Data'!F5="","",'Proxy Price Data'!F5) -> 27.55 | E8: =IF('Proxy Price Data'!G5="","",'Proxy Price Data'!G5) -> 47.31 | F8: =IF('Proxy Price Data'!H5="","",'Proxy Price Data'!H5) -> 75.53 | G8: =IF('Proxy Price Data'!I5="","",'Proxy Price Data'!I5) -> 69.28
A9: =IF('Proxy Price Data'!C6="","",'Proxy Price Data'!C6) -> 2022-12-27 | B9: =IF('Proxy Price Data'!D6="","",'Proxy Price Data'!D6) -> 115.58 | C9: =IF('Proxy Price Data'!E6="","",'Proxy Price Data'!E6) -> 49.53 | D9: =IF('Proxy Price Data'!F6="","",'Proxy Price Data'!F6) -> 27.8 | E9: =IF('Proxy Price Data'!G6="","",'Proxy Price Data'!G6) -> 47.88 | F9: =IF('Proxy Price Data'!H6="","",'Proxy Price Data'!H6) -> 75.92 | G9: =IF('Proxy Price Data'!I6="","",'Proxy Price Data'!I6) -> 69.93
A10: =IF('Proxy Price Data'!C7="","",'Proxy Price Data'!C7) -> 2022-12-23 | B10: =IF('Proxy Price Data'!D7="","",'Proxy Price Data'!D7) -> 115.1 | C10: =IF('Proxy Price Data'!E7="","",'Proxy Price Data'!E7) -> 49.64 | D10: =IF('Proxy Price Data'!F7="","",'Proxy Price Data'!F7) -> 27.71 | E10: =IF('Proxy Price Data'!G7="","",'Proxy Price Data'!G7) -> 47.72 | F10: =IF('Proxy Price Data'!H7="","",'Proxy Price Data'!H7) -> 75.54 | G10: =IF('Proxy Price Data'!I7="","",'Proxy Price Data'!I7) -> 69.7
A11: =IF('Proxy Price Data'!C8="","",'Proxy Price Data'!C8) -> 2022-12-22 | B11: =IF('Proxy Price Data'!D8="","",'Proxy Price Data'!D8) -> 114.03 | C11: =IF('Proxy Price Data'!E8="","",'Proxy Price Data'!E8) -> 48.8 | D11: =IF('Proxy Price Data'!F8="","",'Proxy Price Data'!F8) -> 27.42 | E11: =IF('Proxy Price Data'!G8="","",'Proxy Price Data'!G8) -> 46.75 | F11: =IF('Proxy Price Data'!H8="","",'Proxy Price Data'!H8) -> 74.92 | G11: =IF('Proxy Price Data'!I8="","",'Proxy Price Data'!I8) -> 68.47
A12: =IF('Proxy Price Data'!C9="","",'Proxy Price Data'!C9) -> 2022-12-21 | B12: =IF('Proxy Price Data'!D9="","",'Proxy Price Data'!D9) -> 114.58 | C12: =IF('Proxy Price Data'!E9="","",'Proxy Price Data'!E9) -> 49.25 | D12: =IF('Proxy Price Data'!F9="","",'Proxy Price Data'!F9) -> 27.55 | E12: =IF('Proxy Price Data'!G9="","",'Proxy Price Data'!G9) -> 47.34 | F12: =IF('Proxy Price Data'!H9="","",'Proxy Price Data'!H9) -> 75.48 | G12: =IF('Proxy Price Data'!I9="","",'Proxy Price Data'!I9) -> 68.34
A13: =IF('Proxy Price Data'!C10="","",'Proxy Price Data'!C10) -> 2022-12-20 | B13: =IF('Proxy Price Data'!D10="","",'Proxy Price Data'!D10) -> 113.07 | C13: =IF('Proxy Price Data'!E10="","",'Proxy Price Data'!E10) -> 48.65 | D13: =IF('Proxy Price Data'!F10="","",'Proxy Price Data'!F10) -> 27.07 | E13: =IF('Proxy Price Data'!G10="","",'Proxy Price Data'!G10) -> 47.21 | F13: =IF('Proxy Price Data'!H10="","",'Proxy Price Data'!H10) -> 75.04 | G13: =IF('Proxy Price Data'!I10="","",'Proxy Price Data'!I10) -> 66.56
A14: =IF('Proxy Price Data'!C11="","",'Proxy Price Data'!C11) -> 2022-12-19 | B14: =IF('Proxy Price Data'!D11="","",'Proxy Price Data'!D11) -> 113.48 | C14: =IF('Proxy Price Data'!E11="","",'Proxy Price Data'!E11) -> 48.52 | D14: =IF('Proxy Price Data'!F11="","",'Proxy Price Data'!F11) -> 27.05 | E14: =IF('Proxy Price Data'!G11="","",'Proxy Price Data'!G11) -> 46.83 | F14: =IF('Proxy Price Data'!H11="","",'Proxy Price Data'!H11) -> 74.69 | G14: =IF('Proxy Price Data'!I11="","",'Proxy Price Data'!I11) -> 66.4
A15: =IF('Proxy Price Data'!C12="","",'Proxy Price Data'!C12) -> 2022-12-16 | B15: =IF('Proxy Price Data'!D12="","",'Proxy Price Data'!D12) -> 114.77 | C15: =IF('Proxy Price Data'!E12="","",'Proxy Price Data'!E12) -> 48.57 | D15: =IF('Proxy Price Data'!F12="","",'Proxy Price Data'!F12) -> 27.19 | E15: =IF('Proxy Price Data'!G12="","",'Proxy Price Data'!G12) -> 46.34 | F15: =IF('Proxy Price Data'!H12="","",'Proxy Price Data'!H12) -> 74.32 | G15: =IF('Proxy Price Data'!I12="","",'Proxy Price Data'!I12) -> 65.8
A16: =IF('Proxy Price Data'!C13="","",'Proxy Price Data'!C13) -> 2022-12-15 | B16: =IF('Proxy Price Data'!D13="","",'Proxy Price Data'!D13) -> 116.86 | C16: =IF('Proxy Price Data'!E13="","",'Proxy Price Data'!E13) -> 49.11 | D16: =IF('Proxy Price Data'!F13="","",'Proxy Price Data'!F13) -> 27.44 | E16: =IF('Proxy Price Data'!G13="","",'Proxy Price Data'!G13) -> 46.91 | F16: =IF('Proxy Price Data'!H13="","",'Proxy Price Data'!H13) -> 76.24 | G16: =IF('Proxy Price Data'!I13="","",'Proxy Price Data'!I13) -> 66.87
A17: =IF('Proxy Price Data'!C14="","",'Proxy Price Data'!C14) -> 2022-12-14 | B17: =IF('Proxy Price Data'!D14="","",'Proxy Price Data'!D14) -> 118.34 | C17: =IF('Proxy Price Data'!E14="","",'Proxy Price Data'!E14) -> 49.88 | D17: =IF('Proxy Price Data'!F14="","",'Proxy Price Data'!F14) -> 27.82 | E17: =IF('Proxy Price Data'!G14="","",'Proxy Price Data'!G14) -> 47.33 | F17: =IF('Proxy Price Data'!H14="","",'Proxy Price Data'!H14) -> 78.88 | G17: =IF('Proxy Price Data'!I14="","",'Proxy Price Data'!I14) -> 67.85
A18: =IF('Proxy Price Data'!C15="","",'Proxy Price Data'!C15) -> 2022-12-13 | B18: =IF('Proxy Price Data'!D15="","",'Proxy Price Data'!D15) -> 118.53 | C18: =IF('Proxy Price Data'!E15="","",'Proxy Price Data'!E15) -> 49.72 | D18: =IF('Proxy Price Data'!F15="","",'Proxy Price Data'!F15) -> 27.93 | E18: =IF('Proxy Price Data'!G15="","",'Proxy Price Data'!G15) -> 47.88 | F18: =IF('Proxy Price Data'!H15="","",'Proxy Price Data'!H15) -> 78.33 | G18: =IF('Proxy Price Data'!I15="","",'Proxy Price Data'!I15) -> 68
A19: =IF('Proxy Price Data'!C16="","",'Proxy Price Data'!C16) -> 2022-12-12 | B19: =IF('Proxy Price Data'!D16="","",'Proxy Price Data'!D16) -> 119 | C19: =IF('Proxy Price Data'!E16="","",'Proxy Price Data'!E16) -> 50.71 | D19: =IF('Proxy Price Data'!F16="","",'Proxy Price Data'!F16) -> 28.08 | E19: =IF('Proxy Price Data'!G16="","",'Proxy Price Data'!G16) -> 48.36 | F19: =IF('Proxy Price Data'!H16="","",'Proxy Price Data'!H16) -> 78.79 | G19: =IF('Proxy Price Data'!I16="","",'Proxy Price Data'!I16) -> 68.42
A20: =IF('Proxy Price Data'!C17="","",'Proxy Price Data'!C17) -> 2022-12-09 | B20: =IF('Proxy Price Data'!D17="","",'Proxy Price Data'!D17) -> 117.67 | C20: =IF('Proxy Price Data'!E17="","",'Proxy Price Data'!E17) -> 49.91 | D20: =IF('Proxy Price Data'!F17="","",'Proxy Price Data'!F17) -> 27.39 | E20: =IF('Proxy Price Data'!G17="","",'Proxy Price Data'!G17) -> 47.97 | F20: =IF('Proxy Price Data'!H17="","",'Proxy Price Data'!H17) -> 77.18 | G20: =IF('Proxy Price Data'!I17="","",'Proxy Price Data'!I17) -> 67.7
A21: =IF('Proxy Price Data'!C18="","",'Proxy Price Data'!C18) -> 2022-12-08 | B21: =IF('Proxy Price Data'!D18="","",'Proxy Price Data'!D18) -> 117.5 | C21: =IF('Proxy Price Data'!E18="","",'Proxy Price Data'!E18) -> 49.85 | D21: =IF('Proxy Price Data'!F18="","",'Proxy Price Data'!F18) -> 27.77 | E21: =IF('Proxy Price Data'!G18="","",'Proxy Price Data'!G18) -> 47.82 | F21: =IF('Proxy Price Data'!H18="","",'Proxy Price Data'!H18) -> 77.07 | G21: =IF('Proxy Price Data'!I18="","",'Proxy Price Data'!I18) -> 68.81
A22: =IF('Proxy Price Data'!C19="","",'Proxy Price Data'!C19) -> 2022-12-07 | B22: =IF('Proxy Price Data'!D19="","",'Proxy Price Data'!D19) -> 117.41 | C22: =IF('Proxy Price Data'!E19="","",'Proxy Price Data'!E19) -> 49.86 | D22: =IF('Proxy Price Data'!F19="","",'Proxy Price Data'!F19) -> 27.67 | E22: =IF('Proxy Price Data'!G19="","",'Proxy Price Data'!G19) -> 48.21 | F22: =IF('Proxy Price Data'!H19="","",'Proxy Price Data'!H19) -> 76.2 | G22: =IF('Proxy Price Data'!I19="","",'Proxy Price Data'!I19) -> 68.79
A23: =IF('Proxy Price Data'!C20="","",'Proxy Price Data'!C20) -> 2022-12-06 | B23: =IF('Proxy Price Data'!D20="","",'Proxy Price Data'!D20) -> 117.44 | C23: =IF('Proxy Price Data'!E20="","",'Proxy Price Data'!E20) -> 49.6 | D23: =IF('Proxy Price Data'!F20="","",'Proxy Price Data'!F20) -> 27.84 | E23: =IF('Proxy Price Data'!G20="","",'Proxy Price Data'!G20) -> 47.54 | F23: =IF('Proxy Price Data'!H20="","",'Proxy Price Data'!H20) -> 76.31 | G23: =IF('Proxy Price Data'!I20="","",'Proxy Price Data'!I20) -> 67.52
A24: =IF('Proxy Price Data'!C21="","",'Proxy Price Data'!C21) -> 2022-12-05 | B24: =IF('Proxy Price Data'!D21="","",'Proxy Price Data'!D21) -> 115.86 | C24: =IF('Proxy Price Data'!E21="","",'Proxy Price Data'!E21) -> 48.72 | D24: =IF('Proxy Price Data'!F21="","",'Proxy Price Data'!F21) -> 27.51 | E24: =IF('Proxy Price Data'!G21="","",'Proxy Price Data'!G21) -> 47.33 | F24: =IF('Proxy Price Data'!H21="","",'Proxy Price Data'!H21) -> 73.31 | G24: =IF('Proxy Price Data'!I21="","",'Proxy Price Data'!I21) -> 65.13
A25: =IF('Proxy Price Data'!C22="","",'Proxy Price Data'!C22) -> 2022-12-02 | B25: =IF('Proxy Price Data'!D22="","",'Proxy Price Data'!D22) -> 116.54 | C25: =IF('Proxy Price Data'!E22="","",'Proxy Price Data'!E22) -> 48.77 | D25: =IF('Proxy Price Data'!F22="","",'Proxy Price Data'!F22) -> 27.57 | E25: =IF('Proxy Price Data'!G22="","",'Proxy Price Data'!G22) -> 46.68 | F25: =IF('Proxy Price Data'!H22="","",'Proxy Price Data'!H22) -> 72.84 | G25: =IF('Proxy Price Data'!I22="","",'Proxy Price Data'!I22) -> 68.74
A26: =IF('Proxy Price Data'!C23="","",'Proxy Price Data'!C23) -> 2022-12-01 | B26: =IF('Proxy Price Data'!D23="","",'Proxy Price Data'!D23) -> 117.49 | C26: =IF('Proxy Price Data'!E23="","",'Proxy Price Data'!E23) -> 48.56 | D26: =IF('Proxy Price Data'!F23="","",'Proxy Price Data'!F23) -> 27.75 | E26: =IF('Proxy Price Data'!G23="","",'Proxy Price Data'!G23) -> 47.65 | F26: =IF('Proxy Price Data'!H23="","",'Proxy Price Data'!H23) -> 71.61 | G26: =IF('Proxy Price Data'!I23="","",'Proxy Price Data'!I23) -> 71.19
A27: =IF('Proxy Price Data'!C24="","",'Proxy Price Data'!C24) -> 2022-11-30 | B27: =IF('Proxy Price Data'!D24="","",'Proxy Price Data'!D24) -> 120.2 | C27: =IF('Proxy Price Data'!E24="","",'Proxy Price Data'!E24) -> 49.75 | D27: =IF('Proxy Price Data'!F24="","",'Proxy Price Data'!F24) -> 27.94 | E27: =IF('Proxy Price Data'!G24="","",'Proxy Price Data'!G24) -> 50.11 | F27: =IF('Proxy Price Data'!H24="","",'Proxy Price Data'!H24) -> 86.95 | G27: =IF('Proxy Price Data'!I24="","",'Proxy Price Data'!I24) -> 74.1
A28: =IF('Proxy Price Data'!C25="","",'Proxy Price Data'!C25) -> 2022-11-29 | B28: =IF('Proxy Price Data'!D25="","",'Proxy Price Data'!D25) -> 118.64 | C28: =IF('Proxy Price Data'!E25="","",'Proxy Price Data'!E25) -> 48.81 | D28: =IF('Proxy Price Data'!F25="","",'Proxy Price Data'!F25) -> 27.23 | E28: =IF('Proxy Price Data'!G25="","",'Proxy Price Data'!G25) -> 49.41 | F28: =IF('Proxy Price Data'!H25="","",'Proxy Price Data'!H25) -> 85.15 | G28: =IF('Proxy Price Data'!I25="","",'Proxy Price Data'!I25) -> 73.12
A29: =IF('Proxy Price Data'!C26="","",'Proxy Price Data'!C26) -> 2022-11-28 | B29: =IF('Proxy Price Data'!D26="","",'Proxy Price Data'!D26) -> 118.07 | C29: =IF('Proxy Price Data'!E26="","",'Proxy Price Data'!E26) -> 48.82 | D29: =IF('Proxy Price Data'!F26="","",'Proxy Price Data'!F26) -> 27.22 | E29: =IF('Proxy Price Data'!G26="","",'Proxy Price Data'!G26) -> 49.32 | F29: =IF('Proxy Price Data'!H26="","",'Proxy Price Data'!H26) -> 86.55 | G29: =IF('Proxy Price Data'!I26="","",'Proxy Price Data'!I26) -> 73.67
A30: =IF('Proxy Price Data'!C27="","",'Proxy Price Data'!C27) -> 2022-11-25 | B30: =IF('Proxy Price Data'!D27="","",'Proxy Price Data'!D27) -> 119.16 | C30: =IF('Proxy Price Data'!E27="","",'Proxy Price Data'!E27) -> 49.64 | D30: =IF('Proxy Price Data'!F27="","",'Proxy Price Data'!F27) -> 27.29 | E30: =IF('Proxy Price Data'!G27="","",'Proxy Price Data'!G27) -> 49.59 | F30: =IF('Proxy Price Data'!H27="","",'Proxy Price Data'!H27) -> 88.33 | G30: =IF('Proxy Price Data'!I27="","",'Proxy Price Data'!I27) -> 74.67
A31: =IF('Proxy Price Data'!C28="","",'Proxy Price Data'!C28) -> 2022-11-23 | B31: =IF('Proxy Price Data'!D28="","",'Proxy Price Data'!D28) -> 118.58 | C31: =IF('Proxy Price Data'!E28="","",'Proxy Price Data'!E28) -> 49.25 | D31: =IF('Proxy Price Data'!F28="","",'Proxy Price Data'!F28) -> 27.18 | E31: =IF('Proxy Price Data'!G28="","",'Proxy Price Data'!G28) -> 49.61 | F31: =IF('Proxy Price Data'!H28="","",'Proxy Price Data'!H28) -> 87.54 | G31: =IF('Proxy Price Data'!I28="","",'Proxy Price Data'!I28) -> 73.66
A32: =IF('Proxy Price Data'!C29="","",'Proxy Price Data'!C29) -> 2022-11-22 | B32: =IF('Proxy Price Data'!D29="","",'Proxy Price Data'!D29) -> 117.51 | C32: =IF('Proxy Price Data'!E29="","",'Proxy Price Data'!E29) -> 49.89 | D32: =IF('Proxy Price Data'!F29="","",'Proxy Price Data'!F29) -> 26.8 | E32: =IF('Proxy Price Data'!G29="","",'Proxy Price Data'!G29) -> 49.74 | F32: =IF('Proxy Price Data'!H29="","",'Proxy Price Data'!H29) -> 87.15 | G32: =IF('Proxy Price Data'!I29="","",'Proxy Price Data'!I29) -> 73.29
A33: =IF('Proxy Price Data'!C30="","",'Proxy Price Data'!C30) -> 2022-11-21 | B33: =IF('Proxy Price Data'!D30="","",'Proxy Price Data'!D30) -> 115.79 | C33: =IF('Proxy Price Data'!E30="","",'Proxy Price Data'!E30) -> 48.93 | D33: =IF('Proxy Price Data'!F30="","",'Proxy Price Data'!F30) -> 26.55 | E33: =IF('Proxy Price Data'!G30="","",'Proxy Price Data'!G30) -> 49.32 | F33: =IF('Proxy Price Data'!H30="","",'Proxy Price Data'!H30) -> 85.83 | G33: =IF('Proxy Price Data'!I30="","",'Proxy Price Data'!I30) -> 72.45
A34: =IF('Proxy Price Data'!C31="","",'Proxy Price Data'!C31) -> 2022-11-18 | B34: =IF('Proxy Price Data'!D31="","",'Proxy Price Data'!D31) -> 115.05 | C34: =IF('Proxy Price Data'!E31="","",'Proxy Price Data'!E31) -> 47.95 | D34: =IF('Proxy Price Data'!F31="","",'Proxy Price Data'!F31) -> 26.32 | E34: =IF('Proxy Price Data'!G31="","",'Proxy Price Data'!G31) -> 48.69 | F34: =IF('Proxy Price Data'!H31="","",'Proxy Price Data'!H31) -> 84.87 | G34: =IF('Proxy Price Data'!I31="","",'Proxy Price Data'!I31) -> 70.86
A35: =IF('Proxy Price Data'!C32="","",'Proxy Price Data'!C32) -> 2022-11-17 | B35: =IF('Proxy Price Data'!D32="","",'Proxy Price Data'!D32) -> 111.16 | C35: =IF('Proxy Price Data'!E32="","",'Proxy Price Data'!E32) -> 45.58 | D35: =IF('Proxy Price Data'!F32="","",'Proxy Price Data'!F32) -> 25.56 | E35: =IF('Proxy Price Data'!G32="","",'Proxy Price Data'!G32) -> 47.4 | F35: =IF('Proxy Price Data'!H32="","",'Proxy Price Data'!H32) -> 82.07 | G35: =IF('Proxy Price Data'!I32="","",'Proxy Price Data'!I32) -> 68.6
A36: =IF('Proxy Price Data'!C33="","",'Proxy Price Data'!C33) -> 2022-11-16 | B36: =IF('Proxy Price Data'!D33="","",'Proxy Price Data'!D33) -> 112.3 | C36: =IF('Proxy Price Data'!E33="","",'Proxy Price Data'!E33) -> 44.82 | D36: =IF('Proxy Price Data'!F33="","",'Proxy Price Data'!F33) -> 26 | E36: =IF('Proxy Price Data'!G33="","",'Proxy Price Data'!G33) -> 47.87 | F36: =IF('Proxy Price Data'!H33="","",'Proxy Price Data'!H33) -> 81.53 | G36: =IF('Proxy Price Data'!I33="","",'Proxy Price Data'!I33) -> 67.76
A37: =IF('Proxy Price Data'!C34="","",'Proxy Price Data'!C34) -> 2022-11-15 | B37: =IF('Proxy Price Data'!D34="","",'Proxy Price Data'!D34) -> 111.58 | C37: =IF('Proxy Price Data'!E34="","",'Proxy Price Data'!E34) -> 45.11 | D37: =IF('Proxy Price Data'!F34="","",'Proxy Price Data'!F34) -> 25.68 | E37: =IF('Proxy Price Data'!G34="","",'Proxy Price Data'!G34) -> 47.91 | F37: =IF('Proxy Price Data'!H34="","",'Proxy Price Data'!H34) -> 81.91 | G37: =IF('Proxy Price Data'!I34="","",'Proxy Price Data'!I34) -> 70.01
A38: =IF('Proxy Price Data'!C35="","",'Proxy Price Data'!C35) -> 2022-11-14 | B38: =IF('Proxy Price Data'!D35="","",'Proxy Price Data'!D35) -> 110.53 | C38: =IF('Proxy Price Data'!E35="","",'Proxy Price Data'!E35) -> 44.45 | D38: =IF('Proxy Price Data'!F35="","",'Proxy Price Data'!F35) -> 25.76 | E38: =IF('Proxy Price Data'!G35="","",'Proxy Price Data'!G35) -> 47.49 | F38: =IF('Proxy Price Data'!H35="","",'Proxy Price Data'!H35) -> 81.47 | G38: =IF('Proxy Price Data'!I35="","",'Proxy Price Data'!I35) -> 69.55
A39: =IF('Proxy Price Data'!C36="","",'Proxy Price Data'!C36) -> 2022-11-11 | B39: =IF('Proxy Price Data'!D36="","",'Proxy Price Data'!D36) -> 110.69 | C39: =IF('Proxy Price Data'!E36="","",'Proxy Price Data'!E36) -> 45.13 | D39: =IF('Proxy Price Data'!F36="","",'Proxy Price Data'!F36) -> 25.81 | E39: =IF('Proxy Price Data'!G36="","",'Proxy Price Data'!G36) -> 47.19 | F39: =IF('Proxy Price Data'!H36="","",'Proxy Price Data'!H36) -> 81.36 | G39: =IF('Proxy Price Data'!I36="","",'Proxy Price Data'!I36) -> 70.54
A40: =IF('Proxy Price Data'!C37="","",'Proxy Price Data'!C37) -> 2022-11-10 | B40: =IF('Proxy Price Data'!D37="","",'Proxy Price Data'!D37) -> 111.8 | C40: =IF('Proxy Price Data'!E37="","",'Proxy Price Data'!E37) -> 46 | D40: =IF('Proxy Price Data'!F37="","",'Proxy Price Data'!F37) -> 26.09 | E40: =IF('Proxy Price Data'!G37="","",'Proxy Price Data'!G37) -> 47.08 | F40: =IF('Proxy Price Data'!H37="","",'Proxy Price Data'!H37) -> 82.31 | G40: =IF('Proxy Price Data'!I37="","",'Proxy Price Data'!I37) -> 71.11
A41: =IF('Proxy Price Data'!C38="","",'Proxy Price Data'!C38) -> 2022-11-09 | B41: =IF('Proxy Price Data'!D38="","",'Proxy Price Data'!D38) -> 103.15 | C41: =IF('Proxy Price Data'!E38="","",'Proxy Price Data'!E38) -> 43.92 | D41: =IF('Proxy Price Data'!F38="","",'Proxy Price Data'!F38) -> 24.89 | E41: =IF('Proxy Price Data'!G38="","",'Proxy Price Data'!G38) -> 45.4 | F41: =IF('Proxy Price Data'!H38="","",'Proxy Price Data'!H38) -> 78.29 | G41: =IF('Proxy Price Data'!I38="","",'Proxy Price Data'!I38) -> 68.41
A42: =IF('Proxy Price Data'!C39="","",'Proxy Price Data'!C39) -> 2022-11-08 | B42: =IF('Proxy Price Data'!D39="","",'Proxy Price Data'!D39) -> 104.64 | C42: =IF('Proxy Price Data'!E39="","",'Proxy Price Data'!E39) -> 44.17 | D42: =IF('Proxy Price Data'!F39="","",'Proxy Price Data'!F39) -> 24.93 | E42: =IF('Proxy Price Data'!G39="","",'Proxy Price Data'!G39) -> 44.52 | F42: =IF('Proxy Price Data'!H39="","",'Proxy Price Data'!H39) -> 78.22 | G42: =IF('Proxy Price Data'!I39="","",'Proxy Price Data'!I39) -> 67.98
A43: =IF('Proxy Price Data'!C40="","",'Proxy Price Data'!C40) -> 2022-11-07 | B43: =IF('Proxy Price Data'!D40="","",'Proxy Price Data'!D40) -> 103.97 | C43: =IF('Proxy Price Data'!E40="","",'Proxy Price Data'!E40) -> 43.39 | D43: =IF('Proxy Price Data'!F40="","",'Proxy Price Data'!F40) -> 24.37 | E43: =IF('Proxy Price Data'!G40="","",'Proxy Price Data'!G40) -> 44.94 | F43: =IF('Proxy Price Data'!H40="","",'Proxy Price Data'!H40) -> 77.77 | G43: =IF('Proxy Price Data'!I40="","",'Proxy Price Data'!I40) -> 67.43
A44: =IF('Proxy Price Data'!C41="","",'Proxy Price Data'!C41) -> 2022-11-04 | B44: =IF('Proxy Price Data'!D41="","",'Proxy Price Data'!D41) -> 106.03 | C44: =IF('Proxy Price Data'!E41="","",'Proxy Price Data'!E41) -> 44.28 | D44: =IF('Proxy Price Data'!F41="","",'Proxy Price Data'!F41) -> 25.89 | E44: =IF('Proxy Price Data'!G41="","",'Proxy Price Data'!G41) -> 46.64 | F44: =IF('Proxy Price Data'!H41="","",'Proxy Price Data'!H41) -> 80.9 | G44: =IF('Proxy Price Data'!I41="","",'Proxy Price Data'!I41) -> 68.48
A45: =IF('Proxy Price Data'!C42="","",'Proxy Price Data'!C42) -> 2022-11-03 | B45: =IF('Proxy Price Data'!D42="","",'Proxy Price Data'!D42) -> 104.74 | C45: =IF('Proxy Price Data'!E42="","",'Proxy Price Data'!E42) -> 44.26 | D45: =IF('Proxy Price Data'!F42="","",'Proxy Price Data'!F42) -> 25.66 | E45: =IF('Proxy Price Data'!G42="","",'Proxy Price Data'!G42) -> 46.1 | F45: =IF('Proxy Price Data'!H42="","",'Proxy Price Data'!H42) -> 79.93 | G45: =IF('Proxy Price Data'!I42="","",'Proxy Price Data'!I42) -> 67.93
A46: =IF('Proxy Price Data'!C43="","",'Proxy Price Data'!C43) -> 2022-11-02 | B46: =IF('Proxy Price Data'!D43="","",'Proxy Price Data'!D43) -> 105.55 | C46: =IF('Proxy Price Data'!E43="","",'Proxy Price Data'!E43) -> 44.52 | D46: =IF('Proxy Price Data'!F43="","",'Proxy Price Data'!F43) -> 25.62 | E46: =IF('Proxy Price Data'!G43="","",'Proxy Price Data'!G43) -> 46.8 | F46: =IF('Proxy Price Data'!H43="","",'Proxy Price Data'!H43) -> 79.37 | G46: =IF('Proxy Price Data'!I43="","",'Proxy Price Data'!I43) -> 69.18
A47: =IF('Proxy Price Data'!C44="","",'Proxy Price Data'!C44) -> 2022-11-01 | B47: =IF('Proxy Price Data'!D44="","",'Proxy Price Data'!D44) -> 106.27 | C47: =IF('Proxy Price Data'!E44="","",'Proxy Price Data'!E44) -> 45.11 | D47: =IF('Proxy Price Data'!F44="","",'Proxy Price Data'!F44) -> 25.83 | E47: =IF('Proxy Price Data'!G44="","",'Proxy Price Data'!G44) -> 47.75 | F47: =IF('Proxy Price Data'!H44="","",'Proxy Price Data'!H44) -> 80.03 | G47: =IF('Proxy Price Data'!I44="","",'Proxy Price Data'!I44) -> 70.35
A48: =IF('Proxy Price Data'!C45="","",'Proxy Price Data'!C45) -> 2022-10-31 | B48: =IF('Proxy Price Data'!D45="","",'Proxy Price Data'!D45) -> 106.55 | C48: =IF('Proxy Price Data'!E45="","",'Proxy Price Data'!E45) -> 44.64 | D48: =IF('Proxy Price Data'!F45="","",'Proxy Price Data'!F45) -> 25.69 | E48: =IF('Proxy Price Data'!G45="","",'Proxy Price Data'!G45) -> 48.09 | F48: =IF('Proxy Price Data'!H45="","",'Proxy Price Data'!H45) -> 77.48 | G48: =IF('Proxy Price Data'!I45="","",'Proxy Price Data'!I45) -> 69.81
A49: =IF('Proxy Price Data'!C46="","",'Proxy Price Data'!C46) -> 2022-10-28 | B49: =IF('Proxy Price Data'!D46="","",'Proxy Price Data'!D46) -> 107.11 | C49: =IF('Proxy Price Data'!E46="","",'Proxy Price Data'!E46) -> 45.28 | D49: =IF('Proxy Price Data'!F46="","",'Proxy Price Data'!F46) -> 25.89 | E49: =IF('Proxy Price Data'!G46="","",'Proxy Price Data'!G46) -> 48.12 | F49: =IF('Proxy Price Data'!H46="","",'Proxy Price Data'!H46) -> 77.2 | G49: =IF('Proxy Price Data'!I46="","",'Proxy Price Data'!I46) -> 69.7
A50: =IF('Proxy Price Data'!C47="","",'Proxy Price Data'!C47) -> 2022-10-27 | B50: =IF('Proxy Price Data'!D47="","",'Proxy Price Data'!D47) -> 104.69 | C50: =IF('Proxy Price Data'!E47="","",'Proxy Price Data'!E47) -> 44.44 | D50: =IF('Proxy Price Data'!F47="","",'Proxy Price Data'!F47) -> 25.37 | E50: =IF('Proxy Price Data'!G47="","",'Proxy Price Data'!G47) -> 47.45 | F50: =IF('Proxy Price Data'!H47="","",'Proxy Price Data'!H47) -> 75.59 | G50: =IF('Proxy Price Data'!I47="","",'Proxy Price Data'!I47) -> 69.1
A51: =IF('Proxy Price Data'!C48="","",'Proxy Price Data'!C48) -> 2022-10-26 | B51: =IF('Proxy Price Data'!D48="","",'Proxy Price Data'!D48) -> 103.42 | C51: =IF('Proxy Price Data'!E48="","",'Proxy Price Data'!E48) -> 43.65 | D51: =IF('Proxy Price Data'!F48="","",'Proxy Price Data'!F48) -> 25.17 | E51: =IF('Proxy Price Data'!G48="","",'Proxy Price Data'!G48) -> 46.67 | F51: =IF('Proxy Price Data'!H48="","",'Proxy Price Data'!H48) -> 74.45 | G51: =IF('Proxy Price Data'!I48="","",'Proxy Price Data'!I48) -> 67.93
A52: =IF('Proxy Price Data'!C49="","",'Proxy Price Data'!C49) -> 2022-10-25 | B52: =IF('Proxy Price Data'!D49="","",'Proxy Price Data'!D49) -> 103.32 | C52: =IF('Proxy Price Data'!E49="","",'Proxy Price Data'!E49) -> 42.98 | D52: =IF('Proxy Price Data'!F49="","",'Proxy Price Data'!F49) -> 25.13 | E52: =IF('Proxy Price Data'!G49="","",'Proxy Price Data'!G49) -> 46.43 | F52: =IF('Proxy Price Data'!H49="","",'Proxy Price Data'!H49) -> 73.71 | G52: =IF('Proxy Price Data'!I49="","",'Proxy Price Data'!I49) -> 66.9
A53: =IF('Proxy Price Data'!C50="","",'Proxy Price Data'!C50) -> 2022-10-24 | B53: =IF('Proxy Price Data'!D50="","",'Proxy Price Data'!D50) -> 101.35 | C53: =IF('Proxy Price Data'!E50="","",'Proxy Price Data'!E50) -> 42.19 | D53: =IF('Proxy Price Data'!F50="","",'Proxy Price Data'!F50) -> 24.67 | E53: =IF('Proxy Price Data'!G50="","",'Proxy Price Data'!G50) -> 45.45 | F53: =IF('Proxy Price Data'!H50="","",'Proxy Price Data'!H50) -> 72.98 | G53: =IF('Proxy Price Data'!I50="","",'Proxy Price Data'!I50) -> 65.6
A54: =IF('Proxy Price Data'!C51="","",'Proxy Price Data'!C51) -> 2022-10-21 | B54: =IF('Proxy Price Data'!D51="","",'Proxy Price Data'!D51) -> 101.74 | C54: =IF('Proxy Price Data'!E51="","",'Proxy Price Data'!E51) -> 42.08 | D54: =IF('Proxy Price Data'!F51="","",'Proxy Price Data'!F51) -> 24.49 | E54: =IF('Proxy Price Data'!G51="","",'Proxy Price Data'!G51) -> 45.81 | F54: =IF('Proxy Price Data'!H51="","",'Proxy Price Data'!H51) -> 73.08 | G54: =IF('Proxy Price Data'!I51="","",'Proxy Price Data'!I51) -> 65.36
A55: =IF('Proxy Price Data'!C52="","",'Proxy Price Data'!C52) -> 2022-10-20 | B55: =IF('Proxy Price Data'!D52="","",'Proxy Price Data'!D52) -> 100.11 | C55: =IF('Proxy Price Data'!E52="","",'Proxy Price Data'!E52) -> 40.77 | D55: =IF('Proxy Price Data'!F52="","",'Proxy Price Data'!F52) -> 24.15 | E55: =IF('Proxy Price Data'!G52="","",'Proxy Price Data'!G52) -> 45.15 | F55: =IF('Proxy Price Data'!H52="","",'Proxy Price Data'!H52) -> 72.39 | G55: =IF('Proxy Price Data'!I52="","",'Proxy Price Data'!I52) -> 64.8
A56: =IF('Proxy Price Data'!C53="","",'Proxy Price Data'!C53) -> 2022-10-19 | B56: =IF('Proxy Price Data'!D53="","",'Proxy Price Data'!D53) -> 102.04 | C56: =IF('Proxy Price Data'!E53="","",'Proxy Price Data'!E53) -> 41.19 | D56: =IF('Proxy Price Data'!F53="","",'Proxy Price Data'!F53) -> 24.88 | E56: =IF('Proxy Price Data'!G53="","",'Proxy Price Data'!G53) -> 46.19 | F56: =IF('Proxy Price Data'!H53="","",'Proxy Price Data'!H53) -> 73.8 | G56: =IF('Proxy Price Data'!I53="","",'Proxy Price Data'!I53) -> 65.49
A57: =IF('Proxy Price Data'!C54="","",'Proxy Price Data'!C54) -> 2022-10-18 | B57: =IF('Proxy Price Data'!D54="","",'Proxy Price Data'!D54) -> 101.75 | C57: =IF('Proxy Price Data'!E54="","",'Proxy Price Data'!E54) -> 41.13 | D57: =IF('Proxy Price Data'!F54="","",'Proxy Price Data'!F54) -> 25.27 | E57: =IF('Proxy Price Data'!G54="","",'Proxy Price Data'!G54) -> 46.87 | F57: =IF('Proxy Price Data'!H54="","",'Proxy Price Data'!H54) -> 73.75 | G57: =IF('Proxy Price Data'!I54="","",'Proxy Price Data'!I54) -> 65.86
A58: =IF('Proxy Price Data'!C55="","",'Proxy Price Data'!C55) -> 2022-10-17 | B58: =IF('Proxy Price Data'!D55="","",'Proxy Price Data'!D55) -> 99.63 | C58: =IF('Proxy Price Data'!E55="","",'Proxy Price Data'!E55) -> 40.43 | D58: =IF('Proxy Price Data'!F55="","",'Proxy Price Data'!F55) -> 24.89 | E58: =IF('Proxy Price Data'!G55="","",'Proxy Price Data'!G55) -> 45.96 | F58: =IF('Proxy Price Data'!H55="","",'Proxy Price Data'!H55) -> 72.38 | G58: =IF('Proxy Price Data'!I55="","",'Proxy Price Data'!I55) -> 64.7
A59: =IF('Proxy Price Data'!C56="","",'Proxy Price Data'!C56) -> 2022-10-14 | B59: =IF('Proxy Price Data'!D56="","",'Proxy Price Data'!D56) -> 98.11 | C59: =IF('Proxy Price Data'!E56="","",'Proxy Price Data'!E56) -> 39.48 | D59: =IF('Proxy Price Data'!F56="","",'Proxy Price Data'!F56) -> 24.49 | E59: =IF('Proxy Price Data'!G56="","",'Proxy Price Data'!G56) -> 45.31 | F59: =IF('Proxy Price Data'!H56="","",'Proxy Price Data'!H56) -> 70.54 | G59: =IF('Proxy Price Data'!I56="","",'Proxy Price Data'!I56) -> 63.2
A60: =IF('Proxy Price Data'!C57="","",'Proxy Price Data'!C57) -> 2022-10-13 | B60: =IF('Proxy Price Data'!D57="","",'Proxy Price Data'!D57) -> 101.46 | C60: =IF('Proxy Price Data'!E57="","",'Proxy Price Data'!E57) -> 40.14 | D60: =IF('Proxy Price Data'!F57="","",'Proxy Price Data'!F57) -> 25.24 | E60: =IF('Proxy Price Data'!G57="","",'Proxy Price Data'!G57) -> 45.61 | F60: =IF('Proxy Price Data'!H57="","",'Proxy Price Data'!H57) -> 71.96 | G60: =IF('Proxy Price Data'!I57="","",'Proxy Price Data'!I57) -> 65.36
A61: =IF('Proxy Price Data'!C58="","",'Proxy Price Data'!C58) -> 2022-10-12 | B61: =IF('Proxy Price Data'!D58="","",'Proxy Price Data'!D58) -> 99.26 | C61: =IF('Proxy Price Data'!E58="","",'Proxy Price Data'!E58) -> 38.77 | D61: =IF('Proxy Price Data'!F58="","",'Proxy Price Data'!F58) -> 24.19 | E61: =IF('Proxy Price Data'!G58="","",'Proxy Price Data'!G58) -> 43.95 | F61: =IF('Proxy Price Data'!H58="","",'Proxy Price Data'!H58) -> 70.03 | G61: =IF('Proxy Price Data'!I58="","",'Proxy Price Data'!I58) -> 62.94
A62: =IF('Proxy Price Data'!C59="","",'Proxy Price Data'!C59) -> 2022-10-11 | B62: =IF('Proxy Price Data'!D59="","",'Proxy Price Data'!D59) -> 102.2 | C62: =IF('Proxy Price Data'!E59="","",'Proxy Price Data'!E59) -> 39.91 | D62: =IF('Proxy Price Data'!F59="","",'Proxy Price Data'!F59) -> 24.87 | E62: =IF('Proxy Price Data'!G59="","",'Proxy Price Data'!G59) -> 44.56 | F62: =IF('Proxy Price Data'!H59="","",'Proxy Price Data'!H59) -> 72 | G62: =IF('Proxy Price Data'!I59="","",'Proxy Price Data'!I59) -> 63.62
A63: =IF('Proxy Price Data'!C60="","",'Proxy Price Data'!C60) -> 2022-10-10 | B63: =IF('Proxy Price Data'!D60="","",'Proxy Price Data'!D60) -> 99.88 | C63: =IF('Proxy Price Data'!E60="","",'Proxy Price Data'!E60) -> 39.28 | D63: =IF('Proxy Price Data'!F60="","",'Proxy Price Data'!F60) -> 24.52 | E63: =IF('Proxy Price Data'!G60="","",'Proxy Price Data'!G60) -> 42.79 | F63: =IF('Proxy Price Data'!H60="","",'Proxy Price Data'!H60) -> 70.53 | G63: =IF('Proxy Price Data'!I60="","",'Proxy Price Data'!I60) -> 62.04
A64: =IF('Proxy Price Data'!C61="","",'Proxy Price Data'!C61) -> 2022-10-07 | B64: =IF('Proxy Price Data'!D61="","",'Proxy Price Data'!D61) -> 99.39 | C64: =IF('Proxy Price Data'!E61="","",'Proxy Price Data'!E61) -> 38.97 | D64: =IF('Proxy Price Data'!F61="","",'Proxy Price Data'!F61) -> 24.51 | E64: =IF('Proxy Price Data'!G61="","",'Proxy Price Data'!G61) -> 42.73 | F64: =IF('Proxy Price Data'!H61="","",'Proxy Price Data'!H61) -> 70.29 | G64: =IF('Proxy Price Data'!I61="","",'Proxy Price Data'!I61) -> 62
A65: =IF('Proxy Price Data'!C62="","",'Proxy Price Data'!C62) -> 2022-10-06 | B65: =IF('Proxy Price Data'!D62="","",'Proxy Price Data'!D62) -> 100.81 | C65: =IF('Proxy Price Data'!E62="","",'Proxy Price Data'!E62) -> 39.76 | D65: =IF('Proxy Price Data'!F62="","",'Proxy Price Data'!F62) -> 25.1 | E65: =IF('Proxy Price Data'!G62="","",'Proxy Price Data'!G62) -> 43.31 | F65: =IF('Proxy Price Data'!H62="","",'Proxy Price Data'!H62) -> 71.16 | G65: =IF('Proxy Price Data'!I62="","",'Proxy Price Data'!I62) -> 62.97
A67: Average Price | B67: =IFERROR(ROUND(AVERAGE(B6:B65),2),0) -> 110.22 | C67: 45.92 | D67: 26.28 | E67: 47 | F67: 77.36 | G67: 68.22
A69: Indicated Dividend | B69: =VLOOKUP(B4,'Proxy Data Lookup'!$A$3:$I$8,9,FALSE) -> 2.96 | C69: =VLOOKUP(C4,'Proxy Data Lookup'!$A$3:$I$8,9,FALSE) -> 1.56 | D69: =VLOOKUP(D4,'Proxy Data Lookup'!$A$3:$I$8,9,FALSE) -> 0.94 | E69: =VLOOKUP(E4,'Proxy Data Lookup'!$A$3:$I$8,9,FALSE) -> 1.94 | F69: =VLOOKUP(F4,'Proxy Data Lookup'!$A$3:$I$8,9,FALSE) -> 2.48 | G69: =VLOOKUP(G4,'Proxy Data Lookup'!$A$3:$I$8,9,FALSE) -> 2.88
A71: Indicated Dividend Yield | B71: =IFERROR(ROUND(B69/B67,4),0) -> 0.0269 | C71: 0.034 | D71: 0.0358 | E71: 0.0413 | F71: 0.0321 | G71: 0.0422

Sheet CEM Data Lookup
C2: EPS Growth Rates | F2: Beta | I2: Annual Div. | J2: Bond Ratings | L2: Value Line Beta Calculation
A3: Ticker | B3: Company Name | C3: Zacks | D3: Yahoo | E3: Value Line | F3: Value Line | G3: Bloomberg | H3: Unadjusted | J3: Moody's | K3: S&P | L3: R Factor | M3: Std. Error | N3: Std. Dev Y | O3: Std. Dev Beta
A4: =Input!C2 -> A | B4: Agilent Technologies | C4: 0.1 | D4: 0.1197 | E4: 0.12 | F4: 0.85 | G4: 1.069121361 | H4: 0.77 | I4: 0.9 | J4: Baa2 | K4: BBB+ | L4: 0.5887 | M4: 2.6442 | N4: 3.2648 | O4: 0.0658
A5: =Input!C3 -> ABT | B5: Abbott Labs. | C5: 0.051 | D5: 0.083 | E5: 0.07 | F5: 0.9 | G5: 0.76022017 | H5: 0.81 | I5: 2.04 | J5: A1 | K5: AA- | L5: 0.5926 | M5: 2.7622 | N5: 3.4226 | O5: 0.0688
A6: =Input!C4 -> ADI | B6: Analog Devices | C6: 0.123 | D6: 0.1487 | E6: 0.115 | F6: 0.95 | G6: 1.023907661 | H6: 0.87 | I6: 3.04 | J6: A3 | K6: A- | L6: 0.6076 | M6: 2.8417 | N6: 3.571 | O6: 0.0707
A7: =Input!C5 -> AIZ | B7: Assurant Inc. | C7: 0.127 | D7: 0.174 | E7: 0.155 | F7: 0.95 | G7: 0.7213525772 | H7: 0.85 | I7: 2.8 | J7: Baa2 | K7: BBB | L7: 0.6146 | M7: 2.7366 | N7: 3.4625 | O7: 0.0681
A8: =Input!C6 -> AOS | B8: Smith (A.O.) | C8: 0.09 | D8: 0.08 | E8: 0.115 | F8: 0.85 | G8: 1.035016418 | H8: 0.76 | I8: 1.2 | J8: NA | K8: NA | L8: 0.5747 | M8: 2.7272 | N8: 3.326 | O8: 0.0679
A9: =Input!C7 -> APD | B9: Air Products & Chem. | C9: 0.122 | D9: 0.1065 | E9: 0.11 | F9: 0.9 | G9: 0.8073137999 | H9: 0.79 | I9: 6.48 | J9: A2 | K9: A | L9: 0.6018 | M9: 2.6237 | N9: 3.2789 | O9: 0.0653
A10: =Input!C8 -> BFB | B10: Brown-Forman 'B' | C10: NA | D10: 0.0862 | E10: 0.145 | F10: 0.9 | G10: 0.7947944999 | H10: 0.8 | I10: 0.822 | J10: A1 | K10: A- | L10: 0.5976 | M10: 2.6915 | N10: 3.3504 | O10: 0.067
A11: =Input!C9 -> BMY | B11: Bristol-Myers Squibb | C11: 0.056 | D11: 0.0414 | E11: NMF | F11: 0.85 | G11: 0.4983299077 | H11: 0.76 | I11: 2.28 | J11: A2 | K11: A+ | L11: 0.5324 | M11: 3.033 | N11: 3.5759 | O11: 0.0755
A12: =Input!C10 -> BR | B12: Broadridge Fin'l | C12: NA | D12: 0.118 | E12: 0.095 | F12: 0.85 | G12: 0.9840219617 | H12: 0.7 | I12: 2.9 | J12: Baa1 | K12: BBB+ | L12: 0.5385 | M12: 2.761 | N12: 3.2704 | O12: 0.0687
A13: =Input!C11 -> CACI | B13: CACI Int'l | C13: 0.067 | D13: 0.024 | E13: 0.07 | F13: 0.9 | G13: 0.7447590828 | H13: 0.84 | I13: NA | J13: NA | K13: BB+ | L13: 0.5767 | M13: 2.9846 | N13: 3.6463 | O13: 0.0743
A14: =Input!C12 -> CHE | B14: Chemed Corp. | C14: 0.069 | D14: 0.0695 | E14: 0.07 | F14: 0.85 | G14: 0.7212504148 | H14: 0.7 | I14: 1.52 | J14: WR | K14: NR | L14: 0.5402 | M14: 2.7215 | N14: 3.2276 | O14: 0.0677
A15: =Input!C13 -> CSWI | B15: CSW Industrials | C15: NA | D15: 0.12 | E15: 0.115 | F15: 0.9 | G15: 0.7707059979 | H15: 0.8 | I15: 0.68 | J15: NA | K15: NA | L15: 0.5676 | M15: 2.9127 | N15: 3.5309 | O15: 0.0725
A16: =Input!C14 -> DGX | B16: Quest Diagnostics | C16: NA | D16: -0.156 | E16: 0.04 | F16: 0.8 | G16: 0.6965161562 | H16: 0.69 | I16: 2.64 | J16: Baa2 | K16: BBB+ | L16: 0.4972 | M16: 3.0218 | N16: 3.476 | O16: 0.0752
A17: =Input!C15 -> EXPO | B17: Exponent, Inc. | C17: NA | D17: 0.15 | E17: 0.105 | F17: 0.9 | G17: 0.9975692034 | H17: 0.8 | I17: 0.96 | J17: NA | K17: NA | L17: 0.5699 | M17: 2.8742 | N17: 3.491 | O17: 0.0715
A18: =Input!C16 -> INGR | B18: Ingredion Inc. | C18: NA | D18: 0.099 | E18: 0.08 | F18: 0.9 | G18: 0.6877423525 | H18: 0.85 | I18: 2.84 | J18: Baa1 | K18: BBB | L18: 0.5948 | M18: 2.8617 | N18: 3.5531 | O18: 0.0712
A19: =Input!C17 -> JJSF | B19: J&J Snack Foods | C19: NA | D19: 0.731 | E19: 0.09 | F19: 0.95 | G19: 0.5781377554 | H19: 0.87 | I19: 2.8 | J19: NA | K19: NA | L19: 0.5901 | M19: 2.9766 | N19: 3.68 | O19: 0.0741
A20: =Input!C18 -> JKHY | B20: Henry (Jack) & Assoc | C20: 0.09 | D20: 0.09 | E20: 0.08 | F20: 0.85 | G20: 0.7571338415 | H20: 0.7 | I20: 1.96 | J20: NA | K20: NA | L20: 0.5221 | M20: 2.8821 | N20: 3.3727 | O20: 0.0717
A21: =Input!C19 -> MKC | B21: McCormick & Co. | C21: 0.053 | D21: 0.051 | E21: 0.05 | F21: 0.8 | G21: 0.7205399275 | H21: 0.66 | I21: 1.56 | J21: Baa2 | K21: BBB | L21: 0.5038 | M21: 2.8331 | N21: 3.2733 | O21: 0.0705
A22: =Input!C20 -> MRK | B22: Merck & Co. | C22: 0.104 | D22: 0.1189 | E22: 0.08 | F22: 0.8 | G22: 0.4687764049 | H22: 0.64 | I22: 2.92 | J22: A1 | K22: A+ | L22: 0.5188 | M22: 2.654 | N22: 3.0985 | O22: 0.0661
A23: =Input!C21 -> MSCI | B23: MSCI Inc. | C23: NA | D23: 0.1253 | E23: 0.145 | F23: 0.95 | G23: 1.36562252 | H23: 0.85 | I23: 5 | J23: Ba1 | K23: BB+ | L23: 0.5779 | M23: 3.0171 | N23: 3.6897 | O23: 0.0751
A24: =Input!C22 -> MSI | B24: Motorola Solutions | C24: 0.09 | D24: 0.1118 | E24: 0.105 | F24: 0.9 | G24: 0.966797471 | H24: 0.79 | I24: 3.52 | J24: Baa3 | K24: BBB- | L24: 0.5963 | M24: 2.6757 | N24: 3.3267 | O24: 0.0666
A25: =Input!C23 -> NEU | B25: NewMarket Corp. | C25: NA | D25: 0.077 | E25: -0.015 | F25: 0.75 | G25: 0.6171191335 | H25: 0.61 | I25: 8.4 | J25: Baa2 | K25: BBB+ | L25: 0.5002 | M25: 2.6489 | N25: 3.0533 | O25: 0.0659
A26: =Input!C24 -> NOC | B26: Northrop Grumman | C26: 0.033 | D26: 0.03 | E26: 0.065 | F26: 0.85 | G26: 0.6592274904 | H26: 0.74 | I26: 6.92 | J26: Baa1 | K26: BBB+ | L26: 0.5338 | M26: 2.9186 | N26: 3.4447 | O26: 0.0727
A27: =Input!C25 -> ODFL | B27: Old Dominion Freight | C27: 0.141 | D27: 0.1454 | E27: 0.105 | F27: 0.95 | G27: 1.133546114 | H27: 0.85 | I27: 1.2 | J27: NA | K27: NA | L27: 0.5853 | M27: 2.9677 | N27: 3.6531 | O27: 0.0739
A28: =Input!C26 -> ORCL | B28: Oracle Corp. | C28: 0.08 | D28: 0.1025 | E28: 0.1 | F28: 0.75 | G28: 0.9925073981 | H28: 0.61 | I28: 1.28 | J28: Baa2 | K28: BBB | L28: 0.4955 | M28: 2.6634 | N28: 3.0603 | O28: 0.0663
A29: =Input!C27 -> PGR | B29: Progressive Corp. | C29: 0.199 | D29: 0.2712 | E29: 0.065 | F29: 0.75 | G29: 0.7506294847 | H29: 0.6 | I29: 0.4 | J29: A2 | K29: A | L29: 0.4673 | M29: 2.8617 | N29: 3.2305 | O29: 0.0712
A30: =Input!C28 -> POST | B30: Post Holdings | C30: NA | D30: 0.324 | E30: 0.05 | F30: 0.95 | G30: 0.6559040546 | H30: 0.86 | I30: NA | J30: B2 | K30: B+ | L30: 0.5929 | M30: 2.9244 | N30: 3.6246 | O30: 0.0728
A31: =Input!C29 -> RLI | B31: RLI Corp. | C31: NA | D31: 0.098 | E31: 0.12 | F31: 0.8 | G31: 0.7783473134 | H31: 0.66 | I31: 1.04 | J31: Baa2 | K31: BBB | L31: 0.4985 | M31: 2.8575 | N31: 3.2898 | O31: 0.0711
A32: =Input!C30 -> ROL | B32: Rollins, Inc. | C32: NA | D32: 0.082 | E32: 0.105 | F32: 0.85 | G32: 0.8755085468 | H32: 0.72 | I32: 0.52 | J32: NA | K32: NA | L32: 0.5165 | M32: 2.9831 | N32: 3.4771 | O32: 0.0743
A33: =Input!C31 -> SHW | B33: Sherwin-Williams | C33: 0.128 | D33: 0.11464 | E33: 0.115 | F33: 0.9 | G33: 1.001509666 | H33: 0.84 | I33: 2.4 | J33: Baa2 | K33: BBB | L33: 0.6341 | M33: 2.5643 | N33: 3.3099 | O33: 0.0638
A34: =Input!C32 -> SIGI | B34: Selective Ins. Group | C34: 0.066 | D34: 0.134 | E34: 0.095 | F34: 0.9 | G34: 0.6941086054 | H34: 0.81 | I34: 1.2 | J34: Baa2 | K34: BBB | L34: 0.5691 | M34: 2.9464 | N34: 3.5763 | O34: 0.0733
A35: =Input!C33 -> SIRI | B35: Sirius XM Holdings | C35: 0.07 | D35: 0.0354 | E35: 0.325 | F35: 0.95 | G35: 0.7167794108 | H35: 0.86 | I35: 0.0968 | J35: NA | K35: NA | L35: 0.5908 | M35: 2.9589 | N35: 3.6601 | O35: 0.0737
A36: =Input!C34 -> SXT | B36: Sensient Techn. | C36: NA | D36: 0.038 | E36: 0.025 | F36: 0.9 | G36: 0.9637203217 | H36: 0.82 | I36: 1.64 | J36: WR | K36: NR | L36: 0.6129 | M36: 2.6393 | N36: 3.3336 | O36: 0.0657
A37: =Input!C35 -> TMO | B37: Thermo Fisher Sci. | C37: 0.125 | D37: 0.0351 | E37: 0.105 | F37: 0.85 | G37: 0.9245231748 | H37: 0.7 | I37: 1.2 | J37: A3 | K37: A- | L37: 0.556 | M37: 2.6279 | N37: 3.1556 | O37: 0.0654
A38: =Input!C36 -> TXN | B38: Texas Instruments | C38: 0.093 | D38: 0.1 | E38: 0.075 | F38: 0.85 | G38: 0.9703033566 | H38: 0.75 | I38: 4.96 | J38: Aa3 | K38: A+ | L38: 0.5791 | M38: 2.659 | N38: 3.2553 | O38: 0.0662
A39: =Input!C37 -> VRSN | B39: VeriSign Inc. | C39: NA | D39: 0.08 | E39: 0.11 | F39: 0.9 | G39: 1.053896666 | H39: 0.78 | I39: NA | J39: Baa3 | K39: BBB | L39: 0.6035 | M39: 2.5863 | N39: 3.2374 | O39: 0.0644
A40: =Input!C38 -> WAT | B40: Waters Corp. | C40: 0.072 | D40: 0.0834 | E40: 0.06 | F40: 0.95 | G40: 0.9791158438 | H40: 0.87 | I40: NA | J40: NA | K40: NA | L40: 0.6129 | M40: 2.8032 | N40: 3.5408 | O40: 0.0698
A41: =Input!C39 -> WSO | B41: Watsco, Inc. | C41: NA | D41: 0.15 | E41: 0.115 | F41: 0.85 | G41: 1.021119833 | H41: 0.75 | I41: 8.8 | J41: NA | K41: NA | L41: 0.5707 | M41: 2.6936 | N41: 3.2739 | O41: 0.0671
A42: =Input!C40 -> WU | B42: Western Union | C42: NA | D42: -0.1105 | E42: 0.08 | F42: 0.8 | G42: 0.8139988184 | H42: 0.65 | I42: 0.94 | J42: Baa2 | K42: BBB | L42: 0.5162 | M42: 2.7094 | N42: 3.1574 | O42: 0.0674

Sheet CEM Price Data
A1: Lookup Reference | B1: Tickers | C1: A | D1: ABT | E1: ADI | F1: AIZ | G1: AOS | H1: APD | I1: BFB | J1: BMY | K1: BR | L1: CACI | M1: CHE | N1: CSWI | O1: DGX | P1: EXPO | Q1: INGR | R1: JJSF | S1: JKHY | T1: MKC | U1: MRK | V1: MSCI | W1: MSI | X1: NEU | Y1: NOC | Z1: ODFL | AA1: ORCL | AB1: PGR | AC1: POST | AD1: RLI | AE1: ROL | AF1: SHW | AG1: SIGI | AH1: SIRI | AI1: SXT | AJ1: TMO | AK1: TXN | AL1: VRSN | AM1: WAT | AN1: WSO | AO1: WU
B2: PX_LAST | C2: A US Equity | D2: ABT US Equity | E2: ADI US Equity | F2: AIZ US Equity | G2: AOS US Equity | H2: APD US Equity | I2: BFB US Equity | J2: BMY US Equity | K2: BR US Equity | L2: CACI US Equity | M2: CHE US Equity | N2: CSWI US Equity | O2: DGX US Equity | P2: EXPO US Equity | Q2: INGR US Equity | R2: JJSF US Equity | S2: JKHY US Equity | T2: MKC US Equity | U2: MRK US Equity | V2: MSCI US Equity | W2: MSI US Equity | X2: NEU US Equity | Y2: NOC US Equity | Z2: ODFL US Equity | AA2: ORCL US Equity | AB2: PGR US Equity | AC2: POST US Equity | AD2: RLI US Equity | AE2: ROL US Equity | AF2: SHW US Equity | AG2: SIGI US Equity | AH2: SIRI US Equity | AI2: SXT US Equity | AJ2: TMO US Equity | AK2: TXN US Equity | AL2: VRSN US Equity | AM2: WAT US Equity | AN2: WSO US Equity | AO2: WU US Equity
A3: 1 | B3: 2022-12-30 | C3: 149.65 | D3: 109.79 | E3: 164.03 | F3: 125.06 | G3: 57.24 | H3: 308.26 | I3: 65.68 | J3: 71.95 | K3: 134.13 | L3: 300.59 | M3: 510.43 | N3: 115.93 | O3: 156.44 | P3: 99.09 | Q3: 97.93 | R3: 149.71 | S3: 175.56 | T3: 82.89 | U3: 110.95 | V3: 465.17 | W3: 257.71 | X3: 311.11 | Y3: 545.61 | Z3: 283.78 | AA3: 81.74 | AB3: 129.71 | AC3: 90.26 | AD3: 131.27 | AE3: 36.54 | AF3: 237.33 | AG3: 88.61 | AH3: 5.84 | AI3: 72.92 | AJ3: 550.69 | AK3: 165.22 | AL3: 205.44 | AM3: 342.58 | AN3: 249.4 | AO3: 13.77
A4: 2 | B4: 2022-12-29 | C4: 151.09 | D4: 110.31 | E4: 163.98 | F4: 126.63 | G4: 57.66 | H4: 311.41 | I4: 66.15 | J4: 72.1 | K4: 136.66 | L4: 300.59 | M4: 517.15 | N4: 117.02 | O4: 156.79 | P4: 100.56 | Q4: 98.18 | R4: 151.94 | S4: 177.49 | T4: 84.14 | U4: 110.82 | V4: 471.92 | W4: 258.81 | X4: 309.04 | Y4: 542 | Z4: 286.58 | AA4: 81.4 | AB4: 130.56 | AC4: 90.23 | AD4: 133.72 | AE4: 36.66 | AF4: 241.32 | AG4: 90.34 | AH4: 5.82 | AI4: 73.89 | AJ4: 557.01 | AK4: 165.02 | AL4: 205.38 | AM4: 345.88 | AN4: 252.55 | AO4: 13.88
A5: 3 | B5: 2022-12-28 | C5: 148.09 | D5: 107.83 | E5: 160.28 | F5: 123.96 | G5: 56.77 | H5: 309.64 | I5: 65.57 | J5: 71.99 | K5: 133.37 | L5: 297.97 | M5: 511 | N5: 113.64 | O5: 156.51 | P5: 98.53 | Q5: 98.09 | R5: 150.78 | S5: 176.64 | T5: 83.24 | U5: 111.08 | V5: 454.44 | W5: 253.8 | X5: 305.07 | Y5: 540.41 | Z5: 282.25 | AA5: 80.33 | AB5: 129.72 | AC5: 90.34 | AD5: 131.72 | AE5: 36.54 | AF5: 237.48 | AG5: 89.13 | AH5: 5.73 | AI5: 72.31 | AJ5: 543.41 | AK5: 161.19 | AL5: 201.13 | AM5: 340.71 | AN5: 247 | AO5: 13.65
A6: 4 | B6: 2022-12-27 | C6: 149.55 | D6: 108.57 | E6: 162.2 | F6: 124.57 | G6: 57.67 | H6: 312.2 | I6: 66.58 | J6: 72.61 | K6: 135.47 | L6: 302.92 | M6: 513.19 | N6: 115.95 | O6: 157.28 | P6: 100.38 | Q6: 99.45 | R6: 152.09 | S6: 178.9 | T6: 84.83 | U6: 112.12 | V6: 460.43 | W6: 256.63 | X6: 311.86 | Y6: 541.19 | Z6: 286.77 | AA6: 80.98 | AB6: 130.17 | AC6: 91.53 | AD6: 133.68 | AE6: 37.02 | AF6: 239.42 | AG6: 90.84 | AH6: 5.78 | AI6: 73.18 | AJ6: 545.44 | AK6: 163.78 | AL6: 204.07 | AM6: 346.53 | AN6: 252.67 | AO6: 13.84
A7: 5 | B7: 2022-12-23 | C7: 149.23 | D7: 108.18 | E7: 163.84 | F7: 125.03 | G7: 56.9 | H7: 312.04 | I7: 66.35 | J7: 72.89 | K7: 134.48 | L7: 299.28 | M7: 516.17 | N7: 117.17 | O7: 156.31 | P7: 100.55 | Q7: 98.87 | R7: 153.4 | S7: 177.34 | T7: 84.22 | U7: 111.86 | V7: 463.82 | W7: 256.63 | X7: 310.06 | Y7: 534.77 | Z7: 286.1 | AA7: 80.85 | AB7: 129.44 | AC7: 91.11 | AD7: 133.69 | AE7: 37.12 | AF7: 242.67 | AG7: 90.85 | AH7: 5.84 | AI7: 72.93 | AJ7: 540.68 | AK7: 164.38 | AL7: 203.72 | AM7: 346.66 | AN7: 252.17 | AO7: 13.83
A8: 6 | B8: 2022-12-22 | C8: 149.01 | D8: 108.03 | E8: 163.75 | F8: 122.97 | G8: 56.23 | H8: 312.6 | I8: 66.52 | J8: 73.83 | K8: 134.4 | L8: 299.59 | M8: 513.45 | N8: 114.9 | O8: 155.63 | P8: 100.2 | Q8: 98.43 | R8: 153.2 | S8: 176.67 | T8: 84.18 | U8: 111.24 | V8: 462.32 | W8: 255.42 | X8: 306.98 | Y8: 531.37 | Z8: 281.97 | AA8: 80.49 | AB8: 128.6 | AC8: 90.5 | AD8: 131.76 | AE8: 36.97 | AF8: 241.3 | AG8: 90.25 | AH8: 5.81 | AI8: 72.3 | AJ8: 539.14 | AK8: 164.7 | AL8: 203.43 | AM8: 344.3 | AN8: 249.03 | AO8: 13.61
A9: 7 | B9: 2022-12-21 | C9: 150.09 | D9: 108.14 | E9: 167.41 | F9: 123.53 | G9: 57.24 | H9: 314.49 | I9: 66.82 | J9: 73.33 | K9: 136.33 | L9: 303.64 | M9: 514.48 | N9: 120.18 | O9: 155.3 | P9: 100.86 | Q9: 99.05 | R9: 154.34 | S9: 178.29 | T9: 84.25 | U9: 111.11 | V9: 472.36 | W9: 257.5 | X9: 308.86 | Y9: 538.79 | Z9: 287.31 | AA9: 81.5 | AB9: 129.12 | AC9: 90.85 | AD9: 132.75 | AE9: 37.39 | AF9: 242.21 | AG9: 91.8 | AH9: 5.9 | AI9: 72.97 | AJ9: 539.89 | AK9: 168.73 | AL9: 204.81 | AM9: 346.78 | AN9: 254.68 | AO9: 13.72
A10: 8 | B10: 2022-12-20 | C10: 147.93 | D10: 106.49 | E10: 164.33 | F10: 122.05 | G10: 56.34 | H10: 312.54 | I10: 65.1 | J10: 72.65 | K10: 133.41 | L10: 298.15 | M10: 505.17 | N10: 118.5 | O10: 150.2 | P10: 99.06 | Q10: 97.48 | R10: 151.78 | S10: 176.47 | T10: 82.99 | U10: 109.71 | V10: 458 | W10: 255.82 | X10: 305.64 | Y10: 529.57 | Z10: 284.21 | AA10: 80.94 | AB10: 127.19 | AC10: 90.12 | AD10: 129.8 | AE10: 37.12 | AF10: 238.58 | AG10: 89.74 | AH10: 5.87 | AI10: 71.93 | AJ10: 528.5 | AK10: 166.09 | AL10: 202.74 | AM10: 339.14 | AN10: 251.49 | AO10: 13.51
A11: 9 | B11: 2022-12-19 | C11: 146.95 | D11: 106.59 | E11: 165.14 | F11: 122.95 | G11: 56.06 | H11: 313.72 | I11: 65.46 | J11: 73.16 | K11: 133.21 | L11: 297.1 | M11: 501.02 | N11: 118.73 | O11: 151.45 | P11: 97.05 | Q11: 97.13 | R11: 153.32 | S11: 175.37 | T11: 82.84 | U11: 109.44 | V11: 461.94 | W11: 254.59 | X11: 299.84 | Y11: 532.52 | Z11: 290.19 | AA11: 80.5 | AB11: 127.07 | AC11: 90.18 | AD11: 125.39 | AE11: 36.94 | AF11: 238.11 | AG11: 87.93 | AH11: 5.9 | AI11: 71.62 | AJ11: 530.17 | AK11: 167.61 | AL11: 200.49 | AM11: 337.3 | AN11: 251.32 | AO11: 13.49
A12: 10 | B12: 2022-12-16 | C12: 149.3 | D12: 106.91 | E12: 166.82 | F12: 123.62 | G12: 56.05 | H12: 316.42 | I12: 65.86 | J12: 73.49 | K12: 133.35 | L12: 301.98 | M12: 502.89 | N12: 116.42 | O12: 149.24 | P12: 100.12 | Q12: 97.97 | R12: 151.79 | S12: 177.55 | T12: 83.41 | U12: 109.2 | V12: 471.59 | W12: 252.44 | X12: 303.49 | Y12: 529.87 | Z12: 294.88 | AA12: 79.58 | AB12: 126.45 | AC12: 90.81 | AD12: 126.71 | AE12: 36.76 | AF12: 240.47 | AG12: 86.5 | AH12: 5.96 | AI12: 72.63 | AJ12: 536.44 | AK12: 169.55 | AL12: 200.65 | AM12: 338.48 | AN12: 255.35 | AO12: 13.28
A13: 11 | B13: 2022-12-15 | C13: 150.86 | D13: 108.52 | E13: 166.09 | F13: 125.03 | G13: 56.8 | H13: 316.24 | I13: 66.86 | J13: 75 | K13: 134.96 | L13: 300.45 | M13: 503.79 | N13: 114.37 | O13: 149.22 | P13: 100.54 | Q13: 98.41 | R13: 153.19 | S13: 177.93 | T13: 84.46 | U13: 109.63 | V13: 476.68 | W13: 257.14 | X13: 300.35 | Y13: 528.49 | Z13: 299.14 | AA13: 80.07 | AB13: 127.66 | AC13: 91.46 | AD13: 125.65 | AE13: 37.19 | AF13: 244.19 | AG13: 86.08 | AH13: 5.97 | AI13: 72.44 | AJ13: 553.79 | AK13: 170.01 | AL13: 199.67 | AM13: 342.43 | AN13: 258.19 | AO13: 13.76
A14: 12 | B14: 2022-12-14 | C14: 154.81 | D14: 111.26 | E14: 171.68 | F14: 125.64 | G14: 58.88 | H14: 325.12 | I14: 68.94 | J14: 77.14 | K14: 140.85 | L14: 304.7 | M14: 518.35 | N14: 116.06 | O14: 151.11 | P14: 104.71 | Q14: 99.99 | R14: 156.04 | S14: 180.59 | T14: 86.27 | U14: 111.55 | V14: 498.48 | W14: 265.83 | X14: 310.65 | Y14: 531.78 | Z14: 309.4 | AA14: 81.82 | AB14: 126.58 | AC14: 92.52 | AD14: 127.95 | AE14: 38.13 | AF14: 248.68 | AG14: 88.77 | AH14: 6.12 | AI14: 74 | AJ14: 567.23 | AK14: 175.82 | AL14: 200.86 | AM14: 343.97 | AN14: 266.23 | AO14: 14.11
A15: 13 | B15: 2022-12-13 | C15: 157.66 | D15: 111.53 | E15: 175.49 | F15: 130.38 | G15: 59.37 | H15: 325.25 | I15: 69.19 | J15: 77.35 | K15: 145.2 | L15: 298.72 | M15: 515.5 | N15: 118.13 | O15: 149.75 | P15: 103.19 | Q15: 99.77 | R15: 157.12 | S15: 183.08 | T15: 86.6 | U15: 110.91 | V15: 512.02 | W15: 267.15 | X15: 315.23 | Y15: 525.59 | Z15: 304.65 | AA15: 80.56 | AB15: 128.28 | AC15: 90.87 | AD15: 128.97 | AE15: 38.3 | AF15: 258.86 | AG15: 89.03 | AH15: 6.16 | AI15: 74.77 | AJ15: 571.38 | AK15: 177.5 | AL15: 202.35 | AM15: 344.62 | AN15: 268.67 | AO15: 14.14
A16: 14 | B16: 2022-12-12 | C16: 155.33 | D16: 109.49 | E16: 172.26 | F16: 132.1 | G16: 58.51 | H16: 319.51 | I16: 68.84 | J16: 78.89 | K16: 145.13 | L16: 298.63 | M16: 515.02 | N16: 115.91 | O16: 149 | P16: 103.05 | Q16: 98.99 | R16: 155.87 | S16: 182.89 | T16: 85.98 | U16: 108.97 | V16: 497.27 | W16: 270.84 | X16: 314.24 | Y16: 535.18 | Z16: 301.8 | AA16: 81.28 | AB16: 129.94 | AC16: 91.42 | AD16: 128.53 | AE16: 38.34 | AF16: 253.88 | AG16: 90.18 | AH16: 6.15 | AI16: 74.19 | AJ16: 567.6 | AK16: 177.48 | AL16: 199.69 | AM16: 340.86 | AN16: 266.33 | AO16: 14.12
A17: 15 | B17: 2022-12-09 | C17: 152.95 | D17: 107.51 | E17: 168.68 | F17: 130.36 | G17: 58.3 | H17: 314.41 | I17: 67.92 | J17: 78.83 | K17: 142.11 | L17: 300.53 | M17: 516.82 | N17: 116.05 | O17: 148.85 | P17: 102.78 | Q17: 98.26 | R17: 156.27 | S17: 181.54 | T17: 85.28 | U17: 108.78 | V17: 492.55 | W17: 265.57 | X17: 315.49 | Y17: 528.94 | Z17: 292.23 | AA17: 79.86 | AB17: 129.38 | AC17: 90.97 | AD17: 127.28 | AE17: 38.51 | AF17: 252.88 | AG17: 90.11 | AH17: 6.11 | AI17: 73.25 | AJ17: 560.23 | AK17: 174.26 | AL17: 197.67 | AM17: 336.53 | AN17: 262.96 | AO17: 13.98
A18: 16 | B18: 2022-12-08 | C18: 156.28 | D18: 106.92 | E18: 169.65 | F18: 130.03 | G18: 58.42 | H18: 319.86 | I18: 68.13 | J18: 79.88 | K18: 144.82 | L18: 304.84 | M18: 522.05 | N18: 115.17 | O18: 150.5 | P18: 103.5 | Q18: 99.01 | R18: 160.14 | S18: 184.92 | T18: 85.65 | U18: 110.85 | V18: 499.98 | W18: 269.79 | X18: 316.99 | Y18: 540.55 | Z18: 287.27 | AA18: 80.07 | AB18: 131.18 | AC18: 92.03 | AD18: 128.79 | AE18: 39.24 | AF18: 254.45 | AG18: 91 | AH18: 6.16 | AI18: 73.8 | AJ18: 567.95 | AK18: 176.36 | AL18: 197.4 | AM18: 343.04 | AN18: 263.8 | AO18: 13.91
A19: 17 | B19: 2022-12-07 | C19: 153.73 | D19: 104.81 | E19: 166.01 | F19: 129.05 | G19: 59.27 | H19: 315.58 | I19: 68.27 | J19: 79.93 | K19: 142.39 | L19: 304.82 | M19: 518.64 | N19: 113.09 | O19: 149 | P19: 101.58 | Q19: 99.1 | R19: 157.13 | S19: 184.78 | T19: 85.35 | U19: 110.09 | V19: 500.4 | W19: 266.79 | X19: 316.92 | Y19: 540.21 | Z19: 286.65 | AA19: 78.78 | AB19: 130.48 | AC19: 92.39 | AD19: 127.86 | AE19: 39.48 | AF19: 251.12 | AG19: 90.56 | AH19: 6.2 | AI19: 73.38 | AJ19: 558.14 | AK19: 173.75 | AL19: 195.99 | AM19: 340.64 | AN19: 256.66 | AO19: 13.77
A20: 18 | B20: 2022-12-06 | C20: 151.35 | D20: 103.86 | E20: 166.51 | F20: 129.31 | G20: 59.37 | H20: 312.1 | I20: 73.65 | J20: 79.92 | K20: 143.33 | L20: 311.02 | M20: 519.75 | N20: 113.77 | O20: 148.97 | P20: 101.23 | Q20: 97.95 | R20: 158.08 | S20: 183.49 | T20: 84.38 | U20: 108.93 | V20: 499.9 | W20: 266.17 | X20: 316.88 | Y20: 531.81 | Z20: 287.12 | AA20: 78.91 | AB20: 130.97 | AC20: 93.35 | AD20: 128.25 | AE20: 39.21 | AF20: 253.46 | AG20: 92.02 | AH20: 6.15 | AI20: 73.51 | AJ20: 550.53 | AK20: 174.34 | AL20: 197.45 | AM20: 337.59 | AN20: 253.91 | AO20: 13.84
A21: 19 | B21: 2022-12-05 | C21: 152.7 | D21: 105.41 | E21: 167.84 | F21: 129.55 | G21: 59.82 | H21: 314.97 | I21: 74.02 | J21: 80.7 | K21: 144.98 | L21: 312.95 | M21: 522.24 | N21: 118.88 | O21: 148.92 | P21: 104.11 | Q21: 99.51 | R21: 159.4 | S21: 188.93 | T21: 84.05 | U21: 110.01 | V21: 504.49 | W21: 268.23 | X21: 319.38 | Y21: 541.43 | Z21: 289.76 | AA21: 79.43 | AB21: 131.26 | AC21: 94.75 | AD21: 129.33 | AE21: 39.6 | AF21: 253.59 | AG21: 92.61 | AH21: 6.18 | AI21: 74.66 | AJ21: 557.21 | AK21: 177.39 | AL21: 197.29 | AM21: 340.29 | AN21: 257.06 | AO21: 14.15
A22: 20 | B22: 2022-12-02 | C22: 155.67 | D22: 108.09 | E22: 168.63 | F22: 128.48 | G22: 60.38 | H22: 318.44 | I22: 74.51 | J22: 81.13 | K22: 148.99 | L22: 315.57 | M22: 524.1 | N22: 122.04 | O22: 150.46 | P22: 103.74 | Q22: 100.45 | R22: 163.82 | S22: 191.6 | T22: 86.38 | U22: 110.04 | V22: 518.83 | W22: 272.7 | X22: 322.75 | Y22: 545.6 | Z22: 302.85 | AA22: 83.35 | AB22: 132.51 | AC22: 95.75 | AD22: 131.85 | AE22: 40.48 | AF22: 257.75 | AG22: 95.08 | AH22: 6.24 | AI22: 75.65 | AJ22: 563 | AK22: 177.66 | AL22: 202.1 | AM22: 347.37 | AN22: 266.4 | AO22: 14.44
A23: 21 | B23: 2022-12-01 | C23: 156.12 | D23: 107.93 | E23: 171.48 | F23: 128.01 | G23: 60.48 | H23: 312.04 | I23: 74.05 | J23: 80.88 | K23: 149.86 | L23: 313.71 | M23: 519.02 | N23: 122.09 | O23: 152.61 | P23: 102.93 | Q23: 98.05 | R23: 163.62 | S23: 190.73 | T23: 85.73 | U23: 109.8 | V23: 521.39 | W23: 271.78 | X23: 318.87 | Y23: 530.3 | Z23: 300.89 | AA23: 84.11 | AB23: 131.26 | AC23: 94.09 | AD23: 129.78 | AE23: 40.39 | AF23: 251.61 | AG23: 94.42 | AH23: 6.41 | AI23: 74.49 | AJ23: 564.56 | AK23: 177.5 | AL23: 204.57 | AM23: 346.93 | AN23: 269.94 | AO23: 14.47
A24: 22 | B24: 2022-11-30 | C24: 154.98 | D24: 107.58 | E24: 171.91 | F24: 128.22 | G24: 60.74 | H24: 310.16 | I24: 73.02 | J24: 80.28 | K24: 149.11 | L24: 312.3 | M24: 520 | N24: 120.95 | O24: 151.83 | P24: 103.41 | Q24: 97.97 | R24: 164.02 | S24: 189.35 | T24: 85.18 | U24: 110.12 | V24: 507.83 | W24: 272.2 | X24: 316.02 | Y24: 533.29 | Z24: 302.61 | AA24: 83.03 | AB24: 132.15 | AC24: 93.61 | AD24: 130.07 | AE24: 40.44 | AF24: 249.18 | AG24: 96.12 | AH24: 6.49 | AI24: 74.71 | AJ24: 560.22 | AK24: 180.46 | AL24: 199.81 | AM24: 346.6 | AN24: 268.98 | AO24: 14.66
A25: 23 | B25: 2022-11-29 | C25: 150.94 | D25: 105 | E25: 163.89 | F25: 126.39 | G25: 60.49 | H25: 302.18 | I25: 71.12 | J25: 79.03 | K25: 142.82 | L25: 307.11 | M25: 511.71 | N25: 118.83 | O25: 149.01 | P25: 100.28 | Q25: 96.71 | R25: 159.64 | S25: 185.9 | T25: 83.75 | U25: 108.84 | V25: 486.32 | W25: 264.46 | X25: 309.2 | Y25: 528.35 | Z25: 292.07 | AA25: 80.85 | AB25: 131.12 | AC25: 92.77 | AD25: 127.49 | AE25: 39.83 | AF25: 241.57 | AG25: 94.71 | AH25: 6.41 | AI25: 73.51 | AJ25: 539.75 | AK25: 172.98 | AL25: 194.96 | AM25: 330.16 | AN25: 269.3 | AO25: 14.47
A26: 24 | B26: 2022-11-28 | C26: 152.3 | D26: 105.39 | E26: 164.01 | F26: 125.22 | G26: 59.76 | H26: 304.46 | I26: 71.93 | J26: 79.14 | K26: 146.5 | L26: 308.43 | M26: 510.72 | N26: 118.15 | O26: 149.07 | P26: 100.88 | Q26: 97.61 | R26: 162.96 | S26: 188.8 | T26: 83.75 | U26: 108.45 | V26: 495.96 | W26: 265.98 | X26: 312.68 | Y26: 524.88 | Z26: 288.32 | AA26: 81.39 | AB26: 130.02 | AC26: 92.66 | AD26: 131.84 | AE26: 39.78 | AF26: 245.56 | AG26: 95.63 | AH26: 6.38 | AI26: 73.76 | AJ26: 540.03 | AK26: 173 | AL26: 197.75 | AM26: 331.6 | AN26: 269.96 | AO26: 14.26
A27: 25 | B27: 2022-11-25 | C27: 156.96 | D27: 106.96 | E27: 167.09 | F27: 128.49 | G27: 61.86 | H27: 309.91 | I27: 72.73 | J27: 79.24 | K27: 148.52 | L27: 311.08 | M27: 516.92 | N27: 118.47 | O27: 149.06 | P27: 102.59 | Q27: 98.69 | R27: 161.91 | S27: 191.42 | T27: 84.91 | U27: 107.5 | V27: 512.26 | W27: 268.43 | X27: 317.77 | Y27: 527.83 | Z27: 293.99 | AA27: 82.72 | AB27: 131.57 | AC27: 92.92 | AD27: 133.72 | AE27: 39.99 | AF27: 249.52 | AG27: 95.38 | AH27: 6.49 | AI27: 74.24 | AJ27: 551.25 | AK27: 177.07 | AL27: 198.87 | AM27: 338.03 | AN27: 278.74 | AO27: 14.29
A28: 26 | B28: 2022-11-23 | C28: 155.35 | D28: 106.02 | E28: 169.2 | F28: 127.04 | G28: 61.53 | H28: 308.15 | I28: 72.57 | J28: 79.14 | K28: 148.43 | L28: 305.63 | M28: 513.1 | N28: 118.31 | O28: 148.46 | P28: 101.26 | Q28: 97.99 | R28: 160.41 | S28: 190.06 | T28: 86.11 | U28: 106.82 | V28: 508.75 | W28: 266 | X28: 314.7 | Y28: 522.34 | Z28: 297.03 | AA28: 82.56 | AB28: 131.09 | AC28: 93.86 | AD28: 131.9 | AE28: 39.72 | AF28: 250 | AG28: 94.49 | AH28: 6.5 | AI28: 74.23 | AJ28: 547.29 | AK28: 178.98 | AL28: 199.31 | AM28: 334.57 | AN28: 279.01 | AO28: 14.18
A29: 27 | B29: 2022-11-22 | C29: 156.86 | D29: 104.87 | E29: 168.43 | F29: 127.18 | G29: 61.9 | H29: 309.16 | I29: 72.24 | J29: 78.86 | K29: 148.36 | L29: 307.38 | M29: 508.13 | N29: 117.61 | O29: 146.7 | P29: 100.68 | Q29: 97.94 | R29: 161.38 | S29: 188.94 | T29: 86.12 | U29: 106.9 | V29: 502.67 | W29: 265.06 | X29: 313.39 | Y29: 524.65 | Z29: 295.9 | AA29: 82.12 | AB29: 130.09 | AC29: 93.83 | AD29: 132.74 | AE29: 39.54 | AF29: 243.45 | AG29: 93.99 | AH29: 6.49 | AI29: 73.58 | AJ29: 544.75 | AK29: 177.22 | AL29: 197.66 | AM29: 336.97 | AN29: 279.34 | AO29: 14.12
A30: 28 | B30: 2022-11-21 | C30: 145.14 | D30: 103.88 | E30: 159.24 | F30: 126.5 | G30: 61.4 | H30: 296.41 | I30: 70.47 | J30: 78.96 | K30: 147.1 | L30: 306.87 | M30: 505.2 | N30: 118.39 | O30: 146.5 | P30: 101.59 | Q30: 95.87 | R30: 159.59 | S30: 188.81 | T30: 85.15 | U30: 105.61 | V30: 493.37 | W30: 262.38 | X30: 313.24 | Y30: 527.87 | Z30: 298.6 | AA30: 79.82 | AB30: 129.81 | AC30: 92.47 | AD30: 130.59 | AE30: 42.12 | AF30: 239.26 | AG30: 92.47 | AH30: 6.43 | AI30: 72.82 | AJ30: 536.28 | AK30: 172.4 | AL30: 195.51 | AM30: 322.89 | AN30: 276.36 | AO30: 13.95
A31: 29 | B31: 2022-11-18 | C31: 146.19 | D31: 103.87 | E31: 161.85 | F31: 124.95 | G31: 61.28 | H31: 296.48 | I31: 69.79 | J31: 77.45 | K31: 144.6 | L31: 303.76 | M31: 503.65 | N31: 122.6 | O31: 146.42 | P31: 102.08 | Q31: 95.34 | R31: 156.32 | S31: 186.96 | T31: 83.76 | U31: 104.23 | V31: 490.31 | W31: 262.94 | X31: 308.54 | Y31: 520.42 | Z31: 298.34 | AA31: 79.73 | AB31: 128.36 | AC31: 88.95 | AD31: 130.25 | AE31: 42.46 | AF31: 240.04 | AG31: 93.01 | AH31: 6.39 | AI31: 72.73 | AJ31: 535.24 | AK31: 175.18 | AL31: 194.25 | AM31: 321.16 | AN31: 275.3 | AO31: 13.89
A32: 30 | B32: 2022-11-17 | C32: 144.44 | D32: 102.56 | E32: 161.47 | F32: 123.46 | G32: 60.1 | H32: 293.3 | I32: 68.89 | J32: 77.16 | K32: 142.57 | L32: 305.16 | M32: 495.33 | N32: 120.07 | O32: 145.96 | P32: 101.16 | Q32: 94 | R32: 156.59 | S32: 183.1 | T32: 83.12 | U32: 102.31 | V32: 491.09 | W32: 255.51 | X32: 308.55 | Y32: 518.85 | Z32: 298.77 | AA32: 79.2 | AB32: 128.02 | AC32: 89.61 | AD32: 130.2 | AE32: 41.84 | AF32: 237.11 | AG32: 92.15 | AH32: 6.36 | AI32: 72.21 | AJ32: 529.89 | AK32: 175.36 | AL32: 195.55 | AM32: 319.81 | AN32: 274.17 | AO32: 13.93
A33: 31 | B33: 2022-11-16 | C33: 147.12 | D33: 103.61 | E33: 161.27 | F33: 125.76 | G33: 59.8 | H33: 295.12 | I33: 69.56 | J33: 76.15 | K33: 142.96 | L33: 299.68 | M33: 497.96 | N33: 118.71 | O33: 149.27 | P33: 101.48 | Q33: 93.99 | R33: 156.08 | S33: 180.64 | T33: 83.65 | U33: 99.93 | V33: 507.21 | W33: 255.76 | X33: 304.58 | Y33: 505.13 | Z33: 307.17 | AA33: 79.89 | AB33: 125.91 | AC33: 89.57 | AD33: 129.35 | AE33: 42.03 | AF33: 240.81 | AG33: 91.62 | AH33: 6.48 | AI33: 71.51 | AJ33: 536.01 | AK33: 173.46 | AL33: 197.55 | AM33: 329.53 | AN33: 276.24 | AO33: 13.84
A34: 32 | B34: 2022-11-15 | C34: 148 | D34: 103.14 | E34: 165.17 | F34: 124.62 | G34: 60.39 | H34: 294.54 | I34: 69.25 | J34: 76.28 | K34: 142.6 | L34: 289.73 | M34: 496.68 | N34: 117.59 | O34: 147.94 | P34: 101.2 | Q34: 94.42 | R34: 151.55 | S34: 181.2 | T34: 83.65 | U34: 99.6 | V34: 503.02 | W34: 250.41 | X34: 303.93 | Y34: 500.72 | Z34: 318.09 | AA34: 79.18 | AB34: 123.06 | AC34: 86.89 | AD34: 128.23 | AE34: 41.47 | AF34: 240.59 | AG34: 91.66 | AH34: 6.47 | AI34: 72.17 | AJ34: 546.09 | AK34: 177.57 | AL34: 195.53 | AM34: 329.79 | AN34: 283.23 | AO34: 14.07
A35: 33 | B35: 2022-11-14 | C35: 146.38 | D35: 102.01 | E35: 161.26 | F35: 124.76 | G35: 59.51 | H35: 294.89 | I35: 68.88 | J35: 76.39 | K35: 141.32 | L35: 289.23 | M35: 490.36 | N35: 115.37 | O35: 150.38 | P35: 100.92 | Q35: 92.84 | R35: 137.97 | S35: 177.43 | T35: 82.75 | U35: 100.35 | V35: 492.24 | W35: 250.95 | X35: 304.83 | Y35: 481.74 | Z35: 314.27 | AA35: 78.53 | AB35: 122.98 | AC35: 85.95 | AD35: 127.14 | AE35: 41.88 | AF35: 234.08 | AG35: 93.11 | AH35: 6.42 | AI35: 71.43 | AJ35: 534.77 | AK35: 177.44 | AL35: 190.45 | AM35: 325.88 | AN35: 280.09 | AO35: 13.76
A36: 34 | B36: 2022-11-11 | C36: 148.31 | D36: 104.09 | E36: 164.06 | F36: 128.15 | G36: 60 | H36: 288.46 | I36: 69.64 | J36: 75.96 | K36: 139.99 | L36: 289.12 | M36: 490.03 | N36: 115.16 | O36: 151.03 | P36: 101.24 | Q36: 92.56 | R36: 140.63 | S36: 174.49 | T36: 83.77 | U36: 97.96 | V36: 512.37 | W36: 249.53 | X36: 304.68 | Y36: 492.7 | Z36: 314.11 | AA36: 77.74 | AB36: 126.23 | AC36: 86.19 | AD36: 126.18 | AE36: 41.59 | AF36: 237.24 | AG36: 91.33 | AH36: 6.44 | AI36: 72.43 | AJ36: 538.68 | AK36: 179.49 | AL36: 192.39 | AM36: 331.85 | AN36: 277.88 | AO36: 13.85
A37: 35 | B37: 2022-11-10 | C37: 146.3 | D37: 104.23 | E37: 160.37 | F37: 126.66 | G37: 59.28 | H37: 289.59 | I37: 69.84 | J37: 79.38 | K37: 141.24 | L37: 301.2 | M37: 500.3 | N37: 118.36 | O37: 152.48 | P37: 103.34 | Q37: 94.37 | R37: 143.71 | S37: 175.75 | T37: 81.86 | U37: 101.89 | V37: 509.7 | W37: 259.61 | X37: 308.1 | Y37: 531.59 | Z37: 305.63 | AA37: 77.17 | AB37: 129.74 | AC37: 89.13 | AD37: 131.14 | AE37: 42.02 | AF37: 239 | AG37: 93.6 | AH37: 6.41 | AI37: 72.46 | AJ37: 520.58 | AK37: 174.69 | AL37: 191.12 | AM37: 331.85 | AN37: 281.51 | AO37: 13.45
A38: 36 | B38: 2022-11-09 | C38: 137 | D38: 99.46 | E38: 148.23 | F38: 122.62 | G38: 55.05 | H38: 280.13 | I38: 66.44 | J38: 79.78 | K38: 133.74 | L38: 298.38 | M38: 488.62 | N38: 116.23 | O38: 145.42 | P38: 96.71 | Q38: 92.03 | R38: 142.5 | S38: 172.52 | T38: 79.21 | U38: 101.59 | V38: 465.13 | W38: 253.62 | X38: 297.18 | Y38: 533.14 | Z38: 281.86 | AA38: 75.66 | AB38: 127.7 | AC38: 88.88 | AD38: 129.69 | AE38: 41.55 | AF38: 222 | AG38: 91.56 | AH38: 6.32 | AI38: 67.75 | AJ38: 484.71 | AK38: 164.99 | AL38: 178.32 | AM38: 309.52 | AN38: 254.01 | AO38: 12.68
A39: 37 | B39: 2022-11-08 | C39: 138.75 | D39: 99.64 | E39: 151.04 | F39: 123 | G39: 55.97 | H39: 283 | I39: 66.99 | J39: 79.98 | K39: 136.49 | L39: 302.45 | M39: 489.62 | N39: 120.31 | O39: 145.83 | P39: 98.94 | Q39: 93.07 | R39: 145.88 | S39: 180.94 | T39: 80.7 | U39: 101.5 | V39: 467.9 | W39: 256.8 | X39: 305.06 | Y39: 540.93 | Z39: 290.06 | AA39: 75.64 | AB39: 129.1 | AC39: 89.3 | AD39: 130.96 | AE39: 42 | AF39: 225.42 | AG39: 92.97 | AH39: 6.36 | AI39: 69.18 | AJ39: 492.17 | AK39: 168.11 | AL39: 180.73 | AM39: 312.56 | AN39: 262.56 | AO39: 12.93
A40: 38 | B40: 2022-11-07 | C40: 138.03 | D40: 99.5 | E40: 148.93 | F40: 120.73 | G40: 56.91 | H40: 277.63 | I40: 67.09 | J40: 79.19 | K40: 135.5 | L40: 302.14 | M40: 484.24 | N40: 122.67 | O40: 146.14 | P40: 98.33 | Q40: 93.16 | R40: 149.85 | S40: 181.85 | T40: 79.94 | U40: 100.07 | V40: 462.19 | W40: 255.53 | X40: 303.01 | Y40: 534.77 | Z40: 281.98 | AA40: 76.74 | AB40: 127.3 | AC40: 88.03 | AD40: 130.16 | AE40: 41.75 | AF40: 221.37 | AG40: 92.43 | AH40: 6.28 | AI40: 69.24 | AJ40: 492.1 | AK40: 165.69 | AL40: 177.88 | AM40: 306.47 | AN40: 262.87 | AO40: 12.9
A41: 39 | B41: 2022-11-04 | C41: 136.08 | D41: 98.07 | E41: 144.29 | F41: 121.22 | G41: 55.98 | H41: 276.06 | I41: 67.15 | J41: 78.78 | K41: 133.44 | L41: 295.76 | M41: 481.1 | N41: 124.83 | O41: 143.62 | P41: 97.65 | Q41: 93.19 | R41: 146.96 | S41: 180.46 | T41: 79.02 | U41: 99.2 | V41: 460.91 | W41: 254.87 | X41: 300.04 | Y41: 522.77 | Z41: 271.91 | AA41: 76 | AB41: 126.62 | AC41: 86.44 | AD41: 127.55 | AE41: 41.91 | AF41: 216.23 | AG41: 93.17 | AH41: 6.16 | AI41: 68.36 | AJ41: 495.55 | AK41: 162.65 | AL41: 176.69 | AM41: 305.07 | AN41: 261.96 | AO41: 12.81
A42: 40 | B42: 2022-11-03 | C42: 134.46 | D42: 96.45 | E42: 138.02 | F42: 123.41 | G42: 54.37 | H42: 264.02 | I42: 66.16 | J42: 78.48 | K42: 133.91 | L42: 301.87 | M42: 480.98 | N42: 124.28 | O42: 142.98 | P42: 96.06 | Q42: 91.48 | R42: 145.59 | S42: 179.62 | T42: 76.76 | U42: 98.75 | V42: 451.15 | W42: 238.18 | X42: 289.18 | Y42: 525.51 | Z42: 263.03 | AA42: 75.03 | AB42: 127.32 | AC42: 85.97 | AD42: 127.97 | AE42: 42.29 | AF42: 217.19 | AG42: 93.5 | AH42: 6.09 | AI42: 67.22 | AJ42: 486.94 | AK42: 156.52 | AL42: 180.19 | AM42: 298.93 | AN42: 261.08 | AO42: 12.43
A43: 41 | B43: 2022-11-02 | C43: 135.27 | D43: 98.04 | E43: 141.24 | F43: 131.02 | G43: 53.7 | H43: 245.17 | I43: 66.44 | J43: 77.45 | K43: 137.73 | L43: 303.03 | M43: 487.81 | N43: 126.12 | O43: 140.48 | P43: 94.71 | Q43: 87.68 | R43: 145.13 | S43: 190.64 | T43: 77.23 | U43: 99.4 | V43: 453.74 | W43: 239.9 | X43: 293.09 | Y43: 530.3 | Z43: 260.39 | AA43: 75.12 | AB43: 127.73 | AC43: 89.05 | AD43: 127.93 | AE43: 41.87 | AF43: 215.73 | AG43: 95.32 | AH43: 6.07 | AI43: 67.4 | AJ43: 490.98 | AK43: 158.49 | AL43: 186.61 | AM43: 295.74 | AN43: 266.87 | AO43: 13.04
A44: 42 | B44: 2022-11-01 | C44: 140.89 | D44: 99.31 | E44: 144.7 | F44: 134.7 | G44: 54.6 | H44: 252.12 | I44: 67.44 | J44: 77.7 | K44: 149.6 | L44: 302.93 | M44: 476.93 | N44: 128.4 | O44: 142.78 | P44: 97.29 | Q44: 88.72 | R44: 146.45 | S44: 201.24 | T44: 78.59 | U44: 99.76 | V44: 470.08 | W44: 242.89 | X44: 300.27 | Y44: 535.88 | Z44: 272.87 | AA44: 77.11 | AB44: 129.02 | AC44: 91.26 | AD44: 132.98 | AE44: 42.2 | AF44: 224.78 | AG44: 95.52 | AH44: 6.06 | AI44: 70.43 | AJ44: 517.69 | AK44: 162.9 | AL44: 196.97 | AM44: 307.44 | AN44: 272.6 | AO44: 13.63
A45: 43 | B45: 2022-10-31 | C45: 138.35 | D45: 98.94 | E45: 142.62 | F45: 135.86 | G45: 54.78 | H45: 250.4 | I45: 68 | J45: 77.47 | K45: 150.06 | L45: 304.03 | M45: 466.87 | N45: 128.92 | O45: 143.65 | P45: 95.26 | Q45: 89.12 | R45: 147.61 | S45: 199.06 | T45: 78.64 | U45: 101.2 | V45: 468.86 | W45: 249.71 | X45: 304.34 | Y45: 549.01 | Z45: 274.6 | AA45: 78.07 | AB45: 128.4 | AC45: 90.42 | AD45: 130.07 | AE45: 42.08 | AF45: 225.03 | AG45: 98.08 | AH45: 6.04 | AI45: 71.46 | AJ45: 513.97 | AK45: 160.63 | AL45: 200.46 | AM45: 299.17 | AN45: 270.96 | AO45: 13.51
A46: 44 | B46: 2022-10-28 | C46: 138.77 | D46: 99.49 | E46: 144.88 | F46: 134.69 | G46: 54.38 | H46: 254.44 | I46: 68.17 | J46: 76.83 | K46: 148.9 | L46: 303.12 | M46: 461.93 | N46: 130.02 | O46: 144.59 | P46: 94.09 | Q46: 88.74 | R46: 149.58 | S46: 201.73 | T46: 79.2 | U46: 100.77 | V46: 474.27 | W46: 250.12 | X46: 303.28 | Y46: 548.11 | Z46: 270.6 | AA46: 77.36 | AB46: 129.7 | AC46: 90.7 | AD46: 128.89 | AE46: 41.87 | AF46: 226.23 | AG46: 97.06 | AH46: 6.17 | AI46: 70.77 | AJ46: 503.84 | AK46: 161.36 | AL46: 203.37 | AM46: 302.68 | AN46: 271.62 | AO46: 13.91
A47: 45 | B47: 2022-10-27 | C47: 136.49 | D47: 96.93 | E47: 140.68 | F47: 132.19 | G47: 51.9 | H47: 249.06 | I47: 66.59 | J47: 74.6 | K47: 145 | L47: 294.9 | M47: 460.51 | N47: 127.58 | O47: 142.65 | P47: 90.8 | Q47: 87.44 | R47: 145.66 | S47: 196.34 | T47: 77.62 | U47: 99.74 | V47: 455.22 | W47: 242.18 | X47: 296.44 | Y47: 535.51 | Z47: 264.41 | AA47: 75.15 | AB47: 124.38 | AC47: 89.48 | AD47: 126.36 | AE47: 41.02 | AF47: 221.85 | AG47: 94.5 | AH47: 6.11 | AI47: 69.31 | AJ47: 498.32 | AK47: 156.76 | AL47: 185.79 | AM47: 300.96 | AN47: 262.67 | AO47: 13.86
A48: 46 | B48: 2022-10-26 | C48: 137.69 | D48: 98.42 | E48: 141.38 | F48: 136.75 | G48: 51.95 | H48: 252.02 | I48: 66.63 | J48: 74.45 | K48: 144.33 | L48: 279.62 | M48: 467.96 | N48: 125.62 | O48: 143.51 | P48: 90.8 | Q48: 86.28 | R48: 143.64 | S48: 193.25 | T48: 76.4 | U48: 98.41 | V48: 451.6 | W48: 240.3 | X48: 295.1 | Y48: 530.99 | Z48: 274.5 | AA48: 74.82 | AB48: 122.93 | AC48: 88.16 | AD48: 123.84 | AE48: 39.55 | AF48: 220.88 | AG48: 93.26 | AH48: 6.23 | AI48: 68.58 | AJ48: 503 | AK48: 157.87 | AL48: 184.99 | AM48: 301.73 | AN48: 261.06 | AO48: 13.96
A49: 47 | B49: 2022-10-25 | C49: 134.5 | D49: 97.95 | E49: 146.37 | F49: 152.74 | G49: 52.1 | H49: 251.56 | I49: 66.82 | J49: 72.77 | K49: 144.39 | L49: 278.37 | M49: 457.9 | N49: 124.82 | O49: 144.05 | P49: 91.74 | Q49: 85.89 | R49: 142.21 | S49: 192.67 | T49: 76.13 | U49: 97.71 | V49: 448.42 | W49: 239.68 | X49: 294.97 | Y49: 526.75 | Z49: 274.03 | AA49: 73.14 | AB49: 122.11 | AC49: 88.56 | AD49: 123.05 | AE49: 35.94 | AF49: 220.2 | AG49: 93.13 | AH49: 6.28 | AI49: 68.06 | AJ49: 514.62 | AK49: 162.16 | AL49: 187.82 | AM49: 296.81 | AN49: 260.19 | AO49: 13.92
A50: 48 | B50: 2022-10-24 | C50: 132.3 | D50: 98.29 | E50: 144.53 | F50: 150.61 | G50: 50.8 | H50: 243.92 | I50: 64.47 | J50: 72.99 | K50: 142.4 | L50: 271.18 | M50: 450.71 | N50: 120.57 | O50: 138.96 | P50: 90.67 | Q50: 84.25 | R50: 142.69 | S50: 189.14 | T50: 74.5 | U50: 97.37 | V50: 412.15 | W50: 235.05 | X50: 311.22 | Y50: 525.96 | Z50: 269.22 | AA50: 72.92 | AB50: 123.26 | AC50: 87.02 | AD50: 121.92 | AE50: 36.28 | AF50: 212.53 | AG50: 93.45 | AH50: 6.23 | AI50: 65.19 | AJ50: 505.01 | AK50: 161.65 | AL50: 182.2 | AM50: 287.41 | AN50: 252.38 | AO50: 13.91
A51: 49 | B51: 2022-10-21 | C51: 129.88 | D51: 95.06 | E51: 146.59 | F51: 146.91 | G51: 50.13 | H51: 241.29 | I51: 63.9 | J51: 72.21 | K51: 140.99 | L51: 273.09 | M51: 442.91 | N51: 118.46 | O51: 136.75 | P51: 89.93 | Q51: 83.96 | R51: 138.61 | S51: 187.32 | T51: 73.84 | U51: 95.67 | V51: 401.48 | W51: 226.38 | X51: 309.68 | Y51: 522.66 | Z51: 260.43 | AA51: 72.7 | AB51: 122.45 | AC51: 85.19 | AD51: 121.26 | AE51: 36.43 | AF51: 207.82 | AG51: 92 | AH51: 6.19 | AI51: 68.94 | AJ51: 496.74 | AK51: 159.72 | AL51: 179.15 | AM51: 282.12 | AN51: 248.33 | AO51: 13.63
A52: 50 | B52: 2022-10-20 | C52: 125.94 | D52: 95.21 | E52: 142.08 | F52: 145.3 | G52: 48.76 | H52: 238.32 | I52: 63.37 | J52: 70.35 | K52: 140.4 | L52: 264.76 | M52: 450.4 | N52: 115.13 | O52: 134.66 | P52: 88.08 | Q52: 82.51 | R52: 135.98 | S52: 185.46 | T52: 72.79 | U52: 92.94 | V52: 393.66 | W52: 221.17 | X52: 304.89 | Y52: 512.44 | Z52: 257.65 | AA52: 69.25 | AB52: 118.86 | AC52: 83.78 | AD52: 112.23 | AE52: 35.99 | AF52: 201.22 | AG52: 89.24 | AH52: 6.1 | AI52: 69.82 | AJ52: 486.86 | AK52: 153.72 | AL52: 178.67 | AM52: 275.01 | AN52: 238.59 | AO52: 13.44
A53: 51 | B53: 2022-10-19 | C53: 128.96 | D53: 98.11 | E53: 141.33 | F53: 151.99 | G53: 50.77 | H53: 241.45 | I53: 64.26 | J53: 71.14 | K53: 143.5 | L53: 261.93 | M53: 451.65 | N53: 121.21 | O53: 126.66 | P53: 89.89 | Q53: 83.92 | R53: 137.76 | S53: 187.11 | T53: 74.69 | U53: 93.26 | V53: 398.79 | W53: 223.85 | X53: 312.49 | Y53: 510.91 | Z53: 260.76 | AA53: 66.3 | AB53: 121.2 | AC53: 86.25 | AD53: 112.53 | AE53: 36.88 | AF53: 207.24 | AG53: 91.95 | AH53: 6.14 | AI53: 71.14 | AJ53: 505.61 | AK53: 152.65 | AL53: 182.1 | AM53: 277.36 | AN53: 246.38 | AO53: 14.25
A54: 52 | B54: 2022-10-18 | C54: 132.3 | D54: 104.98 | E54: 141.1 | F54: 154.43 | G54: 51.76 | H54: 242.37 | I54: 65.74 | J54: 71.74 | K54: 145.56 | L54: 264.28 | M54: 454.95 | N54: 122.02 | O54: 129.58 | P54: 90.4 | Q54: 83.97 | R54: 139.26 | S54: 188.95 | T54: 74.61 | U54: 94.61 | V54: 408.56 | W54: 225.3 | X54: 312.72 | Y54: 506.8 | Z54: 268.63 | AA54: 67.03 | AB54: 120.26 | AC54: 87.38 | AD54: 112.79 | AE54: 36.67 | AF54: 212.63 | AG54: 90.35 | AH54: 6.23 | AI54: 72.16 | AJ54: 524.4 | AK54: 151.51 | AL54: 182.89 | AM54: 283.94 | AN54: 257.28 | AO54: 14.31
A55: 53 | B55: 2022-10-17 | C55: 130.56 | D55: 103.52 | E55: 139.12 | F55: 151.52 | G55: 51.61 | H55: 237.36 | I55: 65.41 | J55: 71.38 | K55: 142.79 | L55: 257.06 | M55: 445.79 | N55: 121.1 | O55: 127.93 | P55: 90.38 | Q55: 83.37 | R55: 139.16 | S55: 186.8 | T55: 73.63 | U55: 94.12 | V55: 402.96 | W55: 220.74 | X55: 309.45 | Y55: 475.09 | Z55: 267.11 | AA55: 67.02 | AB55: 119.59 | AC55: 86.37 | AD55: 112.11 | AE55: 36.14 | AF55: 209.12 | AG55: 88.76 | AH55: 6.19 | AI55: 71.12 | AJ55: 517.23 | AK55: 150.99 | AL55: 179.55 | AM55: 279.6 | AN55: 250.72 | AO55: 14.1
A56: 54 | B56: 2022-10-14 | C56: 125.7 | D56: 100.91 | E56: 136.73 | F56: 147.35 | G56: 49.04 | H56: 232.53 | I56: 63.89 | J56: 70.62 | K56: 139.1 | L56: 248.66 | M56: 432.5 | N56: 117.74 | O56: 126.11 | P56: 87.82 | Q56: 82.29 | R56: 136.04 | S56: 183.43 | T56: 73.54 | U56: 92.18 | V56: 388.72 | W56: 213.28 | X56: 307.23 | Y56: 464.19 | Z56: 259.54 | AA56: 64.31 | AB56: 115.89 | AC56: 86.25 | AD56: 109.67 | AE56: 35.02 | AF56: 201.7 | AG56: 89.46 | AH56: 6.05 | AI56: 69.02 | AJ56: 503.05 | AK56: 148.34 | AL56: 174.08 | AM56: 272.19 | AN56: 241.47 | AO56: 14
A57: 55 | B57: 2022-10-13 | C57: 127.9 | D57: 102.47 | E57: 142.75 | F57: 151.82 | G57: 48.86 | H57: 237.99 | I57: 65.43 | J57: 70.77 | K57: 142.71 | L57: 256.92 | M57: 438.87 | N57: 119.36 | O57: 125.71 | P57: 88.71 | Q57: 83.37 | R57: 137.94 | S57: 185.23 | T57: 74.87 | U57: 92.49 | V57: 406.08 | W57: 225.37 | X57: 311.19 | Y57: 501.44 | Z57: 268.55 | AA57: 65.2 | AB57: 122.42 | AC57: 87.24 | AD57: 110 | AE57: 36.06 | AF57: 205.68 | AG57: 88.8 | AH57: 6.14 | AI57: 70.32 | AJ57: 510.54 | AK57: 154.34 | AL57: 176.85 | AM57: 276.79 | AN57: 256.73 | AO57: 14.04
A58: 56 | B58: 2022-10-12 | C58: 125.69 | D58: 100.08 | E58: 138.59 | F58: 146.56 | G58: 49.13 | H58: 229.32 | I58: 64.46 | J58: 69.28 | K58: 139.67 | L58: 250.32 | M58: 436.11 | N58: 117.4 | O58: 124.39 | P58: 88.72 | Q58: 81.67 | R58: 134.79 | S58: 181.39 | T58: 74.48 | U58: 90.42 | V58: 401.65 | W58: 223.33 | X58: 307.04 | Y58: 492.38 | Z58: 274.65 | AA58: 63.78 | AB58: 121.4 | AC58: 84.46 | AD58: 106.14 | AE58: 36.2 | AF58: 201.51 | AG58: 86.16 | AH58: 5.96 | AI58: 69.15 | AJ58: 500.67 | AK58: 151.55 | AL58: 175.68 | AM58: 270.72 | AN58: 263.34 | AO58: 13.72
A59: 57 | B59: 2022-10-11 | C59: 125.64 | D59: 101.75 | E59: 138.8 | F59: 150.11 | G59: 49.31 | H59: 231.21 | I59: 64.65 | J59: 69.65 | K59: 142.4 | L59: 256.95 | M59: 438.63 | N59: 118.61 | O59: 124.36 | P59: 89.28 | Q59: 81.9 | R59: 133.55 | S59: 183.99 | T59: 75.84 | U59: 91.05 | V59: 399.35 | W59: 224.25 | X59: 308.39 | Y59: 507.31 | Z59: 267.76 | AA59: 62.41 | AB59: 123.45 | AC59: 84.13 | AD59: 106.79 | AE59: 36.36 | AF59: 204.51 | AG59: 86.85 | AH59: 5.97 | AI59: 69.74 | AJ59: 500.81 | AK59: 153.45 | AL59: 174.89 | AM59: 271.99 | AN59: 264.23 | AO59: 13.48
A60: 58 | B60: 2022-10-10 | C60: 125.95 | D60: 101.13 | E60: 140.9 | F60: 149.57 | G60: 49.58 | H60: 232.44 | I60: 65 | J60: 68.48 | K60: 143.53 | L60: 261.23 | M60: 437.41 | N60: 117.52 | O60: 124.02 | P60: 88.76 | Q60: 81.1 | R60: 133.24 | S60: 185.43 | T60: 75.86 | U60: 90.48 | V60: 406.92 | W60: 227.02 | X60: 306.51 | Y60: 503.83 | Z60: 267.85 | AA60: 62.57 | AB60: 123.73 | AC60: 82.8 | AD60: 104.79 | AE60: 36.45 | AF60: 205.8 | AG60: 86.31 | AH60: 5.93 | AI60: 70.69 | AJ60: 510.84 | AK60: 156.79 | AL60: 176.99 | AM60: 272.26 | AN60: 260.98 | AO60: 13.52
A61: 59 | B61: 2022-10-07 | C61: 127.44 | D61: 101.79 | E61: 144.92 | F61: 147.69 | G61: 49.5 | H61: 231.75 | I61: 65.13 | J61: 69.7 | K61: 142.87 | L61: 260.76 | M61: 436.11 | N61: 116.02 | O61: 123.31 | P61: 88.36 | Q61: 80.57 | R61: 129.92 | S61: 185.66 | T61: 73.44 | U61: 87.6 | V61: 419.84 | W61: 229.85 | X61: 297.71 | Y61: 496.09 | Z61: 260.04 | AA61: 63.29 | AB61: 121.96 | AC61: 82.17 | AD61: 101.94 | AE61: 36.16 | AF61: 205.6 | AG61: 84.3 | AH61: 5.87 | AI61: 68.97 | AJ61: 523.61 | AK61: 159.28 | AL61: 177.86 | AM61: 276.5 | AN61: 258.48 | AO61: 13.47
A62: 60 | B62: 2022-10-06 | C62: 132.18 | D62: 102.45 | E62: 150.97 | F62: 149.93 | G62: 50.78 | H62: 238.59 | I62: 66.2 | J62: 70.24 | K62: 145.44 | L62: 263.01 | M62: 440.47 | N62: 123.64 | O62: 126.06 | P62: 87.5 | Q62: 80.73 | R62: 128.72 | S62: 186.02 | T62: 72.43 | U62: 87.44 | V62: 436.65 | W62: 234.2 | X62: 303.57 | Y62: 485.23 | Z62: 277.18 | AA62: 65.3 | AB62: 121.92 | AC62: 81.15 | AD62: 103.66 | AE62: 37.13 | AF62: 216.77 | AG62: 85.31 | AH62: 5.93 | AI62: 70.8 | AJ62: 540.59 | AK62: 166.54 | AL62: 182.08 | AM62: 287.55 | AN62: 268.19 | AO62: 13.84

Sheet CEM PricesDivs
B2: ='CEM Price Data'!C1 -> A | C2: ='CEM Price Data'!D1 -> ABT | D2: ='CEM Price Data'!E1 -> ADI | E2: ='CEM Price Data'!F1 -> AIZ | F2: ='CEM Price Data'!G1 -> AOS | G2: ='CEM Price Data'!H1 -> APD | H2: ='CEM Price Data'!I1 -> BFB | I2: ='CEM Price Data'!J1 -> BMY | J2: ='CEM Price Data'!K1 -> BR | K2: ='CEM Price Data'!L1 -> CACI | L2: ='CEM Price Data'!M1 -> CHE | M2: ='CEM Price Data'!N1 -> CSWI | N2: ='CEM Price Data'!O1 -> DGX | O2: ='CEM Price Data'!P1 -> EXPO | P2: ='CEM Price Data'!Q1 -> INGR | Q2: ='CEM Price Data'!R1 -> JJSF | R2: ='CEM Price Data'!S1 -> JKHY | S2: ='CEM Price Data'!T1 -> MKC | T2: ='CEM Price Data'!U1 -> MRK | U2: ='CEM Price Data'!V1 -> MSCI | V2: ='CEM Price Data'!W1 -> MSI | W2: ='CEM Price Data'!X1 -> NEU | X2: ='CEM Price Data'!Y1 -> NOC | Y2: ='CEM Price Data'!Z1 -> ODFL | Z2: ='CEM Price Data'!AA1 -> ORCL | AA2: ='CEM Price Data'!AB1 -> PGR | AB2: ='CEM Price Data'!AC1 -> POST | AC2: ='CEM Price Data'!AD1 -> RLI | AD2: ='CEM Price Data'!AE1 -> ROL | AE2: ='CEM Price Data'!AF1 -> SHW | AF2: ='CEM Price Data'!AG1 -> SIGI | AG2: ='CEM Price Data'!AH1 -> SIRI | AH2: ='CEM Price Data'!AI1 -> SXT | AI2: ='CEM Price Data'!AJ1 -> TMO | AJ2: ='CEM Price Data'!AK1 -> TXN | AK2: ='CEM Price Data'!AL1 -> VRSN | AL2: ='CEM Price Data'!AM1 -> WAT | AM2: ='CEM Price Data'!AN1 -> WSO | AN2: ='CEM Price Data'!AO1 -> WU
A3: =IF('CEM Price Data'!B2="","",'CEM Price Data'!B2) -> PX_LAST | B3: =IF('CEM Price Data'!C2="","",'CEM Price Data'!C2) -> A US Equity | C3: =IF('CEM Price Data'!D2="","",'CEM Price Data'!D2) -> ABT US Equity | D3: =IF('CEM Price Data'!E2="","",'CEM Price Data'!E2) -> ADI US Equity | E3: =IF('CEM Price Data'!F2="","",'CEM Price Data'!F2) -> AIZ US Equity | F3: =IF('CEM Price Data'!G2="","",'CEM Price Data'!G2) -> AOS US Equity | G3: =IF('CEM Price Data'!H2="","",'CEM Price Data'!H2) -> APD US Equity | H3: =IF('CEM Price Data'!I2="","",'CEM Price Data'!I2) -> BFB US Equity | I3: =IF('CEM Price Data'!J2="","",'CEM Price Data'!J2) -> BMY US Equity | J3: =IF('CEM Price Data'!K2="","",'CEM Price Data'!K2) -> BR US Equity | K3: =IF('CEM Price Data'!L2="","",'CEM Price Data'!L2) -> CACI US Equity | L3: =IF('CEM Price Data'!M2="","",'CEM Price Data'!M2) -> CHE US Equity | M3: =IF('CEM Price Data'!N2="","",'CEM Price Data'!N2) -> CSWI US Equity | N3: =IF('CEM Price Data'!O2="","",'CEM Price Data'!O2) -> DGX US Equity | O3: =IF('CEM Price Data'!P2="","",'CEM Price Data'!P2) -> EXPO US Equity | P3: =IF('CEM Price Data'!Q2="","",'CEM Price Data'!Q2) -> INGR US Equity | Q3: =IF('CEM Price Data'!R2="","",'CEM Price Data'!R2) -> JJSF US Equity | R3: =IF('CEM Price Data'!S2="","",'CEM Price Data'!S2) -> JKHY US Equity | S3: =IF('CEM Price Data'!T2="","",'CEM Price Data'!T2) -> MKC US Equity | T3: =IF('CEM Price Data'!U2="","",'CEM Price Data'!U2) -> MRK US Equity | U3: =IF('CEM Price Data'!V2="","",'CEM Price Data'!V2) -> MSCI US Equity | V3: =IF('CEM Price Data'!W2="","",'CEM Price Data'!W2) -> MSI US Equity | W3: =IF('CEM Price Data'!X2="","",'CEM Price Data'!X2) -> NEU US Equity | X3: =IF('CEM Price Data'!Y2="","",'CEM Price Data'!Y2) -> NOC US Equity | Y3: =IF('CEM Price Data'!Z2="","",'CEM Price Data'!Z2) -> ODFL US Equity | Z3: =IF('CEM Price Data'!AA2="","",'CEM Price Data'!AA2) -> ORCL US Equity | AA3: =IF('CEM Price Data'!AB2="","",'CEM Price Data'!AB2) -> PGR US Equity | AB3: =IF('CEM Price Data'!AC2="","",'CEM Price Data'!AC2) -> POST US Equity | AC3: =IF('CEM Price Data'!AD2="","",'CEM Price Data'!AD2) -> RLI US Equity | AD3: =IF('CEM Price Data'!AE2="","",'CEM Price Data'!AE2) -> ROL US Equity | AE3: =IF('CEM Price Data'!AF2="","",'CEM Price Data'!AF2) -> SHW US Equity | AF3: =IF('CEM Price Data'!AG2="","",'CEM Price Data'!AG2) -> SIGI US Equity | AG3: =IF('CEM Price Data'!AH2="","",'CEM Price Data'!AH2) -> SIRI US Equity | AH3: =IF('CEM Price Data'!AI2="","",'CEM Price Data'!AI2) -> SXT US Equity | AI3: =IF('CEM Price Data'!AJ2="","",'CEM Price Data'!AJ2) -> TMO US Equity | AJ3: =IF('CEM Price Data'!AK2="","",'CEM Price Data'!AK2) -> TXN US Equity | AK3: =IF('CEM Price Data'!AL2="","",'CEM Price Data'!AL2) -> VRSN US Equity | AL3: =IF('CEM Price Data'!AM2="","",'CEM Price Data'!AM2) -> WAT US Equity | AM3: =IF('CEM Price Data'!AN2="","",'CEM Price Data'!AN2) -> WSO US Equity | AN3: =IF('CEM Price Data'!AO2="","",'CEM Price Data'!AO2) -> WU US Equity
A4: =IF('CEM Price Data'!B3="","",'CEM Price Data'!B3) -> 2022-12-30 | B4: =IF('CEM Price Data'!C3="","",'CEM Price Data'!C3) -> 149.65 | C4: =IF('CEM Price Data'!D3="","",'CEM Price Data'!D3) -> 109.79 | D4: =IF('CEM Price Data'!E3="","",'CEM Price Data'!E3) -> 164.03 | E4: =IF('CEM Price Data'!F3="","",'CEM Price Data'!F3) -> 125.06 | F4: =IF('CEM Price Data'!G3="","",'CEM Price Data'!G3) -> 57.24 | G4: =IF('CEM Price Data'!H3="","",'CEM Price Data'!H3) -> 308.26 | H4: =IF('CEM Price Data'!I3="","",'CEM Price Data'!I3) -> 65.68 | I4: =IF('CEM Price Data'!J3="","",'CEM Price Data'!J3) -> 71.95 | J4: =IF('CEM Price Data'!K3="","",'CEM Price Data'!K3) -> 134.13 | K4: =IF('CEM Price Data'!L3="","",'CEM Price Data'!L3) -> 300.59 | L4: =IF('CEM Price Data'!M3="","",'CEM Price Data'!M3) -> 510.43 | M4: =IF('CEM Price Data'!N3="","",'CEM Price Data'!N3) -> 115.93 | N4: =IF('CEM Price Data'!O3="","",'CEM Price Data'!O3) -> 156.44 | O4: =IF('CEM Price Data'!P3="","",'CEM Price Data'!P3) -> 99.09 | P4: =IF('CEM Price Data'!Q3="","",'CEM Price Data'!Q3) -> 97.93 | Q4: =IF('CEM Price Data'!R3="","",'CEM Price Data'!R3) -> 149.71 | R4: =IF('CEM Price Data'!S3="","",'CEM Price Data'!S3) -> 175.56 | S4: =IF('CEM Price Data'!T3="","",'CEM Price Data'!T3) -> 82.89 | T4: =IF('CEM Price Data'!U3="","",'CEM Price Data'!U3) -> 110.95 | U4: =IF('CEM Price Data'!V3="","",'CEM Price Data'!V3) -> 465.17 | V4: =IF('CEM Price Data'!W3="","",'CEM Price Data'!W3) -> 257.71 | W4: =IF('CEM Price Data'!X3="","",'CEM Price Data'!X3) -> 311.11 | X4: =IF('CEM Price Data'!Y3="","",'CEM Price Data'!Y3) -> 545.61 | Y4: =IF('CEM Price Data'!Z3="","",'CEM Price Data'!Z3) -> 283.78 | Z4: =IF('CEM Price Data'!AA3="","",'CEM Price Data'!AA3) -> 81.74 | AA4: =IF('CEM Price Data'!AB3="","",'CEM Price Data'!AB3) -> 129.71 | AB4: =IF('CEM Price Data'!AC3="","",'CEM Price Data'!AC3) -> 90.26 | AC4: =IF('CEM Price Data'!AD3="","",'CEM Price Data'!AD3) -> 131.27 | AD4: =IF('CEM Price Data'!AE3="","",'CEM Price Data'!AE3) -> 36.54 | AE4: =IF('CEM Price Data'!AF3="","",'CEM Price Data'!AF3) -> 237.33 | AF4: =IF('CEM Price Data'!AG3="","",'CEM Price Data'!AG3) -> 88.61 | AG4: =IF('CEM Price Data'!AH3="","",'CEM Price Data'!AH3) -> 5.84 | AH4: =IF('CEM Price Data'!AI3="","",'CEM Price Data'!AI3) -> 72.92 | AI4: =IF('CEM Price Data'!AJ3="","",'CEM Price Data'!AJ3) -> 550.69 | AJ4: =IF('CEM Price Data'!AK3="","",'CEM Price Data'!AK3) -> 165.22 | AK4: =IF('CEM Price Data'!AL3="","",'CEM Price Data'!AL3) -> 205.44 | AL4: =IF('CEM Price Data'!AM3="","",'CEM Price Data'!AM3) -> 342.58 | AM4: =IF('CEM Price Data'!AN3="","",'CEM Price Data'!AN3) -> 249.4 | AN4: =IF('CEM Price Data'!AO3="","",'CEM Price Data'!AO3) -> 13.77
A5: =IF('CEM Price Data'!B4="","",'CEM Price Data'!B4) -> 2022-12-29 | B5: =IF('CEM Price Data'!C4="","",'CEM Price Data'!C4) -> 151.09 | C5: =IF('CEM Price Data'!D4="","",'CEM Price Data'!D4) -> 110.31 | D5: =IF('CEM Price Data'!E4="","",'CEM Price Data'!E4) -> 163.98 | E5: =IF('CEM Price Data'!F4="","",'CEM Price Data'!F4) -> 126.63 | F5: =IF('CEM Price Data'!G4="","",'CEM Price Data'!G4) -> 57.66 | G5: =IF('CEM Price Data'!H4="","",'CEM Price Data'!H4) -> 311.41 | H5: =IF('CEM Price Data'!I4="","",'CEM Price Data'!I4) -> 66.15 | I5: =IF('CEM Price Data'!J4="","",'CEM Price Data'!J4) -> 72.1 | J5: =IF('CEM Price Data'!K4="","",'CEM Price Data'!K4) -> 136.66 | K5: =IF('CEM Price Data'!L4="","",'CEM Price Data'!L4) -> 300.59 | L5: =IF('CEM Price Data'!M4="","",'CEM Price Data'!M4) -> 517.15 | M5: =IF('CEM Price Data'!N4="","",'CEM Price Data'!N4) -> 117.02 | N5: =IF('CEM Price Data'!O4="","",'CEM Price Data'!O4) -> 156.79 | O5: =IF('CEM Price Data'!P4="","",'CEM Price Data'!P4) -> 100.56 | P5: =IF('CEM Price Data'!Q4="","",'CEM Price Data'!Q4) -> 98.18 | Q5: =IF('CEM Price Data'!R4="","",'CEM Price Data'!R4) -> 151.94 | R5: =IF('CEM Price Data'!S4="","",'CEM Price Data'!S4) -> 177.49 | S5: =IF('CEM Price Data'!T4="","",'CEM Price Data'!T4) -> 84.14 | T5: =IF('CEM Price Data'!U4="","",'CEM Price Data'!U4) -> 110.82 | U5: =IF('CEM Price Data'!V4="","",'CEM Price Data'!V4) -> 471.92 | V5: =IF('CEM Price Data'!W4="","",'CEM Price Data'!W4) -> 258.81 | W5: =IF('CEM Price Data'!X4="","",'CEM Price Data'!X4) -> 309.04 | X5: =IF('CEM Price Data'!Y4="","",'CEM Price Data'!Y4) -> 542 | Y5: =IF('CEM Price Data'!Z4="","",'CEM Price Data'!Z4) -> 286.58 | Z5: =IF('CEM Price Data'!AA4="","",'CEM Price Data'!AA4) -> 81.4 | AA5: =IF('CEM Price Data'!AB4="","",'CEM Price Data'!AB4) -> 130.56 | AB5: =IF('CEM Price Data'!AC4="","",'CEM Price Data'!AC4) -> 90.23 | AC5: =IF('CEM Price Data'!AD4="","",'CEM Price Data'!AD4) -> 133.72 | AD5: =IF('CEM Price Data'!AE4="","",'CEM Price Data'!AE4) -> 36.66 | AE5: =IF('CEM Price Data'!AF4="","",'CEM Price Data'!AF4) -> 241.32 | AF5: =IF('CEM Price Data'!AG4="","",'CEM Price Data'!AG4) -> 90.34 | AG5: =IF('CEM Price Data'!AH4="","",'CEM Price Data'!AH4) -> 5.82 | AH5: =IF('CEM Price Data'!AI4="","",'CEM Price Data'!AI4) -> 73.89 | AI5: =IF('CEM Price Data'!AJ4="","",'CEM Price Data'!AJ4) -> 557.01 | AJ5: =IF('CEM Price Data'!AK4="","",'CEM Price Data'!AK4) -> 165.02 | AK5: =IF('CEM Price Data'!AL4="","",'CEM Price Data'!AL4) -> 205.38 | AL5: =IF('CEM Price Data'!AM4="","",'CEM Price Data'!AM4) -> 345.88 | AM5: =IF('CEM Price Data'!AN4="","",'CEM Price Data'!AN4) -> 252.55 | AN5: =IF('CEM Price Data'!AO4="","",'CEM Price Data'!AO4) -> 13.88
A6: =IF('CEM Price Data'!B5="","",'CEM Price Data'!B5) -> 2022-12-28 | B6: =IF('CEM Price Data'!C5="","",'CEM Price Data'!C5) -> 148.09 | C6: =IF('CEM Price Data'!D5="","",'CEM Price Data'!D5) -> 107.83 | D6: =IF('CEM Price Data'!E5="","",'CEM Price Data'!E5) -> 160.28 | E6: =IF('CEM Price Data'!F5="","",'CEM Price Data'!F5) -> 123.96 | F6: =IF('CEM Price Data'!G5="","",'CEM Price Data'!G5) -> 56.77 | G6: =IF('CEM Price Data'!H5="","",'CEM Price Data'!H5) -> 309.64 | H6: =IF('CEM Price Data'!I5="","",'CEM Price Data'!I5) -> 65.57 | I6: =IF('CEM Price Data'!J5="","",'CEM Price Data'!J5) -> 71.99 | J6: =IF('CEM Price Data'!K5="","",'CEM Price Data'!K5) -> 133.37 | K6: =IF('CEM Price Data'!L5="","",'CEM Price Data'!L5) -> 297.97 | L6: =IF('CEM Price Data'!M5="","",'CEM Price Data'!M5) -> 511 | M6: =IF('CEM Price Data'!N5="","",'CEM Price Data'!N5) -> 113.64 | N6: =IF('CEM Price Data'!O5="","",'CEM Price Data'!O5) -> 156.51 | O6: =IF('CEM Price Data'!P5="","",'CEM Price Data'!P5) -> 98.53 | P6: =IF('CEM Price Data'!Q5="","",'CEM Price Data'!Q5) -> 98.09 | Q6: =IF('CEM Price Data'!R5="","",'CEM Price Data'!R5) -> 150.78 | R6: =IF('CEM Price Data'!S5="","",'CEM Price Data'!S5) -> 176.64 | S6: =IF('CEM Price Data'!T5="","",'CEM Price Data'!T5) -> 83.24 | T6: =IF('CEM Price Data'!U5="","",'CEM Price Data'!U5) -> 111.08 | U6: =IF('CEM Price Data'!V5="","",'CEM Price Data'!V5) -> 454.44 | V6: =IF('CEM Price Data'!W5="","",'CEM Price Data'!W5) -> 253.8 | W6: =IF('CEM Price Data'!X5="","",'CEM Price Data'!X5) -> 305.07 | X6: =IF('CEM Price Data'!Y5="","",'CEM Price Data'!Y5) -> 540.41 | Y6: =IF('CEM Price Data'!Z5="","",'CEM Price Data'!Z5) -> 282.25 | Z6: =IF('CEM Price Data'!AA5="","",'CEM Price Data'!AA5) -> 80.33 | AA6: =IF('CEM Price Data'!AB5="","",'CEM Price Data'!AB5) -> 129.72 | AB6: =IF('CEM Price Data'!AC5="","",'CEM Price Data'!AC5) -> 90.34 | AC6: =IF('CEM Price Data'!AD5="","",'CEM Price Data'!AD5) -> 131.72 | AD6: =IF('CEM Price Data'!AE5="","",'CEM Price Data'!AE5) -> 36.54 | AE6: =IF('CEM Price Data'!AF5="","",'CEM Price Data'!AF5) -> 237.48 | AF6: =IF('CEM Price Data'!AG5="","",'CEM Price Data'!AG5) -> 89.13 | AG6: =IF('CEM Price Data'!AH5="","",'CEM Price Data'!AH5) -> 5.73 | AH6: =IF('CEM Price Data'!AI5="","",'CEM Price Data'!AI5) -> 72.31 | AI6: =IF('CEM Price Data'!AJ5="","",'CEM Price Data'!AJ5) -> 543.41 | AJ6: =IF('CEM Price Data'!AK5="","",'CEM Price Data'!AK5) -> 161.19 | AK6: =IF('CEM Price Data'!AL5="","",'CEM Price Data'!AL5) -> 201.13 | AL6: =IF('CEM Price Data'!AM5="","",'CEM Price Data'!AM5) -> 340.71 | AM6: =IF('CEM Price Data'!AN5="","",'CEM Price Data'!AN5) -> 247 | AN6: =IF('CEM Price Data'!AO5="","",'CEM Price Data'!AO5) -> 13.65
A7: =IF('CEM Price Data'!B6="","",'CEM Price Data'!B6) -> 2022-12-27 | B7: =IF('CEM Price Data'!C6="","",'CEM Price Data'!C6) -> 149.55 | C7: =IF('CEM Price Data'!D6="","",'CEM Price Data'!D6) -> 108.57 | D7: =IF('CEM Price Data'!E6="","",'CEM Price Data'!E6) -> 162.2 | E7: =IF('CEM Price Data'!F6="","",'CEM Price Data'!F6) -> 124.57 | F7: =IF('CEM Price Data'!G6="","",'CEM Price Data'!G6) -> 57.67 | G7: =IF('CEM Price Data'!H6="","",'CEM Price Data'!H6) -> 312.2 | H7: =IF('CEM Price Data'!I6="","",'CEM Price Data'!I6) -> 66.58 | I7: =IF('CEM Price Data'!J6="","",'CEM Price Data'!J6) -> 72.61 | J7: =IF('CEM Price Data'!K6="","",'CEM Price Data'!K6) -> 135.47 | K7: =IF('CEM Price Data'!L6="","",'CEM Price Data'!L6) -> 302.92 | L7: =IF('CEM Price Data'!M6="","",'CEM Price Data'!M6) -> 513.19 | M7: =IF('CEM Price Data'!N6="","",'CEM Price Data'!N6) -> 115.95 | N7: =IF('CEM Price Data'!O6="","",'CEM Price Data'!O6) -> 157.28 | O7: =IF('CEM Price Data'!P6="","",'CEM Price Data'!P6) -> 100.38 | P7: =IF('CEM Price Data'!Q6="","",'CEM Price Data'!Q6) -> 99.45 | Q7: =IF('CEM Price Data'!R6="","",'CEM Price Data'!R6) -> 152.09 | R7: =IF('CEM Price Data'!S6="","",'CEM Price Data'!S6) -> 178.9 | S7: =IF('CEM Price Data'!T6="","",'CEM Price Data'!T6) -> 84.83 | T7: =IF('CEM Price Data'!U6="","",'CEM Price Data'!U6) -> 112.12 | U7: =IF('CEM Price Data'!V6="","",'CEM Price Data'!V6) -> 460.43 | V7: =IF('CEM Price Data'!W6="","",'CEM Price Data'!W6) -> 256.63 | W7: =IF('CEM Price Data'!X6="","",'CEM Price Data'!X6) -> 311.86 | X7: =IF('CEM Price Data'!Y6="","",'CEM Price Data'!Y6) -> 541.19 | Y7: =IF('CEM Price Data'!Z6="","",'CEM Price Data'!Z6) -> 286.77 | Z7: =IF('CEM Price Data'!AA6="","",'CEM Price Data'!AA6) -> 80.98 | AA7: =IF('CEM Price Data'!AB6="","",'CEM Price Data'!AB6) -> 130.17 | AB7: =IF('CEM Price Data'!AC6="","",'CEM Price Data'!AC6) -> 91.53 | AC7: =IF('CEM Price Data'!AD6="","",'CEM Price Data'!AD6) -> 133.68 | AD7: =IF('CEM Price Data'!AE6="","",'CEM Price Data'!AE6) -> 37.02 | AE7: =IF('CEM Price Data'!AF6="","",'CEM Price Data'!AF6) -> 239.42 | AF7: =IF('CEM Price Data'!AG6="","",'CEM Price Data'!AG6) -> 90.84 | AG7: =IF('CEM Price Data'!AH6="","",'CEM Price Data'!AH6) -> 5.78 | AH7: =IF('CEM Price Data'!AI6="","",'CEM Price Data'!AI6) -> 73.18 | AI7: =IF('CEM Price Data'!AJ6="","",'CEM Price Data'!AJ6) -> 545.44 | AJ7: =IF('CEM Price Data'!AK6="","",'CEM Price Data'!AK6) -> 163.78 | AK7: =IF('CEM Price Data'!AL6="","",'CEM Price Data'!AL6) -> 204.07 | AL7: =IF('CEM Price Data'!AM6="","",'CEM Price Data'!AM6) -> 346.53 | AM7: =IF('CEM Price Data'!AN6="","",'CEM Price Data'!AN6) -> 252.67 | AN7: =IF('CEM Price Data'!AO6="","",'CEM Price Data'!AO6) -> 13.84
A8: =IF('CEM Price Data'!B7="","",'CEM Price Data'!B7) -> 2022-12-23 | B8: =IF('CEM Price Data'!C7="","",'CEM Price Data'!C7) -> 149.23 | C8: =IF('CEM Price Data'!D7="","",'CEM Price Data'!D7) -> 108.18 | D8: =IF('CEM Price Data'!E7="","",'CEM Price Data'!E7) -> 163.84 | E8: =IF('CEM Price Data'!F7="","",'CEM Price Data'!F7) -> 125.03 | F8: =IF('CEM Price Data'!G7="","",'CEM Price Data'!G7) -> 56.9 | G8: =IF('CEM Price Data'!H7="","",'CEM Price Data'!H7) -> 312.04 | H8: =IF('CEM Price Data'!I7="","",'CEM Price Data'!I7) -> 66.35 | I8: =IF('CEM Price Data'!J7="","",'CEM Price Data'!J7) -> 72.89 | J8: =IF('CEM Price Data'!K7="","",'CEM Price Data'!K7) -> 134.48 | K8: =IF('CEM Price Data'!L7="","",'CEM Price Data'!L7) -> 299.28 | L8: =IF('CEM Price Data'!M7="","",'CEM Price Data'!M7) -> 516.17 | M8: =IF('CEM Price Data'!N7="","",'CEM Price Data'!N7) -> 117.17 | N8: =IF('CEM Price Data'!O7="","",'CEM Price Data'!O7) -> 156.31 | O8: =IF('CEM Price Data'!P7="","",'CEM Price Data'!P7) -> 100.55 | P8: =IF('CEM Price Data'!Q7="","",'CEM Price Data'!Q7) -> 98.87 | Q8: =IF('CEM Price Data'!R7="","",'CEM Price Data'!R7) -> 153.4 | R8: =IF('CEM Price Data'!S7="","",'CEM Price Data'!S7) -> 177.34 | S8: =IF('CEM Price Data'!T7="","",'CEM Price Data'!T7) -> 84.22 | T8: =IF('CEM Price Data'!U7="","",'CEM Price Data'!U7) -> 111.86 | U8: =IF('CEM Price Data'!V7="","",'CEM Price Data'!V7) -> 463.82 | V8: =IF('CEM Price Data'!W7="","",'CEM Price Data'!W7) -> 256.63 | W8: =IF('CEM Price Data'!X7="","",'CEM Price Data'!X7) -> 310.06 | X8: =IF('CEM Price Data'!Y7="","",'CEM Price Data'!Y7) -> 534.77 | Y8: =IF('CEM Price Data'!Z7="","",'CEM Price Data'!Z7) -> 286.1 | Z8: =IF('CEM Price Data'!AA7="","",'CEM Price Data'!AA7) -> 80.85 | AA8: =IF('CEM Price Data'!AB7="","",'CEM Price Data'!AB7) -> 129.44 | AB8: =IF('CEM Price Data'!AC7="","",'CEM Price Data'!AC7) -> 91.11 | AC8: =IF('CEM Price Data'!AD7="","",'CEM Price Data'!AD7) -> 133.69 | AD8: =IF('CEM Price Data'!AE7="","",'CEM Price Data'!AE7) -> 37.12 | AE8: =IF('CEM Price Data'!AF7="","",'CEM Price Data'!AF7) -> 242.67 | AF8: =IF('CEM Price Data'!AG7="","",'CEM Price Data'!AG7) -> 90.85 | AG8: =IF('CEM Price Data'!AH7="","",'CEM Price Data'!AH7) -> 5.84 | AH8: =IF('CEM Price Data'!AI7="","",'CEM Price Data'!AI7) -> 72.93 | AI8: =IF('CEM Price Data'!AJ7="","",'CEM Price Data'!AJ7) -> 540.68 | AJ8: =IF('CEM Price Data'!AK7="","",'CEM Price Data'!AK7) -> 164.38 | AK8: =IF('CEM Price Data'!AL7="","",'CEM Price Data'!AL7) -> 203.72 | AL8: =IF('CEM Price Data'!AM7="","",'CEM Price Data'!AM7) -> 346.66 | AM8: =IF('CEM Price Data'!AN7="","",'CEM Price Data'!AN7) -> 252.17 | AN8: =IF('CEM Price Data'!AO7="","",'CEM Price Data'!AO7) -> 13.83
